Workbook

Sheet 使い方
C3: ①はじめに
C4: 本ソフトは給与賞与の「源泉所得税」「雇用保険料」「社会保険料」を自動計算するためのものです。
C5: 本ソフトは、細心の注意を払って作成しておりますが、計算の正確さを保証するものではありません。使用する際は、自己の責任の下でのご使用をご了承ください。
C7: ②使い方
C8: ・「基本情報シート」に基本的情報を入力後、「給与計算シート」もしくは「賞与計算シート」の白い部分に必要事項を入力してください。
C9: ・保護されている部分は解除が可能です。
C11: ③賞与に対する社会保険料の計算についての注意事項
C13: ・健康保険の標準賞与額の一人当たりの上限は年度（4月1日から翌年の3月31日まで）の賞与累計額573万円までです。今年度賞与累計額が573万円にさしかかる人がいる場合は適宜健康保険の額を修正してください。
C15: ・厚生年金の標準賞与額の一人あたりの上限は１ヶ月に１５０万円までです。１ヶ月に2回賞与を支給して合計が１５０万円を超える場合は適宜厚生年金の額を修正してください。１回の賞与が１５０万円を超える場合は自動で１５０万円の標準賞与額として厚生年金が計算されます。
H17: 酒井会計事務所
H18: http://sakai-ac.com/

Sheet 基本情報
B2: 年月 | D2: ○○年○○月 | F2: ※シートの保護は解除できます。
B3: 営業所の場所 | D3: 東京
B4: 事業の種類 | D4: 一般の事業
L5: 社会保険標準報酬月額 参考表
B6: NO. | C6: 名前 | D6: 甲・乙区分 | E6: 扶養人数 | F6: 雇用保険 加入○× | G6: 社会保険区分 | J6: 交通費 手当 （非課税分）
G7: 標準報酬月額 | H7: 健康保険 | I7: 厚生年金 | L7: 標準報酬月額 | M7: 円以上 | N7: ～ | O7: 円未満
B8: 1 | C8: 給与一郎 | D8: 甲欄 | E8: 2 | F8: × | G8: 560000 | H8: 介護保険なし | I8: 一般、坑内員・船員 | J8: 10000 | L8: =リスト表!D4 -> 58000 | M8: =INDIRECT(' 基本情報 '!$D$3&"!C12") -> 0 | N8: ～ | O8: =INDIRECT(' 基本情報 '!$D$3&"!E12") -> 63000
B9: 2 | C9: 給与二郎 | D9: 甲欄 | E9: 1 | F9: ○ | G9: 300000 | H9: 介護保険なし | I9: 一般、坑内員・船員 | J9: 10000 | L9: =リスト表!D5 -> 68000 | M9: =INDIRECT(' 基本情報 '!$D$3&"!C13") -> 63000 | N9: ～ | O9: =INDIRECT(' 基本情報 '!$D$3&"!E13") -> 73000
B10: 3 | C10: 給与三郎 | D10: 乙欄 | E10: 0 | L10: =リスト表!D6 -> 78000 | M10: =INDIRECT(' 基本情報 '!$D$3&"!C14") -> 73000 | N10: ～ | O10: =INDIRECT(' 基本情報 '!$D$3&"!E14") -> 83000
B11: 4 | L11: =リスト表!D7 -> 88000 | M11: =INDIRECT(' 基本情報 '!$D$3&"!C15") -> 83000 | N11: ～ | O11: =INDIRECT(' 基本情報 '!$D$3&"!E15") -> 93000
B12: 5 | L12: =リスト表!D8 -> 98000 | M12: =INDIRECT(' 基本情報 '!$D$3&"!C16") -> 93000 | N12: ～ | O12: =INDIRECT(' 基本情報 '!$D$3&"!E16") -> 101000
B13: 6 | L13: =リスト表!D9 -> 104000 | M13: =INDIRECT(' 基本情報 '!$D$3&"!C17") -> 101000 | N13: ～ | O13: =INDIRECT(' 基本情報 '!$D$3&"!E17") -> 107000
B14: 7 | L14: =リスト表!D10 -> 110000 | M14: =INDIRECT(' 基本情報 '!$D$3&"!C18") -> 107000 | N14: ～ | O14: =INDIRECT(' 基本情報 '!$D$3&"!E18") -> 114000
B15: 8 | L15: =リスト表!D11 -> 118000 | M15: =INDIRECT(' 基本情報 '!$D$3&"!C19") -> 114000 | N15: ～ | O15: =INDIRECT(' 基本情報 '!$D$3&"!E19") -> 122000
B16: 9 | L16: =リスト表!D12 -> 126000 | M16: =INDIRECT(' 基本情報 '!$D$3&"!C20") -> 122000 | N16: ～ | O16: =INDIRECT(' 基本情報 '!$D$3&"!E20") -> 130000
B17: 10 | L17: =リスト表!D13 -> 134000 | M17: =INDIRECT(' 基本情報 '!$D$3&"!C21") -> 130000 | N17: ～ | O17: =INDIRECT(' 基本情報 '!$D$3&"!E21") -> 138000
B18: 11 | L18: =リスト表!D14 -> 142000 | M18: =INDIRECT(' 基本情報 '!$D$3&"!C22") -> 138000 | N18: ～ | O18: =INDIRECT(' 基本情報 '!$D$3&"!E22") -> 146000
B19: 12 | L19: =リスト表!D15 -> 150000 | M19: =INDIRECT(' 基本情報 '!$D$3&"!C23") -> 146000 | N19: ～ | O19: =INDIRECT(' 基本情報 '!$D$3&"!E23") -> 155000
B20: 13 | L20: =リスト表!D16 -> 160000 | M20: =INDIRECT(' 基本情報 '!$D$3&"!C24") -> 155000 | N20: ～ | O20: =INDIRECT(' 基本情報 '!$D$3&"!E24") -> 165000
B21: 14 | L21: =リスト表!D17 -> 170000 | M21: =INDIRECT(' 基本情報 '!$D$3&"!C25") -> 165000 | N21: ～ | O21: =INDIRECT(' 基本情報 '!$D$3&"!E25") -> 175000
B22: 15 | L22: =リスト表!D18 -> 180000 | M22: =INDIRECT(' 基本情報 '!$D$3&"!C26") -> 175000 | N22: ～ | O22: =INDIRECT(' 基本情報 '!$D$3&"!E26") -> 185000
B23: 16 | L23: =リスト表!D19 -> 190000 | M23: =INDIRECT(' 基本情報 '!$D$3&"!C27") -> 185000 | N23: ～ | O23: =INDIRECT(' 基本情報 '!$D$3&"!E27") -> 195000
B24: 17 | L24: =リスト表!D20 -> 200000 | M24: =INDIRECT(' 基本情報 '!$D$3&"!C28") -> 195000 | N24: ～ | O24: =INDIRECT(' 基本情報 '!$D$3&"!E28") -> 210000
B25: 18 | L25: =リスト表!D21 -> 220000 | M25: =INDIRECT(' 基本情報 '!$D$3&"!C29") -> 210000 | N25: ～ | O25: =INDIRECT(' 基本情報 '!$D$3&"!E29") -> 230000
B26: 19 | L26: =リスト表!D22 -> 240000 | M26: =INDIRECT(' 基本情報 '!$D$3&"!C30") -> 230000 | N26: ～ | O26: =INDIRECT(' 基本情報 '!$D$3&"!E30") -> 250000
B27: 20 | L27: =リスト表!D23 -> 260000 | M27: =INDIRECT(' 基本情報 '!$D$3&"!C31") -> 250000 | N27: ～ | O27: =INDIRECT(' 基本情報 '!$D$3&"!E31") -> 270000
B28: 21 | L28: =リスト表!D24 -> 280000 | M28: =INDIRECT(' 基本情報 '!$D$3&"!C32") -> 270000 | N28: ～ | O28: =INDIRECT(' 基本情報 '!$D$3&"!E32") -> 290000
B29: 22 | L29: =リスト表!D25 -> 300000 | M29: =INDIRECT(' 基本情報 '!$D$3&"!C33") -> 290000 | N29: ～ | O29: =INDIRECT(' 基本情報 '!$D$3&"!E33") -> 310000
B30: 23 | L30: =リスト表!D26 -> 320000 | M30: =INDIRECT(' 基本情報 '!$D$3&"!C34") -> 310000 | N30: ～ | O30: =INDIRECT(' 基本情報 '!$D$3&"!E34") -> 330000
B31: 24 | L31: =リスト表!D27 -> 340000 | M31: =INDIRECT(' 基本情報 '!$D$3&"!C35") -> 330000 | N31: ～ | O31: =INDIRECT(' 基本情報 '!$D$3&"!E35") -> 350000
B32: 25 | L32: =リスト表!D28 -> 360000 | M32: =INDIRECT(' 基本情報 '!$D$3&"!C36") -> 350000 | N32: ～ | O32: =INDIRECT(' 基本情報 '!$D$3&"!E36") -> 370000
B33: 26 | L33: =リスト表!D29 -> 380000 | M33: =INDIRECT(' 基本情報 '!$D$3&"!C37") -> 370000 | N33: ～ | O33: =INDIRECT(' 基本情報 '!$D$3&"!E37") -> 395000
B34: 27 | L34: =リスト表!D30 -> 410000 | M34: =INDIRECT(' 基本情報 '!$D$3&"!C38") -> 395000 | N34: ～ | O34: =INDIRECT(' 基本情報 '!$D$3&"!E38") -> 425000
B35: 28 | L35: =リスト表!D31 -> 440000 | M35: =INDIRECT(' 基本情報 '!$D$3&"!C39") -> 425000 | N35: ～ | O35: =INDIRECT(' 基本情報 '!$D$3&"!E39") -> 455000
B36: 29 | L36: =リスト表!D32 -> 470000 | M36: =INDIRECT(' 基本情報 '!$D$3&"!C40") -> 455000 | N36: ～ | O36: =INDIRECT(' 基本情報 '!$D$3&"!E40") -> 485000
B37: 30 | L37: =リスト表!D33 -> 500000 | M37: =INDIRECT(' 基本情報 '!$D$3&"!C41") -> 485000 | N37: ～ | O37: =INDIRECT(' 基本情報 '!$D$3&"!E41") -> 515000
L38: =リスト表!D34 -> 530000 | M38: =INDIRECT(' 基本情報 '!$D$3&"!C42") -> 515000 | N38: ～ | O38: =INDIRECT(' 基本情報 '!$D$3&"!E42") -> 545000
L39: =リスト表!D35 -> 560000 | M39: =INDIRECT(' 基本情報 '!$D$3&"!C43") -> 545000 | N39: ～ | O39: =INDIRECT(' 基本情報 '!$D$3&"!E43") -> 575000
L40: =リスト表!D36 -> 590000 | M40: =INDIRECT(' 基本情報 '!$D$3&"!C44") -> 575000 | N40: ～ | O40: =INDIRECT(' 基本情報 '!$D$3&"!E44") -> 605000
L41: =リスト表!D37 -> 620000 | M41: =INDIRECT(' 基本情報 '!$D$3&"!C45") -> 605000 | N41: ～ | O41: =INDIRECT(' 基本情報 '!$D$3&"!E45") -> 635000
L42: =リスト表!D38 -> 650000 | M42: =INDIRECT(' 基本情報 '!$D$3&"!C46") -> 635000 | N42: ～ | O42: =INDIRECT(' 基本情報 '!$D$3&"!E46") -> 665000
L43: =リスト表!D39 -> 680000 | M43: =INDIRECT(' 基本情報 '!$D$3&"!C47") -> 665000 | N43: ～ | O43: =INDIRECT(' 基本情報 '!$D$3&"!E47") -> 695000
L44: =リスト表!D40 -> 710000 | M44: =INDIRECT(' 基本情報 '!$D$3&"!C48") -> 695000 | N44: ～ | O44: =INDIRECT(' 基本情報 '!$D$3&"!E48") -> 730000
L45: =リスト表!D41 -> 750000 | M45: =INDIRECT(' 基本情報 '!$D$3&"!C49") -> 730000 | N45: ～ | O45: =INDIRECT(' 基本情報 '!$D$3&"!E49") -> 770000
L46: =リスト表!D42 -> 790000 | M46: =INDIRECT(' 基本情報 '!$D$3&"!C50") -> 770000 | N46: ～ | O46: =INDIRECT(' 基本情報 '!$D$3&"!E50") -> 810000
L47: =リスト表!D43 -> 830000 | M47: =INDIRECT(' 基本情報 '!$D$3&"!C51") -> 810000 | N47: ～ | O47: =INDIRECT(' 基本情報 '!$D$3&"!E51") -> 855000
L48: =リスト表!D44 -> 880000 | M48: =INDIRECT(' 基本情報 '!$D$3&"!C52") -> 855000 | N48: ～ | O48: =INDIRECT(' 基本情報 '!$D$3&"!E52") -> 905000
L49: =リスト表!D45 -> 930000 | M49: =INDIRECT(' 基本情報 '!$D$3&"!C53") -> 905000 | N49: ～ | O49: =INDIRECT(' 基本情報 '!$D$3&"!E53") -> 955000
L50: =リスト表!D46 -> 980000 | M50: =INDIRECT(' 基本情報 '!$D$3&"!C54") -> 955000 | N50: ～ | O50: =INDIRECT(' 基本情報 '!$D$3&"!E54") -> 1005000
L51: =リスト表!D47 -> 1030000 | M51: =INDIRECT(' 基本情報 '!$D$3&"!C55") -> 1005000 | N51: ～ | O51: =INDIRECT(' 基本情報 '!$D$3&"!E55") -> 1055000
L52: =リスト表!D48 -> 1090000 | M52: =INDIRECT(' 基本情報 '!$D$3&"!C56") -> 1055000 | N52: ～ | O52: =INDIRECT(' 基本情報 '!$D$3&"!E56") -> 1115000
L53: =リスト表!D49 -> 1150000 | M53: =INDIRECT(' 基本情報 '!$D$3&"!C57") -> 1115000 | N53: ～ | O53: =INDIRECT(' 基本情報 '!$D$3&"!E57") -> 1175000
L54: =リスト表!D50 -> 1210000 | M54: =INDIRECT(' 基本情報 '!$D$3&"!C58") -> 1175000 | N54: ～ | O54: =INDIRECT(' 基本情報 '!$D$3&"!E58") -> 1235000
L55: =リスト表!D51 -> 1270000 | M55: =INDIRECT(' 基本情報 '!$D$3&"!C59") -> 1235000 | N55: ～ | O55: =INDIRECT(' 基本情報 '!$D$3&"!E59") -> 1295000
L56: =リスト表!D52 -> 1330000 | M56: =INDIRECT(' 基本情報 '!$D$3&"!C60") -> 1295000 | N56: ～ | O56: =INDIRECT(' 基本情報 '!$D$3&"!E60") -> 1355000
L57: =リスト表!D53 -> 1390000 | M57: =INDIRECT(' 基本情報 '!$D$3&"!C61") -> 1355000 | N57: ～ | O57: =INDIRECT(' 基本情報 '!$D$3&"!E61") -> 0

Sheet 給与計算
B2: =' 基本情報 '!D2 -> ○○年○○月 | D2: 給与計算 | G2: ※シートの保護は解除できます。
B3: 集計 | D3: =D6 -> 本給 | E3: =E6 -> 他手当1 （課税） | F3: =F6 -> 他手当2 （課税） | G3: =G6 -> 総支給額 | H3: =H7 -> 雇用保険 | I3: =I7 -> 健康保険 | J3: =J7 -> 厚生年金 | K3: =K7 -> 社会保険合計 | L3: 社会保険料控除後の支給額 | M3: 源泉所得税 | N3: =N6 -> 交通費 手当 （非課税） | O3: =O6 -> その他 調整項目 （ﾏｲﾅｽ分） | P3: 差引支給額
D4: =SUM(D8:D37) -> 900000 | E4: =SUM(E8:E37) -> 50000 | F4: 0 | G4: 950000 | H4: 930 | I4: 42570 | J4: 78690 | K4: =SUM(K8:K37) -> 122190 | L4: 827810 | M4: 24660 | N4: 20000 | O4: =SUM(O8:O37) -> 0 | P4: 823150
B6: NO. | C6: 名前 | D6: 本給 | E6: 他手当1 （課税） | F6: 他手当2 （課税） | G6: 総支給額 | H6: 社会保険 | L6: 社会保険料控除後の支給額 | M6: 源泉所得税 | N6: 交通費 手当 （非課税） | O6: その他 調整項目 （ﾏｲﾅｽ分） | P6: 差引支給額 | Q6: 備考
H7: 雇用保険 | I7: 健康保険 | J7: 厚生年金 | K7: 社会保険合計
B8: 1 | C8: =IF(' 基本情報 '!C8="","",' 基本情報 '!C8) -> 給与一郎 | D8: 500000 | E8: 50000 | G8: =SUM(D8:F8) -> 550000 | H8: =MAX(IF(' 基本情報 '!F8="○",ROUNDUP((G8+N8)*IF(' 基本情報 '!$D$4="",0,VLOOKUP(' 基本情報 '!$D$4,雇用保険料率!$C:$D,2,0))-0.5,0),0),0) -> 0 | I8: =IF(OR(' 基本情報 '!$D$3="",' 基本情報 '!H8=""),0,HLOOKUP(' 基本情報 '!H8,計算シート!$W$4:$Y$34,ROW(計算シート!W5)-3,0)) -> 27720 | J8: =IF(OR(' 基本情報 '!$D$3="",' 基本情報 '!I8=""),0,HLOOKUP(' 基本情報 '!I8,計算シート!$Z$4:$AB$34,ROW(計算シート!W5)-3,0)) -> 51240 | K8: =SUM(H8:J8) -> 78960 | L8: =MAX(G8-K8,0) -> 471040 | M8: =IF(' 基本情報 '!D8="","",HLOOKUP(' 基本情報 '!D8,計算シート!$E$4:$G$34,ROW(計算シート!E5)-3,0)) -> 15920 | N8: =IF(ISNUMBER(' 基本情報 '!J8),' 基本情報 '!J8,0) -> 10000 | P8: =L8-IF(M8="",0,M8)+N8-O8 -> 465120
B9: 2 | C9: =IF(' 基本情報 '!C9="","",' 基本情報 '!C9) -> 給与二郎 | D9: 300000 | G9: 300000 | H9: =MAX(IF(' 基本情報 '!F9="○",ROUNDUP((G9+N9)*IF(' 基本情報 '!$D$4="",0,VLOOKUP(' 基本情報 '!$D$4,雇用保険料率!$C:$D,2,0))-0.5,0),0),0) -> 930 | I9: =IF(OR(' 基本情報 '!$D$3="",' 基本情報 '!H9=""),0,HLOOKUP(' 基本情報 '!H9,計算シート!$W$4:$Y$34,ROW(計算シート!W6)-3,0)) -> 14850 | J9: =IF(OR(' 基本情報 '!$D$3="",' 基本情報 '!I9=""),0,HLOOKUP(' 基本情報 '!I9,計算シート!$Z$4:$AB$34,ROW(計算シート!W6)-3,0)) -> 27450 | K9: =SUM(H9:J9) -> 43230 | L9: =MAX(G9-K9,0) -> 256770 | M9: =IF(' 基本情報 '!D9="","",HLOOKUP(' 基本情報 '!D9,計算シート!$E$4:$G$34,ROW(計算シート!E6)-3,0)) -> 5140 | N9: =IF(ISNUMBER(' 基本情報 '!J9),' 基本情報 '!J9,0) -> 10000 | P9: 261630
B10: 3 | C10: =IF(' 基本情報 '!C10="","",' 基本情報 '!C10) -> 給与三郎 | D10: 100000 | G10: 100000 | H10: =MAX(IF(' 基本情報 '!F10="○",ROUNDUP((G10+N10)*IF(' 基本情報 '!$D$4="",0,VLOOKUP(' 基本情報 '!$D$4,雇用保険料率!$C:$D,2,0))-0.5,0),0),0) -> 0 | I10: =IF(OR(' 基本情報 '!$D$3="",' 基本情報 '!H10=""),0,HLOOKUP(' 基本情報 '!H10,計算シート!$W$4:$Y$34,ROW(計算シート!W7)-3,0)) -> 0 | J10: =IF(OR(' 基本情報 '!$D$3="",' 基本情報 '!I10=""),0,HLOOKUP(' 基本情報 '!I10,計算シート!$Z$4:$AB$34,ROW(計算シート!W7)-3,0)) -> 0 | K10: 0 | L10: 100000 | M10: =IF(' 基本情報 '!D10="","",HLOOKUP(' 基本情報 '!D10,計算シート!$E$4:$G$34,ROW(計算シート!E7)-3,0)) -> 3600 | N10: =IF(ISNUMBER(' 基本情報 '!J10),' 基本情報 '!J10,0) -> 0 | P10: 96400
B11: 4 | C11: =IF(' 基本情報 '!C11="","",' 基本情報 '!C11) ->  | G11: 0 | H11: =MAX(IF(' 基本情報 '!F11="○",ROUNDUP((G11+N11)*IF(' 基本情報 '!$D$4="",0,VLOOKUP(' 基本情報 '!$D$4,雇用保険料率!$C:$D,2,0))-0.5,0),0),0) -> 0 | I11: =IF(OR(' 基本情報 '!$D$3="",' 基本情報 '!H11=""),0,HLOOKUP(' 基本情報 '!H11,計算シート!$W$4:$Y$34,ROW(計算シート!W8)-3,0)) -> 0 | J11: =IF(OR(' 基本情報 '!$D$3="",' 基本情報 '!I11=""),0,HLOOKUP(' 基本情報 '!I11,計算シート!$Z$4:$AB$34,ROW(計算シート!W8)-3,0)) -> 0 | K11: 0 | L11: 0 | M11: =IF(' 基本情報 '!D11="","",HLOOKUP(' 基本情報 '!D11,計算シート!$E$4:$G$34,ROW(計算シート!E8)-3,0)) ->  | N11: =IF(ISNUMBER(' 基本情報 '!J11),' 基本情報 '!J11,0) -> 0 | P11: 0
B12: 5 | C12: =IF(' 基本情報 '!C12="","",' 基本情報 '!C12) ->  | G12: 0 | H12: =MAX(IF(' 基本情報 '!F12="○",ROUNDUP((G12+N12)*IF(' 基本情報 '!$D$4="",0,VLOOKUP(' 基本情報 '!$D$4,雇用保険料率!$C:$D,2,0))-0.5,0),0),0) -> 0 | I12: =IF(OR(' 基本情報 '!$D$3="",' 基本情報 '!H12=""),0,HLOOKUP(' 基本情報 '!H12,計算シート!$W$4:$Y$34,ROW(計算シート!W9)-3,0)) -> 0 | J12: =IF(OR(' 基本情報 '!$D$3="",' 基本情報 '!I12=""),0,HLOOKUP(' 基本情報 '!I12,計算シート!$Z$4:$AB$34,ROW(計算シート!W9)-3,0)) -> 0 | K12: 0 | L12: 0 | M12: =IF(' 基本情報 '!D12="","",HLOOKUP(' 基本情報 '!D12,計算シート!$E$4:$G$34,ROW(計算シート!E9)-3,0)) ->  | N12: =IF(ISNUMBER(' 基本情報 '!J12),' 基本情報 '!J12,0) -> 0 | P12: 0
B13: 6 | C13: =IF(' 基本情報 '!C13="","",' 基本情報 '!C13) ->  | G13: 0 | H13: =MAX(IF(' 基本情報 '!F13="○",ROUNDUP((G13+N13)*IF(' 基本情報 '!$D$4="",0,VLOOKUP(' 基本情報 '!$D$4,雇用保険料率!$C:$D,2,0))-0.5,0),0),0) -> 0 | I13: =IF(OR(' 基本情報 '!$D$3="",' 基本情報 '!H13=""),0,HLOOKUP(' 基本情報 '!H13,計算シート!$W$4:$Y$34,ROW(計算シート!W10)-3,0)) -> 0 | J13: =IF(OR(' 基本情報 '!$D$3="",' 基本情報 '!I13=""),0,HLOOKUP(' 基本情報 '!I13,計算シート!$Z$4:$AB$34,ROW(計算シート!W10)-3,0)) -> 0 | K13: 0 | L13: 0 | M13: =IF(' 基本情報 '!D13="","",HLOOKUP(' 基本情報 '!D13,計算シート!$E$4:$G$34,ROW(計算シート!E10)-3,0)) ->  | N13: =IF(ISNUMBER(' 基本情報 '!J13),' 基本情報 '!J13,0) -> 0 | P13: 0
B14: 7 | C14: =IF(' 基本情報 '!C14="","",' 基本情報 '!C14) ->  | G14: 0 | H14: =MAX(IF(' 基本情報 '!F14="○",ROUNDUP((G14+N14)*IF(' 基本情報 '!$D$4="",0,VLOOKUP(' 基本情報 '!$D$4,雇用保険料率!$C:$D,2,0))-0.5,0),0),0) -> 0 | I14: =IF(OR(' 基本情報 '!$D$3="",' 基本情報 '!H14=""),0,HLOOKUP(' 基本情報 '!H14,計算シート!$W$4:$Y$34,ROW(計算シート!W11)-3,0)) -> 0 | J14: =IF(OR(' 基本情報 '!$D$3="",' 基本情報 '!I14=""),0,HLOOKUP(' 基本情報 '!I14,計算シート!$Z$4:$AB$34,ROW(計算シート!W11)-3,0)) -> 0 | K14: 0 | L14: 0 | M14: =IF(' 基本情報 '!D14="","",HLOOKUP(' 基本情報 '!D14,計算シート!$E$4:$G$34,ROW(計算シート!E11)-3,0)) ->  | N14: =IF(ISNUMBER(' 基本情報 '!J14),' 基本情報 '!J14,0) -> 0 | P14: 0
B15: 8 | C15: =IF(' 基本情報 '!C15="","",' 基本情報 '!C15) ->  | G15: 0 | H15: =MAX(IF(' 基本情報 '!F15="○",ROUNDUP((G15+N15)*IF(' 基本情報 '!$D$4="",0,VLOOKUP(' 基本情報 '!$D$4,雇用保険料率!$C:$D,2,0))-0.5,0),0),0) -> 0 | I15: =IF(OR(' 基本情報 '!$D$3="",' 基本情報 '!H15=""),0,HLOOKUP(' 基本情報 '!H15,計算シート!$W$4:$Y$34,ROW(計算シート!W12)-3,0)) -> 0 | J15: =IF(OR(' 基本情報 '!$D$3="",' 基本情報 '!I15=""),0,HLOOKUP(' 基本情報 '!I15,計算シート!$Z$4:$AB$34,ROW(計算シート!W12)-3,0)) -> 0 | K15: 0 | L15: 0 | M15: =IF(' 基本情報 '!D15="","",HLOOKUP(' 基本情報 '!D15,計算シート!$E$4:$G$34,ROW(計算シート!E12)-3,0)) ->  | N15: =IF(ISNUMBER(' 基本情報 '!J15),' 基本情報 '!J15,0) -> 0 | P15: 0
B16: 9 | C16: =IF(' 基本情報 '!C16="","",' 基本情報 '!C16) ->  | G16: 0 | H16: =MAX(IF(' 基本情報 '!F16="○",ROUNDUP((G16+N16)*IF(' 基本情報 '!$D$4="",0,VLOOKUP(' 基本情報 '!$D$4,雇用保険料率!$C:$D,2,0))-0.5,0),0),0) -> 0 | I16: =IF(OR(' 基本情報 '!$D$3="",' 基本情報 '!H16=""),0,HLOOKUP(' 基本情報 '!H16,計算シート!$W$4:$Y$34,ROW(計算シート!W13)-3,0)) -> 0 | J16: =IF(OR(' 基本情報 '!$D$3="",' 基本情報 '!I16=""),0,HLOOKUP(' 基本情報 '!I16,計算シート!$Z$4:$AB$34,ROW(計算シート!W13)-3,0)) -> 0 | K16: 0 | L16: 0 | M16: =IF(' 基本情報 '!D16="","",HLOOKUP(' 基本情報 '!D16,計算シート!$E$4:$G$34,ROW(計算シート!E13)-3,0)) ->  | N16: =IF(ISNUMBER(' 基本情報 '!J16),' 基本情報 '!J16,0) -> 0 | P16: 0
B17: 10 | C17: =IF(' 基本情報 '!C17="","",' 基本情報 '!C17) ->  | G17: 0 | H17: =MAX(IF(' 基本情報 '!F17="○",ROUNDUP((G17+N17)*IF(' 基本情報 '!$D$4="",0,VLOOKUP(' 基本情報 '!$D$4,雇用保険料率!$C:$D,2,0))-0.5,0),0),0) -> 0 | I17: =IF(OR(' 基本情報 '!$D$3="",' 基本情報 '!H17=""),0,HLOOKUP(' 基本情報 '!H17,計算シート!$W$4:$Y$34,ROW(計算シート!W14)-3,0)) -> 0 | J17: =IF(OR(' 基本情報 '!$D$3="",' 基本情報 '!I17=""),0,HLOOKUP(' 基本情報 '!I17,計算シート!$Z$4:$AB$34,ROW(計算シート!W14)-3,0)) -> 0 | K17: 0 | L17: 0 | M17: =IF(' 基本情報 '!D17="","",HLOOKUP(' 基本情報 '!D17,計算シート!$E$4:$G$34,ROW(計算シート!E14)-3,0)) ->  | N17: =IF(ISNUMBER(' 基本情報 '!J17),' 基本情報 '!J17,0) -> 0 | P17: 0
B18: 11 | C18: =IF(' 基本情報 '!C18="","",' 基本情報 '!C18) ->  | G18: 0 | H18: =MAX(IF(' 基本情報 '!F18="○",ROUNDUP((G18+N18)*IF(' 基本情報 '!$D$4="",0,VLOOKUP(' 基本情報 '!$D$4,雇用保険料率!$C:$D,2,0))-0.5,0),0),0) -> 0 | I18: =IF(OR(' 基本情報 '!$D$3="",' 基本情報 '!H18=""),0,HLOOKUP(' 基本情報 '!H18,計算シート!$W$4:$Y$34,ROW(計算シート!W15)-3,0)) -> 0 | J18: =IF(OR(' 基本情報 '!$D$3="",' 基本情報 '!I18=""),0,HLOOKUP(' 基本情報 '!I18,計算シート!$Z$4:$AB$34,ROW(計算シート!W15)-3,0)) -> 0 | K18: 0 | L18: 0 | M18: =IF(' 基本情報 '!D18="","",HLOOKUP(' 基本情報 '!D18,計算シート!$E$4:$G$34,ROW(計算シート!E15)-3,0)) ->  | N18: =IF(ISNUMBER(' 基本情報 '!J18),' 基本情報 '!J18,0) -> 0 | P18: 0
B19: 12 | C19: =IF(' 基本情報 '!C19="","",' 基本情報 '!C19) ->  | G19: 0 | H19: =MAX(IF(' 基本情報 '!F19="○",ROUNDUP((G19+N19)*IF(' 基本情報 '!$D$4="",0,VLOOKUP(' 基本情報 '!$D$4,雇用保険料率!$C:$D,2,0))-0.5,0),0),0) -> 0 | I19: =IF(OR(' 基本情報 '!$D$3="",' 基本情報 '!H19=""),0,HLOOKUP(' 基本情報 '!H19,計算シート!$W$4:$Y$34,ROW(計算シート!W16)-3,0)) -> 0 | J19: =IF(OR(' 基本情報 '!$D$3="",' 基本情報 '!I19=""),0,HLOOKUP(' 基本情報 '!I19,計算シート!$Z$4:$AB$34,ROW(計算シート!W16)-3,0)) -> 0 | K19: 0 | L19: 0 | M19: =IF(' 基本情報 '!D19="","",HLOOKUP(' 基本情報 '!D19,計算シート!$E$4:$G$34,ROW(計算シート!E16)-3,0)) ->  | N19: =IF(ISNUMBER(' 基本情報 '!J19),' 基本情報 '!J19,0) -> 0 | P19: 0
B20: 13 | C20: =IF(' 基本情報 '!C20="","",' 基本情報 '!C20) ->  | G20: 0 | H20: =MAX(IF(' 基本情報 '!F20="○",ROUNDUP((G20+N20)*IF(' 基本情報 '!$D$4="",0,VLOOKUP(' 基本情報 '!$D$4,雇用保険料率!$C:$D,2,0))-0.5,0),0),0) -> 0 | I20: =IF(OR(' 基本情報 '!$D$3="",' 基本情報 '!H20=""),0,HLOOKUP(' 基本情報 '!H20,計算シート!$W$4:$Y$34,ROW(計算シート!W17)-3,0)) -> 0 | J20: =IF(OR(' 基本情報 '!$D$3="",' 基本情報 '!I20=""),0,HLOOKUP(' 基本情報 '!I20,計算シート!$Z$4:$AB$34,ROW(計算シート!W17)-3,0)) -> 0 | K20: 0 | L20: 0 | M20: =IF(' 基本情報 '!D20="","",HLOOKUP(' 基本情報 '!D20,計算シート!$E$4:$G$34,ROW(計算シート!E17)-3,0)) ->  | N20: =IF(ISNUMBER(' 基本情報 '!J20),' 基本情報 '!J20,0) -> 0 | P20: 0
B21: 14 | C21: =IF(' 基本情報 '!C21="","",' 基本情報 '!C21) ->  | G21: 0 | H21: =MAX(IF(' 基本情報 '!F21="○",ROUNDUP((G21+N21)*IF(' 基本情報 '!$D$4="",0,VLOOKUP(' 基本情報 '!$D$4,雇用保険料率!$C:$D,2,0))-0.5,0),0),0) -> 0 | I21: =IF(OR(' 基本情報 '!$D$3="",' 基本情報 '!H21=""),0,HLOOKUP(' 基本情報 '!H21,計算シート!$W$4:$Y$34,ROW(計算シート!W18)-3,0)) -> 0 | J21: =IF(OR(' 基本情報 '!$D$3="",' 基本情報 '!I21=""),0,HLOOKUP(' 基本情報 '!I21,計算シート!$Z$4:$AB$34,ROW(計算シート!W18)-3,0)) -> 0 | K21: 0 | L21: 0 | M21: =IF(' 基本情報 '!D21="","",HLOOKUP(' 基本情報 '!D21,計算シート!$E$4:$G$34,ROW(計算シート!E18)-3,0)) ->  | N21: =IF(ISNUMBER(' 基本情報 '!J21),' 基本情報 '!J21,0) -> 0 | P21: 0
B22: 15 | C22: =IF(' 基本情報 '!C22="","",' 基本情報 '!C22) ->  | G22: 0 | H22: =MAX(IF(' 基本情報 '!F22="○",ROUNDUP((G22+N22)*IF(' 基本情報 '!$D$4="",0,VLOOKUP(' 基本情報 '!$D$4,雇用保険料率!$C:$D,2,0))-0.5,0),0),0) -> 0 | I22: =IF(OR(' 基本情報 '!$D$3="",' 基本情報 '!H22=""),0,HLOOKUP(' 基本情報 '!H22,計算シート!$W$4:$Y$34,ROW(計算シート!W19)-3,0)) -> 0 | J22: =IF(OR(' 基本情報 '!$D$3="",' 基本情報 '!I22=""),0,HLOOKUP(' 基本情報 '!I22,計算シート!$Z$4:$AB$34,ROW(計算シート!W19)-3,0)) -> 0 | K22: 0 | L22: 0 | M22: =IF(' 基本情報 '!D22="","",HLOOKUP(' 基本情報 '!D22,計算シート!$E$4:$G$34,ROW(計算シート!E19)-3,0)) ->  | N22: =IF(ISNUMBER(' 基本情報 '!J22),' 基本情報 '!J22,0) -> 0 | P22: 0
B23: 16 | C23: =IF(' 基本情報 '!C23="","",' 基本情報 '!C23) ->  | G23: 0 | H23: =MAX(IF(' 基本情報 '!F23="○",ROUNDUP((G23+N23)*IF(' 基本情報 '!$D$4="",0,VLOOKUP(' 基本情報 '!$D$4,雇用保険料率!$C:$D,2,0))-0.5,0),0),0) -> 0 | I23: =IF(OR(' 基本情報 '!$D$3="",' 基本情報 '!H23=""),0,HLOOKUP(' 基本情報 '!H23,計算シート!$W$4:$Y$34,ROW(計算シート!W20)-3,0)) -> 0 | J23: =IF(OR(' 基本情報 '!$D$3="",' 基本情報 '!I23=""),0,HLOOKUP(' 基本情報 '!I23,計算シート!$Z$4:$AB$34,ROW(計算シート!W20)-3,0)) -> 0 | K23: 0 | L23: 0 | M23: =IF(' 基本情報 '!D23="","",HLOOKUP(' 基本情報 '!D23,計算シート!$E$4:$G$34,ROW(計算シート!E20)-3,0)) ->  | N23: =IF(ISNUMBER(' 基本情報 '!J23),' 基本情報 '!J23,0) -> 0 | P23: 0
B24: 17 | C24: =IF(' 基本情報 '!C24="","",' 基本情報 '!C24) ->  | G24: 0 | H24: =MAX(IF(' 基本情報 '!F24="○",ROUNDUP((G24+N24)*IF(' 基本情報 '!$D$4="",0,VLOOKUP(' 基本情報 '!$D$4,雇用保険料率!$C:$D,2,0))-0.5,0),0),0) -> 0 | I24: =IF(OR(' 基本情報 '!$D$3="",' 基本情報 '!H24=""),0,HLOOKUP(' 基本情報 '!H24,計算シート!$W$4:$Y$34,ROW(計算シート!W21)-3,0)) -> 0 | J24: =IF(OR(' 基本情報 '!$D$3="",' 基本情報 '!I24=""),0,HLOOKUP(' 基本情報 '!I24,計算シート!$Z$4:$AB$34,ROW(計算シート!W21)-3,0)) -> 0 | K24: 0 | L24: 0 | M24: =IF(' 基本情報 '!D24="","",HLOOKUP(' 基本情報 '!D24,計算シート!$E$4:$G$34,ROW(計算シート!E21)-3,0)) ->  | N24: =IF(ISNUMBER(' 基本情報 '!J24),' 基本情報 '!J24,0) -> 0 | P24: 0
B25: 18 | C25: =IF(' 基本情報 '!C25="","",' 基本情報 '!C25) ->  | G25: 0 | H25: =MAX(IF(' 基本情報 '!F25="○",ROUNDUP((G25+N25)*IF(' 基本情報 '!$D$4="",0,VLOOKUP(' 基本情報 '!$D$4,雇用保険料率!$C:$D,2,0))-0.5,0),0),0) -> 0 | I25: =IF(OR(' 基本情報 '!$D$3="",' 基本情報 '!H25=""),0,HLOOKUP(' 基本情報 '!H25,計算シート!$W$4:$Y$34,ROW(計算シート!W22)-3,0)) -> 0 | J25: =IF(OR(' 基本情報 '!$D$3="",' 基本情報 '!I25=""),0,HLOOKUP(' 基本情報 '!I25,計算シート!$Z$4:$AB$34,ROW(計算シート!W22)-3,0)) -> 0 | K25: 0 | L25: 0 | M25: =IF(' 基本情報 '!D25="","",HLOOKUP(' 基本情報 '!D25,計算シート!$E$4:$G$34,ROW(計算シート!E22)-3,0)) ->  | N25: =IF(ISNUMBER(' 基本情報 '!J25),' 基本情報 '!J25,0) -> 0 | P25: 0
B26: 19 | C26: =IF(' 基本情報 '!C26="","",' 基本情報 '!C26) ->  | G26: 0 | H26: =MAX(IF(' 基本情報 '!F26="○",ROUNDUP((G26+N26)*IF(' 基本情報 '!$D$4="",0,VLOOKUP(' 基本情報 '!$D$4,雇用保険料率!$C:$D,2,0))-0.5,0),0),0) -> 0 | I26: =IF(OR(' 基本情報 '!$D$3="",' 基本情報 '!H26=""),0,HLOOKUP(' 基本情報 '!H26,計算シート!$W$4:$Y$34,ROW(計算シート!W23)-3,0)) -> 0 | J26: =IF(OR(' 基本情報 '!$D$3="",' 基本情報 '!I26=""),0,HLOOKUP(' 基本情報 '!I26,計算シート!$Z$4:$AB$34,ROW(計算シート!W23)-3,0)) -> 0 | K26: 0 | L26: 0 | M26: =IF(' 基本情報 '!D26="","",HLOOKUP(' 基本情報 '!D26,計算シート!$E$4:$G$34,ROW(計算シート!E23)-3,0)) ->  | N26: =IF(ISNUMBER(' 基本情報 '!J26),' 基本情報 '!J26,0) -> 0 | P26: 0
B27: 20 | C27: =IF(' 基本情報 '!C27="","",' 基本情報 '!C27) ->  | G27: 0 | H27: =MAX(IF(' 基本情報 '!F27="○",ROUNDUP((G27+N27)*IF(' 基本情報 '!$D$4="",0,VLOOKUP(' 基本情報 '!$D$4,雇用保険料率!$C:$D,2,0))-0.5,0),0),0) -> 0 | I27: =IF(OR(' 基本情報 '!$D$3="",' 基本情報 '!H27=""),0,HLOOKUP(' 基本情報 '!H27,計算シート!$W$4:$Y$34,ROW(計算シート!W24)-3,0)) -> 0 | J27: =IF(OR(' 基本情報 '!$D$3="",' 基本情報 '!I27=""),0,HLOOKUP(' 基本情報 '!I27,計算シート!$Z$4:$AB$34,ROW(計算シート!W24)-3,0)) -> 0 | K27: 0 | L27: 0 | M27: =IF(' 基本情報 '!D27="","",HLOOKUP(' 基本情報 '!D27,計算シート!$E$4:$G$34,ROW(計算シート!E24)-3,0)) ->  | N27: =IF(ISNUMBER(' 基本情報 '!J27),' 基本情報 '!J27,0) -> 0 | P27: 0
B28: 21 | C28: =IF(' 基本情報 '!C28="","",' 基本情報 '!C28) ->  | G28: 0 | H28: =MAX(IF(' 基本情報 '!F28="○",ROUNDUP((G28+N28)*IF(' 基本情報 '!$D$4="",0,VLOOKUP(' 基本情報 '!$D$4,雇用保険料率!$C:$D,2,0))-0.5,0),0),0) -> 0 | I28: =IF(OR(' 基本情報 '!$D$3="",' 基本情報 '!H28=""),0,HLOOKUP(' 基本情報 '!H28,計算シート!$W$4:$Y$34,ROW(計算シート!W25)-3,0)) -> 0 | J28: =IF(OR(' 基本情報 '!$D$3="",' 基本情報 '!I28=""),0,HLOOKUP(' 基本情報 '!I28,計算シート!$Z$4:$AB$34,ROW(計算シート!W25)-3,0)) -> 0 | K28: 0 | L28: 0 | M28: =IF(' 基本情報 '!D28="","",HLOOKUP(' 基本情報 '!D28,計算シート!$E$4:$G$34,ROW(計算シート!E25)-3,0)) ->  | N28: =IF(ISNUMBER(' 基本情報 '!J28),' 基本情報 '!J28,0) -> 0 | P28: 0
B29: 22 | C29: =IF(' 基本情報 '!C29="","",' 基本情報 '!C29) ->  | G29: 0 | H29: =MAX(IF(' 基本情報 '!F29="○",ROUNDUP((G29+N29)*IF(' 基本情報 '!$D$4="",0,VLOOKUP(' 基本情報 '!$D$4,雇用保険料率!$C:$D,2,0))-0.5,0),0),0) -> 0 | I29: =IF(OR(' 基本情報 '!$D$3="",' 基本情報 '!H29=""),0,HLOOKUP(' 基本情報 '!H29,計算シート!$W$4:$Y$34,ROW(計算シート!W26)-3,0)) -> 0 | J29: =IF(OR(' 基本情報 '!$D$3="",' 基本情報 '!I29=""),0,HLOOKUP(' 基本情報 '!I29,計算シート!$Z$4:$AB$34,ROW(計算シート!W26)-3,0)) -> 0 | K29: 0 | L29: 0 | M29: =IF(' 基本情報 '!D29="","",HLOOKUP(' 基本情報 '!D29,計算シート!$E$4:$G$34,ROW(計算シート!E26)-3,0)) ->  | N29: =IF(ISNUMBER(' 基本情報 '!J29),' 基本情報 '!J29,0) -> 0 | P29: 0
B30: 23 | C30: =IF(' 基本情報 '!C30="","",' 基本情報 '!C30) ->  | G30: 0 | H30: =MAX(IF(' 基本情報 '!F30="○",ROUNDUP((G30+N30)*IF(' 基本情報 '!$D$4="",0,VLOOKUP(' 基本情報 '!$D$4,雇用保険料率!$C:$D,2,0))-0.5,0),0),0) -> 0 | I30: =IF(OR(' 基本情報 '!$D$3="",' 基本情報 '!H30=""),0,HLOOKUP(' 基本情報 '!H30,計算シート!$W$4:$Y$34,ROW(計算シート!W27)-3,0)) -> 0 | J30: =IF(OR(' 基本情報 '!$D$3="",' 基本情報 '!I30=""),0,HLOOKUP(' 基本情報 '!I30,計算シート!$Z$4:$AB$34,ROW(計算シート!W27)-3,0)) -> 0 | K30: 0 | L30: 0 | M30: =IF(' 基本情報 '!D30="","",HLOOKUP(' 基本情報 '!D30,計算シート!$E$4:$G$34,ROW(計算シート!E27)-3,0)) ->  | N30: =IF(ISNUMBER(' 基本情報 '!J30),' 基本情報 '!J30,0) -> 0 | P30: 0
B31: 24 | C31: =IF(' 基本情報 '!C31="","",' 基本情報 '!C31) ->  | G31: 0 | H31: =MAX(IF(' 基本情報 '!F31="○",ROUNDUP((G31+N31)*IF(' 基本情報 '!$D$4="",0,VLOOKUP(' 基本情報 '!$D$4,雇用保険料率!$C:$D,2,0))-0.5,0),0),0) -> 0 | I31: =IF(OR(' 基本情報 '!$D$3="",' 基本情報 '!H31=""),0,HLOOKUP(' 基本情報 '!H31,計算シート!$W$4:$Y$34,ROW(計算シート!W28)-3,0)) -> 0 | J31: =IF(OR(' 基本情報 '!$D$3="",' 基本情報 '!I31=""),0,HLOOKUP(' 基本情報 '!I31,計算シート!$Z$4:$AB$34,ROW(計算シート!W28)-3,0)) -> 0 | K31: 0 | L31: 0 | M31: =IF(' 基本情報 '!D31="","",HLOOKUP(' 基本情報 '!D31,計算シート!$E$4:$G$34,ROW(計算シート!E28)-3,0)) ->  | N31: =IF(ISNUMBER(' 基本情報 '!J31),' 基本情報 '!J31,0) -> 0 | P31: 0
B32: 25 | C32: =IF(' 基本情報 '!C32="","",' 基本情報 '!C32) ->  | G32: 0 | H32: =MAX(IF(' 基本情報 '!F32="○",ROUNDUP((G32+N32)*IF(' 基本情報 '!$D$4="",0,VLOOKUP(' 基本情報 '!$D$4,雇用保険料率!$C:$D,2,0))-0.5,0),0),0) -> 0 | I32: =IF(OR(' 基本情報 '!$D$3="",' 基本情報 '!H32=""),0,HLOOKUP(' 基本情報 '!H32,計算シート!$W$4:$Y$34,ROW(計算シート!W29)-3,0)) -> 0 | J32: =IF(OR(' 基本情報 '!$D$3="",' 基本情報 '!I32=""),0,HLOOKUP(' 基本情報 '!I32,計算シート!$Z$4:$AB$34,ROW(計算シート!W29)-3,0)) -> 0 | K32: 0 | L32: 0 | M32: =IF(' 基本情報 '!D32="","",HLOOKUP(' 基本情報 '!D32,計算シート!$E$4:$G$34,ROW(計算シート!E29)-3,0)) ->  | N32: =IF(ISNUMBER(' 基本情報 '!J32),' 基本情報 '!J32,0) -> 0 | P32: 0
B33: 26 | C33: =IF(' 基本情報 '!C33="","",' 基本情報 '!C33) ->  | G33: 0 | H33: =MAX(IF(' 基本情報 '!F33="○",ROUNDUP((G33+N33)*IF(' 基本情報 '!$D$4="",0,VLOOKUP(' 基本情報 '!$D$4,雇用保険料率!$C:$D,2,0))-0.5,0),0),0) -> 0 | I33: =IF(OR(' 基本情報 '!$D$3="",' 基本情報 '!H33=""),0,HLOOKUP(' 基本情報 '!H33,計算シート!$W$4:$Y$34,ROW(計算シート!W30)-3,0)) -> 0 | J33: =IF(OR(' 基本情報 '!$D$3="",' 基本情報 '!I33=""),0,HLOOKUP(' 基本情報 '!I33,計算シート!$Z$4:$AB$34,ROW(計算シート!W30)-3,0)) -> 0 | K33: 0 | L33: 0 | M33: =IF(' 基本情報 '!D33="","",HLOOKUP(' 基本情報 '!D33,計算シート!$E$4:$G$34,ROW(計算シート!E30)-3,0)) ->  | N33: =IF(ISNUMBER(' 基本情報 '!J33),' 基本情報 '!J33,0) -> 0 | P33: 0
B34: 27 | C34: =IF(' 基本情報 '!C34="","",' 基本情報 '!C34) ->  | G34: 0 | H34: =MAX(IF(' 基本情報 '!F34="○",ROUNDUP((G34+N34)*IF(' 基本情報 '!$D$4="",0,VLOOKUP(' 基本情報 '!$D$4,雇用保険料率!$C:$D,2,0))-0.5,0),0),0) -> 0 | I34: =IF(OR(' 基本情報 '!$D$3="",' 基本情報 '!H34=""),0,HLOOKUP(' 基本情報 '!H34,計算シート!$W$4:$Y$34,ROW(計算シート!W31)-3,0)) -> 0 | J34: =IF(OR(' 基本情報 '!$D$3="",' 基本情報 '!I34=""),0,HLOOKUP(' 基本情報 '!I34,計算シート!$Z$4:$AB$34,ROW(計算シート!W31)-3,0)) -> 0 | K34: 0 | L34: 0 | M34: =IF(' 基本情報 '!D34="","",HLOOKUP(' 基本情報 '!D34,計算シート!$E$4:$G$34,ROW(計算シート!E31)-3,0)) ->  | N34: =IF(ISNUMBER(' 基本情報 '!J34),' 基本情報 '!J34,0) -> 0 | P34: 0
B35: 28 | C35: =IF(' 基本情報 '!C35="","",' 基本情報 '!C35) ->  | G35: 0 | H35: =MAX(IF(' 基本情報 '!F35="○",ROUNDUP((G35+N35)*IF(' 基本情報 '!$D$4="",0,VLOOKUP(' 基本情報 '!$D$4,雇用保険料率!$C:$D,2,0))-0.5,0),0),0) -> 0 | I35: =IF(OR(' 基本情報 '!$D$3="",' 基本情報 '!H35=""),0,HLOOKUP(' 基本情報 '!H35,計算シート!$W$4:$Y$34,ROW(計算シート!W32)-3,0)) -> 0 | J35: =IF(OR(' 基本情報 '!$D$3="",' 基本情報 '!I35=""),0,HLOOKUP(' 基本情報 '!I35,計算シート!$Z$4:$AB$34,ROW(計算シート!W32)-3,0)) -> 0 | K35: 0 | L35: 0 | M35: =IF(' 基本情報 '!D35="","",HLOOKUP(' 基本情報 '!D35,計算シート!$E$4:$G$34,ROW(計算シート!E32)-3,0)) ->  | N35: =IF(ISNUMBER(' 基本情報 '!J35),' 基本情報 '!J35,0) -> 0 | P35: 0
B36: 29 | C36: =IF(' 基本情報 '!C36="","",' 基本情報 '!C36) ->  | G36: 0 | H36: =MAX(IF(' 基本情報 '!F36="○",ROUNDUP((G36+N36)*IF(' 基本情報 '!$D$4="",0,VLOOKUP(' 基本情報 '!$D$4,雇用保険料率!$C:$D,2,0))-0.5,0),0),0) -> 0 | I36: =IF(OR(' 基本情報 '!$D$3="",' 基本情報 '!H36=""),0,HLOOKUP(' 基本情報 '!H36,計算シート!$W$4:$Y$34,ROW(計算シート!W33)-3,0)) -> 0 | J36: =IF(OR(' 基本情報 '!$D$3="",' 基本情報 '!I36=""),0,HLOOKUP(' 基本情報 '!I36,計算シート!$Z$4:$AB$34,ROW(計算シート!W33)-3,0)) -> 0 | K36: 0 | L36: 0 | M36: =IF(' 基本情報 '!D36="","",HLOOKUP(' 基本情報 '!D36,計算シート!$E$4:$G$34,ROW(計算シート!E33)-3,0)) ->  | N36: =IF(ISNUMBER(' 基本情報 '!J36),' 基本情報 '!J36,0) -> 0 | P36: 0
B37: 30 | C37: =IF(' 基本情報 '!C37="","",' 基本情報 '!C37) ->  | G37: 0 | H37: =MAX(IF(' 基本情報 '!F37="○",ROUNDUP((G37+N37)*IF(' 基本情報 '!$D$4="",0,VLOOKUP(' 基本情報 '!$D$4,雇用保険料率!$C:$D,2,0))-0.5,0),0),0) -> 0 | I37: =IF(OR(' 基本情報 '!$D$3="",' 基本情報 '!H37=""),0,HLOOKUP(' 基本情報 '!H37,計算シート!$W$4:$Y$34,ROW(計算シート!W34)-3,0)) -> 0 | J37: =IF(OR(' 基本情報 '!$D$3="",' 基本情報 '!I37=""),0,HLOOKUP(' 基本情報 '!I37,計算シート!$Z$4:$AB$34,ROW(計算シート!W34)-3,0)) -> 0 | K37: 0 | L37: 0 | M37: =IF(' 基本情報 '!D37="","",HLOOKUP(' 基本情報 '!D37,計算シート!$E$4:$G$34,ROW(計算シート!E34)-3,0)) ->  | N37: =IF(ISNUMBER(' 基本情報 '!J37),' 基本情報 '!J37,0) -> 0 | P37: 0

Sheet 賞与計算
B2: =' 基本情報 '!D2 -> ○○年○○月 | E2: ※シートの保護は解除できます。
B3: 賞与計算 | E3: 集計 | F3: =F6 -> 賞与金額 | G3: =G7 -> 雇用保険 | H3: =H7 -> 健康保険 | I3: =I7 -> 厚生年金 | J3: =J7 -> 社会保険合計 | K3: =K6 -> 社会保険料控除後の総支給額 | L3: =L6 -> 源泉所得税 | M3: =M6 -> 差引支給額
F4: =SUM(F8:F37) -> 950000 | G4: =SUM(G8:G37) -> 1050 | H4: 42075 | I4: 77775 | J4: =SUM(J8:J37) -> 120900 | K4: 829100 | L4: 83837 | M4: 745263
B6: NO. | C6: 名前 | D6: 前月の社会保険料控除後の給与 | E6: 税率 | F6: 賞与金額 | G6: 社会保険 | K6: 社会保険料控除後の総支給額 | L6: 源泉所得税 | M6: 差引支給額 | N6: 備考
G7: 雇用保険 | H7: 健康保険 | I7: 厚生年金 | J7: 社会保険合計
B8: 1 | C8: =IF(' 基本情報 '!C8="","",' 基本情報 '!C8) -> 給与一郎 | D8: 471040 | E8: =IF(D8="",0,IF(' 基本情報 '!D8="",0,IF(' 基本情報 '!D8="甲欄",IF(' 基本情報 '!E8>7,計算シート!U5,HLOOKUP(' 基本情報 '!E8,計算シート!$N$4:$V$34,ROW(計算シート!N5)-3,0))&"%",計算シート!V5&"%"))) -> 14.294% | F8: 500000 | G8: =MAX(IF(' 基本情報 '!F8="○",ROUND((F8)*IF(' 基本情報 '!$D$4="",0,VLOOKUP(' 基本情報 '!$D$4,雇用保険料率!$C:$D,2,0))-0.5,0),0),0) -> 0 | H8: =IF(OR(' 基本情報 '!$D$3="",' 基本情報 '!H8=""),0,HLOOKUP(' 基本情報 '!H8,計算シート!$AE$4:$AG$34,ROW(計算シート!AE5)-3,0)) -> 24750 | I8: =IF(OR(' 基本情報 '!$D$3="",' 基本情報 '!I8=""),0,HLOOKUP(' 基本情報 '!I8,計算シート!$AH$4:$AJ$34,ROW(計算シート!AE5)-3,0)) -> 45750 | J8: =SUM(G8:I8) -> 70500 | K8: =F8-G8-H8-I8 -> 429500 | L8: =IF(D8="","",ROUNDDOWN(E8*K8,0)) -> 61392 | M8: =K8-IF(L8="",0,L8) -> 368108
B9: 2 | C9: =IF(' 基本情報 '!C9="","",' 基本情報 '!C9) -> 給与二郎 | D9: 256770 | E9: =IF(D9="",0,IF(' 基本情報 '!D9="",0,IF(' 基本情報 '!D9="甲欄",IF(' 基本情報 '!E9>7,計算シート!U6,HLOOKUP(' 基本情報 '!E9,計算シート!$N$4:$V$34,ROW(計算シート!N6)-3,0))&"%",計算シート!V6&"%"))) -> 4.084% | F9: 350000 | G9: =MAX(IF(' 基本情報 '!F9="○",ROUND((F9)*IF(' 基本情報 '!$D$4="",0,VLOOKUP(' 基本情報 '!$D$4,雇用保険料率!$C:$D,2,0))-0.5,0),0),0) -> 1050 | H9: =IF(OR(' 基本情報 '!$D$3="",' 基本情報 '!H9=""),0,HLOOKUP(' 基本情報 '!H9,計算シート!$AE$4:$AG$34,ROW(計算シート!AE6)-3,0)) -> 17325 | I9: =IF(OR(' 基本情報 '!$D$3="",' 基本情報 '!I9=""),0,HLOOKUP(' 基本情報 '!I9,計算シート!$AH$4:$AJ$34,ROW(計算シート!AE6)-3,0)) -> 32025 | J9: =SUM(G9:I9) -> 50400 | K9: 299600 | L9: 12235 | M9: =K9-IF(L9="",0,L9) -> 287365
B10: 3 | C10: =IF(' 基本情報 '!C10="","",' 基本情報 '!C10) -> 給与三郎 | D10: 100000 | E10: =IF(D10="",0,IF(' 基本情報 '!D10="",0,IF(' 基本情報 '!D10="甲欄",IF(' 基本情報 '!E10>7,計算シート!U7,HLOOKUP(' 基本情報 '!E10,計算シート!$N$4:$V$34,ROW(計算シート!N7)-3,0))&"%",計算シート!V7&"%"))) -> 10.21% | F10: 100000 | G10: =MAX(IF(' 基本情報 '!F10="○",ROUND((F10)*IF(' 基本情報 '!$D$4="",0,VLOOKUP(' 基本情報 '!$D$4,雇用保険料率!$C:$D,2,0))-0.5,0),0),0) -> 0 | H10: =IF(OR(' 基本情報 '!$D$3="",' 基本情報 '!H10=""),0,HLOOKUP(' 基本情報 '!H10,計算シート!$AE$4:$AG$34,ROW(計算シート!AE7)-3,0)) -> 0 | I10: =IF(OR(' 基本情報 '!$D$3="",' 基本情報 '!I10=""),0,HLOOKUP(' 基本情報 '!I10,計算シート!$AH$4:$AJ$34,ROW(計算シート!AE7)-3,0)) -> 0 | J10: 0 | K10: 100000 | L10: 10210 | M10: 89790
B11: 4 | C11: =IF(' 基本情報 '!C11="","",' 基本情報 '!C11) ->  | E11: =IF(D11="",0,IF(' 基本情報 '!D11="",0,IF(' 基本情報 '!D11="甲欄",IF(' 基本情報 '!E11>7,計算シート!U8,HLOOKUP(' 基本情報 '!E11,計算シート!$N$4:$V$34,ROW(計算シート!N8)-3,0))&"%",計算シート!V8&"%"))) -> 0 | G11: =MAX(IF(' 基本情報 '!F11="○",ROUND((F11)*IF(' 基本情報 '!$D$4="",0,VLOOKUP(' 基本情報 '!$D$4,雇用保険料率!$C:$D,2,0))-0.5,0),0),0) -> 0 | H11: =IF(OR(' 基本情報 '!$D$3="",' 基本情報 '!H11=""),0,HLOOKUP(' 基本情報 '!H11,計算シート!$AE$4:$AG$34,ROW(計算シート!AE8)-3,0)) -> 0 | I11: =IF(OR(' 基本情報 '!$D$3="",' 基本情報 '!I11=""),0,HLOOKUP(' 基本情報 '!I11,計算シート!$AH$4:$AJ$34,ROW(計算シート!AE8)-3,0)) -> 0 | J11: 0 | K11: 0 | M11: 0
B12: 5 | C12: =IF(' 基本情報 '!C12="","",' 基本情報 '!C12) ->  | E12: =IF(D12="",0,IF(' 基本情報 '!D12="",0,IF(' 基本情報 '!D12="甲欄",IF(' 基本情報 '!E12>7,計算シート!U9,HLOOKUP(' 基本情報 '!E12,計算シート!$N$4:$V$34,ROW(計算シート!N9)-3,0))&"%",計算シート!V9&"%"))) -> 0 | G12: =MAX(IF(' 基本情報 '!F12="○",ROUND((F12)*IF(' 基本情報 '!$D$4="",0,VLOOKUP(' 基本情報 '!$D$4,雇用保険料率!$C:$D,2,0))-0.5,0),0),0) -> 0 | H12: =IF(OR(' 基本情報 '!$D$3="",' 基本情報 '!H12=""),0,HLOOKUP(' 基本情報 '!H12,計算シート!$AE$4:$AG$34,ROW(計算シート!AE9)-3,0)) -> 0 | I12: =IF(OR(' 基本情報 '!$D$3="",' 基本情報 '!I12=""),0,HLOOKUP(' 基本情報 '!I12,計算シート!$AH$4:$AJ$34,ROW(計算シート!AE9)-3,0)) -> 0 | J12: 0 | K12: 0 | M12: 0
B13: 6 | C13: =IF(' 基本情報 '!C13="","",' 基本情報 '!C13) ->  | E13: =IF(D13="",0,IF(' 基本情報 '!D13="",0,IF(' 基本情報 '!D13="甲欄",IF(' 基本情報 '!E13>7,計算シート!U10,HLOOKUP(' 基本情報 '!E13,計算シート!$N$4:$V$34,ROW(計算シート!N10)-3,0))&"%",計算シート!V10&"%"))) -> 0 | G13: =MAX(IF(' 基本情報 '!F13="○",ROUND((F13)*IF(' 基本情報 '!$D$4="",0,VLOOKUP(' 基本情報 '!$D$4,雇用保険料率!$C:$D,2,0))-0.5,0),0),0) -> 0 | H13: =IF(OR(' 基本情報 '!$D$3="",' 基本情報 '!H13=""),0,HLOOKUP(' 基本情報 '!H13,計算シート!$AE$4:$AG$34,ROW(計算シート!AE10)-3,0)) -> 0 | I13: =IF(OR(' 基本情報 '!$D$3="",' 基本情報 '!I13=""),0,HLOOKUP(' 基本情報 '!I13,計算シート!$AH$4:$AJ$34,ROW(計算シート!AE10)-3,0)) -> 0 | J13: 0 | K13: 0 | M13: 0
B14: 7 | C14: =IF(' 基本情報 '!C14="","",' 基本情報 '!C14) ->  | E14: =IF(D14="",0,IF(' 基本情報 '!D14="",0,IF(' 基本情報 '!D14="甲欄",IF(' 基本情報 '!E14>7,計算シート!U11,HLOOKUP(' 基本情報 '!E14,計算シート!$N$4:$V$34,ROW(計算シート!N11)-3,0))&"%",計算シート!V11&"%"))) -> 0 | G14: =MAX(IF(' 基本情報 '!F14="○",ROUND((F14)*IF(' 基本情報 '!$D$4="",0,VLOOKUP(' 基本情報 '!$D$4,雇用保険料率!$C:$D,2,0))-0.5,0),0),0) -> 0 | H14: =IF(OR(' 基本情報 '!$D$3="",' 基本情報 '!H14=""),0,HLOOKUP(' 基本情報 '!H14,計算シート!$AE$4:$AG$34,ROW(計算シート!AE11)-3,0)) -> 0 | I14: =IF(OR(' 基本情報 '!$D$3="",' 基本情報 '!I14=""),0,HLOOKUP(' 基本情報 '!I14,計算シート!$AH$4:$AJ$34,ROW(計算シート!AE11)-3,0)) -> 0 | J14: 0 | K14: 0 | M14: 0
B15: 8 | C15: =IF(' 基本情報 '!C15="","",' 基本情報 '!C15) ->  | E15: =IF(D15="",0,IF(' 基本情報 '!D15="",0,IF(' 基本情報 '!D15="甲欄",IF(' 基本情報 '!E15>7,計算シート!U12,HLOOKUP(' 基本情報 '!E15,計算シート!$N$4:$V$34,ROW(計算シート!N12)-3,0))&"%",計算シート!V12&"%"))) -> 0 | G15: =MAX(IF(' 基本情報 '!F15="○",ROUND((F15)*IF(' 基本情報 '!$D$4="",0,VLOOKUP(' 基本情報 '!$D$4,雇用保険料率!$C:$D,2,0))-0.5,0),0),0) -> 0 | H15: =IF(OR(' 基本情報 '!$D$3="",' 基本情報 '!H15=""),0,HLOOKUP(' 基本情報 '!H15,計算シート!$AE$4:$AG$34,ROW(計算シート!AE12)-3,0)) -> 0 | I15: =IF(OR(' 基本情報 '!$D$3="",' 基本情報 '!I15=""),0,HLOOKUP(' 基本情報 '!I15,計算シート!$AH$4:$AJ$34,ROW(計算シート!AE12)-3,0)) -> 0 | J15: 0 | K15: 0 | M15: 0
B16: 9 | C16: =IF(' 基本情報 '!C16="","",' 基本情報 '!C16) ->  | E16: =IF(D16="",0,IF(' 基本情報 '!D16="",0,IF(' 基本情報 '!D16="甲欄",IF(' 基本情報 '!E16>7,計算シート!U13,HLOOKUP(' 基本情報 '!E16,計算シート!$N$4:$V$34,ROW(計算シート!N13)-3,0))&"%",計算シート!V13&"%"))) -> 0 | G16: =MAX(IF(' 基本情報 '!F16="○",ROUND((F16)*IF(' 基本情報 '!$D$4="",0,VLOOKUP(' 基本情報 '!$D$4,雇用保険料率!$C:$D,2,0))-0.5,0),0),0) -> 0 | H16: =IF(OR(' 基本情報 '!$D$3="",' 基本情報 '!H16=""),0,HLOOKUP(' 基本情報 '!H16,計算シート!$AE$4:$AG$34,ROW(計算シート!AE13)-3,0)) -> 0 | I16: =IF(OR(' 基本情報 '!$D$3="",' 基本情報 '!I16=""),0,HLOOKUP(' 基本情報 '!I16,計算シート!$AH$4:$AJ$34,ROW(計算シート!AE13)-3,0)) -> 0 | J16: 0 | K16: 0 | M16: 0
B17: 10 | C17: =IF(' 基本情報 '!C17="","",' 基本情報 '!C17) ->  | E17: =IF(D17="",0,IF(' 基本情報 '!D17="",0,IF(' 基本情報 '!D17="甲欄",IF(' 基本情報 '!E17>7,計算シート!U14,HLOOKUP(' 基本情報 '!E17,計算シート!$N$4:$V$34,ROW(計算シート!N14)-3,0))&"%",計算シート!V14&"%"))) -> 0 | G17: =MAX(IF(' 基本情報 '!F17="○",ROUND((F17)*IF(' 基本情報 '!$D$4="",0,VLOOKUP(' 基本情報 '!$D$4,雇用保険料率!$C:$D,2,0))-0.5,0),0),0) -> 0 | H17: =IF(OR(' 基本情報 '!$D$3="",' 基本情報 '!H17=""),0,HLOOKUP(' 基本情報 '!H17,計算シート!$AE$4:$AG$34,ROW(計算シート!AE14)-3,0)) -> 0 | I17: =IF(OR(' 基本情報 '!$D$3="",' 基本情報 '!I17=""),0,HLOOKUP(' 基本情報 '!I17,計算シート!$AH$4:$AJ$34,ROW(計算シート!AE14)-3,0)) -> 0 | J17: 0 | K17: 0 | M17: 0
B18: 11 | C18: =IF(' 基本情報 '!C18="","",' 基本情報 '!C18) ->  | E18: =IF(D18="",0,IF(' 基本情報 '!D18="",0,IF(' 基本情報 '!D18="甲欄",IF(' 基本情報 '!E18>7,計算シート!U15,HLOOKUP(' 基本情報 '!E18,計算シート!$N$4:$V$34,ROW(計算シート!N15)-3,0))&"%",計算シート!V15&"%"))) -> 0 | G18: =MAX(IF(' 基本情報 '!F18="○",ROUND((F18)*IF(' 基本情報 '!$D$4="",0,VLOOKUP(' 基本情報 '!$D$4,雇用保険料率!$C:$D,2,0))-0.5,0),0),0) -> 0 | H18: =IF(OR(' 基本情報 '!$D$3="",' 基本情報 '!H18=""),0,HLOOKUP(' 基本情報 '!H18,計算シート!$AE$4:$AG$34,ROW(計算シート!AE15)-3,0)) -> 0 | I18: =IF(OR(' 基本情報 '!$D$3="",' 基本情報 '!I18=""),0,HLOOKUP(' 基本情報 '!I18,計算シート!$AH$4:$AJ$34,ROW(計算シート!AE15)-3,0)) -> 0 | J18: 0 | K18: 0 | M18: 0
B19: 12 | C19: =IF(' 基本情報 '!C19="","",' 基本情報 '!C19) ->  | E19: =IF(D19="",0,IF(' 基本情報 '!D19="",0,IF(' 基本情報 '!D19="甲欄",IF(' 基本情報 '!E19>7,計算シート!U16,HLOOKUP(' 基本情報 '!E19,計算シート!$N$4:$V$34,ROW(計算シート!N16)-3,0))&"%",計算シート!V16&"%"))) -> 0 | G19: =MAX(IF(' 基本情報 '!F19="○",ROUND((F19)*IF(' 基本情報 '!$D$4="",0,VLOOKUP(' 基本情報 '!$D$4,雇用保険料率!$C:$D,2,0))-0.5,0),0),0) -> 0 | H19: =IF(OR(' 基本情報 '!$D$3="",' 基本情報 '!H19=""),0,HLOOKUP(' 基本情報 '!H19,計算シート!$AE$4:$AG$34,ROW(計算シート!AE16)-3,0)) -> 0 | I19: =IF(OR(' 基本情報 '!$D$3="",' 基本情報 '!I19=""),0,HLOOKUP(' 基本情報 '!I19,計算シート!$AH$4:$AJ$34,ROW(計算シート!AE16)-3,0)) -> 0 | J19: 0 | K19: 0 | M19: 0
B20: 13 | C20: =IF(' 基本情報 '!C20="","",' 基本情報 '!C20) ->  | E20: =IF(D20="",0,IF(' 基本情報 '!D20="",0,IF(' 基本情報 '!D20="甲欄",IF(' 基本情報 '!E20>7,計算シート!U17,HLOOKUP(' 基本情報 '!E20,計算シート!$N$4:$V$34,ROW(計算シート!N17)-3,0))&"%",計算シート!V17&"%"))) -> 0 | G20: =MAX(IF(' 基本情報 '!F20="○",ROUND((F20)*IF(' 基本情報 '!$D$4="",0,VLOOKUP(' 基本情報 '!$D$4,雇用保険料率!$C:$D,2,0))-0.5,0),0),0) -> 0 | H20: =IF(OR(' 基本情報 '!$D$3="",' 基本情報 '!H20=""),0,HLOOKUP(' 基本情報 '!H20,計算シート!$AE$4:$AG$34,ROW(計算シート!AE17)-3,0)) -> 0 | I20: =IF(OR(' 基本情報 '!$D$3="",' 基本情報 '!I20=""),0,HLOOKUP(' 基本情報 '!I20,計算シート!$AH$4:$AJ$34,ROW(計算シート!AE17)-3,0)) -> 0 | J20: 0 | K20: 0 | M20: 0
B21: 14 | C21: =IF(' 基本情報 '!C21="","",' 基本情報 '!C21) ->  | E21: =IF(D21="",0,IF(' 基本情報 '!D21="",0,IF(' 基本情報 '!D21="甲欄",IF(' 基本情報 '!E21>7,計算シート!U18,HLOOKUP(' 基本情報 '!E21,計算シート!$N$4:$V$34,ROW(計算シート!N18)-3,0))&"%",計算シート!V18&"%"))) -> 0 | G21: =MAX(IF(' 基本情報 '!F21="○",ROUND((F21)*IF(' 基本情報 '!$D$4="",0,VLOOKUP(' 基本情報 '!$D$4,雇用保険料率!$C:$D,2,0))-0.5,0),0),0) -> 0 | H21: =IF(OR(' 基本情報 '!$D$3="",' 基本情報 '!H21=""),0,HLOOKUP(' 基本情報 '!H21,計算シート!$AE$4:$AG$34,ROW(計算シート!AE18)-3,0)) -> 0 | I21: =IF(OR(' 基本情報 '!$D$3="",' 基本情報 '!I21=""),0,HLOOKUP(' 基本情報 '!I21,計算シート!$AH$4:$AJ$34,ROW(計算シート!AE18)-3,0)) -> 0 | J21: 0 | K21: 0 | M21: 0
B22: 15 | C22: =IF(' 基本情報 '!C22="","",' 基本情報 '!C22) ->  | E22: =IF(D22="",0,IF(' 基本情報 '!D22="",0,IF(' 基本情報 '!D22="甲欄",IF(' 基本情報 '!E22>7,計算シート!U19,HLOOKUP(' 基本情報 '!E22,計算シート!$N$4:$V$34,ROW(計算シート!N19)-3,0))&"%",計算シート!V19&"%"))) -> 0 | G22: =MAX(IF(' 基本情報 '!F22="○",ROUND((F22)*IF(' 基本情報 '!$D$4="",0,VLOOKUP(' 基本情報 '!$D$4,雇用保険料率!$C:$D,2,0))-0.5,0),0),0) -> 0 | H22: =IF(OR(' 基本情報 '!$D$3="",' 基本情報 '!H22=""),0,HLOOKUP(' 基本情報 '!H22,計算シート!$AE$4:$AG$34,ROW(計算シート!AE19)-3,0)) -> 0 | I22: =IF(OR(' 基本情報 '!$D$3="",' 基本情報 '!I22=""),0,HLOOKUP(' 基本情報 '!I22,計算シート!$AH$4:$AJ$34,ROW(計算シート!AE19)-3,0)) -> 0 | J22: 0 | K22: 0 | M22: 0
B23: 16 | C23: =IF(' 基本情報 '!C23="","",' 基本情報 '!C23) ->  | E23: =IF(D23="",0,IF(' 基本情報 '!D23="",0,IF(' 基本情報 '!D23="甲欄",IF(' 基本情報 '!E23>7,計算シート!U20,HLOOKUP(' 基本情報 '!E23,計算シート!$N$4:$V$34,ROW(計算シート!N20)-3,0))&"%",計算シート!V20&"%"))) -> 0 | G23: =MAX(IF(' 基本情報 '!F23="○",ROUND((F23)*IF(' 基本情報 '!$D$4="",0,VLOOKUP(' 基本情報 '!$D$4,雇用保険料率!$C:$D,2,0))-0.5,0),0),0) -> 0 | H23: =IF(OR(' 基本情報 '!$D$3="",' 基本情報 '!H23=""),0,HLOOKUP(' 基本情報 '!H23,計算シート!$AE$4:$AG$34,ROW(計算シート!AE20)-3,0)) -> 0 | I23: =IF(OR(' 基本情報 '!$D$3="",' 基本情報 '!I23=""),0,HLOOKUP(' 基本情報 '!I23,計算シート!$AH$4:$AJ$34,ROW(計算シート!AE20)-3,0)) -> 0 | J23: 0 | K23: 0 | M23: 0
B24: 17 | C24: =IF(' 基本情報 '!C24="","",' 基本情報 '!C24) ->  | E24: =IF(D24="",0,IF(' 基本情報 '!D24="",0,IF(' 基本情報 '!D24="甲欄",IF(' 基本情報 '!E24>7,計算シート!U21,HLOOKUP(' 基本情報 '!E24,計算シート!$N$4:$V$34,ROW(計算シート!N21)-3,0))&"%",計算シート!V21&"%"))) -> 0 | G24: =MAX(IF(' 基本情報 '!F24="○",ROUND((F24)*IF(' 基本情報 '!$D$4="",0,VLOOKUP(' 基本情報 '!$D$4,雇用保険料率!$C:$D,2,0))-0.5,0),0),0) -> 0 | H24: =IF(OR(' 基本情報 '!$D$3="",' 基本情報 '!H24=""),0,HLOOKUP(' 基本情報 '!H24,計算シート!$AE$4:$AG$34,ROW(計算シート!AE21)-3,0)) -> 0 | I24: =IF(OR(' 基本情報 '!$D$3="",' 基本情報 '!I24=""),0,HLOOKUP(' 基本情報 '!I24,計算シート!$AH$4:$AJ$34,ROW(計算シート!AE21)-3,0)) -> 0 | J24: 0 | K24: 0 | M24: 0
B25: 18 | C25: =IF(' 基本情報 '!C25="","",' 基本情報 '!C25) ->  | E25: =IF(D25="",0,IF(' 基本情報 '!D25="",0,IF(' 基本情報 '!D25="甲欄",IF(' 基本情報 '!E25>7,計算シート!U22,HLOOKUP(' 基本情報 '!E25,計算シート!$N$4:$V$34,ROW(計算シート!N22)-3,0))&"%",計算シート!V22&"%"))) -> 0 | G25: =MAX(IF(' 基本情報 '!F25="○",ROUND((F25)*IF(' 基本情報 '!$D$4="",0,VLOOKUP(' 基本情報 '!$D$4,雇用保険料率!$C:$D,2,0))-0.5,0),0),0) -> 0 | H25: =IF(OR(' 基本情報 '!$D$3="",' 基本情報 '!H25=""),0,HLOOKUP(' 基本情報 '!H25,計算シート!$AE$4:$AG$34,ROW(計算シート!AE22)-3,0)) -> 0 | I25: =IF(OR(' 基本情報 '!$D$3="",' 基本情報 '!I25=""),0,HLOOKUP(' 基本情報 '!I25,計算シート!$AH$4:$AJ$34,ROW(計算シート!AE22)-3,0)) -> 0 | J25: 0 | K25: 0 | M25: 0
B26: 19 | C26: =IF(' 基本情報 '!C26="","",' 基本情報 '!C26) ->  | E26: =IF(D26="",0,IF(' 基本情報 '!D26="",0,IF(' 基本情報 '!D26="甲欄",IF(' 基本情報 '!E26>7,計算シート!U23,HLOOKUP(' 基本情報 '!E26,計算シート!$N$4:$V$34,ROW(計算シート!N23)-3,0))&"%",計算シート!V23&"%"))) -> 0 | G26: =MAX(IF(' 基本情報 '!F26="○",ROUND((F26)*IF(' 基本情報 '!$D$4="",0,VLOOKUP(' 基本情報 '!$D$4,雇用保険料率!$C:$D,2,0))-0.5,0),0),0) -> 0 | H26: =IF(OR(' 基本情報 '!$D$3="",' 基本情報 '!H26=""),0,HLOOKUP(' 基本情報 '!H26,計算シート!$AE$4:$AG$34,ROW(計算シート!AE23)-3,0)) -> 0 | I26: =IF(OR(' 基本情報 '!$D$3="",' 基本情報 '!I26=""),0,HLOOKUP(' 基本情報 '!I26,計算シート!$AH$4:$AJ$34,ROW(計算シート!AE23)-3,0)) -> 0 | J26: 0 | K26: 0 | M26: 0
B27: 20 | C27: =IF(' 基本情報 '!C27="","",' 基本情報 '!C27) ->  | E27: =IF(D27="",0,IF(' 基本情報 '!D27="",0,IF(' 基本情報 '!D27="甲欄",IF(' 基本情報 '!E27>7,計算シート!U24,HLOOKUP(' 基本情報 '!E27,計算シート!$N$4:$V$34,ROW(計算シート!N24)-3,0))&"%",計算シート!V24&"%"))) -> 0 | G27: =MAX(IF(' 基本情報 '!F27="○",ROUND((F27)*IF(' 基本情報 '!$D$4="",0,VLOOKUP(' 基本情報 '!$D$4,雇用保険料率!$C:$D,2,0))-0.5,0),0),0) -> 0 | H27: =IF(OR(' 基本情報 '!$D$3="",' 基本情報 '!H27=""),0,HLOOKUP(' 基本情報 '!H27,計算シート!$AE$4:$AG$34,ROW(計算シート!AE24)-3,0)) -> 0 | I27: =IF(OR(' 基本情報 '!$D$3="",' 基本情報 '!I27=""),0,HLOOKUP(' 基本情報 '!I27,計算シート!$AH$4:$AJ$34,ROW(計算シート!AE24)-3,0)) -> 0 | J27: 0 | K27: 0 | M27: 0
B28: 21 | C28: =IF(' 基本情報 '!C28="","",' 基本情報 '!C28) ->  | E28: =IF(D28="",0,IF(' 基本情報 '!D28="",0,IF(' 基本情報 '!D28="甲欄",IF(' 基本情報 '!E28>7,計算シート!U25,HLOOKUP(' 基本情報 '!E28,計算シート!$N$4:$V$34,ROW(計算シート!N25)-3,0))&"%",計算シート!V25&"%"))) -> 0 | G28: =MAX(IF(' 基本情報 '!F28="○",ROUND((F28)*IF(' 基本情報 '!$D$4="",0,VLOOKUP(' 基本情報 '!$D$4,雇用保険料率!$C:$D,2,0))-0.5,0),0),0) -> 0 | H28: =IF(OR(' 基本情報 '!$D$3="",' 基本情報 '!H28=""),0,HLOOKUP(' 基本情報 '!H28,計算シート!$AE$4:$AG$34,ROW(計算シート!AE25)-3,0)) -> 0 | I28: =IF(OR(' 基本情報 '!$D$3="",' 基本情報 '!I28=""),0,HLOOKUP(' 基本情報 '!I28,計算シート!$AH$4:$AJ$34,ROW(計算シート!AE25)-3,0)) -> 0 | J28: 0 | K28: 0 | M28: 0
B29: 22 | C29: =IF(' 基本情報 '!C29="","",' 基本情報 '!C29) ->  | E29: =IF(D29="",0,IF(' 基本情報 '!D29="",0,IF(' 基本情報 '!D29="甲欄",IF(' 基本情報 '!E29>7,計算シート!U26,HLOOKUP(' 基本情報 '!E29,計算シート!$N$4:$V$34,ROW(計算シート!N26)-3,0))&"%",計算シート!V26&"%"))) -> 0 | G29: =MAX(IF(' 基本情報 '!F29="○",ROUND((F29)*IF(' 基本情報 '!$D$4="",0,VLOOKUP(' 基本情報 '!$D$4,雇用保険料率!$C:$D,2,0))-0.5,0),0),0) -> 0 | H29: =IF(OR(' 基本情報 '!$D$3="",' 基本情報 '!H29=""),0,HLOOKUP(' 基本情報 '!H29,計算シート!$AE$4:$AG$34,ROW(計算シート!AE26)-3,0)) -> 0 | I29: =IF(OR(' 基本情報 '!$D$3="",' 基本情報 '!I29=""),0,HLOOKUP(' 基本情報 '!I29,計算シート!$AH$4:$AJ$34,ROW(計算シート!AE26)-3,0)) -> 0 | J29: 0 | K29: 0 | M29: 0
B30: 23 | C30: =IF(' 基本情報 '!C30="","",' 基本情報 '!C30) ->  | E30: =IF(D30="",0,IF(' 基本情報 '!D30="",0,IF(' 基本情報 '!D30="甲欄",IF(' 基本情報 '!E30>7,計算シート!U27,HLOOKUP(' 基本情報 '!E30,計算シート!$N$4:$V$34,ROW(計算シート!N27)-3,0))&"%",計算シート!V27&"%"))) -> 0 | G30: =MAX(IF(' 基本情報 '!F30="○",ROUND((F30)*IF(' 基本情報 '!$D$4="",0,VLOOKUP(' 基本情報 '!$D$4,雇用保険料率!$C:$D,2,0))-0.5,0),0),0) -> 0 | H30: =IF(OR(' 基本情報 '!$D$3="",' 基本情報 '!H30=""),0,HLOOKUP(' 基本情報 '!H30,計算シート!$AE$4:$AG$34,ROW(計算シート!AE27)-3,0)) -> 0 | I30: =IF(OR(' 基本情報 '!$D$3="",' 基本情報 '!I30=""),0,HLOOKUP(' 基本情報 '!I30,計算シート!$AH$4:$AJ$34,ROW(計算シート!AE27)-3,0)) -> 0 | J30: 0 | K30: 0 | M30: 0
B31: 24 | C31: =IF(' 基本情報 '!C31="","",' 基本情報 '!C31) ->  | E31: =IF(D31="",0,IF(' 基本情報 '!D31="",0,IF(' 基本情報 '!D31="甲欄",IF(' 基本情報 '!E31>7,計算シート!U28,HLOOKUP(' 基本情報 '!E31,計算シート!$N$4:$V$34,ROW(計算シート!N28)-3,0))&"%",計算シート!V28&"%"))) -> 0 | G31: =MAX(IF(' 基本情報 '!F31="○",ROUND((F31)*IF(' 基本情報 '!$D$4="",0,VLOOKUP(' 基本情報 '!$D$4,雇用保険料率!$C:$D,2,0))-0.5,0),0),0) -> 0 | H31: =IF(OR(' 基本情報 '!$D$3="",' 基本情報 '!H31=""),0,HLOOKUP(' 基本情報 '!H31,計算シート!$AE$4:$AG$34,ROW(計算シート!AE28)-3,0)) -> 0 | I31: =IF(OR(' 基本情報 '!$D$3="",' 基本情報 '!I31=""),0,HLOOKUP(' 基本情報 '!I31,計算シート!$AH$4:$AJ$34,ROW(計算シート!AE28)-3,0)) -> 0 | J31: 0 | K31: 0 | M31: 0
B32: 25 | C32: =IF(' 基本情報 '!C32="","",' 基本情報 '!C32) ->  | E32: =IF(D32="",0,IF(' 基本情報 '!D32="",0,IF(' 基本情報 '!D32="甲欄",IF(' 基本情報 '!E32>7,計算シート!U29,HLOOKUP(' 基本情報 '!E32,計算シート!$N$4:$V$34,ROW(計算シート!N29)-3,0))&"%",計算シート!V29&"%"))) -> 0 | G32: =MAX(IF(' 基本情報 '!F32="○",ROUND((F32)*IF(' 基本情報 '!$D$4="",0,VLOOKUP(' 基本情報 '!$D$4,雇用保険料率!$C:$D,2,0))-0.5,0),0),0) -> 0 | H32: =IF(OR(' 基本情報 '!$D$3="",' 基本情報 '!H32=""),0,HLOOKUP(' 基本情報 '!H32,計算シート!$AE$4:$AG$34,ROW(計算シート!AE29)-3,0)) -> 0 | I32: =IF(OR(' 基本情報 '!$D$3="",' 基本情報 '!I32=""),0,HLOOKUP(' 基本情報 '!I32,計算シート!$AH$4:$AJ$34,ROW(計算シート!AE29)-3,0)) -> 0 | J32: 0 | K32: 0 | M32: 0
B33: 26 | C33: =IF(' 基本情報 '!C33="","",' 基本情報 '!C33) ->  | E33: =IF(D33="",0,IF(' 基本情報 '!D33="",0,IF(' 基本情報 '!D33="甲欄",IF(' 基本情報 '!E33>7,計算シート!U30,HLOOKUP(' 基本情報 '!E33,計算シート!$N$4:$V$34,ROW(計算シート!N30)-3,0))&"%",計算シート!V30&"%"))) -> 0 | G33: =MAX(IF(' 基本情報 '!F33="○",ROUND((F33)*IF(' 基本情報 '!$D$4="",0,VLOOKUP(' 基本情報 '!$D$4,雇用保険料率!$C:$D,2,0))-0.5,0),0),0) -> 0 | H33: =IF(OR(' 基本情報 '!$D$3="",' 基本情報 '!H33=""),0,HLOOKUP(' 基本情報 '!H33,計算シート!$AE$4:$AG$34,ROW(計算シート!AE30)-3,0)) -> 0 | I33: =IF(OR(' 基本情報 '!$D$3="",' 基本情報 '!I33=""),0,HLOOKUP(' 基本情報 '!I33,計算シート!$AH$4:$AJ$34,ROW(計算シート!AE30)-3,0)) -> 0 | J33: 0 | K33: 0 | M33: 0
B34: 27 | C34: =IF(' 基本情報 '!C34="","",' 基本情報 '!C34) ->  | E34: =IF(D34="",0,IF(' 基本情報 '!D34="",0,IF(' 基本情報 '!D34="甲欄",IF(' 基本情報 '!E34>7,計算シート!U31,HLOOKUP(' 基本情報 '!E34,計算シート!$N$4:$V$34,ROW(計算シート!N31)-3,0))&"%",計算シート!V31&"%"))) -> 0 | G34: =MAX(IF(' 基本情報 '!F34="○",ROUND((F34)*IF(' 基本情報 '!$D$4="",0,VLOOKUP(' 基本情報 '!$D$4,雇用保険料率!$C:$D,2,0))-0.5,0),0),0) -> 0 | H34: =IF(OR(' 基本情報 '!$D$3="",' 基本情報 '!H34=""),0,HLOOKUP(' 基本情報 '!H34,計算シート!$AE$4:$AG$34,ROW(計算シート!AE31)-3,0)) -> 0 | I34: =IF(OR(' 基本情報 '!$D$3="",' 基本情報 '!I34=""),0,HLOOKUP(' 基本情報 '!I34,計算シート!$AH$4:$AJ$34,ROW(計算シート!AE31)-3,0)) -> 0 | J34: 0 | K34: 0 | M34: 0
B35: 28 | C35: =IF(' 基本情報 '!C35="","",' 基本情報 '!C35) ->  | E35: =IF(D35="",0,IF(' 基本情報 '!D35="",0,IF(' 基本情報 '!D35="甲欄",IF(' 基本情報 '!E35>7,計算シート!U32,HLOOKUP(' 基本情報 '!E35,計算シート!$N$4:$V$34,ROW(計算シート!N32)-3,0))&"%",計算シート!V32&"%"))) -> 0 | G35: =MAX(IF(' 基本情報 '!F35="○",ROUND((F35)*IF(' 基本情報 '!$D$4="",0,VLOOKUP(' 基本情報 '!$D$4,雇用保険料率!$C:$D,2,0))-0.5,0),0),0) -> 0 | H35: =IF(OR(' 基本情報 '!$D$3="",' 基本情報 '!H35=""),0,HLOOKUP(' 基本情報 '!H35,計算シート!$AE$4:$AG$34,ROW(計算シート!AE32)-3,0)) -> 0 | I35: =IF(OR(' 基本情報 '!$D$3="",' 基本情報 '!I35=""),0,HLOOKUP(' 基本情報 '!I35,計算シート!$AH$4:$AJ$34,ROW(計算シート!AE32)-3,0)) -> 0 | J35: 0 | K35: 0 | M35: 0
B36: 29 | C36: =IF(' 基本情報 '!C36="","",' 基本情報 '!C36) ->  | E36: =IF(D36="",0,IF(' 基本情報 '!D36="",0,IF(' 基本情報 '!D36="甲欄",IF(' 基本情報 '!E36>7,計算シート!U33,HLOOKUP(' 基本情報 '!E36,計算シート!$N$4:$V$34,ROW(計算シート!N33)-3,0))&"%",計算シート!V33&"%"))) -> 0 | G36: =MAX(IF(' 基本情報 '!F36="○",ROUND((F36)*IF(' 基本情報 '!$D$4="",0,VLOOKUP(' 基本情報 '!$D$4,雇用保険料率!$C:$D,2,0))-0.5,0),0),0) -> 0 | H36: =IF(OR(' 基本情報 '!$D$3="",' 基本情報 '!H36=""),0,HLOOKUP(' 基本情報 '!H36,計算シート!$AE$4:$AG$34,ROW(計算シート!AE33)-3,0)) -> 0 | I36: =IF(OR(' 基本情報 '!$D$3="",' 基本情報 '!I36=""),0,HLOOKUP(' 基本情報 '!I36,計算シート!$AH$4:$AJ$34,ROW(計算シート!AE33)-3,0)) -> 0 | J36: 0 | K36: 0 | M36: 0
B37: 30 | C37: =IF(' 基本情報 '!C37="","",' 基本情報 '!C37) ->  | E37: =IF(D37="",0,IF(' 基本情報 '!D37="",0,IF(' 基本情報 '!D37="甲欄",IF(' 基本情報 '!E37>7,計算シート!U34,HLOOKUP(' 基本情報 '!E37,計算シート!$N$4:$V$34,ROW(計算シート!N34)-3,0))&"%",計算シート!V34&"%"))) -> 0 | G37: =MAX(IF(' 基本情報 '!F37="○",ROUND((F37)*IF(' 基本情報 '!$D$4="",0,VLOOKUP(' 基本情報 '!$D$4,雇用保険料率!$C:$D,2,0))-0.5,0),0),0) -> 0 | H37: =IF(OR(' 基本情報 '!$D$3="",' 基本情報 '!H37=""),0,HLOOKUP(' 基本情報 '!H37,計算シート!$AE$4:$AG$34,ROW(計算シート!AE34)-3,0)) -> 0 | I37: =IF(OR(' 基本情報 '!$D$3="",' 基本情報 '!I37=""),0,HLOOKUP(' 基本情報 '!I37,計算シート!$AH$4:$AJ$34,ROW(計算シート!AE34)-3,0)) -> 0 | J37: 0 | K37: 0 | M37: 0

Sheet 計算シート (hidden)
C3: NO. | D3: 名前 | E3: 源泉徴収税額 | H3: 月額86万円超えた場合の源泉徴収税額（甲欄） | L3: 月額86万円超えた場合の税額表（乙欄) | N3: 賞与税率 | W3: 給与：社会保険（健康保険） | Z3: 給与：社会保険（厚生年金） | AE3: 賞与：社会保険（健康保険) | AH3: 賞与：社会保険（厚生年金）
E4: 甲欄 | F4: 乙欄 | G4: 乙欄（従たる給与についての扶養控除等申告書提出あり） | H4: =税額基本情報!C6 -> 860,000円超 970,000円未満 | I4: =税額基本情報!C7 -> 970,000円超 1,720,000円未満 | J4: =税額基本情報!C8 -> 1,720,000円以上 3,550,000円未満 | K4: =税額基本情報!C9 -> 3,550,000円超 | L4: =税額基本情報!C13 -> 860,000円超 1,720,000円未満 | M4: =税額基本情報!C14 -> 1,720,000円超 | N4: 0 | O4: 1 | P4: 2 | Q4: 3 | R4: 4 | S4: 5 | T4: 6 | U4: 7 | V4: 乙 | W4: =リスト表!E4 -> 無し | X4: =リスト表!E5 -> 介護保険なし | Y4: =リスト表!E6 -> 介護保険あり | Z4: =リスト表!F4 -> 無し | AA4: =リスト表!F5 -> 一般、坑内員・船員 | AB4: =リスト表!F6 -> なし | AC4: ＜一般の被保険者＞標準報酬月額88,000円未満、650,000円以上の場合 | AD4: ＜坑内員・船員＞標準報酬月額88,000円未満、650,000円以上の場合 | AE4: =リスト表!E4 -> 無し | AF4: =リスト表!E5 -> 介護保険なし | AG4: =リスト表!E6 -> 介護保険あり | AH4: =リスト表!F4 -> 無し | AI4: =リスト表!F5 -> 一般、坑内員・船員 | AJ4: =リスト表!F6 -> なし
C5: 1 | D5: =' 給与計算 '!C8 -> 給与一郎 | E5: =MAX(IF(' 給与計算 '!L8>=税額基本情報!$D$6,MAX(計算シート!H5:K5),IF(' 給与計算 '!L8<源泉月額表!$B$8,0,VLOOKUP(' 給与計算 '!L8,源泉月額表!$B:$K,IF(' 基本情報 '!E8>=8,10,' 基本情報 '!E8+3),1)))-IF(' 基本情報 '!E8>=8,(' 基本情報 '!E8-7)*税額基本情報!$D$17,0),0) -> 15920 | F5: =IF(' 給与計算 '!L8<源泉月額表!$B$8,ROUNDDOWN(' 給与計算 '!L8*税額基本情報!$D$23,0),IF(' 給与計算 '!L8=0,0,IF(' 給与計算 '!L8>=税額基本情報!$D$13,MAX(L5:M5),VLOOKUP(' 給与計算 '!L8,源泉月額表!$B:$L,11,1)))) -> 126500 | G5: =MAX(IF(' 給与計算 '!L8<源泉月額表!$B$8,ROUNDDOWN(' 給与計算 '!L8*3.063%,0),IF(' 給与計算 '!L8=0,0,IF(' 給与計算 '!L8>=税額基本情報!$D$13,MAX(L5:M5),VLOOKUP(' 給与計算 '!L8,源泉月額表!$B:$L,11,1))))-' 基本情報 '!E8*税額基本情報!$D$20,0) -> 123280 | H5: =IF(AND(' 給与計算 '!L8>=税額基本情報!$D$6,' 給与計算 '!L8<税額基本情報!$D$7),VLOOKUP(' 給与計算 '!L8,税額基本情報!$D$6:$M$9,IF(' 基本情報 '!E8>=8,10,' 基本情報 '!E8+3),1)+ROUNDDOWN((' 給与計算 '!L8-税額基本情報!$D$6)*税額基本情報!$E$6,0),0) -> 0 | I5: =IF(AND(' 給与計算 '!L8>=税額基本情報!$D$7,' 給与計算 '!L8<税額基本情報!$D$8),VLOOKUP(' 給与計算 '!L8,税額基本情報!$D$6:$M$9,IF(' 基本情報 '!E8>=8,10,' 基本情報 '!E8+3),1)+ROUNDDOWN((' 給与計算 '!L8-税額基本情報!$D$7)*税額基本情報!$E$7,0),0) -> 0 | J5: =IF(AND(' 給与計算 '!L8>=税額基本情報!$D$8,' 給与計算 '!L8<税額基本情報!$D$9),VLOOKUP(' 給与計算 '!L8,税額基本情報!$D$6:$M$9,IF(' 基本情報 '!E8>=8,10,' 基本情報 '!E8+3),1)+ROUNDDOWN((' 給与計算 '!L8-税額基本情報!$D$8)*税額基本情報!$E$8,0),0) -> 0 | K5: =IF(' 給与計算 '!L8>=税額基本情報!$D$9,VLOOKUP(' 給与計算 '!L8,税額基本情報!$D$6:$M$9,IF(' 基本情報 '!E8>=8,10,' 基本情報 '!E8+3),1)+ROUNDDOWN((' 給与計算 '!L8-税額基本情報!$D$9)*税額基本情報!$E$9,0),0) -> 0 | L5: =IF(AND(' 給与計算 '!L8>=税額基本情報!$D$13,' 給与計算 '!L8<税額基本情報!$D$14),税額基本情報!$F$13+ROUNDDOWN((' 給与計算 '!L8-税額基本情報!$D$13)*税額基本情報!$E$13,0),0) -> 0 | M5: =IF(' 給与計算 '!L8>=税額基本情報!$D$14,税額基本情報!$F$14+ROUNDDOWN((' 給与計算 '!L8-税額基本情報!$D$14)*税額基本情報!$E$14,0),0) -> 0 | N5: =IF(' 賞与計算 '!D8<源泉賞与表!$D$10*1000,0,INDEX(源泉賞与表!$B:$B,MATCH(' 賞与計算 '!D8/1000,源泉賞与表!$D:$D,1))) -> 16.336 | O5: =IF(' 賞与計算 '!D8<源泉賞与表!$F$10*1000,0,INDEX(源泉賞与表!$B:$B,MATCH(' 賞与計算 '!D8/1000,源泉賞与表!$F:$F,1))) -> 16.336 | P5: =IF(' 賞与計算 '!D8<源泉賞与表!$H$10*1000,0,INDEX(源泉賞与表!$B:$B,MATCH(' 賞与計算 '!D8/1000,源泉賞与表!$H:$H,1))) -> 14.294 | Q5: =IF(' 賞与計算 '!D8<源泉賞与表!$J$10*1000,0,INDEX(源泉賞与表!$B:$B,MATCH(' 賞与計算 '!D8/1000,源泉賞与表!$J:$J,1))) -> 12.252 | R5: =IF(' 賞与計算 '!D8<源泉賞与表!$L$10*1000,0,INDEX(源泉賞与表!$B:$B,MATCH(' 賞与計算 '!D8/1000,源泉賞与表!$L:$L,1))) -> 12.252 | S5: =IF(' 賞与計算 '!D8<源泉賞与表!$N$10*1000,0,INDEX(源泉賞与表!$B:$B,MATCH(' 賞与計算 '!D8/1000,源泉賞与表!$N:$N,1))) -> 8.168 | T5: =IF(' 賞与計算 '!D8<源泉賞与表!$P$10*1000,0,INDEX(源泉賞与表!$B:$B,MATCH(' 賞与計算 '!D8/1000,源泉賞与表!$P:$P,1))) -> 6.126 | U5: =IF(' 賞与計算 '!D8<源泉賞与表!$R$10*1000,0,INDEX(源泉賞与表!$B:$B,MATCH(' 賞与計算 '!D8/1000,源泉賞与表!$R:$R,1))) -> 6.126 | V5: =IF(' 賞与計算 '!D8="","",IF(' 賞与計算 '!D8<源泉賞与表!$T$22*1000,10.21,INDEX(源泉賞与表!$B:$B,MATCH(' 賞与計算 '!D8/1000,源泉賞与表!$T:$T,1)))) -> 30.63 | W5: 0 | X5: =IF(' 基本情報 '!G8="",0,ROUND(VLOOKUP(' 基本情報 '!G8,INDIRECT(' 基本情報 '!$D$3&"!$B$12:$I$61"),6,0)-0.1,0)) -> 27720 | Y5: =IF(' 基本情報 '!G8="",0,ROUND(VLOOKUP(' 基本情報 '!G8,INDIRECT(' 基本情報 '!$D$3&"!$B$12:$I$61"),8,0)-0.1,0)) -> 32116 | Z5: =W5 -> 0 | AA5: =IF(' 基本情報 '!G8="",0,ROUND(IF(OR(' 基本情報 '!G8<税額基本情報!$E$26,' 基本情報 '!G8>税額基本情報!$E$27),AC5,VLOOKUP(' 基本情報 '!G8,INDIRECT(' 基本情報 '!$D$3&"!$B$15:$K$45"),10,0))-0.1,0)) -> 51240 | AB5: =IF(' 基本情報 '!G8="",0,ROUND(IF(OR(' 基本情報 '!G8<税額基本情報!$E$26,' 基本情報 '!G8>税額基本情報!$E$27),AD5,VLOOKUP(' 基本情報 '!G8,INDIRECT(' 基本情報 '!$D$3&"!$B$15:$M$45"),12,0))-0.1,0)) -> 0 | AC5: =IF(' 基本情報 '!G8="",0,IF(' 基本情報 '!G8<税額基本情報!$E$26,税額基本情報!$F$26,IF(' 基本情報 '!G8>税額基本情報!$E$27,税額基本情報!$F$27,0))) -> 0 | AD5: =IF(' 基本情報 '!G8="",0,IF(' 基本情報 '!G8<税額基本情報!$E$26,税額基本情報!$G$26,IF(' 基本情報 '!G8>税額基本情報!$E$27,税額基本情報!$G$27,0))) -> 0 | AE5: =W5 -> 0 | AF5: =ROUND(IF(' 賞与計算 '!F8>税額基本情報!$D$33,税額基本情報!$D$33,ROUNDDOWN(' 賞与計算 '!F8,-3))*INDIRECT(' 基本情報 '!$D$3&"!$F$9")*0.5-0.1,0) -> 24750 | AG5: =ROUND(IF(' 賞与計算 '!F8>税額基本情報!$D$33,税額基本情報!$D$33,ROUNDDOWN(' 賞与計算 '!F8,-3))*INDIRECT(' 基本情報 '!$D$3&"!$H$9")/2-0.1,0) -> 28675 | AH5: =W5 -> 0 | AI5: =ROUND(IF(' 賞与計算 '!F8>税額基本情報!$D$30,税額基本情報!$D$30,ROUNDDOWN(' 賞与計算 '!F8,-3))*INDIRECT(' 基本情報 '!$D$3&"!$J$9")/2-0.1,0) -> 45750 | AJ5: =ROUND(IF(' 賞与計算 '!F8>税額基本情報!$D$30,税額基本情報!$D$30,ROUNDDOWN(' 賞与計算 '!F8,-3))*INDIRECT(' 基本情報 '!$D$3&"!$L$9")/2-0.1,0) -> 0
C6: 2 | D6: =' 給与計算 '!C9 -> 給与二郎 | E6: =MAX(IF(' 給与計算 '!L9>=税額基本情報!$D$6,MAX(計算シート!H6:K6),IF(' 給与計算 '!L9<源泉月額表!$B$8,0,VLOOKUP(' 給与計算 '!L9,源泉月額表!$B:$K,IF(' 基本情報 '!E9>=8,10,' 基本情報 '!E9+3),1)))-IF(' 基本情報 '!E9>=8,(' 基本情報 '!E9-7)*税額基本情報!$D$17,0),0) -> 5140 | F6: =IF(' 給与計算 '!L9<源泉月額表!$B$8,ROUNDDOWN(' 給与計算 '!L9*税額基本情報!$D$23,0),IF(' 給与計算 '!L9=0,0,IF(' 給与計算 '!L9>=税額基本情報!$D$13,MAX(L6:M6),VLOOKUP(' 給与計算 '!L9,源泉月額表!$B:$L,11,1)))) -> 38500 | G6: =MAX(IF(' 給与計算 '!L9<源泉月額表!$B$8,ROUNDDOWN(' 給与計算 '!L9*3.063%,0),IF(' 給与計算 '!L9=0,0,IF(' 給与計算 '!L9>=税額基本情報!$D$13,MAX(L6:M6),VLOOKUP(' 給与計算 '!L9,源泉月額表!$B:$L,11,1))))-' 基本情報 '!E9*税額基本情報!$D$20,0) -> 36890 | H6: =IF(AND(' 給与計算 '!L9>=税額基本情報!$D$6,' 給与計算 '!L9<税額基本情報!$D$7),VLOOKUP(' 給与計算 '!L9,税額基本情報!$D$6:$M$9,IF(' 基本情報 '!E9>=8,10,' 基本情報 '!E9+3),1)+ROUNDDOWN((' 給与計算 '!L9-税額基本情報!$D$6)*税額基本情報!$E$6,0),0) -> 0 | I6: =IF(AND(' 給与計算 '!L9>=税額基本情報!$D$7,' 給与計算 '!L9<税額基本情報!$D$8),VLOOKUP(' 給与計算 '!L9,税額基本情報!$D$6:$M$9,IF(' 基本情報 '!E9>=8,10,' 基本情報 '!E9+3),1)+ROUNDDOWN((' 給与計算 '!L9-税額基本情報!$D$7)*税額基本情報!$E$7,0),0) -> 0 | J6: =IF(' 給与計算 '!L9>=税額基本情報!$D$8,VLOOKUP(' 給与計算 '!L9,税額基本情報!$D$6:$M$9,IF(' 基本情報 '!E9>=8,10,' 基本情報 '!E9+3),1)+ROUNDDOWN((' 給与計算 '!L9-税額基本情報!$D$8)*税額基本情報!$E$8,0),0) -> 0 | K6: =IF(' 給与計算 '!L9>=税額基本情報!$D$9,VLOOKUP(' 給与計算 '!L9,税額基本情報!$D$6:$M$9,IF(' 基本情報 '!E9>=8,10,' 基本情報 '!E9+3),1)+ROUNDDOWN((' 給与計算 '!L9-税額基本情報!$D$9)*税額基本情報!$E$9,0),0) -> 0 | L6: =IF(AND(' 給与計算 '!L9>=税額基本情報!$D$13,' 給与計算 '!L9<税額基本情報!$D$14),税額基本情報!$F$13+ROUNDDOWN((' 給与計算 '!L9-税額基本情報!$D$13)*税額基本情報!$E$13,0),0) -> 0 | M6: =IF(' 給与計算 '!L9>=税額基本情報!$D$14,税額基本情報!$F$14+ROUNDDOWN((' 給与計算 '!L9-税額基本情報!$D$14)*税額基本情報!$E$14,0),0) -> 0 | N6: =IF(' 賞与計算 '!D9<源泉賞与表!$D$10*1000,0,INDEX(源泉賞与表!$B:$B,MATCH(' 賞与計算 '!D9/1000,源泉賞与表!$D:$D,1))) -> 6.126 | O6: =IF(' 賞与計算 '!D9<源泉賞与表!$F$10*1000,0,INDEX(源泉賞与表!$B:$B,MATCH(' 賞与計算 '!D9/1000,源泉賞与表!$F:$F,1))) -> 4.084 | P6: =IF(' 賞与計算 '!D9<源泉賞与表!$H$10*1000,0,INDEX(源泉賞与表!$B:$B,MATCH(' 賞与計算 '!D9/1000,源泉賞与表!$H:$H,1))) -> 2.042 | Q6: =IF(' 賞与計算 '!D9<源泉賞与表!$J$10*1000,0,INDEX(源泉賞与表!$B:$B,MATCH(' 賞与計算 '!D9/1000,源泉賞与表!$J:$J,1))) -> 2.042 | R6: =IF(' 賞与計算 '!D9<源泉賞与表!$L$10*1000,0,INDEX(源泉賞与表!$B:$B,MATCH(' 賞与計算 '!D9/1000,源泉賞与表!$L:$L,1))) -> 2.042 | S6: =IF(' 賞与計算 '!D9<源泉賞与表!$N$10*1000,0,INDEX(源泉賞与表!$B:$B,MATCH(' 賞与計算 '!D9/1000,源泉賞与表!$N:$N,1))) -> 2.042 | T6: =IF(' 賞与計算 '!D9<源泉賞与表!$P$10*1000,0,INDEX(源泉賞与表!$B:$B,MATCH(' 賞与計算 '!D9/1000,源泉賞与表!$P:$P,1))) -> 0 | U6: =IF(' 賞与計算 '!D9<源泉賞与表!$R$10*1000,0,INDEX(源泉賞与表!$B:$B,MATCH(' 賞与計算 '!D9/1000,源泉賞与表!$R:$R,1))) -> 0 | V6: =IF(' 賞与計算 '!D9="","",IF(' 賞与計算 '!D9<源泉賞与表!$T$22*1000,10.21,INDEX(源泉賞与表!$B:$B,MATCH(' 賞与計算 '!D9/1000,源泉賞与表!$T:$T,1)))) -> 20.42 | W6: 0 | X6: =IF(' 基本情報 '!G9="",0,ROUND(VLOOKUP(' 基本情報 '!G9,INDIRECT(' 基本情報 '!$D$3&"!$B$12:$I$61"),6,0)-0.1,0)) -> 14850 | Y6: =IF(' 基本情報 '!G9="",0,ROUND(VLOOKUP(' 基本情報 '!G9,INDIRECT(' 基本情報 '!$D$3&"!$B$12:$I$61"),8,0)-0.1,0)) -> 17205 | Z6: =W6 -> 0 | AA6: =IF(' 基本情報 '!G9="",0,ROUND(IF(OR(' 基本情報 '!G9<税額基本情報!$E$26,' 基本情報 '!G9>税額基本情報!$E$27),AC6,VLOOKUP(' 基本情報 '!G9,INDIRECT(' 基本情報 '!$D$3&"!$B$15:$K$45"),10,0))-0.1,0)) -> 27450 | AB6: =IF(' 基本情報 '!G9="",0,ROUND(IF(OR(' 基本情報 '!G9<税額基本情報!$E$26,' 基本情報 '!G9>税額基本情報!$E$27),AD6,VLOOKUP(' 基本情報 '!G9,INDIRECT(' 基本情報 '!$D$3&"!$B$15:$M$45"),12,0))-0.1,0)) -> 0 | AC6: =IF(' 基本情報 '!G9="",0,IF(' 基本情報 '!G9<税額基本情報!$E$26,税額基本情報!$F$26,IF(' 基本情報 '!G9>税額基本情報!$E$27,税額基本情報!$F$27,0))) -> 0 | AD6: =IF(' 基本情報 '!G9="",0,IF(' 基本情報 '!G9<税額基本情報!$E$26,税額基本情報!$G$26,IF(' 基本情報 '!G9>税額基本情報!$E$27,税額基本情報!$G$27,0))) -> 0 | AE6: =W6 -> 0 | AF6: =ROUND(IF(' 賞与計算 '!F9>税額基本情報!$D$33,税額基本情報!$D$33,ROUNDDOWN(' 賞与計算 '!F9,-3))*INDIRECT(' 基本情報 '!$D$3&"!$F$9")*0.5-0.1,0) -> 17325 | AG6: =ROUND(IF(' 賞与計算 '!F9>税額基本情報!$D$33,税額基本情報!$D$33,ROUNDDOWN(' 賞与計算 '!F9,-3))*INDIRECT(' 基本情報 '!$D$3&"!$H$9")/2-0.1,0) -> 20072 | AH6: =W6 -> 0 | AI6: =ROUND(IF(' 賞与計算 '!F9>税額基本情報!$D$30,税額基本情報!$D$30,ROUNDDOWN(' 賞与計算 '!F9,-3))*INDIRECT(' 基本情報 '!$D$3&"!$J$9")/2-0.1,0) -> 32025 | AJ6: =ROUND(IF(' 賞与計算 '!F9>税額基本情報!$D$30,税額基本情報!$D$30,ROUNDDOWN(' 賞与計算 '!F9,-3))*INDIRECT(' 基本情報 '!$D$3&"!$L$9")/2-0.1,0) -> 0
C7: 3 | D7: =' 給与計算 '!C10 -> 給与三郎 | E7: =MAX(IF(' 給与計算 '!L10>=税額基本情報!$D$6,MAX(計算シート!H7:K7),IF(' 給与計算 '!L10<源泉月額表!$B$8,0,VLOOKUP(' 給与計算 '!L10,源泉月額表!$B:$K,IF(' 基本情報 '!E10>=8,10,' 基本情報 '!E10+3),1)))-IF(' 基本情報 '!E10>=8,(' 基本情報 '!E10-7)*税額基本情報!$D$17,0),0) -> 720 | F7: =IF(' 給与計算 '!L10<源泉月額表!$B$8,ROUNDDOWN(' 給与計算 '!L10*税額基本情報!$D$23,0),IF(' 給与計算 '!L10=0,0,IF(' 給与計算 '!L10>=税額基本情報!$D$13,MAX(L7:M7),VLOOKUP(' 給与計算 '!L10,源泉月額表!$B:$L,11,1)))) -> 3600 | G7: =MAX(IF(' 給与計算 '!L10<源泉月額表!$B$8,ROUNDDOWN(' 給与計算 '!L10*3.063%,0),IF(' 給与計算 '!L10=0,0,IF(' 給与計算 '!L10>=税額基本情報!$D$13,MAX(L7:M7),VLOOKUP(' 給与計算 '!L10,源泉月額表!$B:$L,11,1))))-' 基本情報 '!E10*税額基本情報!$D$20,0) -> 3600 | H7: =IF(AND(' 給与計算 '!L10>=税額基本情報!$D$6,' 給与計算 '!L10<税額基本情報!$D$7),VLOOKUP(' 給与計算 '!L10,税額基本情報!$D$6:$M$9,IF(' 基本情報 '!E10>=8,10,' 基本情報 '!E10+3),1)+ROUNDDOWN((' 給与計算 '!L10-税額基本情報!$D$6)*税額基本情報!$E$6,0),0) -> 0 | I7: =IF(AND(' 給与計算 '!L10>=税額基本情報!$D$7,' 給与計算 '!L10<税額基本情報!$D$8),VLOOKUP(' 給与計算 '!L10,税額基本情報!$D$6:$M$9,IF(' 基本情報 '!E10>=8,10,' 基本情報 '!E10+3),1)+ROUNDDOWN((' 給与計算 '!L10-税額基本情報!$D$7)*税額基本情報!$E$7,0),0) -> 0 | J7: =IF(' 給与計算 '!L10>=税額基本情報!$D$8,VLOOKUP(' 給与計算 '!L10,税額基本情報!$D$6:$M$9,IF(' 基本情報 '!E10>=8,10,' 基本情報 '!E10+3),1)+ROUNDDOWN((' 給与計算 '!L10-税額基本情報!$D$8)*税額基本情報!$E$8,0),0) -> 0 | K7: =IF(' 給与計算 '!L10>=税額基本情報!$D$9,VLOOKUP(' 給与計算 '!L10,税額基本情報!$D$6:$M$9,IF(' 基本情報 '!E10>=8,10,' 基本情報 '!E10+3),1)+ROUNDDOWN((' 給与計算 '!L10-税額基本情報!$D$9)*税額基本情報!$E$9,0),0) -> 0 | L7: =IF(AND(' 給与計算 '!L10>=税額基本情報!$D$13,' 給与計算 '!L10<税額基本情報!$D$14),税額基本情報!$F$13+ROUNDDOWN((' 給与計算 '!L10-税額基本情報!$D$13)*税額基本情報!$E$13,0),0) -> 0 | M7: =IF(' 給与計算 '!L10>=税額基本情報!$D$14,税額基本情報!$F$14+ROUNDDOWN((' 給与計算 '!L10-税額基本情報!$D$14)*税額基本情報!$E$14,0),0) -> 0 | N7: =IF(' 賞与計算 '!D10<源泉賞与表!$D$10*1000,0,INDEX(源泉賞与表!$B:$B,MATCH(' 賞与計算 '!D10/1000,源泉賞与表!$D:$D,1))) -> 4.084 | O7: =IF(' 賞与計算 '!D10<源泉賞与表!$F$10*1000,0,INDEX(源泉賞与表!$B:$B,MATCH(' 賞与計算 '!D10/1000,源泉賞与表!$F:$F,1))) -> 2.042 | P7: =IF(' 賞与計算 '!D10<源泉賞与表!$H$10*1000,0,INDEX(源泉賞与表!$B:$B,MATCH(' 賞与計算 '!D10/1000,源泉賞与表!$H:$H,1))) -> 0 | Q7: =IF(' 賞与計算 '!D10<源泉賞与表!$J$10*1000,0,INDEX(源泉賞与表!$B:$B,MATCH(' 賞与計算 '!D10/1000,源泉賞与表!$J:$J,1))) -> 0 | R7: =IF(' 賞与計算 '!D10<源泉賞与表!$L$10*1000,0,INDEX(源泉賞与表!$B:$B,MATCH(' 賞与計算 '!D10/1000,源泉賞与表!$L:$L,1))) -> 0 | S7: =IF(' 賞与計算 '!D10<源泉賞与表!$N$10*1000,0,INDEX(源泉賞与表!$B:$B,MATCH(' 賞与計算 '!D10/1000,源泉賞与表!$N:$N,1))) -> 0 | T7: =IF(' 賞与計算 '!D10<源泉賞与表!$P$10*1000,0,INDEX(源泉賞与表!$B:$B,MATCH(' 賞与計算 '!D10/1000,源泉賞与表!$P:$P,1))) -> 0 | U7: =IF(' 賞与計算 '!D10<源泉賞与表!$R$10*1000,0,INDEX(源泉賞与表!$B:$B,MATCH(' 賞与計算 '!D10/1000,源泉賞与表!$R:$R,1))) -> 0 | V7: =IF(' 賞与計算 '!D10="","",IF(' 賞与計算 '!D10<源泉賞与表!$T$22*1000,10.21,INDEX(源泉賞与表!$B:$B,MATCH(' 賞与計算 '!D10/1000,源泉賞与表!$T:$T,1)))) -> 10.21 | W7: 0 | X7: =IF(' 基本情報 '!G10="",0,ROUND(VLOOKUP(' 基本情報 '!G10,INDIRECT(' 基本情報 '!$D$3&"!$B$12:$I$61"),6,0)-0.1,0)) -> 0 | Y7: =IF(' 基本情報 '!G10="",0,ROUND(VLOOKUP(' 基本情報 '!G10,INDIRECT(' 基本情報 '!$D$3&"!$B$12:$I$61"),8,0)-0.1,0)) -> 0 | Z7: 0 | AA7: =IF(' 基本情報 '!G10="",0,ROUND(IF(OR(' 基本情報 '!G10<税額基本情報!$E$26,' 基本情報 '!G10>税額基本情報!$E$27),AC7,VLOOKUP(' 基本情報 '!G10,INDIRECT(' 基本情報 '!$D$3&"!$B$15:$K$45"),10,0))-0.1,0)) -> 0 | AB7: =IF(' 基本情報 '!G10="",0,ROUND(IF(OR(' 基本情報 '!G10<税額基本情報!$E$26,' 基本情報 '!G10>税額基本情報!$E$27),AD7,VLOOKUP(' 基本情報 '!G10,INDIRECT(' 基本情報 '!$D$3&"!$B$15:$M$45"),12,0))-0.1,0)) -> 0 | AC7: =IF(' 基本情報 '!G10="",0,IF(' 基本情報 '!G10<税額基本情報!$E$26,税額基本情報!$F$26,IF(' 基本情報 '!G10>税額基本情報!$E$27,税額基本情報!$F$27,0))) -> 0 | AD7: =IF(' 基本情報 '!G10="",0,IF(' 基本情報 '!G10<税額基本情報!$E$26,税額基本情報!$G$26,IF(' 基本情報 '!G10>税額基本情報!$E$27,税額基本情報!$G$27,0))) -> 0 | AE7: 0 | AF7: =ROUND(IF(' 賞与計算 '!F10>税額基本情報!$D$33,税額基本情報!$D$33,ROUNDDOWN(' 賞与計算 '!F10,-3))*INDIRECT(' 基本情報 '!$D$3&"!$F$9")*0.5-0.1,0) -> 4950 | AG7: =ROUND(IF(' 賞与計算 '!F10>税額基本情報!$D$33,税額基本情報!$D$33,ROUNDDOWN(' 賞与計算 '!F10,-3))*INDIRECT(' 基本情報 '!$D$3&"!$H$9")/2-0.1,0) -> 5735 | AH7: 0 | AI7: =ROUND(IF(' 賞与計算 '!F10>税額基本情報!$D$30,税額基本情報!$D$30,ROUNDDOWN(' 賞与計算 '!F10,-3))*INDIRECT(' 基本情報 '!$D$3&"!$J$9")/2-0.1,0) -> 9150 | AJ7: =ROUND(IF(' 賞与計算 '!F10>税額基本情報!$D$30,税額基本情報!$D$30,ROUNDDOWN(' 賞与計算 '!F10,-3))*INDIRECT(' 基本情報 '!$D$3&"!$L$9")/2-0.1,0) -> 0
C8: 4 | D8: =' 給与計算 '!C11 ->  | E8: =MAX(IF(' 給与計算 '!L11>=税額基本情報!$D$6,MAX(計算シート!H8:K8),IF(' 給与計算 '!L11<源泉月額表!$B$8,0,VLOOKUP(' 給与計算 '!L11,源泉月額表!$B:$K,IF(' 基本情報 '!E11>=8,10,' 基本情報 '!E11+3),1)))-IF(' 基本情報 '!E11>=8,(' 基本情報 '!E11-7)*税額基本情報!$D$17,0),0) -> 0 | F8: =IF(' 給与計算 '!L11<源泉月額表!$B$8,ROUNDDOWN(' 給与計算 '!L11*税額基本情報!$D$23,0),IF(' 給与計算 '!L11=0,0,IF(' 給与計算 '!L11>=税額基本情報!$D$13,MAX(L8:M8),VLOOKUP(' 給与計算 '!L11,源泉月額表!$B:$L,11,1)))) -> 0 | G8: =MAX(IF(' 給与計算 '!L11<源泉月額表!$B$8,ROUNDDOWN(' 給与計算 '!L11*3.063%,0),IF(' 給与計算 '!L11=0,0,IF(' 給与計算 '!L11>=税額基本情報!$D$13,MAX(L8:M8),VLOOKUP(' 給与計算 '!L11,源泉月額表!$B:$L,11,1))))-' 基本情報 '!E11*税額基本情報!$D$20,0) -> 0 | H8: =IF(AND(' 給与計算 '!L11>=税額基本情報!$D$6,' 給与計算 '!L11<税額基本情報!$D$7),VLOOKUP(' 給与計算 '!L11,税額基本情報!$D$6:$M$9,IF(' 基本情報 '!E11>=8,10,' 基本情報 '!E11+3),1)+ROUNDDOWN((' 給与計算 '!L11-税額基本情報!$D$6)*税額基本情報!$E$6,0),0) -> 0 | I8: =IF(AND(' 給与計算 '!L11>=税額基本情報!$D$7,' 給与計算 '!L11<税額基本情報!$D$8),VLOOKUP(' 給与計算 '!L11,税額基本情報!$D$6:$M$9,IF(' 基本情報 '!E11>=8,10,' 基本情報 '!E11+3),1)+ROUNDDOWN((' 給与計算 '!L11-税額基本情報!$D$7)*税額基本情報!$E$7,0),0) -> 0 | J8: =IF(' 給与計算 '!L11>=税額基本情報!$D$8,VLOOKUP(' 給与計算 '!L11,税額基本情報!$D$6:$M$9,IF(' 基本情報 '!E11>=8,10,' 基本情報 '!E11+3),1)+ROUNDDOWN((' 給与計算 '!L11-税額基本情報!$D$8)*税額基本情報!$E$8,0),0) -> 0 | K8: =IF(' 給与計算 '!L11>=税額基本情報!$D$9,VLOOKUP(' 給与計算 '!L11,税額基本情報!$D$6:$M$9,IF(' 基本情報 '!E11>=8,10,' 基本情報 '!E11+3),1)+ROUNDDOWN((' 給与計算 '!L11-税額基本情報!$D$9)*税額基本情報!$E$9,0),0) -> 0 | L8: =IF(AND(' 給与計算 '!L11>=税額基本情報!$D$13,' 給与計算 '!L11<税額基本情報!$D$14),税額基本情報!$F$13+ROUNDDOWN((' 給与計算 '!L11-税額基本情報!$D$13)*税額基本情報!$E$13,0),0) -> 0 | M8: =IF(' 給与計算 '!L11>=税額基本情報!$D$14,税額基本情報!$F$14+ROUNDDOWN((' 給与計算 '!L11-税額基本情報!$D$14)*税額基本情報!$E$14,0),0) -> 0 | N8: =IF(' 賞与計算 '!D11<源泉賞与表!$D$10*1000,0,INDEX(源泉賞与表!$B:$B,MATCH(' 賞与計算 '!D11/1000,源泉賞与表!$D:$D,1))) -> 0 | O8: =IF(' 賞与計算 '!D11<源泉賞与表!$F$10*1000,0,INDEX(源泉賞与表!$B:$B,MATCH(' 賞与計算 '!D11/1000,源泉賞与表!$F:$F,1))) -> 0 | P8: =IF(' 賞与計算 '!D11<源泉賞与表!$H$10*1000,0,INDEX(源泉賞与表!$B:$B,MATCH(' 賞与計算 '!D11/1000,源泉賞与表!$H:$H,1))) -> 0 | Q8: =IF(' 賞与計算 '!D11<源泉賞与表!$J$10*1000,0,INDEX(源泉賞与表!$B:$B,MATCH(' 賞与計算 '!D11/1000,源泉賞与表!$J:$J,1))) -> 0 | R8: =IF(' 賞与計算 '!D11<源泉賞与表!$L$10*1000,0,INDEX(源泉賞与表!$B:$B,MATCH(' 賞与計算 '!D11/1000,源泉賞与表!$L:$L,1))) -> 0 | S8: =IF(' 賞与計算 '!D11<源泉賞与表!$N$10*1000,0,INDEX(源泉賞与表!$B:$B,MATCH(' 賞与計算 '!D11/1000,源泉賞与表!$N:$N,1))) -> 0 | T8: =IF(' 賞与計算 '!D11<源泉賞与表!$P$10*1000,0,INDEX(源泉賞与表!$B:$B,MATCH(' 賞与計算 '!D11/1000,源泉賞与表!$P:$P,1))) -> 0 | U8: =IF(' 賞与計算 '!D11<源泉賞与表!$R$10*1000,0,INDEX(源泉賞与表!$B:$B,MATCH(' 賞与計算 '!D11/1000,源泉賞与表!$R:$R,1))) -> 0 | V8: =IF(' 賞与計算 '!D11="","",IF(' 賞与計算 '!D11<源泉賞与表!$T$22*1000,10.21,INDEX(源泉賞与表!$B:$B,MATCH(' 賞与計算 '!D11/1000,源泉賞与表!$T:$T,1)))) ->  | W8: 0 | X8: =IF(' 基本情報 '!G11="",0,ROUND(VLOOKUP(' 基本情報 '!G11,INDIRECT(' 基本情報 '!$D$3&"!$B$12:$I$61"),6,0)-0.1,0)) -> 0 | Y8: =IF(' 基本情報 '!G11="",0,ROUND(VLOOKUP(' 基本情報 '!G11,INDIRECT(' 基本情報 '!$D$3&"!$B$12:$I$61"),8,0)-0.1,0)) -> 0 | Z8: 0 | AA8: =IF(' 基本情報 '!G11="",0,ROUND(IF(OR(' 基本情報 '!G11<税額基本情報!$E$26,' 基本情報 '!G11>税額基本情報!$E$27),AC8,VLOOKUP(' 基本情報 '!G11,INDIRECT(' 基本情報 '!$D$3&"!$B$15:$K$45"),10,0))-0.1,0)) -> 0 | AB8: =IF(' 基本情報 '!G11="",0,ROUND(IF(OR(' 基本情報 '!G11<税額基本情報!$E$26,' 基本情報 '!G11>税額基本情報!$E$27),AD8,VLOOKUP(' 基本情報 '!G11,INDIRECT(' 基本情報 '!$D$3&"!$B$15:$M$45"),12,0))-0.1,0)) -> 0 | AC8: =IF(' 基本情報 '!G11="",0,IF(' 基本情報 '!G11<税額基本情報!$E$26,税額基本情報!$F$26,IF(' 基本情報 '!G11>税額基本情報!$E$27,税額基本情報!$F$27,0))) -> 0 | AD8: =IF(' 基本情報 '!G11="",0,IF(' 基本情報 '!G11<税額基本情報!$E$26,税額基本情報!$G$26,IF(' 基本情報 '!G11>税額基本情報!$E$27,税額基本情報!$G$27,0))) -> 0 | AE8: 0 | AF8: =ROUND(IF(' 賞与計算 '!F11>税額基本情報!$D$33,税額基本情報!$D$33,ROUNDDOWN(' 賞与計算 '!F11,-3))*INDIRECT(' 基本情報 '!$D$3&"!$F$9")*0.5-0.1,0) -> 0 | AG8: =ROUND(IF(' 賞与計算 '!F11>税額基本情報!$D$33,税額基本情報!$D$33,ROUNDDOWN(' 賞与計算 '!F11,-3))*INDIRECT(' 基本情報 '!$D$3&"!$H$9")/2-0.1,0) -> 0 | AH8: 0 | AI8: =ROUND(IF(' 賞与計算 '!F11>税額基本情報!$D$30,税額基本情報!$D$30,ROUNDDOWN(' 賞与計算 '!F11,-3))*INDIRECT(' 基本情報 '!$D$3&"!$J$9")/2-0.1,0) -> 0 | AJ8: =ROUND(IF(' 賞与計算 '!F11>税額基本情報!$D$30,税額基本情報!$D$30,ROUNDDOWN(' 賞与計算 '!F11,-3))*INDIRECT(' 基本情報 '!$D$3&"!$L$9")/2-0.1,0) -> 0
C9: 5 | D9: =' 給与計算 '!C12 ->  | E9: =MAX(IF(' 給与計算 '!L12>=税額基本情報!$D$6,MAX(計算シート!H9:K9),IF(' 給与計算 '!L12<源泉月額表!$B$8,0,VLOOKUP(' 給与計算 '!L12,源泉月額表!$B:$K,IF(' 基本情報 '!E12>=8,10,' 基本情報 '!E12+3),1)))-IF(' 基本情報 '!E12>=8,(' 基本情報 '!E12-7)*税額基本情報!$D$17,0),0) -> 0 | F9: =IF(' 給与計算 '!L12<源泉月額表!$B$8,ROUNDDOWN(' 給与計算 '!L12*税額基本情報!$D$23,0),IF(' 給与計算 '!L12=0,0,IF(' 給与計算 '!L12>=税額基本情報!$D$13,MAX(L9:M9),VLOOKUP(' 給与計算 '!L12,源泉月額表!$B:$L,11,1)))) -> 0 | G9: =MAX(IF(' 給与計算 '!L12<源泉月額表!$B$8,ROUNDDOWN(' 給与計算 '!L12*3.063%,0),IF(' 給与計算 '!L12=0,0,IF(' 給与計算 '!L12>=税額基本情報!$D$13,MAX(L9:M9),VLOOKUP(' 給与計算 '!L12,源泉月額表!$B:$L,11,1))))-' 基本情報 '!E12*税額基本情報!$D$20,0) -> 0 | H9: =IF(AND(' 給与計算 '!L12>=税額基本情報!$D$6,' 給与計算 '!L12<税額基本情報!$D$7),VLOOKUP(' 給与計算 '!L12,税額基本情報!$D$6:$M$9,IF(' 基本情報 '!E12>=8,10,' 基本情報 '!E12+3),1)+ROUNDDOWN((' 給与計算 '!L12-税額基本情報!$D$6)*税額基本情報!$E$6,0),0) -> 0 | I9: =IF(AND(' 給与計算 '!L12>=税額基本情報!$D$7,' 給与計算 '!L12<税額基本情報!$D$8),VLOOKUP(' 給与計算 '!L12,税額基本情報!$D$6:$M$9,IF(' 基本情報 '!E12>=8,10,' 基本情報 '!E12+3),1)+ROUNDDOWN((' 給与計算 '!L12-税額基本情報!$D$7)*税額基本情報!$E$7,0),0) -> 0 | J9: =IF(' 給与計算 '!L12>=税額基本情報!$D$8,VLOOKUP(' 給与計算 '!L12,税額基本情報!$D$6:$M$9,IF(' 基本情報 '!E12>=8,10,' 基本情報 '!E12+3),1)+ROUNDDOWN((' 給与計算 '!L12-税額基本情報!$D$8)*税額基本情報!$E$8,0),0) -> 0 | K9: =IF(' 給与計算 '!L12>=税額基本情報!$D$9,VLOOKUP(' 給与計算 '!L12,税額基本情報!$D$6:$M$9,IF(' 基本情報 '!E12>=8,10,' 基本情報 '!E12+3),1)+ROUNDDOWN((' 給与計算 '!L12-税額基本情報!$D$9)*税額基本情報!$E$9,0),0) -> 0 | L9: =IF(AND(' 給与計算 '!L12>=税額基本情報!$D$13,' 給与計算 '!L12<税額基本情報!$D$14),税額基本情報!$F$13+ROUNDDOWN((' 給与計算 '!L12-税額基本情報!$D$13)*税額基本情報!$E$13,0),0) -> 0 | M9: =IF(' 給与計算 '!L12>=税額基本情報!$D$14,税額基本情報!$F$14+ROUNDDOWN((' 給与計算 '!L12-税額基本情報!$D$14)*税額基本情報!$E$14,0),0) -> 0 | N9: =IF(' 賞与計算 '!D12<源泉賞与表!$D$10*1000,0,INDEX(源泉賞与表!$B:$B,MATCH(' 賞与計算 '!D12/1000,源泉賞与表!$D:$D,1))) -> 0 | O9: =IF(' 賞与計算 '!D12<源泉賞与表!$F$10*1000,0,INDEX(源泉賞与表!$B:$B,MATCH(' 賞与計算 '!D12/1000,源泉賞与表!$F:$F,1))) -> 0 | P9: =IF(' 賞与計算 '!D12<源泉賞与表!$H$10*1000,0,INDEX(源泉賞与表!$B:$B,MATCH(' 賞与計算 '!D12/1000,源泉賞与表!$H:$H,1))) -> 0 | Q9: =IF(' 賞与計算 '!D12<源泉賞与表!$J$10*1000,0,INDEX(源泉賞与表!$B:$B,MATCH(' 賞与計算 '!D12/1000,源泉賞与表!$J:$J,1))) -> 0 | R9: =IF(' 賞与計算 '!D12<源泉賞与表!$L$10*1000,0,INDEX(源泉賞与表!$B:$B,MATCH(' 賞与計算 '!D12/1000,源泉賞与表!$L:$L,1))) -> 0 | S9: =IF(' 賞与計算 '!D12<源泉賞与表!$N$10*1000,0,INDEX(源泉賞与表!$B:$B,MATCH(' 賞与計算 '!D12/1000,源泉賞与表!$N:$N,1))) -> 0 | T9: =IF(' 賞与計算 '!D12<源泉賞与表!$P$10*1000,0,INDEX(源泉賞与表!$B:$B,MATCH(' 賞与計算 '!D12/1000,源泉賞与表!$P:$P,1))) -> 0 | U9: =IF(' 賞与計算 '!D12<源泉賞与表!$R$10*1000,0,INDEX(源泉賞与表!$B:$B,MATCH(' 賞与計算 '!D12/1000,源泉賞与表!$R:$R,1))) -> 0 | V9: =IF(' 賞与計算 '!D12="","",IF(' 賞与計算 '!D12<源泉賞与表!$T$22*1000,10.21,INDEX(源泉賞与表!$B:$B,MATCH(' 賞与計算 '!D12/1000,源泉賞与表!$T:$T,1)))) ->  | W9: 0 | X9: =IF(' 基本情報 '!G12="",0,ROUND(VLOOKUP(' 基本情報 '!G12,INDIRECT(' 基本情報 '!$D$3&"!$B$12:$I$61"),6,0)-0.1,0)) -> 0 | Y9: =IF(' 基本情報 '!G12="",0,ROUND(VLOOKUP(' 基本情報 '!G12,INDIRECT(' 基本情報 '!$D$3&"!$B$12:$I$61"),8,0)-0.1,0)) -> 0 | Z9: 0 | AA9: =IF(' 基本情報 '!G12="",0,ROUND(IF(OR(' 基本情報 '!G12<税額基本情報!$E$26,' 基本情報 '!G12>税額基本情報!$E$27),AC9,VLOOKUP(' 基本情報 '!G12,INDIRECT(' 基本情報 '!$D$3&"!$B$15:$K$45"),10,0))-0.1,0)) -> 0 | AB9: =IF(' 基本情報 '!G12="",0,ROUND(IF(OR(' 基本情報 '!G12<税額基本情報!$E$26,' 基本情報 '!G12>税額基本情報!$E$27),AD9,VLOOKUP(' 基本情報 '!G12,INDIRECT(' 基本情報 '!$D$3&"!$B$15:$M$45"),12,0))-0.1,0)) -> 0 | AC9: =IF(' 基本情報 '!G12="",0,IF(' 基本情報 '!G12<税額基本情報!$E$26,税額基本情報!$F$26,IF(' 基本情報 '!G12>税額基本情報!$E$27,税額基本情報!$F$27,0))) -> 0 | AD9: =IF(' 基本情報 '!G12="",0,IF(' 基本情報 '!G12<税額基本情報!$E$26,税額基本情報!$G$26,IF(' 基本情報 '!G12>税額基本情報!$E$27,税額基本情報!$G$27,0))) -> 0 | AE9: 0 | AF9: =ROUND(IF(' 賞与計算 '!F12>税額基本情報!$D$33,税額基本情報!$D$33,ROUNDDOWN(' 賞与計算 '!F12,-3))*INDIRECT(' 基本情報 '!$D$3&"!$F$9")*0.5-0.1,0) -> 0 | AG9: =ROUND(IF(' 賞与計算 '!F12>税額基本情報!$D$33,税額基本情報!$D$33,ROUNDDOWN(' 賞与計算 '!F12,-3))*INDIRECT(' 基本情報 '!$D$3&"!$H$9")/2-0.1,0) -> 0 | AH9: 0 | AI9: =ROUND(IF(' 賞与計算 '!F12>税額基本情報!$D$30,税額基本情報!$D$30,ROUNDDOWN(' 賞与計算 '!F12,-3))*INDIRECT(' 基本情報 '!$D$3&"!$J$9")/2-0.1,0) -> 0 | AJ9: =ROUND(IF(' 賞与計算 '!F12>税額基本情報!$D$30,税額基本情報!$D$30,ROUNDDOWN(' 賞与計算 '!F12,-3))*INDIRECT(' 基本情報 '!$D$3&"!$L$9")/2-0.1,0) -> 0
C10: 6 | D10: =' 給与計算 '!C13 ->  | E10: =MAX(IF(' 給与計算 '!L13>=税額基本情報!$D$6,MAX(計算シート!H10:K10),IF(' 給与計算 '!L13<源泉月額表!$B$8,0,VLOOKUP(' 給与計算 '!L13,源泉月額表!$B:$K,IF(' 基本情報 '!E13>=8,10,' 基本情報 '!E13+3),1)))-IF(' 基本情報 '!E13>=8,(' 基本情報 '!E13-7)*税額基本情報!$D$17,0),0) -> 0 | F10: =IF(' 給与計算 '!L13<源泉月額表!$B$8,ROUNDDOWN(' 給与計算 '!L13*税額基本情報!$D$23,0),IF(' 給与計算 '!L13=0,0,IF(' 給与計算 '!L13>=税額基本情報!$D$13,MAX(L10:M10),VLOOKUP(' 給与計算 '!L13,源泉月額表!$B:$L,11,1)))) -> 0 | G10: =MAX(IF(' 給与計算 '!L13<源泉月額表!$B$8,ROUNDDOWN(' 給与計算 '!L13*3.063%,0),IF(' 給与計算 '!L13=0,0,IF(' 給与計算 '!L13>=税額基本情報!$D$13,MAX(L10:M10),VLOOKUP(' 給与計算 '!L13,源泉月額表!$B:$L,11,1))))-' 基本情報 '!E13*税額基本情報!$D$20,0) -> 0 | H10: =IF(AND(' 給与計算 '!L13>=税額基本情報!$D$6,' 給与計算 '!L13<税額基本情報!$D$7),VLOOKUP(' 給与計算 '!L13,税額基本情報!$D$6:$M$9,IF(' 基本情報 '!E13>=8,10,' 基本情報 '!E13+3),1)+ROUNDDOWN((' 給与計算 '!L13-税額基本情報!$D$6)*税額基本情報!$E$6,0),0) -> 0 | I10: =IF(AND(' 給与計算 '!L13>=税額基本情報!$D$7,' 給与計算 '!L13<税額基本情報!$D$8),VLOOKUP(' 給与計算 '!L13,税額基本情報!$D$6:$M$9,IF(' 基本情報 '!E13>=8,10,' 基本情報 '!E13+3),1)+ROUNDDOWN((' 給与計算 '!L13-税額基本情報!$D$7)*税額基本情報!$E$7,0),0) -> 0 | J10: =IF(' 給与計算 '!L13>=税額基本情報!$D$8,VLOOKUP(' 給与計算 '!L13,税額基本情報!$D$6:$M$9,IF(' 基本情報 '!E13>=8,10,' 基本情報 '!E13+3),1)+ROUNDDOWN((' 給与計算 '!L13-税額基本情報!$D$8)*税額基本情報!$E$8,0),0) -> 0 | K10: =IF(' 給与計算 '!L13>=税額基本情報!$D$9,VLOOKUP(' 給与計算 '!L13,税額基本情報!$D$6:$M$9,IF(' 基本情報 '!E13>=8,10,' 基本情報 '!E13+3),1)+ROUNDDOWN((' 給与計算 '!L13-税額基本情報!$D$9)*税額基本情報!$E$9,0),0) -> 0 | L10: =IF(AND(' 給与計算 '!L13>=税額基本情報!$D$13,' 給与計算 '!L13<税額基本情報!$D$14),税額基本情報!$F$13+ROUNDDOWN((' 給与計算 '!L13-税額基本情報!$D$13)*税額基本情報!$E$13,0),0) -> 0 | M10: =IF(' 給与計算 '!L13>=税額基本情報!$D$14,税額基本情報!$F$14+ROUNDDOWN((' 給与計算 '!L13-税額基本情報!$D$14)*税額基本情報!$E$14,0),0) -> 0 | N10: =IF(' 賞与計算 '!D13<源泉賞与表!$D$10*1000,0,INDEX(源泉賞与表!$B:$B,MATCH(' 賞与計算 '!D13/1000,源泉賞与表!$D:$D,1))) -> 0 | O10: =IF(' 賞与計算 '!D13<源泉賞与表!$F$10*1000,0,INDEX(源泉賞与表!$B:$B,MATCH(' 賞与計算 '!D13/1000,源泉賞与表!$F:$F,1))) -> 0 | P10: =IF(' 賞与計算 '!D13<源泉賞与表!$H$10*1000,0,INDEX(源泉賞与表!$B:$B,MATCH(' 賞与計算 '!D13/1000,源泉賞与表!$H:$H,1))) -> 0 | Q10: =IF(' 賞与計算 '!D13<源泉賞与表!$J$10*1000,0,INDEX(源泉賞与表!$B:$B,MATCH(' 賞与計算 '!D13/1000,源泉賞与表!$J:$J,1))) -> 0 | R10: =IF(' 賞与計算 '!D13<源泉賞与表!$L$10*1000,0,INDEX(源泉賞与表!$B:$B,MATCH(' 賞与計算 '!D13/1000,源泉賞与表!$L:$L,1))) -> 0 | S10: =IF(' 賞与計算 '!D13<源泉賞与表!$N$10*1000,0,INDEX(源泉賞与表!$B:$B,MATCH(' 賞与計算 '!D13/1000,源泉賞与表!$N:$N,1))) -> 0 | T10: =IF(' 賞与計算 '!D13<源泉賞与表!$P$10*1000,0,INDEX(源泉賞与表!$B:$B,MATCH(' 賞与計算 '!D13/1000,源泉賞与表!$P:$P,1))) -> 0 | U10: =IF(' 賞与計算 '!D13<源泉賞与表!$R$10*1000,0,INDEX(源泉賞与表!$B:$B,MATCH(' 賞与計算 '!D13/1000,源泉賞与表!$R:$R,1))) -> 0 | V10: =IF(' 賞与計算 '!D13="","",IF(' 賞与計算 '!D13<源泉賞与表!$T$22*1000,10.21,INDEX(源泉賞与表!$B:$B,MATCH(' 賞与計算 '!D13/1000,源泉賞与表!$T:$T,1)))) ->  | W10: 0 | X10: =IF(' 基本情報 '!G13="",0,ROUND(VLOOKUP(' 基本情報 '!G13,INDIRECT(' 基本情報 '!$D$3&"!$B$12:$I$61"),6,0)-0.1,0)) -> 0 | Y10: =IF(' 基本情報 '!G13="",0,ROUND(VLOOKUP(' 基本情報 '!G13,INDIRECT(' 基本情報 '!$D$3&"!$B$12:$I$61"),8,0)-0.1,0)) -> 0 | Z10: 0 | AA10: =IF(' 基本情報 '!G13="",0,ROUND(IF(OR(' 基本情報 '!G13<税額基本情報!$E$26,' 基本情報 '!G13>税額基本情報!$E$27),AC10,VLOOKUP(' 基本情報 '!G13,INDIRECT(' 基本情報 '!$D$3&"!$B$15:$K$45"),10,0))-0.1,0)) -> 0 | AB10: =IF(' 基本情報 '!G13="",0,ROUND(IF(OR(' 基本情報 '!G13<税額基本情報!$E$26,' 基本情報 '!G13>税額基本情報!$E$27),AD10,VLOOKUP(' 基本情報 '!G13,INDIRECT(' 基本情報 '!$D$3&"!$B$15:$M$45"),12,0))-0.1,0)) -> 0 | AC10: =IF(' 基本情報 '!G13="",0,IF(' 基本情報 '!G13<税額基本情報!$E$26,税額基本情報!$F$26,IF(' 基本情報 '!G13>税額基本情報!$E$27,税額基本情報!$F$27,0))) -> 0 | AD10: =IF(' 基本情報 '!G13="",0,IF(' 基本情報 '!G13<税額基本情報!$E$26,税額基本情報!$G$26,IF(' 基本情報 '!G13>税額基本情報!$E$27,税額基本情報!$G$27,0))) -> 0 | AE10: 0 | AF10: =ROUND(IF(' 賞与計算 '!F13>税額基本情報!$D$33,税額基本情報!$D$33,ROUNDDOWN(' 賞与計算 '!F13,-3))*INDIRECT(' 基本情報 '!$D$3&"!$F$9")*0.5-0.1,0) -> 0 | AG10: =ROUND(IF(' 賞与計算 '!F13>税額基本情報!$D$33,税額基本情報!$D$33,ROUNDDOWN(' 賞与計算 '!F13,-3))*INDIRECT(' 基本情報 '!$D$3&"!$H$9")/2-0.1,0) -> 0 | AH10: 0 | AI10: =ROUND(IF(' 賞与計算 '!F13>税額基本情報!$D$30,税額基本情報!$D$30,ROUNDDOWN(' 賞与計算 '!F13,-3))*INDIRECT(' 基本情報 '!$D$3&"!$J$9")/2-0.1,0) -> 0 | AJ10: =ROUND(IF(' 賞与計算 '!F13>税額基本情報!$D$30,税額基本情報!$D$30,ROUNDDOWN(' 賞与計算 '!F13,-3))*INDIRECT(' 基本情報 '!$D$3&"!$L$9")/2-0.1,0) -> 0
C11: 7 | D11: =' 給与計算 '!C14 ->  | E11: =MAX(IF(' 給与計算 '!L14>=税額基本情報!$D$6,MAX(計算シート!H11:K11),IF(' 給与計算 '!L14<源泉月額表!$B$8,0,VLOOKUP(' 給与計算 '!L14,源泉月額表!$B:$K,IF(' 基本情報 '!E14>=8,10,' 基本情報 '!E14+3),1)))-IF(' 基本情報 '!E14>=8,(' 基本情報 '!E14-7)*税額基本情報!$D$17,0),0) -> 0 | F11: =IF(' 給与計算 '!L14<源泉月額表!$B$8,ROUNDDOWN(' 給与計算 '!L14*税額基本情報!$D$23,0),IF(' 給与計算 '!L14=0,0,IF(' 給与計算 '!L14>=税額基本情報!$D$13,MAX(L11:M11),VLOOKUP(' 給与計算 '!L14,源泉月額表!$B:$L,11,1)))) -> 0 | G11: =MAX(IF(' 給与計算 '!L14<源泉月額表!$B$8,ROUNDDOWN(' 給与計算 '!L14*3.063%,0),IF(' 給与計算 '!L14=0,0,IF(' 給与計算 '!L14>=税額基本情報!$D$13,MAX(L11:M11),VLOOKUP(' 給与計算 '!L14,源泉月額表!$B:$L,11,1))))-' 基本情報 '!E14*税額基本情報!$D$20,0) -> 0 | H11: =IF(AND(' 給与計算 '!L14>=税額基本情報!$D$6,' 給与計算 '!L14<税額基本情報!$D$7),VLOOKUP(' 給与計算 '!L14,税額基本情報!$D$6:$M$9,IF(' 基本情報 '!E14>=8,10,' 基本情報 '!E14+3),1)+ROUNDDOWN((' 給与計算 '!L14-税額基本情報!$D$6)*税額基本情報!$E$6,0),0) -> 0 | I11: =IF(AND(' 給与計算 '!L14>=税額基本情報!$D$7,' 給与計算 '!L14<税額基本情報!$D$8),VLOOKUP(' 給与計算 '!L14,税額基本情報!$D$6:$M$9,IF(' 基本情報 '!E14>=8,10,' 基本情報 '!E14+3),1)+ROUNDDOWN((' 給与計算 '!L14-税額基本情報!$D$7)*税額基本情報!$E$7,0),0) -> 0 | J11: =IF(' 給与計算 '!L14>=税額基本情報!$D$8,VLOOKUP(' 給与計算 '!L14,税額基本情報!$D$6:$M$9,IF(' 基本情報 '!E14>=8,10,' 基本情報 '!E14+3),1)+ROUNDDOWN((' 給与計算 '!L14-税額基本情報!$D$8)*税額基本情報!$E$8,0),0) -> 0 | K11: =IF(' 給与計算 '!L14>=税額基本情報!$D$9,VLOOKUP(' 給与計算 '!L14,税額基本情報!$D$6:$M$9,IF(' 基本情報 '!E14>=8,10,' 基本情報 '!E14+3),1)+ROUNDDOWN((' 給与計算 '!L14-税額基本情報!$D$9)*税額基本情報!$E$9,0),0) -> 0 | L11: =IF(AND(' 給与計算 '!L14>=税額基本情報!$D$13,' 給与計算 '!L14<税額基本情報!$D$14),税額基本情報!$F$13+ROUNDDOWN((' 給与計算 '!L14-税額基本情報!$D$13)*税額基本情報!$E$13,0),0) -> 0 | M11: =IF(' 給与計算 '!L14>=税額基本情報!$D$14,税額基本情報!$F$14+ROUNDDOWN((' 給与計算 '!L14-税額基本情報!$D$14)*税額基本情報!$E$14,0),0) -> 0 | N11: =IF(' 賞与計算 '!D14<源泉賞与表!$D$10*1000,0,INDEX(源泉賞与表!$B:$B,MATCH(' 賞与計算 '!D14/1000,源泉賞与表!$D:$D,1))) -> 0 | O11: =IF(' 賞与計算 '!D14<源泉賞与表!$F$10*1000,0,INDEX(源泉賞与表!$B:$B,MATCH(' 賞与計算 '!D14/1000,源泉賞与表!$F:$F,1))) -> 0 | P11: =IF(' 賞与計算 '!D14<源泉賞与表!$H$10*1000,0,INDEX(源泉賞与表!$B:$B,MATCH(' 賞与計算 '!D14/1000,源泉賞与表!$H:$H,1))) -> 0 | Q11: =IF(' 賞与計算 '!D14<源泉賞与表!$J$10*1000,0,INDEX(源泉賞与表!$B:$B,MATCH(' 賞与計算 '!D14/1000,源泉賞与表!$J:$J,1))) -> 0 | R11: =IF(' 賞与計算 '!D14<源泉賞与表!$L$10*1000,0,INDEX(源泉賞与表!$B:$B,MATCH(' 賞与計算 '!D14/1000,源泉賞与表!$L:$L,1))) -> 0 | S11: =IF(' 賞与計算 '!D14<源泉賞与表!$N$10*1000,0,INDEX(源泉賞与表!$B:$B,MATCH(' 賞与計算 '!D14/1000,源泉賞与表!$N:$N,1))) -> 0 | T11: =IF(' 賞与計算 '!D14<源泉賞与表!$P$10*1000,0,INDEX(源泉賞与表!$B:$B,MATCH(' 賞与計算 '!D14/1000,源泉賞与表!$P:$P,1))) -> 0 | U11: =IF(' 賞与計算 '!D14<源泉賞与表!$R$10*1000,0,INDEX(源泉賞与表!$B:$B,MATCH(' 賞与計算 '!D14/1000,源泉賞与表!$R:$R,1))) -> 0 | V11: =IF(' 賞与計算 '!D14="","",IF(' 賞与計算 '!D14<源泉賞与表!$T$22*1000,10.21,INDEX(源泉賞与表!$B:$B,MATCH(' 賞与計算 '!D14/1000,源泉賞与表!$T:$T,1)))) ->  | W11: 0 | X11: =IF(' 基本情報 '!G14="",0,ROUND(VLOOKUP(' 基本情報 '!G14,INDIRECT(' 基本情報 '!$D$3&"!$B$12:$I$61"),6,0)-0.1,0)) -> 0 | Y11: =IF(' 基本情報 '!G14="",0,ROUND(VLOOKUP(' 基本情報 '!G14,INDIRECT(' 基本情報 '!$D$3&"!$B$12:$I$61"),8,0)-0.1,0)) -> 0 | Z11: 0 | AA11: =IF(' 基本情報 '!G14="",0,ROUND(IF(OR(' 基本情報 '!G14<税額基本情報!$E$26,' 基本情報 '!G14>税額基本情報!$E$27),AC11,VLOOKUP(' 基本情報 '!G14,INDIRECT(' 基本情報 '!$D$3&"!$B$15:$K$45"),10,0))-0.1,0)) -> 0 | AB11: =IF(' 基本情報 '!G14="",0,ROUND(IF(OR(' 基本情報 '!G14<税額基本情報!$E$26,' 基本情報 '!G14>税額基本情報!$E$27),AD11,VLOOKUP(' 基本情報 '!G14,INDIRECT(' 基本情報 '!$D$3&"!$B$15:$M$45"),12,0))-0.1,0)) -> 0 | AC11: =IF(' 基本情報 '!G14="",0,IF(' 基本情報 '!G14<税額基本情報!$E$26,税額基本情報!$F$26,IF(' 基本情報 '!G14>税額基本情報!$E$27,税額基本情報!$F$27,0))) -> 0 | AD11: =IF(' 基本情報 '!G14="",0,IF(' 基本情報 '!G14<税額基本情報!$E$26,税額基本情報!$G$26,IF(' 基本情報 '!G14>税額基本情報!$E$27,税額基本情報!$G$27,0))) -> 0 | AE11: 0 | AF11: =ROUND(IF(' 賞与計算 '!F14>税額基本情報!$D$33,税額基本情報!$D$33,ROUNDDOWN(' 賞与計算 '!F14,-3))*INDIRECT(' 基本情報 '!$D$3&"!$F$9")*0.5-0.1,0) -> 0 | AG11: =ROUND(IF(' 賞与計算 '!F14>税額基本情報!$D$33,税額基本情報!$D$33,ROUNDDOWN(' 賞与計算 '!F14,-3))*INDIRECT(' 基本情報 '!$D$3&"!$H$9")/2-0.1,0) -> 0 | AH11: 0 | AI11: =ROUND(IF(' 賞与計算 '!F14>税額基本情報!$D$30,税額基本情報!$D$30,ROUNDDOWN(' 賞与計算 '!F14,-3))*INDIRECT(' 基本情報 '!$D$3&"!$J$9")/2-0.1,0) -> 0 | AJ11: =ROUND(IF(' 賞与計算 '!F14>税額基本情報!$D$30,税額基本情報!$D$30,ROUNDDOWN(' 賞与計算 '!F14,-3))*INDIRECT(' 基本情報 '!$D$3&"!$L$9")/2-0.1,0) -> 0
C12: 8 | D12: =' 給与計算 '!C15 ->  | E12: =MAX(IF(' 給与計算 '!L15>=税額基本情報!$D$6,MAX(計算シート!H12:K12),IF(' 給与計算 '!L15<源泉月額表!$B$8,0,VLOOKUP(' 給与計算 '!L15,源泉月額表!$B:$K,IF(' 基本情報 '!E15>=8,10,' 基本情報 '!E15+3),1)))-IF(' 基本情報 '!E15>=8,(' 基本情報 '!E15-7)*税額基本情報!$D$17,0),0) -> 0 | F12: =IF(' 給与計算 '!L15<源泉月額表!$B$8,ROUNDDOWN(' 給与計算 '!L15*税額基本情報!$D$23,0),IF(' 給与計算 '!L15=0,0,IF(' 給与計算 '!L15>=税額基本情報!$D$13,MAX(L12:M12),VLOOKUP(' 給与計算 '!L15,源泉月額表!$B:$L,11,1)))) -> 0 | G12: =MAX(IF(' 給与計算 '!L15<源泉月額表!$B$8,ROUNDDOWN(' 給与計算 '!L15*3.063%,0),IF(' 給与計算 '!L15=0,0,IF(' 給与計算 '!L15>=税額基本情報!$D$13,MAX(L12:M12),VLOOKUP(' 給与計算 '!L15,源泉月額表!$B:$L,11,1))))-' 基本情報 '!E15*税額基本情報!$D$20,0) -> 0 | H12: =IF(AND(' 給与計算 '!L15>=税額基本情報!$D$6,' 給与計算 '!L15<税額基本情報!$D$7),VLOOKUP(' 給与計算 '!L15,税額基本情報!$D$6:$M$9,IF(' 基本情報 '!E15>=8,10,' 基本情報 '!E15+3),1)+ROUNDDOWN((' 給与計算 '!L15-税額基本情報!$D$6)*税額基本情報!$E$6,0),0) -> 0 | I12: =IF(AND(' 給与計算 '!L15>=税額基本情報!$D$7,' 給与計算 '!L15<税額基本情報!$D$8),VLOOKUP(' 給与計算 '!L15,税額基本情報!$D$6:$M$9,IF(' 基本情報 '!E15>=8,10,' 基本情報 '!E15+3),1)+ROUNDDOWN((' 給与計算 '!L15-税額基本情報!$D$7)*税額基本情報!$E$7,0),0) -> 0 | J12: =IF(' 給与計算 '!L15>=税額基本情報!$D$8,VLOOKUP(' 給与計算 '!L15,税額基本情報!$D$6:$M$9,IF(' 基本情報 '!E15>=8,10,' 基本情報 '!E15+3),1)+ROUNDDOWN((' 給与計算 '!L15-税額基本情報!$D$8)*税額基本情報!$E$8,0),0) -> 0 | K12: =IF(' 給与計算 '!L15>=税額基本情報!$D$9,VLOOKUP(' 給与計算 '!L15,税額基本情報!$D$6:$M$9,IF(' 基本情報 '!E15>=8,10,' 基本情報 '!E15+3),1)+ROUNDDOWN((' 給与計算 '!L15-税額基本情報!$D$9)*税額基本情報!$E$9,0),0) -> 0 | L12: =IF(AND(' 給与計算 '!L15>=税額基本情報!$D$13,' 給与計算 '!L15<税額基本情報!$D$14),税額基本情報!$F$13+ROUNDDOWN((' 給与計算 '!L15-税額基本情報!$D$13)*税額基本情報!$E$13,0),0) -> 0 | M12: =IF(' 給与計算 '!L15>=税額基本情報!$D$14,税額基本情報!$F$14+ROUNDDOWN((' 給与計算 '!L15-税額基本情報!$D$14)*税額基本情報!$E$14,0),0) -> 0 | N12: =IF(' 賞与計算 '!D15<源泉賞与表!$D$10*1000,0,INDEX(源泉賞与表!$B:$B,MATCH(' 賞与計算 '!D15/1000,源泉賞与表!$D:$D,1))) -> 0 | O12: =IF(' 賞与計算 '!D15<源泉賞与表!$F$10*1000,0,INDEX(源泉賞与表!$B:$B,MATCH(' 賞与計算 '!D15/1000,源泉賞与表!$F:$F,1))) -> 0 | P12: =IF(' 賞与計算 '!D15<源泉賞与表!$H$10*1000,0,INDEX(源泉賞与表!$B:$B,MATCH(' 賞与計算 '!D15/1000,源泉賞与表!$H:$H,1))) -> 0 | Q12: =IF(' 賞与計算 '!D15<源泉賞与表!$J$10*1000,0,INDEX(源泉賞与表!$B:$B,MATCH(' 賞与計算 '!D15/1000,源泉賞与表!$J:$J,1))) -> 0 | R12: =IF(' 賞与計算 '!D15<源泉賞与表!$L$10*1000,0,INDEX(源泉賞与表!$B:$B,MATCH(' 賞与計算 '!D15/1000,源泉賞与表!$L:$L,1))) -> 0 | S12: =IF(' 賞与計算 '!D15<源泉賞与表!$N$10*1000,0,INDEX(源泉賞与表!$B:$B,MATCH(' 賞与計算 '!D15/1000,源泉賞与表!$N:$N,1))) -> 0 | T12: =IF(' 賞与計算 '!D15<源泉賞与表!$P$10*1000,0,INDEX(源泉賞与表!$B:$B,MATCH(' 賞与計算 '!D15/1000,源泉賞与表!$P:$P,1))) -> 0 | U12: =IF(' 賞与計算 '!D15<源泉賞与表!$R$10*1000,0,INDEX(源泉賞与表!$B:$B,MATCH(' 賞与計算 '!D15/1000,源泉賞与表!$R:$R,1))) -> 0 | V12: =IF(' 賞与計算 '!D15="","",IF(' 賞与計算 '!D15<源泉賞与表!$T$22*1000,10.21,INDEX(源泉賞与表!$B:$B,MATCH(' 賞与計算 '!D15/1000,源泉賞与表!$T:$T,1)))) ->  | W12: 0 | X12: =IF(' 基本情報 '!G15="",0,ROUND(VLOOKUP(' 基本情報 '!G15,INDIRECT(' 基本情報 '!$D$3&"!$B$12:$I$61"),6,0)-0.1,0)) -> 0 | Y12: =IF(' 基本情報 '!G15="",0,ROUND(VLOOKUP(' 基本情報 '!G15,INDIRECT(' 基本情報 '!$D$3&"!$B$12:$I$61"),8,0)-0.1,0)) -> 0 | Z12: 0 | AA12: =IF(' 基本情報 '!G15="",0,ROUND(IF(OR(' 基本情報 '!G15<税額基本情報!$E$26,' 基本情報 '!G15>税額基本情報!$E$27),AC12,VLOOKUP(' 基本情報 '!G15,INDIRECT(' 基本情報 '!$D$3&"!$B$15:$K$45"),10,0))-0.1,0)) -> 0 | AB12: =IF(' 基本情報 '!G15="",0,ROUND(IF(OR(' 基本情報 '!G15<税額基本情報!$E$26,' 基本情報 '!G15>税額基本情報!$E$27),AD12,VLOOKUP(' 基本情報 '!G15,INDIRECT(' 基本情報 '!$D$3&"!$B$15:$M$45"),12,0))-0.1,0)) -> 0 | AC12: =IF(' 基本情報 '!G15="",0,IF(' 基本情報 '!G15<税額基本情報!$E$26,税額基本情報!$F$26,IF(' 基本情報 '!G15>税額基本情報!$E$27,税額基本情報!$F$27,0))) -> 0 | AD12: =IF(' 基本情報 '!G15="",0,IF(' 基本情報 '!G15<税額基本情報!$E$26,税額基本情報!$G$26,IF(' 基本情報 '!G15>税額基本情報!$E$27,税額基本情報!$G$27,0))) -> 0 | AE12: 0 | AF12: =ROUND(IF(' 賞与計算 '!F15>税額基本情報!$D$33,税額基本情報!$D$33,ROUNDDOWN(' 賞与計算 '!F15,-3))*INDIRECT(' 基本情報 '!$D$3&"!$F$9")*0.5-0.1,0) -> 0 | AG12: =ROUND(IF(' 賞与計算 '!F15>税額基本情報!$D$33,税額基本情報!$D$33,ROUNDDOWN(' 賞与計算 '!F15,-3))*INDIRECT(' 基本情報 '!$D$3&"!$H$9")/2-0.1,0) -> 0 | AH12: 0 | AI12: =ROUND(IF(' 賞与計算 '!F15>税額基本情報!$D$30,税額基本情報!$D$30,ROUNDDOWN(' 賞与計算 '!F15,-3))*INDIRECT(' 基本情報 '!$D$3&"!$J$9")/2-0.1,0) -> 0 | AJ12: =ROUND(IF(' 賞与計算 '!F15>税額基本情報!$D$30,税額基本情報!$D$30,ROUNDDOWN(' 賞与計算 '!F15,-3))*INDIRECT(' 基本情報 '!$D$3&"!$L$9")/2-0.1,0) -> 0
C13: 9 | D13: =' 給与計算 '!C16 ->  | E13: =MAX(IF(' 給与計算 '!L16>=税額基本情報!$D$6,MAX(計算シート!H13:K13),IF(' 給与計算 '!L16<源泉月額表!$B$8,0,VLOOKUP(' 給与計算 '!L16,源泉月額表!$B:$K,IF(' 基本情報 '!E16>=8,10,' 基本情報 '!E16+3),1)))-IF(' 基本情報 '!E16>=8,(' 基本情報 '!E16-7)*税額基本情報!$D$17,0),0) -> 0 | F13: =IF(' 給与計算 '!L16<源泉月額表!$B$8,ROUNDDOWN(' 給与計算 '!L16*税額基本情報!$D$23,0),IF(' 給与計算 '!L16=0,0,IF(' 給与計算 '!L16>=税額基本情報!$D$13,MAX(L13:M13),VLOOKUP(' 給与計算 '!L16,源泉月額表!$B:$L,11,1)))) -> 0 | G13: =MAX(IF(' 給与計算 '!L16<源泉月額表!$B$8,ROUNDDOWN(' 給与計算 '!L16*3.063%,0),IF(' 給与計算 '!L16=0,0,IF(' 給与計算 '!L16>=税額基本情報!$D$13,MAX(L13:M13),VLOOKUP(' 給与計算 '!L16,源泉月額表!$B:$L,11,1))))-' 基本情報 '!E16*税額基本情報!$D$20,0) -> 0 | H13: =IF(AND(' 給与計算 '!L16>=税額基本情報!$D$6,' 給与計算 '!L16<税額基本情報!$D$7),VLOOKUP(' 給与計算 '!L16,税額基本情報!$D$6:$M$9,IF(' 基本情報 '!E16>=8,10,' 基本情報 '!E16+3),1)+ROUNDDOWN((' 給与計算 '!L16-税額基本情報!$D$6)*税額基本情報!$E$6,0),0) -> 0 | I13: =IF(AND(' 給与計算 '!L16>=税額基本情報!$D$7,' 給与計算 '!L16<税額基本情報!$D$8),VLOOKUP(' 給与計算 '!L16,税額基本情報!$D$6:$M$9,IF(' 基本情報 '!E16>=8,10,' 基本情報 '!E16+3),1)+ROUNDDOWN((' 給与計算 '!L16-税額基本情報!$D$7)*税額基本情報!$E$7,0),0) -> 0 | J13: =IF(' 給与計算 '!L16>=税額基本情報!$D$8,VLOOKUP(' 給与計算 '!L16,税額基本情報!$D$6:$M$9,IF(' 基本情報 '!E16>=8,10,' 基本情報 '!E16+3),1)+ROUNDDOWN((' 給与計算 '!L16-税額基本情報!$D$8)*税額基本情報!$E$8,0),0) -> 0 | K13: =IF(' 給与計算 '!L16>=税額基本情報!$D$9,VLOOKUP(' 給与計算 '!L16,税額基本情報!$D$6:$M$9,IF(' 基本情報 '!E16>=8,10,' 基本情報 '!E16+3),1)+ROUNDDOWN((' 給与計算 '!L16-税額基本情報!$D$9)*税額基本情報!$E$9,0),0) -> 0 | L13: =IF(AND(' 給与計算 '!L16>=税額基本情報!$D$13,' 給与計算 '!L16<税額基本情報!$D$14),税額基本情報!$F$13+ROUNDDOWN((' 給与計算 '!L16-税額基本情報!$D$13)*税額基本情報!$E$13,0),0) -> 0 | M13: =IF(' 給与計算 '!L16>=税額基本情報!$D$14,税額基本情報!$F$14+ROUNDDOWN((' 給与計算 '!L16-税額基本情報!$D$14)*税額基本情報!$E$14,0),0) -> 0 | N13: =IF(' 賞与計算 '!D16<源泉賞与表!$D$10*1000,0,INDEX(源泉賞与表!$B:$B,MATCH(' 賞与計算 '!D16/1000,源泉賞与表!$D:$D,1))) -> 0 | O13: =IF(' 賞与計算 '!D16<源泉賞与表!$F$10*1000,0,INDEX(源泉賞与表!$B:$B,MATCH(' 賞与計算 '!D16/1000,源泉賞与表!$F:$F,1))) -> 0 | P13: =IF(' 賞与計算 '!D16<源泉賞与表!$H$10*1000,0,INDEX(源泉賞与表!$B:$B,MATCH(' 賞与計算 '!D16/1000,源泉賞与表!$H:$H,1))) -> 0 | Q13: =IF(' 賞与計算 '!D16<源泉賞与表!$J$10*1000,0,INDEX(源泉賞与表!$B:$B,MATCH(' 賞与計算 '!D16/1000,源泉賞与表!$J:$J,1))) -> 0 | R13: =IF(' 賞与計算 '!D16<源泉賞与表!$L$10*1000,0,INDEX(源泉賞与表!$B:$B,MATCH(' 賞与計算 '!D16/1000,源泉賞与表!$L:$L,1))) -> 0 | S13: =IF(' 賞与計算 '!D16<源泉賞与表!$N$10*1000,0,INDEX(源泉賞与表!$B:$B,MATCH(' 賞与計算 '!D16/1000,源泉賞与表!$N:$N,1))) -> 0 | T13: =IF(' 賞与計算 '!D16<源泉賞与表!$P$10*1000,0,INDEX(源泉賞与表!$B:$B,MATCH(' 賞与計算 '!D16/1000,源泉賞与表!$P:$P,1))) -> 0 | U13: =IF(' 賞与計算 '!D16<源泉賞与表!$R$10*1000,0,INDEX(源泉賞与表!$B:$B,MATCH(' 賞与計算 '!D16/1000,源泉賞与表!$R:$R,1))) -> 0 | V13: =IF(' 賞与計算 '!D16="","",IF(' 賞与計算 '!D16<源泉賞与表!$T$22*1000,10.21,INDEX(源泉賞与表!$B:$B,MATCH(' 賞与計算 '!D16/1000,源泉賞与表!$T:$T,1)))) ->  | W13: 0 | X13: =IF(' 基本情報 '!G16="",0,ROUND(VLOOKUP(' 基本情報 '!G16,INDIRECT(' 基本情報 '!$D$3&"!$B$12:$I$61"),6,0)-0.1,0)) -> 0 | Y13: =IF(' 基本情報 '!G16="",0,ROUND(VLOOKUP(' 基本情報 '!G16,INDIRECT(' 基本情報 '!$D$3&"!$B$12:$I$61"),8,0)-0.1,0)) -> 0 | Z13: 0 | AA13: =IF(' 基本情報 '!G16="",0,ROUND(IF(OR(' 基本情報 '!G16<税額基本情報!$E$26,' 基本情報 '!G16>税額基本情報!$E$27),AC13,VLOOKUP(' 基本情報 '!G16,INDIRECT(' 基本情報 '!$D$3&"!$B$15:$K$45"),10,0))-0.1,0)) -> 0 | AB13: =IF(' 基本情報 '!G16="",0,ROUND(IF(OR(' 基本情報 '!G16<税額基本情報!$E$26,' 基本情報 '!G16>税額基本情報!$E$27),AD13,VLOOKUP(' 基本情報 '!G16,INDIRECT(' 基本情報 '!$D$3&"!$B$15:$M$45"),12,0))-0.1,0)) -> 0 | AC13: =IF(' 基本情報 '!G16="",0,IF(' 基本情報 '!G16<税額基本情報!$E$26,税額基本情報!$F$26,IF(' 基本情報 '!G16>税額基本情報!$E$27,税額基本情報!$F$27,0))) -> 0 | AD13: =IF(' 基本情報 '!G16="",0,IF(' 基本情報 '!G16<税額基本情報!$E$26,税額基本情報!$G$26,IF(' 基本情報 '!G16>税額基本情報!$E$27,税額基本情報!$G$27,0))) -> 0 | AE13: 0 | AF13: =ROUND(IF(' 賞与計算 '!F16>税額基本情報!$D$33,税額基本情報!$D$33,ROUNDDOWN(' 賞与計算 '!F16,-3))*INDIRECT(' 基本情報 '!$D$3&"!$F$9")*0.5-0.1,0) -> 0 | AG13: =ROUND(IF(' 賞与計算 '!F16>税額基本情報!$D$33,税額基本情報!$D$33,ROUNDDOWN(' 賞与計算 '!F16,-3))*INDIRECT(' 基本情報 '!$D$3&"!$H$9")/2-0.1,0) -> 0 | AH13: 0 | AI13: =ROUND(IF(' 賞与計算 '!F16>税額基本情報!$D$30,税額基本情報!$D$30,ROUNDDOWN(' 賞与計算 '!F16,-3))*INDIRECT(' 基本情報 '!$D$3&"!$J$9")/2-0.1,0) -> 0 | AJ13: =ROUND(IF(' 賞与計算 '!F16>税額基本情報!$D$30,税額基本情報!$D$30,ROUNDDOWN(' 賞与計算 '!F16,-3))*INDIRECT(' 基本情報 '!$D$3&"!$L$9")/2-0.1,0) -> 0
C14: 10 | D14: =' 給与計算 '!C17 ->  | E14: =MAX(IF(' 給与計算 '!L17>=税額基本情報!$D$6,MAX(計算シート!H14:K14),IF(' 給与計算 '!L17<源泉月額表!$B$8,0,VLOOKUP(' 給与計算 '!L17,源泉月額表!$B:$K,IF(' 基本情報 '!E17>=8,10,' 基本情報 '!E17+3),1)))-IF(' 基本情報 '!E17>=8,(' 基本情報 '!E17-7)*税額基本情報!$D$17,0),0) -> 0 | F14: =IF(' 給与計算 '!L17<源泉月額表!$B$8,ROUNDDOWN(' 給与計算 '!L17*税額基本情報!$D$23,0),IF(' 給与計算 '!L17=0,0,IF(' 給与計算 '!L17>=税額基本情報!$D$13,MAX(L14:M14),VLOOKUP(' 給与計算 '!L17,源泉月額表!$B:$L,11,1)))) -> 0 | G14: =MAX(IF(' 給与計算 '!L17<源泉月額表!$B$8,ROUNDDOWN(' 給与計算 '!L17*3.063%,0),IF(' 給与計算 '!L17=0,0,IF(' 給与計算 '!L17>=税額基本情報!$D$13,MAX(L14:M14),VLOOKUP(' 給与計算 '!L17,源泉月額表!$B:$L,11,1))))-' 基本情報 '!E17*税額基本情報!$D$20,0) -> 0 | H14: =IF(AND(' 給与計算 '!L17>=税額基本情報!$D$6,' 給与計算 '!L17<税額基本情報!$D$7),VLOOKUP(' 給与計算 '!L17,税額基本情報!$D$6:$M$9,IF(' 基本情報 '!E17>=8,10,' 基本情報 '!E17+3),1)+ROUNDDOWN((' 給与計算 '!L17-税額基本情報!$D$6)*税額基本情報!$E$6,0),0) -> 0 | I14: =IF(AND(' 給与計算 '!L17>=税額基本情報!$D$7,' 給与計算 '!L17<税額基本情報!$D$8),VLOOKUP(' 給与計算 '!L17,税額基本情報!$D$6:$M$9,IF(' 基本情報 '!E17>=8,10,' 基本情報 '!E17+3),1)+ROUNDDOWN((' 給与計算 '!L17-税額基本情報!$D$7)*税額基本情報!$E$7,0),0) -> 0 | J14: =IF(' 給与計算 '!L17>=税額基本情報!$D$8,VLOOKUP(' 給与計算 '!L17,税額基本情報!$D$6:$M$9,IF(' 基本情報 '!E17>=8,10,' 基本情報 '!E17+3),1)+ROUNDDOWN((' 給与計算 '!L17-税額基本情報!$D$8)*税額基本情報!$E$8,0),0) -> 0 | K14: =IF(' 給与計算 '!L17>=税額基本情報!$D$9,VLOOKUP(' 給与計算 '!L17,税額基本情報!$D$6:$M$9,IF(' 基本情報 '!E17>=8,10,' 基本情報 '!E17+3),1)+ROUNDDOWN((' 給与計算 '!L17-税額基本情報!$D$9)*税額基本情報!$E$9,0),0) -> 0 | L14: =IF(AND(' 給与計算 '!L17>=税額基本情報!$D$13,' 給与計算 '!L17<税額基本情報!$D$14),税額基本情報!$F$13+ROUNDDOWN((' 給与計算 '!L17-税額基本情報!$D$13)*税額基本情報!$E$13,0),0) -> 0 | M14: =IF(' 給与計算 '!L17>=税額基本情報!$D$14,税額基本情報!$F$14+ROUNDDOWN((' 給与計算 '!L17-税額基本情報!$D$14)*税額基本情報!$E$14,0),0) -> 0 | N14: =IF(' 賞与計算 '!D17<源泉賞与表!$D$10*1000,0,INDEX(源泉賞与表!$B:$B,MATCH(' 賞与計算 '!D17/1000,源泉賞与表!$D:$D,1))) -> 0 | O14: =IF(' 賞与計算 '!D17<源泉賞与表!$F$10*1000,0,INDEX(源泉賞与表!$B:$B,MATCH(' 賞与計算 '!D17/1000,源泉賞与表!$F:$F,1))) -> 0 | P14: =IF(' 賞与計算 '!D17<源泉賞与表!$H$10*1000,0,INDEX(源泉賞与表!$B:$B,MATCH(' 賞与計算 '!D17/1000,源泉賞与表!$H:$H,1))) -> 0 | Q14: =IF(' 賞与計算 '!D17<源泉賞与表!$J$10*1000,0,INDEX(源泉賞与表!$B:$B,MATCH(' 賞与計算 '!D17/1000,源泉賞与表!$J:$J,1))) -> 0 | R14: =IF(' 賞与計算 '!D17<源泉賞与表!$L$10*1000,0,INDEX(源泉賞与表!$B:$B,MATCH(' 賞与計算 '!D17/1000,源泉賞与表!$L:$L,1))) -> 0 | S14: =IF(' 賞与計算 '!D17<源泉賞与表!$N$10*1000,0,INDEX(源泉賞与表!$B:$B,MATCH(' 賞与計算 '!D17/1000,源泉賞与表!$N:$N,1))) -> 0 | T14: =IF(' 賞与計算 '!D17<源泉賞与表!$P$10*1000,0,INDEX(源泉賞与表!$B:$B,MATCH(' 賞与計算 '!D17/1000,源泉賞与表!$P:$P,1))) -> 0 | U14: =IF(' 賞与計算 '!D17<源泉賞与表!$R$10*1000,0,INDEX(源泉賞与表!$B:$B,MATCH(' 賞与計算 '!D17/1000,源泉賞与表!$R:$R,1))) -> 0 | V14: =IF(' 賞与計算 '!D17="","",IF(' 賞与計算 '!D17<源泉賞与表!$T$22*1000,10.21,INDEX(源泉賞与表!$B:$B,MATCH(' 賞与計算 '!D17/1000,源泉賞与表!$T:$T,1)))) ->  | W14: 0 | X14: =IF(' 基本情報 '!G17="",0,ROUND(VLOOKUP(' 基本情報 '!G17,INDIRECT(' 基本情報 '!$D$3&"!$B$12:$I$61"),6,0)-0.1,0)) -> 0 | Y14: =IF(' 基本情報 '!G17="",0,ROUND(VLOOKUP(' 基本情報 '!G17,INDIRECT(' 基本情報 '!$D$3&"!$B$12:$I$61"),8,0)-0.1,0)) -> 0 | Z14: 0 | AA14: =IF(' 基本情報 '!G17="",0,ROUND(IF(OR(' 基本情報 '!G17<税額基本情報!$E$26,' 基本情報 '!G17>税額基本情報!$E$27),AC14,VLOOKUP(' 基本情報 '!G17,INDIRECT(' 基本情報 '!$D$3&"!$B$15:$K$45"),10,0))-0.1,0)) -> 0 | AB14: =IF(' 基本情報 '!G17="",0,ROUND(IF(OR(' 基本情報 '!G17<税額基本情報!$E$26,' 基本情報 '!G17>税額基本情報!$E$27),AD14,VLOOKUP(' 基本情報 '!G17,INDIRECT(' 基本情報 '!$D$3&"!$B$15:$M$45"),12,0))-0.1,0)) -> 0 | AC14: =IF(' 基本情報 '!G17="",0,IF(' 基本情報 '!G17<税額基本情報!$E$26,税額基本情報!$F$26,IF(' 基本情報 '!G17>税額基本情報!$E$27,税額基本情報!$F$27,0))) -> 0 | AD14: =IF(' 基本情報 '!G17="",0,IF(' 基本情報 '!G17<税額基本情報!$E$26,税額基本情報!$G$26,IF(' 基本情報 '!G17>税額基本情報!$E$27,税額基本情報!$G$27,0))) -> 0 | AE14: 0 | AF14: =ROUND(IF(' 賞与計算 '!F17>税額基本情報!$D$33,税額基本情報!$D$33,ROUNDDOWN(' 賞与計算 '!F17,-3))*INDIRECT(' 基本情報 '!$D$3&"!$F$9")*0.5-0.1,0) -> 0 | AG14: =ROUND(IF(' 賞与計算 '!F17>税額基本情報!$D$33,税額基本情報!$D$33,ROUNDDOWN(' 賞与計算 '!F17,-3))*INDIRECT(' 基本情報 '!$D$3&"!$H$9")/2-0.1,0) -> 0 | AH14: 0 | AI14: =ROUND(IF(' 賞与計算 '!F17>税額基本情報!$D$30,税額基本情報!$D$30,ROUNDDOWN(' 賞与計算 '!F17,-3))*INDIRECT(' 基本情報 '!$D$3&"!$J$9")/2-0.1,0) -> 0 | AJ14: =ROUND(IF(' 賞与計算 '!F17>税額基本情報!$D$30,税額基本情報!$D$30,ROUNDDOWN(' 賞与計算 '!F17,-3))*INDIRECT(' 基本情報 '!$D$3&"!$L$9")/2-0.1,0) -> 0
C15: 11 | D15: =' 給与計算 '!C18 ->  | E15: =MAX(IF(' 給与計算 '!L18>=税額基本情報!$D$6,MAX(計算シート!H15:K15),IF(' 給与計算 '!L18<源泉月額表!$B$8,0,VLOOKUP(' 給与計算 '!L18,源泉月額表!$B:$K,IF(' 基本情報 '!E18>=8,10,' 基本情報 '!E18+3),1)))-IF(' 基本情報 '!E18>=8,(' 基本情報 '!E18-7)*税額基本情報!$D$17,0),0) -> 0 | F15: =IF(' 給与計算 '!L18<源泉月額表!$B$8,ROUNDDOWN(' 給与計算 '!L18*税額基本情報!$D$23,0),IF(' 給与計算 '!L18=0,0,IF(' 給与計算 '!L18>=税額基本情報!$D$13,MAX(L15:M15),VLOOKUP(' 給与計算 '!L18,源泉月額表!$B:$L,11,1)))) -> 0 | G15: =MAX(IF(' 給与計算 '!L18<源泉月額表!$B$8,ROUNDDOWN(' 給与計算 '!L18*3.063%,0),IF(' 給与計算 '!L18=0,0,IF(' 給与計算 '!L18>=税額基本情報!$D$13,MAX(L15:M15),VLOOKUP(' 給与計算 '!L18,源泉月額表!$B:$L,11,1))))-' 基本情報 '!E18*税額基本情報!$D$20,0) -> 0 | H15: =IF(AND(' 給与計算 '!L18>=税額基本情報!$D$6,' 給与計算 '!L18<税額基本情報!$D$7),VLOOKUP(' 給与計算 '!L18,税額基本情報!$D$6:$M$9,IF(' 基本情報 '!E18>=8,10,' 基本情報 '!E18+3),1)+ROUNDDOWN((' 給与計算 '!L18-税額基本情報!$D$6)*税額基本情報!$E$6,0),0) -> 0 | I15: =IF(AND(' 給与計算 '!L18>=税額基本情報!$D$7,' 給与計算 '!L18<税額基本情報!$D$8),VLOOKUP(' 給与計算 '!L18,税額基本情報!$D$6:$M$9,IF(' 基本情報 '!E18>=8,10,' 基本情報 '!E18+3),1)+ROUNDDOWN((' 給与計算 '!L18-税額基本情報!$D$7)*税額基本情報!$E$7,0),0) -> 0 | J15: =IF(' 給与計算 '!L18>=税額基本情報!$D$8,VLOOKUP(' 給与計算 '!L18,税額基本情報!$D$6:$M$9,IF(' 基本情報 '!E18>=8,10,' 基本情報 '!E18+3),1)+ROUNDDOWN((' 給与計算 '!L18-税額基本情報!$D$8)*税額基本情報!$E$8,0),0) -> 0 | K15: =IF(' 給与計算 '!L18>=税額基本情報!$D$9,VLOOKUP(' 給与計算 '!L18,税額基本情報!$D$6:$M$9,IF(' 基本情報 '!E18>=8,10,' 基本情報 '!E18+3),1)+ROUNDDOWN((' 給与計算 '!L18-税額基本情報!$D$9)*税額基本情報!$E$9,0),0) -> 0 | L15: =IF(AND(' 給与計算 '!L18>=税額基本情報!$D$13,' 給与計算 '!L18<税額基本情報!$D$14),税額基本情報!$F$13+ROUNDDOWN((' 給与計算 '!L18-税額基本情報!$D$13)*税額基本情報!$E$13,0),0) -> 0 | M15: =IF(' 給与計算 '!L18>=税額基本情報!$D$14,税額基本情報!$F$14+ROUNDDOWN((' 給与計算 '!L18-税額基本情報!$D$14)*税額基本情報!$E$14,0),0) -> 0 | N15: =IF(' 賞与計算 '!D18<源泉賞与表!$D$10*1000,0,INDEX(源泉賞与表!$B:$B,MATCH(' 賞与計算 '!D18/1000,源泉賞与表!$D:$D,1))) -> 0 | O15: =IF(' 賞与計算 '!D18<源泉賞与表!$F$10*1000,0,INDEX(源泉賞与表!$B:$B,MATCH(' 賞与計算 '!D18/1000,源泉賞与表!$F:$F,1))) -> 0 | P15: =IF(' 賞与計算 '!D18<源泉賞与表!$H$10*1000,0,INDEX(源泉賞与表!$B:$B,MATCH(' 賞与計算 '!D18/1000,源泉賞与表!$H:$H,1))) -> 0 | Q15: =IF(' 賞与計算 '!D18<源泉賞与表!$J$10*1000,0,INDEX(源泉賞与表!$B:$B,MATCH(' 賞与計算 '!D18/1000,源泉賞与表!$J:$J,1))) -> 0 | R15: =IF(' 賞与計算 '!D18<源泉賞与表!$L$10*1000,0,INDEX(源泉賞与表!$B:$B,MATCH(' 賞与計算 '!D18/1000,源泉賞与表!$L:$L,1))) -> 0 | S15: =IF(' 賞与計算 '!D18<源泉賞与表!$N$10*1000,0,INDEX(源泉賞与表!$B:$B,MATCH(' 賞与計算 '!D18/1000,源泉賞与表!$N:$N,1))) -> 0 | T15: =IF(' 賞与計算 '!D18<源泉賞与表!$P$10*1000,0,INDEX(源泉賞与表!$B:$B,MATCH(' 賞与計算 '!D18/1000,源泉賞与表!$P:$P,1))) -> 0 | U15: =IF(' 賞与計算 '!D18<源泉賞与表!$R$10*1000,0,INDEX(源泉賞与表!$B:$B,MATCH(' 賞与計算 '!D18/1000,源泉賞与表!$R:$R,1))) -> 0 | V15: =IF(' 賞与計算 '!D18="","",IF(' 賞与計算 '!D18<源泉賞与表!$T$22*1000,10.21,INDEX(源泉賞与表!$B:$B,MATCH(' 賞与計算 '!D18/1000,源泉賞与表!$T:$T,1)))) ->  | W15: 0 | X15: =IF(' 基本情報 '!G18="",0,ROUND(VLOOKUP(' 基本情報 '!G18,INDIRECT(' 基本情報 '!$D$3&"!$B$12:$I$61"),6,0)-0.1,0)) -> 0 | Y15: =IF(' 基本情報 '!G18="",0,ROUND(VLOOKUP(' 基本情報 '!G18,INDIRECT(' 基本情報 '!$D$3&"!$B$12:$I$61"),8,0)-0.1,0)) -> 0 | Z15: 0 | AA15: =IF(' 基本情報 '!G18="",0,ROUND(IF(OR(' 基本情報 '!G18<税額基本情報!$E$26,' 基本情報 '!G18>税額基本情報!$E$27),AC15,VLOOKUP(' 基本情報 '!G18,INDIRECT(' 基本情報 '!$D$3&"!$B$15:$K$45"),10,0))-0.1,0)) -> 0 | AB15: =IF(' 基本情報 '!G18="",0,ROUND(IF(OR(' 基本情報 '!G18<税額基本情報!$E$26,' 基本情報 '!G18>税額基本情報!$E$27),AD15,VLOOKUP(' 基本情報 '!G18,INDIRECT(' 基本情報 '!$D$3&"!$B$15:$M$45"),12,0))-0.1,0)) -> 0 | AC15: =IF(' 基本情報 '!G18="",0,IF(' 基本情報 '!G18<税額基本情報!$E$26,税額基本情報!$F$26,IF(' 基本情報 '!G18>税額基本情報!$E$27,税額基本情報!$F$27,0))) -> 0 | AD15: =IF(' 基本情報 '!G18="",0,IF(' 基本情報 '!G18<税額基本情報!$E$26,税額基本情報!$G$26,IF(' 基本情報 '!G18>税額基本情報!$E$27,税額基本情報!$G$27,0))) -> 0 | AE15: 0 | AF15: =ROUND(IF(' 賞与計算 '!F18>税額基本情報!$D$33,税額基本情報!$D$33,ROUNDDOWN(' 賞与計算 '!F18,-3))*INDIRECT(' 基本情報 '!$D$3&"!$F$9")*0.5-0.1,0) -> 0 | AG15: =ROUND(IF(' 賞与計算 '!F18>税額基本情報!$D$33,税額基本情報!$D$33,ROUNDDOWN(' 賞与計算 '!F18,-3))*INDIRECT(' 基本情報 '!$D$3&"!$H$9")/2-0.1,0) -> 0 | AH15: 0 | AI15: =ROUND(IF(' 賞与計算 '!F18>税額基本情報!$D$30,税額基本情報!$D$30,ROUNDDOWN(' 賞与計算 '!F18,-3))*INDIRECT(' 基本情報 '!$D$3&"!$J$9")/2-0.1,0) -> 0 | AJ15: =ROUND(IF(' 賞与計算 '!F18>税額基本情報!$D$30,税額基本情報!$D$30,ROUNDDOWN(' 賞与計算 '!F18,-3))*INDIRECT(' 基本情報 '!$D$3&"!$L$9")/2-0.1,0) -> 0
C16: 12 | D16: =' 給与計算 '!C19 ->  | E16: =MAX(IF(' 給与計算 '!L19>=税額基本情報!$D$6,MAX(計算シート!H16:K16),IF(' 給与計算 '!L19<源泉月額表!$B$8,0,VLOOKUP(' 給与計算 '!L19,源泉月額表!$B:$K,IF(' 基本情報 '!E19>=8,10,' 基本情報 '!E19+3),1)))-IF(' 基本情報 '!E19>=8,(' 基本情報 '!E19-7)*税額基本情報!$D$17,0),0) -> 0 | F16: =IF(' 給与計算 '!L19<源泉月額表!$B$8,ROUNDDOWN(' 給与計算 '!L19*税額基本情報!$D$23,0),IF(' 給与計算 '!L19=0,0,IF(' 給与計算 '!L19>=税額基本情報!$D$13,MAX(L16:M16),VLOOKUP(' 給与計算 '!L19,源泉月額表!$B:$L,11,1)))) -> 0 | G16: =MAX(IF(' 給与計算 '!L19<源泉月額表!$B$8,ROUNDDOWN(' 給与計算 '!L19*3.063%,0),IF(' 給与計算 '!L19=0,0,IF(' 給与計算 '!L19>=税額基本情報!$D$13,MAX(L16:M16),VLOOKUP(' 給与計算 '!L19,源泉月額表!$B:$L,11,1))))-' 基本情報 '!E19*税額基本情報!$D$20,0) -> 0 | H16: =IF(AND(' 給与計算 '!L19>=税額基本情報!$D$6,' 給与計算 '!L19<税額基本情報!$D$7),VLOOKUP(' 給与計算 '!L19,税額基本情報!$D$6:$M$9,IF(' 基本情報 '!E19>=8,10,' 基本情報 '!E19+3),1)+ROUNDDOWN((' 給与計算 '!L19-税額基本情報!$D$6)*税額基本情報!$E$6,0),0) -> 0 | I16: =IF(AND(' 給与計算 '!L19>=税額基本情報!$D$7,' 給与計算 '!L19<税額基本情報!$D$8),VLOOKUP(' 給与計算 '!L19,税額基本情報!$D$6:$M$9,IF(' 基本情報 '!E19>=8,10,' 基本情報 '!E19+3),1)+ROUNDDOWN((' 給与計算 '!L19-税額基本情報!$D$7)*税額基本情報!$E$7,0),0) -> 0 | J16: =IF(' 給与計算 '!L19>=税額基本情報!$D$8,VLOOKUP(' 給与計算 '!L19,税額基本情報!$D$6:$M$9,IF(' 基本情報 '!E19>=8,10,' 基本情報 '!E19+3),1)+ROUNDDOWN((' 給与計算 '!L19-税額基本情報!$D$8)*税額基本情報!$E$8,0),0) -> 0 | K16: =IF(' 給与計算 '!L19>=税額基本情報!$D$9,VLOOKUP(' 給与計算 '!L19,税額基本情報!$D$6:$M$9,IF(' 基本情報 '!E19>=8,10,' 基本情報 '!E19+3),1)+ROUNDDOWN((' 給与計算 '!L19-税額基本情報!$D$9)*税額基本情報!$E$9,0),0) -> 0 | L16: =IF(AND(' 給与計算 '!L19>=税額基本情報!$D$13,' 給与計算 '!L19<税額基本情報!$D$14),税額基本情報!$F$13+ROUNDDOWN((' 給与計算 '!L19-税額基本情報!$D$13)*税額基本情報!$E$13,0),0) -> 0 | M16: =IF(' 給与計算 '!L19>=税額基本情報!$D$14,税額基本情報!$F$14+ROUNDDOWN((' 給与計算 '!L19-税額基本情報!$D$14)*税額基本情報!$E$14,0),0) -> 0 | N16: =IF(' 賞与計算 '!D19<源泉賞与表!$D$10*1000,0,INDEX(源泉賞与表!$B:$B,MATCH(' 賞与計算 '!D19/1000,源泉賞与表!$D:$D,1))) -> 0 | O16: =IF(' 賞与計算 '!D19<源泉賞与表!$F$10*1000,0,INDEX(源泉賞与表!$B:$B,MATCH(' 賞与計算 '!D19/1000,源泉賞与表!$F:$F,1))) -> 0 | P16: =IF(' 賞与計算 '!D19<源泉賞与表!$H$10*1000,0,INDEX(源泉賞与表!$B:$B,MATCH(' 賞与計算 '!D19/1000,源泉賞与表!$H:$H,1))) -> 0 | Q16: =IF(' 賞与計算 '!D19<源泉賞与表!$J$10*1000,0,INDEX(源泉賞与表!$B:$B,MATCH(' 賞与計算 '!D19/1000,源泉賞与表!$J:$J,1))) -> 0 | R16: =IF(' 賞与計算 '!D19<源泉賞与表!$L$10*1000,0,INDEX(源泉賞与表!$B:$B,MATCH(' 賞与計算 '!D19/1000,源泉賞与表!$L:$L,1))) -> 0 | S16: =IF(' 賞与計算 '!D19<源泉賞与表!$N$10*1000,0,INDEX(源泉賞与表!$B:$B,MATCH(' 賞与計算 '!D19/1000,源泉賞与表!$N:$N,1))) -> 0 | T16: =IF(' 賞与計算 '!D19<源泉賞与表!$P$10*1000,0,INDEX(源泉賞与表!$B:$B,MATCH(' 賞与計算 '!D19/1000,源泉賞与表!$P:$P,1))) -> 0 | U16: =IF(' 賞与計算 '!D19<源泉賞与表!$R$10*1000,0,INDEX(源泉賞与表!$B:$B,MATCH(' 賞与計算 '!D19/1000,源泉賞与表!$R:$R,1))) -> 0 | V16: =IF(' 賞与計算 '!D19="","",IF(' 賞与計算 '!D19<源泉賞与表!$T$22*1000,10.21,INDEX(源泉賞与表!$B:$B,MATCH(' 賞与計算 '!D19/1000,源泉賞与表!$T:$T,1)))) ->  | W16: 0 | X16: =IF(' 基本情報 '!G19="",0,ROUND(VLOOKUP(' 基本情報 '!G19,INDIRECT(' 基本情報 '!$D$3&"!$B$12:$I$61"),6,0)-0.1,0)) -> 0 | Y16: =IF(' 基本情報 '!G19="",0,ROUND(VLOOKUP(' 基本情報 '!G19,INDIRECT(' 基本情報 '!$D$3&"!$B$12:$I$61"),8,0)-0.1,0)) -> 0 | Z16: 0 | AA16: =IF(' 基本情報 '!G19="",0,ROUND(IF(OR(' 基本情報 '!G19<税額基本情報!$E$26,' 基本情報 '!G19>税額基本情報!$E$27),AC16,VLOOKUP(' 基本情報 '!G19,INDIRECT(' 基本情報 '!$D$3&"!$B$15:$K$45"),10,0))-0.1,0)) -> 0 | AB16: =IF(' 基本情報 '!G19="",0,ROUND(IF(OR(' 基本情報 '!G19<税額基本情報!$E$26,' 基本情報 '!G19>税額基本情報!$E$27),AD16,VLOOKUP(' 基本情報 '!G19,INDIRECT(' 基本情報 '!$D$3&"!$B$15:$M$45"),12,0))-0.1,0)) -> 0 | AC16: =IF(' 基本情報 '!G19="",0,IF(' 基本情報 '!G19<税額基本情報!$E$26,税額基本情報!$F$26,IF(' 基本情報 '!G19>税額基本情報!$E$27,税額基本情報!$F$27,0))) -> 0 | AD16: =IF(' 基本情報 '!G19="",0,IF(' 基本情報 '!G19<税額基本情報!$E$26,税額基本情報!$G$26,IF(' 基本情報 '!G19>税額基本情報!$E$27,税額基本情報!$G$27,0))) -> 0 | AE16: 0 | AF16: =ROUND(IF(' 賞与計算 '!F19>税額基本情報!$D$33,税額基本情報!$D$33,ROUNDDOWN(' 賞与計算 '!F19,-3))*INDIRECT(' 基本情報 '!$D$3&"!$F$9")*0.5-0.1,0) -> 0 | AG16: =ROUND(IF(' 賞与計算 '!F19>税額基本情報!$D$33,税額基本情報!$D$33,ROUNDDOWN(' 賞与計算 '!F19,-3))*INDIRECT(' 基本情報 '!$D$3&"!$H$9")/2-0.1,0) -> 0 | AH16: 0 | AI16: =ROUND(IF(' 賞与計算 '!F19>税額基本情報!$D$30,税額基本情報!$D$30,ROUNDDOWN(' 賞与計算 '!F19,-3))*INDIRECT(' 基本情報 '!$D$3&"!$J$9")/2-0.1,0) -> 0 | AJ16: =ROUND(IF(' 賞与計算 '!F19>税額基本情報!$D$30,税額基本情報!$D$30,ROUNDDOWN(' 賞与計算 '!F19,-3))*INDIRECT(' 基本情報 '!$D$3&"!$L$9")/2-0.1,0) -> 0
C17: 13 | D17: =' 給与計算 '!C20 ->  | E17: =MAX(IF(' 給与計算 '!L20>=税額基本情報!$D$6,MAX(計算シート!H17:K17),IF(' 給与計算 '!L20<源泉月額表!$B$8,0,VLOOKUP(' 給与計算 '!L20,源泉月額表!$B:$K,IF(' 基本情報 '!E20>=8,10,' 基本情報 '!E20+3),1)))-IF(' 基本情報 '!E20>=8,(' 基本情報 '!E20-7)*税額基本情報!$D$17,0),0) -> 0 | F17: =IF(' 給与計算 '!L20<源泉月額表!$B$8,ROUNDDOWN(' 給与計算 '!L20*税額基本情報!$D$23,0),IF(' 給与計算 '!L20=0,0,IF(' 給与計算 '!L20>=税額基本情報!$D$13,MAX(L17:M17),VLOOKUP(' 給与計算 '!L20,源泉月額表!$B:$L,11,1)))) -> 0 | G17: =MAX(IF(' 給与計算 '!L20<源泉月額表!$B$8,ROUNDDOWN(' 給与計算 '!L20*3.063%,0),IF(' 給与計算 '!L20=0,0,IF(' 給与計算 '!L20>=税額基本情報!$D$13,MAX(L17:M17),VLOOKUP(' 給与計算 '!L20,源泉月額表!$B:$L,11,1))))-' 基本情報 '!E20*税額基本情報!$D$20,0) -> 0 | H17: =IF(AND(' 給与計算 '!L20>=税額基本情報!$D$6,' 給与計算 '!L20<税額基本情報!$D$7),VLOOKUP(' 給与計算 '!L20,税額基本情報!$D$6:$M$9,IF(' 基本情報 '!E20>=8,10,' 基本情報 '!E20+3),1)+ROUNDDOWN((' 給与計算 '!L20-税額基本情報!$D$6)*税額基本情報!$E$6,0),0) -> 0 | I17: =IF(AND(' 給与計算 '!L20>=税額基本情報!$D$7,' 給与計算 '!L20<税額基本情報!$D$8),VLOOKUP(' 給与計算 '!L20,税額基本情報!$D$6:$M$9,IF(' 基本情報 '!E20>=8,10,' 基本情報 '!E20+3),1)+ROUNDDOWN((' 給与計算 '!L20-税額基本情報!$D$7)*税額基本情報!$E$7,0),0) -> 0 | J17: =IF(' 給与計算 '!L20>=税額基本情報!$D$8,VLOOKUP(' 給与計算 '!L20,税額基本情報!$D$6:$M$9,IF(' 基本情報 '!E20>=8,10,' 基本情報 '!E20+3),1)+ROUNDDOWN((' 給与計算 '!L20-税額基本情報!$D$8)*税額基本情報!$E$8,0),0) -> 0 | K17: =IF(' 給与計算 '!L20>=税額基本情報!$D$9,VLOOKUP(' 給与計算 '!L20,税額基本情報!$D$6:$M$9,IF(' 基本情報 '!E20>=8,10,' 基本情報 '!E20+3),1)+ROUNDDOWN((' 給与計算 '!L20-税額基本情報!$D$9)*税額基本情報!$E$9,0),0) -> 0 | L17: =IF(AND(' 給与計算 '!L20>=税額基本情報!$D$13,' 給与計算 '!L20<税額基本情報!$D$14),税額基本情報!$F$13+ROUNDDOWN((' 給与計算 '!L20-税額基本情報!$D$13)*税額基本情報!$E$13,0),0) -> 0 | M17: =IF(' 給与計算 '!L20>=税額基本情報!$D$14,税額基本情報!$F$14+ROUNDDOWN((' 給与計算 '!L20-税額基本情報!$D$14)*税額基本情報!$E$14,0),0) -> 0 | N17: =IF(' 賞与計算 '!D20<源泉賞与表!$D$10*1000,0,INDEX(源泉賞与表!$B:$B,MATCH(' 賞与計算 '!D20/1000,源泉賞与表!$D:$D,1))) -> 0 | O17: =IF(' 賞与計算 '!D20<源泉賞与表!$F$10*1000,0,INDEX(源泉賞与表!$B:$B,MATCH(' 賞与計算 '!D20/1000,源泉賞与表!$F:$F,1))) -> 0 | P17: =IF(' 賞与計算 '!D20<源泉賞与表!$H$10*1000,0,INDEX(源泉賞与表!$B:$B,MATCH(' 賞与計算 '!D20/1000,源泉賞与表!$H:$H,1))) -> 0 | Q17: =IF(' 賞与計算 '!D20<源泉賞与表!$J$10*1000,0,INDEX(源泉賞与表!$B:$B,MATCH(' 賞与計算 '!D20/1000,源泉賞与表!$J:$J,1))) -> 0 | R17: =IF(' 賞与計算 '!D20<源泉賞与表!$L$10*1000,0,INDEX(源泉賞与表!$B:$B,MATCH(' 賞与計算 '!D20/1000,源泉賞与表!$L:$L,1))) -> 0 | S17: =IF(' 賞与計算 '!D20<源泉賞与表!$N$10*1000,0,INDEX(源泉賞与表!$B:$B,MATCH(' 賞与計算 '!D20/1000,源泉賞与表!$N:$N,1))) -> 0 | T17: =IF(' 賞与計算 '!D20<源泉賞与表!$P$10*1000,0,INDEX(源泉賞与表!$B:$B,MATCH(' 賞与計算 '!D20/1000,源泉賞与表!$P:$P,1))) -> 0 | U17: =IF(' 賞与計算 '!D20<源泉賞与表!$R$10*1000,0,INDEX(源泉賞与表!$B:$B,MATCH(' 賞与計算 '!D20/1000,源泉賞与表!$R:$R,1))) -> 0 | V17: =IF(' 賞与計算 '!D20="","",IF(' 賞与計算 '!D20<源泉賞与表!$T$22*1000,10.21,INDEX(源泉賞与表!$B:$B,MATCH(' 賞与計算 '!D20/1000,源泉賞与表!$T:$T,1)))) ->  | W17: 0 | X17: =IF(' 基本情報 '!G20="",0,ROUND(VLOOKUP(' 基本情報 '!G20,INDIRECT(' 基本情報 '!$D$3&"!$B$12:$I$61"),6,0)-0.1,0)) -> 0 | Y17: =IF(' 基本情報 '!G20="",0,ROUND(VLOOKUP(' 基本情報 '!G20,INDIRECT(' 基本情報 '!$D$3&"!$B$12:$I$61"),8,0)-0.1,0)) -> 0 | Z17: 0 | AA17: =IF(' 基本情報 '!G20="",0,ROUND(IF(OR(' 基本情報 '!G20<税額基本情報!$E$26,' 基本情報 '!G20>税額基本情報!$E$27),AC17,VLOOKUP(' 基本情報 '!G20,INDIRECT(' 基本情報 '!$D$3&"!$B$15:$K$45"),10,0))-0.1,0)) -> 0 | AB17: =IF(' 基本情報 '!G20="",0,ROUND(IF(OR(' 基本情報 '!G20<税額基本情報!$E$26,' 基本情報 '!G20>税額基本情報!$E$27),AD17,VLOOKUP(' 基本情報 '!G20,INDIRECT(' 基本情報 '!$D$3&"!$B$15:$M$45"),12,0))-0.1,0)) -> 0 | AC17: =IF(' 基本情報 '!G20="",0,IF(' 基本情報 '!G20<税額基本情報!$E$26,税額基本情報!$F$26,IF(' 基本情報 '!G20>税額基本情報!$E$27,税額基本情報!$F$27,0))) -> 0 | AD17: =IF(' 基本情報 '!G20="",0,IF(' 基本情報 '!G20<税額基本情報!$E$26,税額基本情報!$G$26,IF(' 基本情報 '!G20>税額基本情報!$E$27,税額基本情報!$G$27,0))) -> 0 | AE17: 0 | AF17: =ROUND(IF(' 賞与計算 '!F20>税額基本情報!$D$33,税額基本情報!$D$33,ROUNDDOWN(' 賞与計算 '!F20,-3))*INDIRECT(' 基本情報 '!$D$3&"!$F$9")*0.5-0.1,0) -> 0 | AG17: =ROUND(IF(' 賞与計算 '!F20>税額基本情報!$D$33,税額基本情報!$D$33,ROUNDDOWN(' 賞与計算 '!F20,-3))*INDIRECT(' 基本情報 '!$D$3&"!$H$9")/2-0.1,0) -> 0 | AH17: 0 | AI17: =ROUND(IF(' 賞与計算 '!F20>税額基本情報!$D$30,税額基本情報!$D$30,ROUNDDOWN(' 賞与計算 '!F20,-3))*INDIRECT(' 基本情報 '!$D$3&"!$J$9")/2-0.1,0) -> 0 | AJ17: =ROUND(IF(' 賞与計算 '!F20>税額基本情報!$D$30,税額基本情報!$D$30,ROUNDDOWN(' 賞与計算 '!F20,-3))*INDIRECT(' 基本情報 '!$D$3&"!$L$9")/2-0.1,0) -> 0
C18: 14 | D18: =' 給与計算 '!C21 ->  | E18: =MAX(IF(' 給与計算 '!L21>=税額基本情報!$D$6,MAX(計算シート!H18:K18),IF(' 給与計算 '!L21<源泉月額表!$B$8,0,VLOOKUP(' 給与計算 '!L21,源泉月額表!$B:$K,IF(' 基本情報 '!E21>=8,10,' 基本情報 '!E21+3),1)))-IF(' 基本情報 '!E21>=8,(' 基本情報 '!E21-7)*税額基本情報!$D$17,0),0) -> 0 | F18: =IF(' 給与計算 '!L21<源泉月額表!$B$8,ROUNDDOWN(' 給与計算 '!L21*税額基本情報!$D$23,0),IF(' 給与計算 '!L21=0,0,IF(' 給与計算 '!L21>=税額基本情報!$D$13,MAX(L18:M18),VLOOKUP(' 給与計算 '!L21,源泉月額表!$B:$L,11,1)))) -> 0 | G18: =MAX(IF(' 給与計算 '!L21<源泉月額表!$B$8,ROUNDDOWN(' 給与計算 '!L21*3.063%,0),IF(' 給与計算 '!L21=0,0,IF(' 給与計算 '!L21>=税額基本情報!$D$13,MAX(L18:M18),VLOOKUP(' 給与計算 '!L21,源泉月額表!$B:$L,11,1))))-' 基本情報 '!E21*税額基本情報!$D$20,0) -> 0 | H18: =IF(AND(' 給与計算 '!L21>=税額基本情報!$D$6,' 給与計算 '!L21<税額基本情報!$D$7),VLOOKUP(' 給与計算 '!L21,税額基本情報!$D$6:$M$9,IF(' 基本情報 '!E21>=8,10,' 基本情報 '!E21+3),1)+ROUNDDOWN((' 給与計算 '!L21-税額基本情報!$D$6)*税額基本情報!$E$6,0),0) -> 0 | I18: =IF(AND(' 給与計算 '!L21>=税額基本情報!$D$7,' 給与計算 '!L21<税額基本情報!$D$8),VLOOKUP(' 給与計算 '!L21,税額基本情報!$D$6:$M$9,IF(' 基本情報 '!E21>=8,10,' 基本情報 '!E21+3),1)+ROUNDDOWN((' 給与計算 '!L21-税額基本情報!$D$7)*税額基本情報!$E$7,0),0) -> 0 | J18: =IF(' 給与計算 '!L21>=税額基本情報!$D$8,VLOOKUP(' 給与計算 '!L21,税額基本情報!$D$6:$M$9,IF(' 基本情報 '!E21>=8,10,' 基本情報 '!E21+3),1)+ROUNDDOWN((' 給与計算 '!L21-税額基本情報!$D$8)*税額基本情報!$E$8,0),0) -> 0 | K18: =IF(' 給与計算 '!L21>=税額基本情報!$D$9,VLOOKUP(' 給与計算 '!L21,税額基本情報!$D$6:$M$9,IF(' 基本情報 '!E21>=8,10,' 基本情報 '!E21+3),1)+ROUNDDOWN((' 給与計算 '!L21-税額基本情報!$D$9)*税額基本情報!$E$9,0),0) -> 0 | L18: =IF(AND(' 給与計算 '!L21>=税額基本情報!$D$13,' 給与計算 '!L21<税額基本情報!$D$14),税額基本情報!$F$13+ROUNDDOWN((' 給与計算 '!L21-税額基本情報!$D$13)*税額基本情報!$E$13,0),0) -> 0 | M18: =IF(' 給与計算 '!L21>=税額基本情報!$D$14,税額基本情報!$F$14+ROUNDDOWN((' 給与計算 '!L21-税額基本情報!$D$14)*税額基本情報!$E$14,0),0) -> 0 | N18: =IF(' 賞与計算 '!D21<源泉賞与表!$D$10*1000,0,INDEX(源泉賞与表!$B:$B,MATCH(' 賞与計算 '!D21/1000,源泉賞与表!$D:$D,1))) -> 0 | O18: =IF(' 賞与計算 '!D21<源泉賞与表!$F$10*1000,0,INDEX(源泉賞与表!$B:$B,MATCH(' 賞与計算 '!D21/1000,源泉賞与表!$F:$F,1))) -> 0 | P18: =IF(' 賞与計算 '!D21<源泉賞与表!$H$10*1000,0,INDEX(源泉賞与表!$B:$B,MATCH(' 賞与計算 '!D21/1000,源泉賞与表!$H:$H,1))) -> 0 | Q18: =IF(' 賞与計算 '!D21<源泉賞与表!$J$10*1000,0,INDEX(源泉賞与表!$B:$B,MATCH(' 賞与計算 '!D21/1000,源泉賞与表!$J:$J,1))) -> 0 | R18: =IF(' 賞与計算 '!D21<源泉賞与表!$L$10*1000,0,INDEX(源泉賞与表!$B:$B,MATCH(' 賞与計算 '!D21/1000,源泉賞与表!$L:$L,1))) -> 0 | S18: =IF(' 賞与計算 '!D21<源泉賞与表!$N$10*1000,0,INDEX(源泉賞与表!$B:$B,MATCH(' 賞与計算 '!D21/1000,源泉賞与表!$N:$N,1))) -> 0 | T18: =IF(' 賞与計算 '!D21<源泉賞与表!$P$10*1000,0,INDEX(源泉賞与表!$B:$B,MATCH(' 賞与計算 '!D21/1000,源泉賞与表!$P:$P,1))) -> 0 | U18: =IF(' 賞与計算 '!D21<源泉賞与表!$R$10*1000,0,INDEX(源泉賞与表!$B:$B,MATCH(' 賞与計算 '!D21/1000,源泉賞与表!$R:$R,1))) -> 0 | V18: =IF(' 賞与計算 '!D21="","",IF(' 賞与計算 '!D21<源泉賞与表!$T$22*1000,10.21,INDEX(源泉賞与表!$B:$B,MATCH(' 賞与計算 '!D21/1000,源泉賞与表!$T:$T,1)))) ->  | W18: 0 | X18: =IF(' 基本情報 '!G21="",0,ROUND(VLOOKUP(' 基本情報 '!G21,INDIRECT(' 基本情報 '!$D$3&"!$B$12:$I$61"),6,0)-0.1,0)) -> 0 | Y18: =IF(' 基本情報 '!G21="",0,ROUND(VLOOKUP(' 基本情報 '!G21,INDIRECT(' 基本情報 '!$D$3&"!$B$12:$I$61"),8,0)-0.1,0)) -> 0 | Z18: 0 | AA18: =IF(' 基本情報 '!G21="",0,ROUND(IF(OR(' 基本情報 '!G21<税額基本情報!$E$26,' 基本情報 '!G21>税額基本情報!$E$27),AC18,VLOOKUP(' 基本情報 '!G21,INDIRECT(' 基本情報 '!$D$3&"!$B$15:$K$45"),10,0))-0.1,0)) -> 0 | AB18: =IF(' 基本情報 '!G21="",0,ROUND(IF(OR(' 基本情報 '!G21<税額基本情報!$E$26,' 基本情報 '!G21>税額基本情報!$E$27),AD18,VLOOKUP(' 基本情報 '!G21,INDIRECT(' 基本情報 '!$D$3&"!$B$15:$M$45"),12,0))-0.1,0)) -> 0 | AC18: =IF(' 基本情報 '!G21="",0,IF(' 基本情報 '!G21<税額基本情報!$E$26,税額基本情報!$F$26,IF(' 基本情報 '!G21>税額基本情報!$E$27,税額基本情報!$F$27,0))) -> 0 | AD18: =IF(' 基本情報 '!G21="",0,IF(' 基本情報 '!G21<税額基本情報!$E$26,税額基本情報!$G$26,IF(' 基本情報 '!G21>税額基本情報!$E$27,税額基本情報!$G$27,0))) -> 0 | AE18: 0 | AF18: =ROUND(IF(' 賞与計算 '!F21>税額基本情報!$D$33,税額基本情報!$D$33,ROUNDDOWN(' 賞与計算 '!F21,-3))*INDIRECT(' 基本情報 '!$D$3&"!$F$9")*0.5-0.1,0) -> 0 | AG18: =ROUND(IF(' 賞与計算 '!F21>税額基本情報!$D$33,税額基本情報!$D$33,ROUNDDOWN(' 賞与計算 '!F21,-3))*INDIRECT(' 基本情報 '!$D$3&"!$H$9")/2-0.1,0) -> 0 | AH18: 0 | AI18: =ROUND(IF(' 賞与計算 '!F21>税額基本情報!$D$30,税額基本情報!$D$30,ROUNDDOWN(' 賞与計算 '!F21,-3))*INDIRECT(' 基本情報 '!$D$3&"!$J$9")/2-0.1,0) -> 0 | AJ18: =ROUND(IF(' 賞与計算 '!F21>税額基本情報!$D$30,税額基本情報!$D$30,ROUNDDOWN(' 賞与計算 '!F21,-3))*INDIRECT(' 基本情報 '!$D$3&"!$L$9")/2-0.1,0) -> 0
C19: 15 | D19: =' 給与計算 '!C22 ->  | E19: =MAX(IF(' 給与計算 '!L22>=税額基本情報!$D$6,MAX(計算シート!H19:K19),IF(' 給与計算 '!L22<源泉月額表!$B$8,0,VLOOKUP(' 給与計算 '!L22,源泉月額表!$B:$K,IF(' 基本情報 '!E22>=8,10,' 基本情報 '!E22+3),1)))-IF(' 基本情報 '!E22>=8,(' 基本情報 '!E22-7)*税額基本情報!$D$17,0),0) -> 0 | F19: =IF(' 給与計算 '!L22<源泉月額表!$B$8,ROUNDDOWN(' 給与計算 '!L22*税額基本情報!$D$23,0),IF(' 給与計算 '!L22=0,0,IF(' 給与計算 '!L22>=税額基本情報!$D$13,MAX(L19:M19),VLOOKUP(' 給与計算 '!L22,源泉月額表!$B:$L,11,1)))) -> 0 | G19: =MAX(IF(' 給与計算 '!L22<源泉月額表!$B$8,ROUNDDOWN(' 給与計算 '!L22*3.063%,0),IF(' 給与計算 '!L22=0,0,IF(' 給与計算 '!L22>=税額基本情報!$D$13,MAX(L19:M19),VLOOKUP(' 給与計算 '!L22,源泉月額表!$B:$L,11,1))))-' 基本情報 '!E22*税額基本情報!$D$20,0) -> 0 | H19: =IF(AND(' 給与計算 '!L22>=税額基本情報!$D$6,' 給与計算 '!L22<税額基本情報!$D$7),VLOOKUP(' 給与計算 '!L22,税額基本情報!$D$6:$M$9,IF(' 基本情報 '!E22>=8,10,' 基本情報 '!E22+3),1)+ROUNDDOWN((' 給与計算 '!L22-税額基本情報!$D$6)*税額基本情報!$E$6,0),0) -> 0 | I19: =IF(AND(' 給与計算 '!L22>=税額基本情報!$D$7,' 給与計算 '!L22<税額基本情報!$D$8),VLOOKUP(' 給与計算 '!L22,税額基本情報!$D$6:$M$9,IF(' 基本情報 '!E22>=8,10,' 基本情報 '!E22+3),1)+ROUNDDOWN((' 給与計算 '!L22-税額基本情報!$D$7)*税額基本情報!$E$7,0),0) -> 0 | J19: =IF(' 給与計算 '!L22>=税額基本情報!$D$8,VLOOKUP(' 給与計算 '!L22,税額基本情報!$D$6:$M$9,IF(' 基本情報 '!E22>=8,10,' 基本情報 '!E22+3),1)+ROUNDDOWN((' 給与計算 '!L22-税額基本情報!$D$8)*税額基本情報!$E$8,0),0) -> 0 | K19: =IF(' 給与計算 '!L22>=税額基本情報!$D$9,VLOOKUP(' 給与計算 '!L22,税額基本情報!$D$6:$M$9,IF(' 基本情報 '!E22>=8,10,' 基本情報 '!E22+3),1)+ROUNDDOWN((' 給与計算 '!L22-税額基本情報!$D$9)*税額基本情報!$E$9,0),0) -> 0 | L19: =IF(AND(' 給与計算 '!L22>=税額基本情報!$D$13,' 給与計算 '!L22<税額基本情報!$D$14),税額基本情報!$F$13+ROUNDDOWN((' 給与計算 '!L22-税額基本情報!$D$13)*税額基本情報!$E$13,0),0) -> 0 | M19: =IF(' 給与計算 '!L22>=税額基本情報!$D$14,税額基本情報!$F$14+ROUNDDOWN((' 給与計算 '!L22-税額基本情報!$D$14)*税額基本情報!$E$14,0),0) -> 0 | N19: =IF(' 賞与計算 '!D22<源泉賞与表!$D$10*1000,0,INDEX(源泉賞与表!$B:$B,MATCH(' 賞与計算 '!D22/1000,源泉賞与表!$D:$D,1))) -> 0 | O19: =IF(' 賞与計算 '!D22<源泉賞与表!$F$10*1000,0,INDEX(源泉賞与表!$B:$B,MATCH(' 賞与計算 '!D22/1000,源泉賞与表!$F:$F,1))) -> 0 | P19: =IF(' 賞与計算 '!D22<源泉賞与表!$H$10*1000,0,INDEX(源泉賞与表!$B:$B,MATCH(' 賞与計算 '!D22/1000,源泉賞与表!$H:$H,1))) -> 0 | Q19: =IF(' 賞与計算 '!D22<源泉賞与表!$J$10*1000,0,INDEX(源泉賞与表!$B:$B,MATCH(' 賞与計算 '!D22/1000,源泉賞与表!$J:$J,1))) -> 0 | R19: =IF(' 賞与計算 '!D22<源泉賞与表!$L$10*1000,0,INDEX(源泉賞与表!$B:$B,MATCH(' 賞与計算 '!D22/1000,源泉賞与表!$L:$L,1))) -> 0 | S19: =IF(' 賞与計算 '!D22<源泉賞与表!$N$10*1000,0,INDEX(源泉賞与表!$B:$B,MATCH(' 賞与計算 '!D22/1000,源泉賞与表!$N:$N,1))) -> 0 | T19: =IF(' 賞与計算 '!D22<源泉賞与表!$P$10*1000,0,INDEX(源泉賞与表!$B:$B,MATCH(' 賞与計算 '!D22/1000,源泉賞与表!$P:$P,1))) -> 0 | U19: =IF(' 賞与計算 '!D22<源泉賞与表!$R$10*1000,0,INDEX(源泉賞与表!$B:$B,MATCH(' 賞与計算 '!D22/1000,源泉賞与表!$R:$R,1))) -> 0 | V19: =IF(' 賞与計算 '!D22="","",IF(' 賞与計算 '!D22<源泉賞与表!$T$22*1000,10.21,INDEX(源泉賞与表!$B:$B,MATCH(' 賞与計算 '!D22/1000,源泉賞与表!$T:$T,1)))) ->  | W19: 0 | X19: =IF(' 基本情報 '!G22="",0,ROUND(VLOOKUP(' 基本情報 '!G22,INDIRECT(' 基本情報 '!$D$3&"!$B$12:$I$61"),6,0)-0.1,0)) -> 0 | Y19: =IF(' 基本情報 '!G22="",0,ROUND(VLOOKUP(' 基本情報 '!G22,INDIRECT(' 基本情報 '!$D$3&"!$B$12:$I$61"),8,0)-0.1,0)) -> 0 | Z19: 0 | AA19: =IF(' 基本情報 '!G22="",0,ROUND(IF(OR(' 基本情報 '!G22<税額基本情報!$E$26,' 基本情報 '!G22>税額基本情報!$E$27),AC19,VLOOKUP(' 基本情報 '!G22,INDIRECT(' 基本情報 '!$D$3&"!$B$15:$K$45"),10,0))-0.1,0)) -> 0 | AB19: =IF(' 基本情報 '!G22="",0,ROUND(IF(OR(' 基本情報 '!G22<税額基本情報!$E$26,' 基本情報 '!G22>税額基本情報!$E$27),AD19,VLOOKUP(' 基本情報 '!G22,INDIRECT(' 基本情報 '!$D$3&"!$B$15:$M$45"),12,0))-0.1,0)) -> 0 | AC19: =IF(' 基本情報 '!G22="",0,IF(' 基本情報 '!G22<税額基本情報!$E$26,税額基本情報!$F$26,IF(' 基本情報 '!G22>税額基本情報!$E$27,税額基本情報!$F$27,0))) -> 0 | AD19: =IF(' 基本情報 '!G22="",0,IF(' 基本情報 '!G22<税額基本情報!$E$26,税額基本情報!$G$26,IF(' 基本情報 '!G22>税額基本情報!$E$27,税額基本情報!$G$27,0))) -> 0 | AE19: 0 | AF19: =ROUND(IF(' 賞与計算 '!F22>税額基本情報!$D$33,税額基本情報!$D$33,ROUNDDOWN(' 賞与計算 '!F22,-3))*INDIRECT(' 基本情報 '!$D$3&"!$F$9")*0.5-0.1,0) -> 0 | AG19: =ROUND(IF(' 賞与計算 '!F22>税額基本情報!$D$33,税額基本情報!$D$33,ROUNDDOWN(' 賞与計算 '!F22,-3))*INDIRECT(' 基本情報 '!$D$3&"!$H$9")/2-0.1,0) -> 0 | AH19: 0 | AI19: =ROUND(IF(' 賞与計算 '!F22>税額基本情報!$D$30,税額基本情報!$D$30,ROUNDDOWN(' 賞与計算 '!F22,-3))*INDIRECT(' 基本情報 '!$D$3&"!$J$9")/2-0.1,0) -> 0 | AJ19: =ROUND(IF(' 賞与計算 '!F22>税額基本情報!$D$30,税額基本情報!$D$30,ROUNDDOWN(' 賞与計算 '!F22,-3))*INDIRECT(' 基本情報 '!$D$3&"!$L$9")/2-0.1,0) -> 0
C20: 16 | D20: =' 給与計算 '!C23 ->  | E20: =MAX(IF(' 給与計算 '!L23>=税額基本情報!$D$6,MAX(計算シート!H20:K20),IF(' 給与計算 '!L23<源泉月額表!$B$8,0,VLOOKUP(' 給与計算 '!L23,源泉月額表!$B:$K,IF(' 基本情報 '!E23>=8,10,' 基本情報 '!E23+3),1)))-IF(' 基本情報 '!E23>=8,(' 基本情報 '!E23-7)*税額基本情報!$D$17,0),0) -> 0 | F20: =IF(' 給与計算 '!L23<源泉月額表!$B$8,ROUNDDOWN(' 給与計算 '!L23*税額基本情報!$D$23,0),IF(' 給与計算 '!L23=0,0,IF(' 給与計算 '!L23>=税額基本情報!$D$13,MAX(L20:M20),VLOOKUP(' 給与計算 '!L23,源泉月額表!$B:$L,11,1)))) -> 0 | G20: =MAX(IF(' 給与計算 '!L23<源泉月額表!$B$8,ROUNDDOWN(' 給与計算 '!L23*3.063%,0),IF(' 給与計算 '!L23=0,0,IF(' 給与計算 '!L23>=税額基本情報!$D$13,MAX(L20:M20),VLOOKUP(' 給与計算 '!L23,源泉月額表!$B:$L,11,1))))-' 基本情報 '!E23*税額基本情報!$D$20,0) -> 0 | H20: =IF(AND(' 給与計算 '!L23>=税額基本情報!$D$6,' 給与計算 '!L23<税額基本情報!$D$7),VLOOKUP(' 給与計算 '!L23,税額基本情報!$D$6:$M$9,IF(' 基本情報 '!E23>=8,10,' 基本情報 '!E23+3),1)+ROUNDDOWN((' 給与計算 '!L23-税額基本情報!$D$6)*税額基本情報!$E$6,0),0) -> 0 | I20: =IF(AND(' 給与計算 '!L23>=税額基本情報!$D$7,' 給与計算 '!L23<税額基本情報!$D$8),VLOOKUP(' 給与計算 '!L23,税額基本情報!$D$6:$M$9,IF(' 基本情報 '!E23>=8,10,' 基本情報 '!E23+3),1)+ROUNDDOWN((' 給与計算 '!L23-税額基本情報!$D$7)*税額基本情報!$E$7,0),0) -> 0 | J20: =IF(' 給与計算 '!L23>=税額基本情報!$D$8,VLOOKUP(' 給与計算 '!L23,税額基本情報!$D$6:$M$9,IF(' 基本情報 '!E23>=8,10,' 基本情報 '!E23+3),1)+ROUNDDOWN((' 給与計算 '!L23-税額基本情報!$D$8)*税額基本情報!$E$8,0),0) -> 0 | K20: =IF(' 給与計算 '!L23>=税額基本情報!$D$9,VLOOKUP(' 給与計算 '!L23,税額基本情報!$D$6:$M$9,IF(' 基本情報 '!E23>=8,10,' 基本情報 '!E23+3),1)+ROUNDDOWN((' 給与計算 '!L23-税額基本情報!$D$9)*税額基本情報!$E$9,0),0) -> 0 | L20: =IF(AND(' 給与計算 '!L23>=税額基本情報!$D$13,' 給与計算 '!L23<税額基本情報!$D$14),税額基本情報!$F$13+ROUNDDOWN((' 給与計算 '!L23-税額基本情報!$D$13)*税額基本情報!$E$13,0),0) -> 0 | M20: =IF(' 給与計算 '!L23>=税額基本情報!$D$14,税額基本情報!$F$14+ROUNDDOWN((' 給与計算 '!L23-税額基本情報!$D$14)*税額基本情報!$E$14,0),0) -> 0 | N20: =IF(' 賞与計算 '!D23<源泉賞与表!$D$10*1000,0,INDEX(源泉賞与表!$B:$B,MATCH(' 賞与計算 '!D23/1000,源泉賞与表!$D:$D,1))) -> 0 | O20: =IF(' 賞与計算 '!D23<源泉賞与表!$F$10*1000,0,INDEX(源泉賞与表!$B:$B,MATCH(' 賞与計算 '!D23/1000,源泉賞与表!$F:$F,1))) -> 0 | P20: =IF(' 賞与計算 '!D23<源泉賞与表!$H$10*1000,0,INDEX(源泉賞与表!$B:$B,MATCH(' 賞与計算 '!D23/1000,源泉賞与表!$H:$H,1))) -> 0 | Q20: =IF(' 賞与計算 '!D23<源泉賞与表!$J$10*1000,0,INDEX(源泉賞与表!$B:$B,MATCH(' 賞与計算 '!D23/1000,源泉賞与表!$J:$J,1))) -> 0 | R20: =IF(' 賞与計算 '!D23<源泉賞与表!$L$10*1000,0,INDEX(源泉賞与表!$B:$B,MATCH(' 賞与計算 '!D23/1000,源泉賞与表!$L:$L,1))) -> 0 | S20: =IF(' 賞与計算 '!D23<源泉賞与表!$N$10*1000,0,INDEX(源泉賞与表!$B:$B,MATCH(' 賞与計算 '!D23/1000,源泉賞与表!$N:$N,1))) -> 0 | T20: =IF(' 賞与計算 '!D23<源泉賞与表!$P$10*1000,0,INDEX(源泉賞与表!$B:$B,MATCH(' 賞与計算 '!D23/1000,源泉賞与表!$P:$P,1))) -> 0 | U20: =IF(' 賞与計算 '!D23<源泉賞与表!$R$10*1000,0,INDEX(源泉賞与表!$B:$B,MATCH(' 賞与計算 '!D23/1000,源泉賞与表!$R:$R,1))) -> 0 | V20: =IF(' 賞与計算 '!D23="","",IF(' 賞与計算 '!D23<源泉賞与表!$T$22*1000,10.21,INDEX(源泉賞与表!$B:$B,MATCH(' 賞与計算 '!D23/1000,源泉賞与表!$T:$T,1)))) ->  | W20: 0 | X20: =IF(' 基本情報 '!G23="",0,ROUND(VLOOKUP(' 基本情報 '!G23,INDIRECT(' 基本情報 '!$D$3&"!$B$12:$I$61"),6,0)-0.1,0)) -> 0 | Y20: =IF(' 基本情報 '!G23="",0,ROUND(VLOOKUP(' 基本情報 '!G23,INDIRECT(' 基本情報 '!$D$3&"!$B$12:$I$61"),8,0)-0.1,0)) -> 0 | Z20: 0 | AA20: =IF(' 基本情報 '!G23="",0,ROUND(IF(OR(' 基本情報 '!G23<税額基本情報!$E$26,' 基本情報 '!G23>税額基本情報!$E$27),AC20,VLOOKUP(' 基本情報 '!G23,INDIRECT(' 基本情報 '!$D$3&"!$B$15:$K$45"),10,0))-0.1,0)) -> 0 | AB20: =IF(' 基本情報 '!G23="",0,ROUND(IF(OR(' 基本情報 '!G23<税額基本情報!$E$26,' 基本情報 '!G23>税額基本情報!$E$27),AD20,VLOOKUP(' 基本情報 '!G23,INDIRECT(' 基本情報 '!$D$3&"!$B$15:$M$45"),12,0))-0.1,0)) -> 0 | AC20: =IF(' 基本情報 '!G23="",0,IF(' 基本情報 '!G23<税額基本情報!$E$26,税額基本情報!$F$26,IF(' 基本情報 '!G23>税額基本情報!$E$27,税額基本情報!$F$27,0))) -> 0 | AD20: =IF(' 基本情報 '!G23="",0,IF(' 基本情報 '!G23<税額基本情報!$E$26,税額基本情報!$G$26,IF(' 基本情報 '!G23>税額基本情報!$E$27,税額基本情報!$G$27,0))) -> 0 | AE20: 0 | AF20: =ROUND(IF(' 賞与計算 '!F23>税額基本情報!$D$33,税額基本情報!$D$33,ROUNDDOWN(' 賞与計算 '!F23,-3))*INDIRECT(' 基本情報 '!$D$3&"!$F$9")*0.5-0.1,0) -> 0 | AG20: =ROUND(IF(' 賞与計算 '!F23>税額基本情報!$D$33,税額基本情報!$D$33,ROUNDDOWN(' 賞与計算 '!F23,-3))*INDIRECT(' 基本情報 '!$D$3&"!$H$9")/2-0.1,0) -> 0 | AH20: 0 | AI20: =ROUND(IF(' 賞与計算 '!F23>税額基本情報!$D$30,税額基本情報!$D$30,ROUNDDOWN(' 賞与計算 '!F23,-3))*INDIRECT(' 基本情報 '!$D$3&"!$J$9")/2-0.1,0) -> 0 | AJ20: =ROUND(IF(' 賞与計算 '!F23>税額基本情報!$D$30,税額基本情報!$D$30,ROUNDDOWN(' 賞与計算 '!F23,-3))*INDIRECT(' 基本情報 '!$D$3&"!$L$9")/2-0.1,0) -> 0
C21: 17 | D21: =' 給与計算 '!C24 ->  | E21: =MAX(IF(' 給与計算 '!L24>=税額基本情報!$D$6,MAX(計算シート!H21:K21),IF(' 給与計算 '!L24<源泉月額表!$B$8,0,VLOOKUP(' 給与計算 '!L24,源泉月額表!$B:$K,IF(' 基本情報 '!E24>=8,10,' 基本情報 '!E24+3),1)))-IF(' 基本情報 '!E24>=8,(' 基本情報 '!E24-7)*税額基本情報!$D$17,0),0) -> 0 | F21: =IF(' 給与計算 '!L24<源泉月額表!$B$8,ROUNDDOWN(' 給与計算 '!L24*税額基本情報!$D$23,0),IF(' 給与計算 '!L24=0,0,IF(' 給与計算 '!L24>=税額基本情報!$D$13,MAX(L21:M21),VLOOKUP(' 給与計算 '!L24,源泉月額表!$B:$L,11,1)))) -> 0 | G21: =MAX(IF(' 給与計算 '!L24<源泉月額表!$B$8,ROUNDDOWN(' 給与計算 '!L24*3.063%,0),IF(' 給与計算 '!L24=0,0,IF(' 給与計算 '!L24>=税額基本情報!$D$13,MAX(L21:M21),VLOOKUP(' 給与計算 '!L24,源泉月額表!$B:$L,11,1))))-' 基本情報 '!E24*税額基本情報!$D$20,0) -> 0 | H21: =IF(AND(' 給与計算 '!L24>=税額基本情報!$D$6,' 給与計算 '!L24<税額基本情報!$D$7),VLOOKUP(' 給与計算 '!L24,税額基本情報!$D$6:$M$9,IF(' 基本情報 '!E24>=8,10,' 基本情報 '!E24+3),1)+ROUNDDOWN((' 給与計算 '!L24-税額基本情報!$D$6)*税額基本情報!$E$6,0),0) -> 0 | I21: =IF(AND(' 給与計算 '!L24>=税額基本情報!$D$7,' 給与計算 '!L24<税額基本情報!$D$8),VLOOKUP(' 給与計算 '!L24,税額基本情報!$D$6:$M$9,IF(' 基本情報 '!E24>=8,10,' 基本情報 '!E24+3),1)+ROUNDDOWN((' 給与計算 '!L24-税額基本情報!$D$7)*税額基本情報!$E$7,0),0) -> 0 | J21: =IF(' 給与計算 '!L24>=税額基本情報!$D$8,VLOOKUP(' 給与計算 '!L24,税額基本情報!$D$6:$M$9,IF(' 基本情報 '!E24>=8,10,' 基本情報 '!E24+3),1)+ROUNDDOWN((' 給与計算 '!L24-税額基本情報!$D$8)*税額基本情報!$E$8,0),0) -> 0 | K21: =IF(' 給与計算 '!L24>=税額基本情報!$D$9,VLOOKUP(' 給与計算 '!L24,税額基本情報!$D$6:$M$9,IF(' 基本情報 '!E24>=8,10,' 基本情報 '!E24+3),1)+ROUNDDOWN((' 給与計算 '!L24-税額基本情報!$D$9)*税額基本情報!$E$9,0),0) -> 0 | L21: =IF(AND(' 給与計算 '!L24>=税額基本情報!$D$13,' 給与計算 '!L24<税額基本情報!$D$14),税額基本情報!$F$13+ROUNDDOWN((' 給与計算 '!L24-税額基本情報!$D$13)*税額基本情報!$E$13,0),0) -> 0 | M21: =IF(' 給与計算 '!L24>=税額基本情報!$D$14,税額基本情報!$F$14+ROUNDDOWN((' 給与計算 '!L24-税額基本情報!$D$14)*税額基本情報!$E$14,0),0) -> 0 | N21: =IF(' 賞与計算 '!D24<源泉賞与表!$D$10*1000,0,INDEX(源泉賞与表!$B:$B,MATCH(' 賞与計算 '!D24/1000,源泉賞与表!$D:$D,1))) -> 0 | O21: =IF(' 賞与計算 '!D24<源泉賞与表!$F$10*1000,0,INDEX(源泉賞与表!$B:$B,MATCH(' 賞与計算 '!D24/1000,源泉賞与表!$F:$F,1))) -> 0 | P21: =IF(' 賞与計算 '!D24<源泉賞与表!$H$10*1000,0,INDEX(源泉賞与表!$B:$B,MATCH(' 賞与計算 '!D24/1000,源泉賞与表!$H:$H,1))) -> 0 | Q21: =IF(' 賞与計算 '!D24<源泉賞与表!$J$10*1000,0,INDEX(源泉賞与表!$B:$B,MATCH(' 賞与計算 '!D24/1000,源泉賞与表!$J:$J,1))) -> 0 | R21: =IF(' 賞与計算 '!D24<源泉賞与表!$L$10*1000,0,INDEX(源泉賞与表!$B:$B,MATCH(' 賞与計算 '!D24/1000,源泉賞与表!$L:$L,1))) -> 0 | S21: =IF(' 賞与計算 '!D24<源泉賞与表!$N$10*1000,0,INDEX(源泉賞与表!$B:$B,MATCH(' 賞与計算 '!D24/1000,源泉賞与表!$N:$N,1))) -> 0 | T21: =IF(' 賞与計算 '!D24<源泉賞与表!$P$10*1000,0,INDEX(源泉賞与表!$B:$B,MATCH(' 賞与計算 '!D24/1000,源泉賞与表!$P:$P,1))) -> 0 | U21: =IF(' 賞与計算 '!D24<源泉賞与表!$R$10*1000,0,INDEX(源泉賞与表!$B:$B,MATCH(' 賞与計算 '!D24/1000,源泉賞与表!$R:$R,1))) -> 0 | V21: =IF(' 賞与計算 '!D24="","",IF(' 賞与計算 '!D24<源泉賞与表!$T$22*1000,10.21,INDEX(源泉賞与表!$B:$B,MATCH(' 賞与計算 '!D24/1000,源泉賞与表!$T:$T,1)))) ->  | W21: 0 | X21: =IF(' 基本情報 '!G24="",0,ROUND(VLOOKUP(' 基本情報 '!G24,INDIRECT(' 基本情報 '!$D$3&"!$B$12:$I$61"),6,0)-0.1,0)) -> 0 | Y21: =IF(' 基本情報 '!G24="",0,ROUND(VLOOKUP(' 基本情報 '!G24,INDIRECT(' 基本情報 '!$D$3&"!$B$12:$I$61"),8,0)-0.1,0)) -> 0 | Z21: 0 | AA21: =IF(' 基本情報 '!G24="",0,ROUND(IF(OR(' 基本情報 '!G24<税額基本情報!$E$26,' 基本情報 '!G24>税額基本情報!$E$27),AC21,VLOOKUP(' 基本情報 '!G24,INDIRECT(' 基本情報 '!$D$3&"!$B$15:$K$45"),10,0))-0.1,0)) -> 0 | AB21: =IF(' 基本情報 '!G24="",0,ROUND(IF(OR(' 基本情報 '!G24<税額基本情報!$E$26,' 基本情報 '!G24>税額基本情報!$E$27),AD21,VLOOKUP(' 基本情報 '!G24,INDIRECT(' 基本情報 '!$D$3&"!$B$15:$M$45"),12,0))-0.1,0)) -> 0 | AC21: =IF(' 基本情報 '!G24="",0,IF(' 基本情報 '!G24<税額基本情報!$E$26,税額基本情報!$F$26,IF(' 基本情報 '!G24>税額基本情報!$E$27,税額基本情報!$F$27,0))) -> 0 | AD21: =IF(' 基本情報 '!G24="",0,IF(' 基本情報 '!G24<税額基本情報!$E$26,税額基本情報!$G$26,IF(' 基本情報 '!G24>税額基本情報!$E$27,税額基本情報!$G$27,0))) -> 0 | AE21: 0 | AF21: =ROUND(IF(' 賞与計算 '!F24>税額基本情報!$D$33,税額基本情報!$D$33,ROUNDDOWN(' 賞与計算 '!F24,-3))*INDIRECT(' 基本情報 '!$D$3&"!$F$9")*0.5-0.1,0) -> 0 | AG21: =ROUND(IF(' 賞与計算 '!F24>税額基本情報!$D$33,税額基本情報!$D$33,ROUNDDOWN(' 賞与計算 '!F24,-3))*INDIRECT(' 基本情報 '!$D$3&"!$H$9")/2-0.1,0) -> 0 | AH21: 0 | AI21: =ROUND(IF(' 賞与計算 '!F24>税額基本情報!$D$30,税額基本情報!$D$30,ROUNDDOWN(' 賞与計算 '!F24,-3))*INDIRECT(' 基本情報 '!$D$3&"!$J$9")/2-0.1,0) -> 0 | AJ21: =ROUND(IF(' 賞与計算 '!F24>税額基本情報!$D$30,税額基本情報!$D$30,ROUNDDOWN(' 賞与計算 '!F24,-3))*INDIRECT(' 基本情報 '!$D$3&"!$L$9")/2-0.1,0) -> 0
C22: 18 | D22: =' 給与計算 '!C25 ->  | E22: =MAX(IF(' 給与計算 '!L25>=税額基本情報!$D$6,MAX(計算シート!H22:K22),IF(' 給与計算 '!L25<源泉月額表!$B$8,0,VLOOKUP(' 給与計算 '!L25,源泉月額表!$B:$K,IF(' 基本情報 '!E25>=8,10,' 基本情報 '!E25+3),1)))-IF(' 基本情報 '!E25>=8,(' 基本情報 '!E25-7)*税額基本情報!$D$17,0),0) -> 0 | F22: =IF(' 給与計算 '!L25<源泉月額表!$B$8,ROUNDDOWN(' 給与計算 '!L25*税額基本情報!$D$23,0),IF(' 給与計算 '!L25=0,0,IF(' 給与計算 '!L25>=税額基本情報!$D$13,MAX(L22:M22),VLOOKUP(' 給与計算 '!L25,源泉月額表!$B:$L,11,1)))) -> 0 | G22: =MAX(IF(' 給与計算 '!L25<源泉月額表!$B$8,ROUNDDOWN(' 給与計算 '!L25*3.063%,0),IF(' 給与計算 '!L25=0,0,IF(' 給与計算 '!L25>=税額基本情報!$D$13,MAX(L22:M22),VLOOKUP(' 給与計算 '!L25,源泉月額表!$B:$L,11,1))))-' 基本情報 '!E25*税額基本情報!$D$20,0) -> 0 | H22: =IF(AND(' 給与計算 '!L25>=税額基本情報!$D$6,' 給与計算 '!L25<税額基本情報!$D$7),VLOOKUP(' 給与計算 '!L25,税額基本情報!$D$6:$M$9,IF(' 基本情報 '!E25>=8,10,' 基本情報 '!E25+3),1)+ROUNDDOWN((' 給与計算 '!L25-税額基本情報!$D$6)*税額基本情報!$E$6,0),0) -> 0 | I22: =IF(AND(' 給与計算 '!L25>=税額基本情報!$D$7,' 給与計算 '!L25<税額基本情報!$D$8),VLOOKUP(' 給与計算 '!L25,税額基本情報!$D$6:$M$9,IF(' 基本情報 '!E25>=8,10,' 基本情報 '!E25+3),1)+ROUNDDOWN((' 給与計算 '!L25-税額基本情報!$D$7)*税額基本情報!$E$7,0),0) -> 0 | J22: =IF(' 給与計算 '!L25>=税額基本情報!$D$8,VLOOKUP(' 給与計算 '!L25,税額基本情報!$D$6:$M$9,IF(' 基本情報 '!E25>=8,10,' 基本情報 '!E25+3),1)+ROUNDDOWN((' 給与計算 '!L25-税額基本情報!$D$8)*税額基本情報!$E$8,0),0) -> 0 | K22: =IF(' 給与計算 '!L25>=税額基本情報!$D$9,VLOOKUP(' 給与計算 '!L25,税額基本情報!$D$6:$M$9,IF(' 基本情報 '!E25>=8,10,' 基本情報 '!E25+3),1)+ROUNDDOWN((' 給与計算 '!L25-税額基本情報!$D$9)*税額基本情報!$E$9,0),0) -> 0 | L22: =IF(AND(' 給与計算 '!L25>=税額基本情報!$D$13,' 給与計算 '!L25<税額基本情報!$D$14),税額基本情報!$F$13+ROUNDDOWN((' 給与計算 '!L25-税額基本情報!$D$13)*税額基本情報!$E$13,0),0) -> 0 | M22: =IF(' 給与計算 '!L25>=税額基本情報!$D$14,税額基本情報!$F$14+ROUNDDOWN((' 給与計算 '!L25-税額基本情報!$D$14)*税額基本情報!$E$14,0),0) -> 0 | N22: =IF(' 賞与計算 '!D25<源泉賞与表!$D$10*1000,0,INDEX(源泉賞与表!$B:$B,MATCH(' 賞与計算 '!D25/1000,源泉賞与表!$D:$D,1))) -> 0 | O22: =IF(' 賞与計算 '!D25<源泉賞与表!$F$10*1000,0,INDEX(源泉賞与表!$B:$B,MATCH(' 賞与計算 '!D25/1000,源泉賞与表!$F:$F,1))) -> 0 | P22: =IF(' 賞与計算 '!D25<源泉賞与表!$H$10*1000,0,INDEX(源泉賞与表!$B:$B,MATCH(' 賞与計算 '!D25/1000,源泉賞与表!$H:$H,1))) -> 0 | Q22: =IF(' 賞与計算 '!D25<源泉賞与表!$J$10*1000,0,INDEX(源泉賞与表!$B:$B,MATCH(' 賞与計算 '!D25/1000,源泉賞与表!$J:$J,1))) -> 0 | R22: =IF(' 賞与計算 '!D25<源泉賞与表!$L$10*1000,0,INDEX(源泉賞与表!$B:$B,MATCH(' 賞与計算 '!D25/1000,源泉賞与表!$L:$L,1))) -> 0 | S22: =IF(' 賞与計算 '!D25<源泉賞与表!$N$10*1000,0,INDEX(源泉賞与表!$B:$B,MATCH(' 賞与計算 '!D25/1000,源泉賞与表!$N:$N,1))) -> 0 | T22: =IF(' 賞与計算 '!D25<源泉賞与表!$P$10*1000,0,INDEX(源泉賞与表!$B:$B,MATCH(' 賞与計算 '!D25/1000,源泉賞与表!$P:$P,1))) -> 0 | U22: =IF(' 賞与計算 '!D25<源泉賞与表!$R$10*1000,0,INDEX(源泉賞与表!$B:$B,MATCH(' 賞与計算 '!D25/1000,源泉賞与表!$R:$R,1))) -> 0 | V22: =IF(' 賞与計算 '!D25="","",IF(' 賞与計算 '!D25<源泉賞与表!$T$22*1000,10.21,INDEX(源泉賞与表!$B:$B,MATCH(' 賞与計算 '!D25/1000,源泉賞与表!$T:$T,1)))) ->  | W22: 0 | X22: =IF(' 基本情報 '!G25="",0,ROUND(VLOOKUP(' 基本情報 '!G25,INDIRECT(' 基本情報 '!$D$3&"!$B$12:$I$61"),6,0)-0.1,0)) -> 0 | Y22: =IF(' 基本情報 '!G25="",0,ROUND(VLOOKUP(' 基本情報 '!G25,INDIRECT(' 基本情報 '!$D$3&"!$B$12:$I$61"),8,0)-0.1,0)) -> 0 | Z22: 0 | AA22: =IF(' 基本情報 '!G25="",0,ROUND(IF(OR(' 基本情報 '!G25<税額基本情報!$E$26,' 基本情報 '!G25>税額基本情報!$E$27),AC22,VLOOKUP(' 基本情報 '!G25,INDIRECT(' 基本情報 '!$D$3&"!$B$15:$K$45"),10,0))-0.1,0)) -> 0 | AB22: =IF(' 基本情報 '!G25="",0,ROUND(IF(OR(' 基本情報 '!G25<税額基本情報!$E$26,' 基本情報 '!G25>税額基本情報!$E$27),AD22,VLOOKUP(' 基本情報 '!G25,INDIRECT(' 基本情報 '!$D$3&"!$B$15:$M$45"),12,0))-0.1,0)) -> 0 | AC22: =IF(' 基本情報 '!G25="",0,IF(' 基本情報 '!G25<税額基本情報!$E$26,税額基本情報!$F$26,IF(' 基本情報 '!G25>税額基本情報!$E$27,税額基本情報!$F$27,0))) -> 0 | AD22: =IF(' 基本情報 '!G25="",0,IF(' 基本情報 '!G25<税額基本情報!$E$26,税額基本情報!$G$26,IF(' 基本情報 '!G25>税額基本情報!$E$27,税額基本情報!$G$27,0))) -> 0 | AE22: 0 | AF22: =ROUND(IF(' 賞与計算 '!F25>税額基本情報!$D$33,税額基本情報!$D$33,ROUNDDOWN(' 賞与計算 '!F25,-3))*INDIRECT(' 基本情報 '!$D$3&"!$F$9")*0.5-0.1,0) -> 0 | AG22: =ROUND(IF(' 賞与計算 '!F25>税額基本情報!$D$33,税額基本情報!$D$33,ROUNDDOWN(' 賞与計算 '!F25,-3))*INDIRECT(' 基本情報 '!$D$3&"!$H$9")/2-0.1,0) -> 0 | AH22: 0 | AI22: =ROUND(IF(' 賞与計算 '!F25>税額基本情報!$D$30,税額基本情報!$D$30,ROUNDDOWN(' 賞与計算 '!F25,-3))*INDIRECT(' 基本情報 '!$D$3&"!$J$9")/2-0.1,0) -> 0 | AJ22: =ROUND(IF(' 賞与計算 '!F25>税額基本情報!$D$30,税額基本情報!$D$30,ROUNDDOWN(' 賞与計算 '!F25,-3))*INDIRECT(' 基本情報 '!$D$3&"!$L$9")/2-0.1,0) -> 0
C23: 19 | D23: =' 給与計算 '!C26 ->  | E23: =MAX(IF(' 給与計算 '!L26>=税額基本情報!$D$6,MAX(計算シート!H23:K23),IF(' 給与計算 '!L26<源泉月額表!$B$8,0,VLOOKUP(' 給与計算 '!L26,源泉月額表!$B:$K,IF(' 基本情報 '!E26>=8,10,' 基本情報 '!E26+3),1)))-IF(' 基本情報 '!E26>=8,(' 基本情報 '!E26-7)*税額基本情報!$D$17,0),0) -> 0 | F23: =IF(' 給与計算 '!L26<源泉月額表!$B$8,ROUNDDOWN(' 給与計算 '!L26*税額基本情報!$D$23,0),IF(' 給与計算 '!L26=0,0,IF(' 給与計算 '!L26>=税額基本情報!$D$13,MAX(L23:M23),VLOOKUP(' 給与計算 '!L26,源泉月額表!$B:$L,11,1)))) -> 0 | G23: =MAX(IF(' 給与計算 '!L26<源泉月額表!$B$8,ROUNDDOWN(' 給与計算 '!L26*3.063%,0),IF(' 給与計算 '!L26=0,0,IF(' 給与計算 '!L26>=税額基本情報!$D$13,MAX(L23:M23),VLOOKUP(' 給与計算 '!L26,源泉月額表!$B:$L,11,1))))-' 基本情報 '!E26*税額基本情報!$D$20,0) -> 0 | H23: =IF(AND(' 給与計算 '!L26>=税額基本情報!$D$6,' 給与計算 '!L26<税額基本情報!$D$7),VLOOKUP(' 給与計算 '!L26,税額基本情報!$D$6:$M$9,IF(' 基本情報 '!E26>=8,10,' 基本情報 '!E26+3),1)+ROUNDDOWN((' 給与計算 '!L26-税額基本情報!$D$6)*税額基本情報!$E$6,0),0) -> 0 | I23: =IF(AND(' 給与計算 '!L26>=税額基本情報!$D$7,' 給与計算 '!L26<税額基本情報!$D$8),VLOOKUP(' 給与計算 '!L26,税額基本情報!$D$6:$M$9,IF(' 基本情報 '!E26>=8,10,' 基本情報 '!E26+3),1)+ROUNDDOWN((' 給与計算 '!L26-税額基本情報!$D$7)*税額基本情報!$E$7,0),0) -> 0 | J23: =IF(' 給与計算 '!L26>=税額基本情報!$D$8,VLOOKUP(' 給与計算 '!L26,税額基本情報!$D$6:$M$9,IF(' 基本情報 '!E26>=8,10,' 基本情報 '!E26+3),1)+ROUNDDOWN((' 給与計算 '!L26-税額基本情報!$D$8)*税額基本情報!$E$8,0),0) -> 0 | K23: =IF(' 給与計算 '!L26>=税額基本情報!$D$9,VLOOKUP(' 給与計算 '!L26,税額基本情報!$D$6:$M$9,IF(' 基本情報 '!E26>=8,10,' 基本情報 '!E26+3),1)+ROUNDDOWN((' 給与計算 '!L26-税額基本情報!$D$9)*税額基本情報!$E$9,0),0) -> 0 | L23: =IF(AND(' 給与計算 '!L26>=税額基本情報!$D$13,' 給与計算 '!L26<税額基本情報!$D$14),税額基本情報!$F$13+ROUNDDOWN((' 給与計算 '!L26-税額基本情報!$D$13)*税額基本情報!$E$13,0),0) -> 0 | M23: =IF(' 給与計算 '!L26>=税額基本情報!$D$14,税額基本情報!$F$14+ROUNDDOWN((' 給与計算 '!L26-税額基本情報!$D$14)*税額基本情報!$E$14,0),0) -> 0 | N23: =IF(' 賞与計算 '!D26<源泉賞与表!$D$10*1000,0,INDEX(源泉賞与表!$B:$B,MATCH(' 賞与計算 '!D26/1000,源泉賞与表!$D:$D,1))) -> 0 | O23: =IF(' 賞与計算 '!D26<源泉賞与表!$F$10*1000,0,INDEX(源泉賞与表!$B:$B,MATCH(' 賞与計算 '!D26/1000,源泉賞与表!$F:$F,1))) -> 0 | P23: =IF(' 賞与計算 '!D26<源泉賞与表!$H$10*1000,0,INDEX(源泉賞与表!$B:$B,MATCH(' 賞与計算 '!D26/1000,源泉賞与表!$H:$H,1))) -> 0 | Q23: =IF(' 賞与計算 '!D26<源泉賞与表!$J$10*1000,0,INDEX(源泉賞与表!$B:$B,MATCH(' 賞与計算 '!D26/1000,源泉賞与表!$J:$J,1))) -> 0 | R23: =IF(' 賞与計算 '!D26<源泉賞与表!$L$10*1000,0,INDEX(源泉賞与表!$B:$B,MATCH(' 賞与計算 '!D26/1000,源泉賞与表!$L:$L,1))) -> 0 | S23: =IF(' 賞与計算 '!D26<源泉賞与表!$N$10*1000,0,INDEX(源泉賞与表!$B:$B,MATCH(' 賞与計算 '!D26/1000,源泉賞与表!$N:$N,1))) -> 0 | T23: =IF(' 賞与計算 '!D26<源泉賞与表!$P$10*1000,0,INDEX(源泉賞与表!$B:$B,MATCH(' 賞与計算 '!D26/1000,源泉賞与表!$P:$P,1))) -> 0 | U23: =IF(' 賞与計算 '!D26<源泉賞与表!$R$10*1000,0,INDEX(源泉賞与表!$B:$B,MATCH(' 賞与計算 '!D26/1000,源泉賞与表!$R:$R,1))) -> 0 | V23: =IF(' 賞与計算 '!D26="","",IF(' 賞与計算 '!D26<源泉賞与表!$T$22*1000,10.21,INDEX(源泉賞与表!$B:$B,MATCH(' 賞与計算 '!D26/1000,源泉賞与表!$T:$T,1)))) ->  | W23: 0 | X23: =IF(' 基本情報 '!G26="",0,ROUND(VLOOKUP(' 基本情報 '!G26,INDIRECT(' 基本情報 '!$D$3&"!$B$12:$I$61"),6,0)-0.1,0)) -> 0 | Y23: =IF(' 基本情報 '!G26="",0,ROUND(VLOOKUP(' 基本情報 '!G26,INDIRECT(' 基本情報 '!$D$3&"!$B$12:$I$61"),8,0)-0.1,0)) -> 0 | Z23: 0 | AA23: =IF(' 基本情報 '!G26="",0,ROUND(IF(OR(' 基本情報 '!G26<税額基本情報!$E$26,' 基本情報 '!G26>税額基本情報!$E$27),AC23,VLOOKUP(' 基本情報 '!G26,INDIRECT(' 基本情報 '!$D$3&"!$B$15:$K$45"),10,0))-0.1,0)) -> 0 | AB23: =IF(' 基本情報 '!G26="",0,ROUND(IF(OR(' 基本情報 '!G26<税額基本情報!$E$26,' 基本情報 '!G26>税額基本情報!$E$27),AD23,VLOOKUP(' 基本情報 '!G26,INDIRECT(' 基本情報 '!$D$3&"!$B$15:$M$45"),12,0))-0.1,0)) -> 0 | AC23: =IF(' 基本情報 '!G26="",0,IF(' 基本情報 '!G26<税額基本情報!$E$26,税額基本情報!$F$26,IF(' 基本情報 '!G26>税額基本情報!$E$27,税額基本情報!$F$27,0))) -> 0 | AD23: =IF(' 基本情報 '!G26="",0,IF(' 基本情報 '!G26<税額基本情報!$E$26,税額基本情報!$G$26,IF(' 基本情報 '!G26>税額基本情報!$E$27,税額基本情報!$G$27,0))) -> 0 | AE23: 0 | AF23: =ROUND(IF(' 賞与計算 '!F26>税額基本情報!$D$33,税額基本情報!$D$33,ROUNDDOWN(' 賞与計算 '!F26,-3))*INDIRECT(' 基本情報 '!$D$3&"!$F$9")*0.5-0.1,0) -> 0 | AG23: =ROUND(IF(' 賞与計算 '!F26>税額基本情報!$D$33,税額基本情報!$D$33,ROUNDDOWN(' 賞与計算 '!F26,-3))*INDIRECT(' 基本情報 '!$D$3&"!$H$9")/2-0.1,0) -> 0 | AH23: 0 | AI23: =ROUND(IF(' 賞与計算 '!F26>税額基本情報!$D$30,税額基本情報!$D$30,ROUNDDOWN(' 賞与計算 '!F26,-3))*INDIRECT(' 基本情報 '!$D$3&"!$J$9")/2-0.1,0) -> 0 | AJ23: =ROUND(IF(' 賞与計算 '!F26>税額基本情報!$D$30,税額基本情報!$D$30,ROUNDDOWN(' 賞与計算 '!F26,-3))*INDIRECT(' 基本情報 '!$D$3&"!$L$9")/2-0.1,0) -> 0
C24: 20 | D24: =' 給与計算 '!C27 ->  | E24: =MAX(IF(' 給与計算 '!L27>=税額基本情報!$D$6,MAX(計算シート!H24:K24),IF(' 給与計算 '!L27<源泉月額表!$B$8,0,VLOOKUP(' 給与計算 '!L27,源泉月額表!$B:$K,IF(' 基本情報 '!E27>=8,10,' 基本情報 '!E27+3),1)))-IF(' 基本情報 '!E27>=8,(' 基本情報 '!E27-7)*税額基本情報!$D$17,0),0) -> 0 | F24: =IF(' 給与計算 '!L27<源泉月額表!$B$8,ROUNDDOWN(' 給与計算 '!L27*税額基本情報!$D$23,0),IF(' 給与計算 '!L27=0,0,IF(' 給与計算 '!L27>=税額基本情報!$D$13,MAX(L24:M24),VLOOKUP(' 給与計算 '!L27,源泉月額表!$B:$L,11,1)))) -> 0 | G24: =MAX(IF(' 給与計算 '!L27<源泉月額表!$B$8,ROUNDDOWN(' 給与計算 '!L27*3.063%,0),IF(' 給与計算 '!L27=0,0,IF(' 給与計算 '!L27>=税額基本情報!$D$13,MAX(L24:M24),VLOOKUP(' 給与計算 '!L27,源泉月額表!$B:$L,11,1))))-' 基本情報 '!E27*税額基本情報!$D$20,0) -> 0 | H24: =IF(AND(' 給与計算 '!L27>=税額基本情報!$D$6,' 給与計算 '!L27<税額基本情報!$D$7),VLOOKUP(' 給与計算 '!L27,税額基本情報!$D$6:$M$9,IF(' 基本情報 '!E27>=8,10,' 基本情報 '!E27+3),1)+ROUNDDOWN((' 給与計算 '!L27-税額基本情報!$D$6)*税額基本情報!$E$6,0),0) -> 0 | I24: =IF(AND(' 給与計算 '!L27>=税額基本情報!$D$7,' 給与計算 '!L27<税額基本情報!$D$8),VLOOKUP(' 給与計算 '!L27,税額基本情報!$D$6:$M$9,IF(' 基本情報 '!E27>=8,10,' 基本情報 '!E27+3),1)+ROUNDDOWN((' 給与計算 '!L27-税額基本情報!$D$7)*税額基本情報!$E$7,0),0) -> 0 | J24: =IF(' 給与計算 '!L27>=税額基本情報!$D$8,VLOOKUP(' 給与計算 '!L27,税額基本情報!$D$6:$M$9,IF(' 基本情報 '!E27>=8,10,' 基本情報 '!E27+3),1)+ROUNDDOWN((' 給与計算 '!L27-税額基本情報!$D$8)*税額基本情報!$E$8,0),0) -> 0 | K24: =IF(' 給与計算 '!L27>=税額基本情報!$D$9,VLOOKUP(' 給与計算 '!L27,税額基本情報!$D$6:$M$9,IF(' 基本情報 '!E27>=8,10,' 基本情報 '!E27+3),1)+ROUNDDOWN((' 給与計算 '!L27-税額基本情報!$D$9)*税額基本情報!$E$9,0),0) -> 0 | L24: =IF(AND(' 給与計算 '!L27>=税額基本情報!$D$13,' 給与計算 '!L27<税額基本情報!$D$14),税額基本情報!$F$13+ROUNDDOWN((' 給与計算 '!L27-税額基本情報!$D$13)*税額基本情報!$E$13,0),0) -> 0 | M24: =IF(' 給与計算 '!L27>=税額基本情報!$D$14,税額基本情報!$F$14+ROUNDDOWN((' 給与計算 '!L27-税額基本情報!$D$14)*税額基本情報!$E$14,0),0) -> 0 | N24: =IF(' 賞与計算 '!D27<源泉賞与表!$D$10*1000,0,INDEX(源泉賞与表!$B:$B,MATCH(' 賞与計算 '!D27/1000,源泉賞与表!$D:$D,1))) -> 0 | O24: =IF(' 賞与計算 '!D27<源泉賞与表!$F$10*1000,0,INDEX(源泉賞与表!$B:$B,MATCH(' 賞与計算 '!D27/1000,源泉賞与表!$F:$F,1))) -> 0 | P24: =IF(' 賞与計算 '!D27<源泉賞与表!$H$10*1000,0,INDEX(源泉賞与表!$B:$B,MATCH(' 賞与計算 '!D27/1000,源泉賞与表!$H:$H,1))) -> 0 | Q24: =IF(' 賞与計算 '!D27<源泉賞与表!$J$10*1000,0,INDEX(源泉賞与表!$B:$B,MATCH(' 賞与計算 '!D27/1000,源泉賞与表!$J:$J,1))) -> 0 | R24: =IF(' 賞与計算 '!D27<源泉賞与表!$L$10*1000,0,INDEX(源泉賞与表!$B:$B,MATCH(' 賞与計算 '!D27/1000,源泉賞与表!$L:$L,1))) -> 0 | S24: =IF(' 賞与計算 '!D27<源泉賞与表!$N$10*1000,0,INDEX(源泉賞与表!$B:$B,MATCH(' 賞与計算 '!D27/1000,源泉賞与表!$N:$N,1))) -> 0 | T24: =IF(' 賞与計算 '!D27<源泉賞与表!$P$10*1000,0,INDEX(源泉賞与表!$B:$B,MATCH(' 賞与計算 '!D27/1000,源泉賞与表!$P:$P,1))) -> 0 | U24: =IF(' 賞与計算 '!D27<源泉賞与表!$R$10*1000,0,INDEX(源泉賞与表!$B:$B,MATCH(' 賞与計算 '!D27/1000,源泉賞与表!$R:$R,1))) -> 0 | V24: =IF(' 賞与計算 '!D27="","",IF(' 賞与計算 '!D27<源泉賞与表!$T$22*1000,10.21,INDEX(源泉賞与表!$B:$B,MATCH(' 賞与計算 '!D27/1000,源泉賞与表!$T:$T,1)))) ->  | W24: 0 | X24: =IF(' 基本情報 '!G27="",0,ROUND(VLOOKUP(' 基本情報 '!G27,INDIRECT(' 基本情報 '!$D$3&"!$B$12:$I$61"),6,0)-0.1,0)) -> 0 | Y24: =IF(' 基本情報 '!G27="",0,ROUND(VLOOKUP(' 基本情報 '!G27,INDIRECT(' 基本情報 '!$D$3&"!$B$12:$I$61"),8,0)-0.1,0)) -> 0 | Z24: 0 | AA24: =IF(' 基本情報 '!G27="",0,ROUND(IF(OR(' 基本情報 '!G27<税額基本情報!$E$26,' 基本情報 '!G27>税額基本情報!$E$27),AC24,VLOOKUP(' 基本情報 '!G27,INDIRECT(' 基本情報 '!$D$3&"!$B$15:$K$45"),10,0))-0.1,0)) -> 0 | AB24: =IF(' 基本情報 '!G27="",0,ROUND(IF(OR(' 基本情報 '!G27<税額基本情報!$E$26,' 基本情報 '!G27>税額基本情報!$E$27),AD24,VLOOKUP(' 基本情報 '!G27,INDIRECT(' 基本情報 '!$D$3&"!$B$15:$M$45"),12,0))-0.1,0)) -> 0 | AC24: =IF(' 基本情報 '!G27="",0,IF(' 基本情報 '!G27<税額基本情報!$E$26,税額基本情報!$F$26,IF(' 基本情報 '!G27>税額基本情報!$E$27,税額基本情報!$F$27,0))) -> 0 | AD24: =IF(' 基本情報 '!G27="",0,IF(' 基本情報 '!G27<税額基本情報!$E$26,税額基本情報!$G$26,IF(' 基本情報 '!G27>税額基本情報!$E$27,税額基本情報!$G$27,0))) -> 0 | AE24: 0 | AF24: =ROUND(IF(' 賞与計算 '!F27>税額基本情報!$D$33,税額基本情報!$D$33,ROUNDDOWN(' 賞与計算 '!F27,-3))*INDIRECT(' 基本情報 '!$D$3&"!$F$9")*0.5-0.1,0) -> 0 | AG24: =ROUND(IF(' 賞与計算 '!F27>税額基本情報!$D$33,税額基本情報!$D$33,ROUNDDOWN(' 賞与計算 '!F27,-3))*INDIRECT(' 基本情報 '!$D$3&"!$H$9")/2-0.1,0) -> 0 | AH24: 0 | AI24: =ROUND(IF(' 賞与計算 '!F27>税額基本情報!$D$30,税額基本情報!$D$30,ROUNDDOWN(' 賞与計算 '!F27,-3))*INDIRECT(' 基本情報 '!$D$3&"!$J$9")/2-0.1,0) -> 0 | AJ24: =ROUND(IF(' 賞与計算 '!F27>税額基本情報!$D$30,税額基本情報!$D$30,ROUNDDOWN(' 賞与計算 '!F27,-3))*INDIRECT(' 基本情報 '!$D$3&"!$L$9")/2-0.1,0) -> 0
C25: 21 | D25: =' 給与計算 '!C28 ->  | E25: =MAX(IF(' 給与計算 '!L28>=税額基本情報!$D$6,MAX(計算シート!H25:K25),IF(' 給与計算 '!L28<源泉月額表!$B$8,0,VLOOKUP(' 給与計算 '!L28,源泉月額表!$B:$K,IF(' 基本情報 '!E28>=8,10,' 基本情報 '!E28+3),1)))-IF(' 基本情報 '!E28>=8,(' 基本情報 '!E28-7)*税額基本情報!$D$17,0),0) -> 0 | F25: =IF(' 給与計算 '!L28<源泉月額表!$B$8,ROUNDDOWN(' 給与計算 '!L28*税額基本情報!$D$23,0),IF(' 給与計算 '!L28=0,0,IF(' 給与計算 '!L28>=税額基本情報!$D$13,MAX(L25:M25),VLOOKUP(' 給与計算 '!L28,源泉月額表!$B:$L,11,1)))) -> 0 | G25: =MAX(IF(' 給与計算 '!L28<源泉月額表!$B$8,ROUNDDOWN(' 給与計算 '!L28*3.063%,0),IF(' 給与計算 '!L28=0,0,IF(' 給与計算 '!L28>=税額基本情報!$D$13,MAX(L25:M25),VLOOKUP(' 給与計算 '!L28,源泉月額表!$B:$L,11,1))))-' 基本情報 '!E28*税額基本情報!$D$20,0) -> 0 | H25: =IF(AND(' 給与計算 '!L28>=税額基本情報!$D$6,' 給与計算 '!L28<税額基本情報!$D$7),VLOOKUP(' 給与計算 '!L28,税額基本情報!$D$6:$M$9,IF(' 基本情報 '!E28>=8,10,' 基本情報 '!E28+3),1)+ROUNDDOWN((' 給与計算 '!L28-税額基本情報!$D$6)*税額基本情報!$E$6,0),0) -> 0 | I25: =IF(AND(' 給与計算 '!L28>=税額基本情報!$D$7,' 給与計算 '!L28<税額基本情報!$D$8),VLOOKUP(' 給与計算 '!L28,税額基本情報!$D$6:$M$9,IF(' 基本情報 '!E28>=8,10,' 基本情報 '!E28+3),1)+ROUNDDOWN((' 給与計算 '!L28-税額基本情報!$D$7)*税額基本情報!$E$7,0),0) -> 0 | J25: =IF(' 給与計算 '!L28>=税額基本情報!$D$8,VLOOKUP(' 給与計算 '!L28,税額基本情報!$D$6:$M$9,IF(' 基本情報 '!E28>=8,10,' 基本情報 '!E28+3),1)+ROUNDDOWN((' 給与計算 '!L28-税額基本情報!$D$8)*税額基本情報!$E$8,0),0) -> 0 | K25: =IF(' 給与計算 '!L28>=税額基本情報!$D$9,VLOOKUP(' 給与計算 '!L28,税額基本情報!$D$6:$M$9,IF(' 基本情報 '!E28>=8,10,' 基本情報 '!E28+3),1)+ROUNDDOWN((' 給与計算 '!L28-税額基本情報!$D$9)*税額基本情報!$E$9,0),0) -> 0 | L25: =IF(AND(' 給与計算 '!L28>=税額基本情報!$D$13,' 給与計算 '!L28<税額基本情報!$D$14),税額基本情報!$F$13+ROUNDDOWN((' 給与計算 '!L28-税額基本情報!$D$13)*税額基本情報!$E$13,0),0) -> 0 | M25: =IF(' 給与計算 '!L28>=税額基本情報!$D$14,税額基本情報!$F$14+ROUNDDOWN((' 給与計算 '!L28-税額基本情報!$D$14)*税額基本情報!$E$14,0),0) -> 0 | N25: =IF(' 賞与計算 '!D28<源泉賞与表!$D$10*1000,0,INDEX(源泉賞与表!$B:$B,MATCH(' 賞与計算 '!D28/1000,源泉賞与表!$D:$D,1))) -> 0 | O25: =IF(' 賞与計算 '!D28<源泉賞与表!$F$10*1000,0,INDEX(源泉賞与表!$B:$B,MATCH(' 賞与計算 '!D28/1000,源泉賞与表!$F:$F,1))) -> 0 | P25: =IF(' 賞与計算 '!D28<源泉賞与表!$H$10*1000,0,INDEX(源泉賞与表!$B:$B,MATCH(' 賞与計算 '!D28/1000,源泉賞与表!$H:$H,1))) -> 0 | Q25: =IF(' 賞与計算 '!D28<源泉賞与表!$J$10*1000,0,INDEX(源泉賞与表!$B:$B,MATCH(' 賞与計算 '!D28/1000,源泉賞与表!$J:$J,1))) -> 0 | R25: =IF(' 賞与計算 '!D28<源泉賞与表!$L$10*1000,0,INDEX(源泉賞与表!$B:$B,MATCH(' 賞与計算 '!D28/1000,源泉賞与表!$L:$L,1))) -> 0 | S25: =IF(' 賞与計算 '!D28<源泉賞与表!$N$10*1000,0,INDEX(源泉賞与表!$B:$B,MATCH(' 賞与計算 '!D28/1000,源泉賞与表!$N:$N,1))) -> 0 | T25: =IF(' 賞与計算 '!D28<源泉賞与表!$P$10*1000,0,INDEX(源泉賞与表!$B:$B,MATCH(' 賞与計算 '!D28/1000,源泉賞与表!$P:$P,1))) -> 0 | U25: =IF(' 賞与計算 '!D28<源泉賞与表!$R$10*1000,0,INDEX(源泉賞与表!$B:$B,MATCH(' 賞与計算 '!D28/1000,源泉賞与表!$R:$R,1))) -> 0 | V25: =IF(' 賞与計算 '!D28="","",IF(' 賞与計算 '!D28<源泉賞与表!$T$22*1000,10.21,INDEX(源泉賞与表!$B:$B,MATCH(' 賞与計算 '!D28/1000,源泉賞与表!$T:$T,1)))) ->  | W25: 0 | X25: =IF(' 基本情報 '!G28="",0,ROUND(VLOOKUP(' 基本情報 '!G28,INDIRECT(' 基本情報 '!$D$3&"!$B$12:$I$61"),6,0)-0.1,0)) -> 0 | Y25: =IF(' 基本情報 '!G28="",0,ROUND(VLOOKUP(' 基本情報 '!G28,INDIRECT(' 基本情報 '!$D$3&"!$B$12:$I$61"),8,0)-0.1,0)) -> 0 | Z25: 0 | AA25: =IF(' 基本情報 '!G28="",0,ROUND(IF(OR(' 基本情報 '!G28<税額基本情報!$E$26,' 基本情報 '!G28>税額基本情報!$E$27),AC25,VLOOKUP(' 基本情報 '!G28,INDIRECT(' 基本情報 '!$D$3&"!$B$15:$K$45"),10,0))-0.1,0)) -> 0 | AB25: =IF(' 基本情報 '!G28="",0,ROUND(IF(OR(' 基本情報 '!G28<税額基本情報!$E$26,' 基本情報 '!G28>税額基本情報!$E$27),AD25,VLOOKUP(' 基本情報 '!G28,INDIRECT(' 基本情報 '!$D$3&"!$B$15:$M$45"),12,0))-0.1,0)) -> 0 | AC25: =IF(' 基本情報 '!G28="",0,IF(' 基本情報 '!G28<税額基本情報!$E$26,税額基本情報!$F$26,IF(' 基本情報 '!G28>税額基本情報!$E$27,税額基本情報!$F$27,0))) -> 0 | AD25: =IF(' 基本情報 '!G28="",0,IF(' 基本情報 '!G28<税額基本情報!$E$26,税額基本情報!$G$26,IF(' 基本情報 '!G28>税額基本情報!$E$27,税額基本情報!$G$27,0))) -> 0 | AE25: 0 | AF25: =ROUND(IF(' 賞与計算 '!F28>税額基本情報!$D$33,税額基本情報!$D$33,ROUNDDOWN(' 賞与計算 '!F28,-3))*INDIRECT(' 基本情報 '!$D$3&"!$F$9")*0.5-0.1,0) -> 0 | AG25: =ROUND(IF(' 賞与計算 '!F28>税額基本情報!$D$33,税額基本情報!$D$33,ROUNDDOWN(' 賞与計算 '!F28,-3))*INDIRECT(' 基本情報 '!$D$3&"!$H$9")/2-0.1,0) -> 0 | AH25: 0 | AI25: =ROUND(IF(' 賞与計算 '!F28>税額基本情報!$D$30,税額基本情報!$D$30,ROUNDDOWN(' 賞与計算 '!F28,-3))*INDIRECT(' 基本情報 '!$D$3&"!$J$9")/2-0.1,0) -> 0 | AJ25: =ROUND(IF(' 賞与計算 '!F28>税額基本情報!$D$30,税額基本情報!$D$30,ROUNDDOWN(' 賞与計算 '!F28,-3))*INDIRECT(' 基本情報 '!$D$3&"!$L$9")/2-0.1,0) -> 0
C26: 22 | D26: =' 給与計算 '!C29 ->  | E26: =MAX(IF(' 給与計算 '!L29>=税額基本情報!$D$6,MAX(計算シート!H26:K26),IF(' 給与計算 '!L29<源泉月額表!$B$8,0,VLOOKUP(' 給与計算 '!L29,源泉月額表!$B:$K,IF(' 基本情報 '!E29>=8,10,' 基本情報 '!E29+3),1)))-IF(' 基本情報 '!E29>=8,(' 基本情報 '!E29-7)*税額基本情報!$D$17,0),0) -> 0 | F26: =IF(' 給与計算 '!L29<源泉月額表!$B$8,ROUNDDOWN(' 給与計算 '!L29*税額基本情報!$D$23,0),IF(' 給与計算 '!L29=0,0,IF(' 給与計算 '!L29>=税額基本情報!$D$13,MAX(L26:M26),VLOOKUP(' 給与計算 '!L29,源泉月額表!$B:$L,11,1)))) -> 0 | G26: =MAX(IF(' 給与計算 '!L29<源泉月額表!$B$8,ROUNDDOWN(' 給与計算 '!L29*3.063%,0),IF(' 給与計算 '!L29=0,0,IF(' 給与計算 '!L29>=税額基本情報!$D$13,MAX(L26:M26),VLOOKUP(' 給与計算 '!L29,源泉月額表!$B:$L,11,1))))-' 基本情報 '!E29*税額基本情報!$D$20,0) -> 0 | H26: =IF(AND(' 給与計算 '!L29>=税額基本情報!$D$6,' 給与計算 '!L29<税額基本情報!$D$7),VLOOKUP(' 給与計算 '!L29,税額基本情報!$D$6:$M$9,IF(' 基本情報 '!E29>=8,10,' 基本情報 '!E29+3),1)+ROUNDDOWN((' 給与計算 '!L29-税額基本情報!$D$6)*税額基本情報!$E$6,0),0) -> 0 | I26: =IF(AND(' 給与計算 '!L29>=税額基本情報!$D$7,' 給与計算 '!L29<税額基本情報!$D$8),VLOOKUP(' 給与計算 '!L29,税額基本情報!$D$6:$M$9,IF(' 基本情報 '!E29>=8,10,' 基本情報 '!E29+3),1)+ROUNDDOWN((' 給与計算 '!L29-税額基本情報!$D$7)*税額基本情報!$E$7,0),0) -> 0 | J26: =IF(' 給与計算 '!L29>=税額基本情報!$D$8,VLOOKUP(' 給与計算 '!L29,税額基本情報!$D$6:$M$9,IF(' 基本情報 '!E29>=8,10,' 基本情報 '!E29+3),1)+ROUNDDOWN((' 給与計算 '!L29-税額基本情報!$D$8)*税額基本情報!$E$8,0),0) -> 0 | K26: =IF(' 給与計算 '!L29>=税額基本情報!$D$9,VLOOKUP(' 給与計算 '!L29,税額基本情報!$D$6:$M$9,IF(' 基本情報 '!E29>=8,10,' 基本情報 '!E29+3),1)+ROUNDDOWN((' 給与計算 '!L29-税額基本情報!$D$9)*税額基本情報!$E$9,0),0) -> 0 | L26: =IF(AND(' 給与計算 '!L29>=税額基本情報!$D$13,' 給与計算 '!L29<税額基本情報!$D$14),税額基本情報!$F$13+ROUNDDOWN((' 給与計算 '!L29-税額基本情報!$D$13)*税額基本情報!$E$13,0),0) -> 0 | M26: =IF(' 給与計算 '!L29>=税額基本情報!$D$14,税額基本情報!$F$14+ROUNDDOWN((' 給与計算 '!L29-税額基本情報!$D$14)*税額基本情報!$E$14,0),0) -> 0 | N26: =IF(' 賞与計算 '!D29<源泉賞与表!$D$10*1000,0,INDEX(源泉賞与表!$B:$B,MATCH(' 賞与計算 '!D29/1000,源泉賞与表!$D:$D,1))) -> 0 | O26: =IF(' 賞与計算 '!D29<源泉賞与表!$F$10*1000,0,INDEX(源泉賞与表!$B:$B,MATCH(' 賞与計算 '!D29/1000,源泉賞与表!$F:$F,1))) -> 0 | P26: =IF(' 賞与計算 '!D29<源泉賞与表!$H$10*1000,0,INDEX(源泉賞与表!$B:$B,MATCH(' 賞与計算 '!D29/1000,源泉賞与表!$H:$H,1))) -> 0 | Q26: =IF(' 賞与計算 '!D29<源泉賞与表!$J$10*1000,0,INDEX(源泉賞与表!$B:$B,MATCH(' 賞与計算 '!D29/1000,源泉賞与表!$J:$J,1))) -> 0 | R26: =IF(' 賞与計算 '!D29<源泉賞与表!$L$10*1000,0,INDEX(源泉賞与表!$B:$B,MATCH(' 賞与計算 '!D29/1000,源泉賞与表!$L:$L,1))) -> 0 | S26: =IF(' 賞与計算 '!D29<源泉賞与表!$N$10*1000,0,INDEX(源泉賞与表!$B:$B,MATCH(' 賞与計算 '!D29/1000,源泉賞与表!$N:$N,1))) -> 0 | T26: =IF(' 賞与計算 '!D29<源泉賞与表!$P$10*1000,0,INDEX(源泉賞与表!$B:$B,MATCH(' 賞与計算 '!D29/1000,源泉賞与表!$P:$P,1))) -> 0 | U26: =IF(' 賞与計算 '!D29<源泉賞与表!$R$10*1000,0,INDEX(源泉賞与表!$B:$B,MATCH(' 賞与計算 '!D29/1000,源泉賞与表!$R:$R,1))) -> 0 | V26: =IF(' 賞与計算 '!D29="","",IF(' 賞与計算 '!D29<源泉賞与表!$T$22*1000,10.21,INDEX(源泉賞与表!$B:$B,MATCH(' 賞与計算 '!D29/1000,源泉賞与表!$T:$T,1)))) ->  | W26: 0 | X26: =IF(' 基本情報 '!G29="",0,ROUND(VLOOKUP(' 基本情報 '!G29,INDIRECT(' 基本情報 '!$D$3&"!$B$12:$I$61"),6,0)-0.1,0)) -> 0 | Y26: =IF(' 基本情報 '!G29="",0,ROUND(VLOOKUP(' 基本情報 '!G29,INDIRECT(' 基本情報 '!$D$3&"!$B$12:$I$61"),8,0)-0.1,0)) -> 0 | Z26: 0 | AA26: =IF(' 基本情報 '!G29="",0,ROUND(IF(OR(' 基本情報 '!G29<税額基本情報!$E$26,' 基本情報 '!G29>税額基本情報!$E$27),AC26,VLOOKUP(' 基本情報 '!G29,INDIRECT(' 基本情報 '!$D$3&"!$B$15:$K$45"),10,0))-0.1,0)) -> 0 | AB26: =IF(' 基本情報 '!G29="",0,ROUND(IF(OR(' 基本情報 '!G29<税額基本情報!$E$26,' 基本情報 '!G29>税額基本情報!$E$27),AD26,VLOOKUP(' 基本情報 '!G29,INDIRECT(' 基本情報 '!$D$3&"!$B$15:$M$45"),12,0))-0.1,0)) -> 0 | AC26: =IF(' 基本情報 '!G29="",0,IF(' 基本情報 '!G29<税額基本情報!$E$26,税額基本情報!$F$26,IF(' 基本情報 '!G29>税額基本情報!$E$27,税額基本情報!$F$27,0))) -> 0 | AD26: =IF(' 基本情報 '!G29="",0,IF(' 基本情報 '!G29<税額基本情報!$E$26,税額基本情報!$G$26,IF(' 基本情報 '!G29>税額基本情報!$E$27,税額基本情報!$G$27,0))) -> 0 | AE26: 0 | AF26: =ROUND(IF(' 賞与計算 '!F29>税額基本情報!$D$33,税額基本情報!$D$33,ROUNDDOWN(' 賞与計算 '!F29,-3))*INDIRECT(' 基本情報 '!$D$3&"!$F$9")*0.5-0.1,0) -> 0 | AG26: =ROUND(IF(' 賞与計算 '!F29>税額基本情報!$D$33,税額基本情報!$D$33,ROUNDDOWN(' 賞与計算 '!F29,-3))*INDIRECT(' 基本情報 '!$D$3&"!$H$9")/2-0.1,0) -> 0 | AH26: 0 | AI26: =ROUND(IF(' 賞与計算 '!F29>税額基本情報!$D$30,税額基本情報!$D$30,ROUNDDOWN(' 賞与計算 '!F29,-3))*INDIRECT(' 基本情報 '!$D$3&"!$J$9")/2-0.1,0) -> 0 | AJ26: =ROUND(IF(' 賞与計算 '!F29>税額基本情報!$D$30,税額基本情報!$D$30,ROUNDDOWN(' 賞与計算 '!F29,-3))*INDIRECT(' 基本情報 '!$D$3&"!$L$9")/2-0.1,0) -> 0
C27: 23 | D27: =' 給与計算 '!C30 ->  | E27: =MAX(IF(' 給与計算 '!L30>=税額基本情報!$D$6,MAX(計算シート!H27:K27),IF(' 給与計算 '!L30<源泉月額表!$B$8,0,VLOOKUP(' 給与計算 '!L30,源泉月額表!$B:$K,IF(' 基本情報 '!E30>=8,10,' 基本情報 '!E30+3),1)))-IF(' 基本情報 '!E30>=8,(' 基本情報 '!E30-7)*税額基本情報!$D$17,0),0) -> 0 | F27: =IF(' 給与計算 '!L30<源泉月額表!$B$8,ROUNDDOWN(' 給与計算 '!L30*税額基本情報!$D$23,0),IF(' 給与計算 '!L30=0,0,IF(' 給与計算 '!L30>=税額基本情報!$D$13,MAX(L27:M27),VLOOKUP(' 給与計算 '!L30,源泉月額表!$B:$L,11,1)))) -> 0 | G27: =MAX(IF(' 給与計算 '!L30<源泉月額表!$B$8,ROUNDDOWN(' 給与計算 '!L30*3.063%,0),IF(' 給与計算 '!L30=0,0,IF(' 給与計算 '!L30>=税額基本情報!$D$13,MAX(L27:M27),VLOOKUP(' 給与計算 '!L30,源泉月額表!$B:$L,11,1))))-' 基本情報 '!E30*税額基本情報!$D$20,0) -> 0 | H27: =IF(AND(' 給与計算 '!L30>=税額基本情報!$D$6,' 給与計算 '!L30<税額基本情報!$D$7),VLOOKUP(' 給与計算 '!L30,税額基本情報!$D$6:$M$9,IF(' 基本情報 '!E30>=8,10,' 基本情報 '!E30+3),1)+ROUNDDOWN((' 給与計算 '!L30-税額基本情報!$D$6)*税額基本情報!$E$6,0),0) -> 0 | I27: =IF(AND(' 給与計算 '!L30>=税額基本情報!$D$7,' 給与計算 '!L30<税額基本情報!$D$8),VLOOKUP(' 給与計算 '!L30,税額基本情報!$D$6:$M$9,IF(' 基本情報 '!E30>=8,10,' 基本情報 '!E30+3),1)+ROUNDDOWN((' 給与計算 '!L30-税額基本情報!$D$7)*税額基本情報!$E$7,0),0) -> 0 | J27: =IF(' 給与計算 '!L30>=税額基本情報!$D$8,VLOOKUP(' 給与計算 '!L30,税額基本情報!$D$6:$M$9,IF(' 基本情報 '!E30>=8,10,' 基本情報 '!E30+3),1)+ROUNDDOWN((' 給与計算 '!L30-税額基本情報!$D$8)*税額基本情報!$E$8,0),0) -> 0 | K27: =IF(' 給与計算 '!L30>=税額基本情報!$D$9,VLOOKUP(' 給与計算 '!L30,税額基本情報!$D$6:$M$9,IF(' 基本情報 '!E30>=8,10,' 基本情報 '!E30+3),1)+ROUNDDOWN((' 給与計算 '!L30-税額基本情報!$D$9)*税額基本情報!$E$9,0),0) -> 0 | L27: =IF(AND(' 給与計算 '!L30>=税額基本情報!$D$13,' 給与計算 '!L30<税額基本情報!$D$14),税額基本情報!$F$13+ROUNDDOWN((' 給与計算 '!L30-税額基本情報!$D$13)*税額基本情報!$E$13,0),0) -> 0 | M27: =IF(' 給与計算 '!L30>=税額基本情報!$D$14,税額基本情報!$F$14+ROUNDDOWN((' 給与計算 '!L30-税額基本情報!$D$14)*税額基本情報!$E$14,0),0) -> 0 | N27: =IF(' 賞与計算 '!D30<源泉賞与表!$D$10*1000,0,INDEX(源泉賞与表!$B:$B,MATCH(' 賞与計算 '!D30/1000,源泉賞与表!$D:$D,1))) -> 0 | O27: =IF(' 賞与計算 '!D30<源泉賞与表!$F$10*1000,0,INDEX(源泉賞与表!$B:$B,MATCH(' 賞与計算 '!D30/1000,源泉賞与表!$F:$F,1))) -> 0 | P27: =IF(' 賞与計算 '!D30<源泉賞与表!$H$10*1000,0,INDEX(源泉賞与表!$B:$B,MATCH(' 賞与計算 '!D30/1000,源泉賞与表!$H:$H,1))) -> 0 | Q27: =IF(' 賞与計算 '!D30<源泉賞与表!$J$10*1000,0,INDEX(源泉賞与表!$B:$B,MATCH(' 賞与計算 '!D30/1000,源泉賞与表!$J:$J,1))) -> 0 | R27: =IF(' 賞与計算 '!D30<源泉賞与表!$L$10*1000,0,INDEX(源泉賞与表!$B:$B,MATCH(' 賞与計算 '!D30/1000,源泉賞与表!$L:$L,1))) -> 0 | S27: =IF(' 賞与計算 '!D30<源泉賞与表!$N$10*1000,0,INDEX(源泉賞与表!$B:$B,MATCH(' 賞与計算 '!D30/1000,源泉賞与表!$N:$N,1))) -> 0 | T27: =IF(' 賞与計算 '!D30<源泉賞与表!$P$10*1000,0,INDEX(源泉賞与表!$B:$B,MATCH(' 賞与計算 '!D30/1000,源泉賞与表!$P:$P,1))) -> 0 | U27: =IF(' 賞与計算 '!D30<源泉賞与表!$R$10*1000,0,INDEX(源泉賞与表!$B:$B,MATCH(' 賞与計算 '!D30/1000,源泉賞与表!$R:$R,1))) -> 0 | V27: =IF(' 賞与計算 '!D30="","",IF(' 賞与計算 '!D30<源泉賞与表!$T$22*1000,10.21,INDEX(源泉賞与表!$B:$B,MATCH(' 賞与計算 '!D30/1000,源泉賞与表!$T:$T,1)))) ->  | W27: 0 | X27: =IF(' 基本情報 '!G30="",0,ROUND(VLOOKUP(' 基本情報 '!G30,INDIRECT(' 基本情報 '!$D$3&"!$B$12:$I$61"),6,0)-0.1,0)) -> 0 | Y27: =IF(' 基本情報 '!G30="",0,ROUND(VLOOKUP(' 基本情報 '!G30,INDIRECT(' 基本情報 '!$D$3&"!$B$12:$I$61"),8,0)-0.1,0)) -> 0 | Z27: 0 | AA27: =IF(' 基本情報 '!G30="",0,ROUND(IF(OR(' 基本情報 '!G30<税額基本情報!$E$26,' 基本情報 '!G30>税額基本情報!$E$27),AC27,VLOOKUP(' 基本情報 '!G30,INDIRECT(' 基本情報 '!$D$3&"!$B$15:$K$45"),10,0))-0.1,0)) -> 0 | AB27: =IF(' 基本情報 '!G30="",0,ROUND(IF(OR(' 基本情報 '!G30<税額基本情報!$E$26,' 基本情報 '!G30>税額基本情報!$E$27),AD27,VLOOKUP(' 基本情報 '!G30,INDIRECT(' 基本情報 '!$D$3&"!$B$15:$M$45"),12,0))-0.1,0)) -> 0 | AC27: =IF(' 基本情報 '!G30="",0,IF(' 基本情報 '!G30<税額基本情報!$E$26,税額基本情報!$F$26,IF(' 基本情報 '!G30>税額基本情報!$E$27,税額基本情報!$F$27,0))) -> 0 | AD27: =IF(' 基本情報 '!G30="",0,IF(' 基本情報 '!G30<税額基本情報!$E$26,税額基本情報!$G$26,IF(' 基本情報 '!G30>税額基本情報!$E$27,税額基本情報!$G$27,0))) -> 0 | AE27: 0 | AF27: =ROUND(IF(' 賞与計算 '!F30>税額基本情報!$D$33,税額基本情報!$D$33,ROUNDDOWN(' 賞与計算 '!F30,-3))*INDIRECT(' 基本情報 '!$D$3&"!$F$9")*0.5-0.1,0) -> 0 | AG27: =ROUND(IF(' 賞与計算 '!F30>税額基本情報!$D$33,税額基本情報!$D$33,ROUNDDOWN(' 賞与計算 '!F30,-3))*INDIRECT(' 基本情報 '!$D$3&"!$H$9")/2-0.1,0) -> 0 | AH27: 0 | AI27: =ROUND(IF(' 賞与計算 '!F30>税額基本情報!$D$30,税額基本情報!$D$30,ROUNDDOWN(' 賞与計算 '!F30,-3))*INDIRECT(' 基本情報 '!$D$3&"!$J$9")/2-0.1,0) -> 0 | AJ27: =ROUND(IF(' 賞与計算 '!F30>税額基本情報!$D$30,税額基本情報!$D$30,ROUNDDOWN(' 賞与計算 '!F30,-3))*INDIRECT(' 基本情報 '!$D$3&"!$L$9")/2-0.1,0) -> 0
C28: 24 | D28: =' 給与計算 '!C31 ->  | E28: =MAX(IF(' 給与計算 '!L31>=税額基本情報!$D$6,MAX(計算シート!H28:K28),IF(' 給与計算 '!L31<源泉月額表!$B$8,0,VLOOKUP(' 給与計算 '!L31,源泉月額表!$B:$K,IF(' 基本情報 '!E31>=8,10,' 基本情報 '!E31+3),1)))-IF(' 基本情報 '!E31>=8,(' 基本情報 '!E31-7)*税額基本情報!$D$17,0),0) -> 0 | F28: =IF(' 給与計算 '!L31<源泉月額表!$B$8,ROUNDDOWN(' 給与計算 '!L31*税額基本情報!$D$23,0),IF(' 給与計算 '!L31=0,0,IF(' 給与計算 '!L31>=税額基本情報!$D$13,MAX(L28:M28),VLOOKUP(' 給与計算 '!L31,源泉月額表!$B:$L,11,1)))) -> 0 | G28: =MAX(IF(' 給与計算 '!L31<源泉月額表!$B$8,ROUNDDOWN(' 給与計算 '!L31*3.063%,0),IF(' 給与計算 '!L31=0,0,IF(' 給与計算 '!L31>=税額基本情報!$D$13,MAX(L28:M28),VLOOKUP(' 給与計算 '!L31,源泉月額表!$B:$L,11,1))))-' 基本情報 '!E31*税額基本情報!$D$20,0) -> 0 | H28: =IF(AND(' 給与計算 '!L31>=税額基本情報!$D$6,' 給与計算 '!L31<税額基本情報!$D$7),VLOOKUP(' 給与計算 '!L31,税額基本情報!$D$6:$M$9,IF(' 基本情報 '!E31>=8,10,' 基本情報 '!E31+3),1)+ROUNDDOWN((' 給与計算 '!L31-税額基本情報!$D$6)*税額基本情報!$E$6,0),0) -> 0 | I28: =IF(AND(' 給与計算 '!L31>=税額基本情報!$D$7,' 給与計算 '!L31<税額基本情報!$D$8),VLOOKUP(' 給与計算 '!L31,税額基本情報!$D$6:$M$9,IF(' 基本情報 '!E31>=8,10,' 基本情報 '!E31+3),1)+ROUNDDOWN((' 給与計算 '!L31-税額基本情報!$D$7)*税額基本情報!$E$7,0),0) -> 0 | J28: =IF(' 給与計算 '!L31>=税額基本情報!$D$8,VLOOKUP(' 給与計算 '!L31,税額基本情報!$D$6:$M$9,IF(' 基本情報 '!E31>=8,10,' 基本情報 '!E31+3),1)+ROUNDDOWN((' 給与計算 '!L31-税額基本情報!$D$8)*税額基本情報!$E$8,0),0) -> 0 | K28: =IF(' 給与計算 '!L31>=税額基本情報!$D$9,VLOOKUP(' 給与計算 '!L31,税額基本情報!$D$6:$M$9,IF(' 基本情報 '!E31>=8,10,' 基本情報 '!E31+3),1)+ROUNDDOWN((' 給与計算 '!L31-税額基本情報!$D$9)*税額基本情報!$E$9,0),0) -> 0 | L28: =IF(AND(' 給与計算 '!L31>=税額基本情報!$D$13,' 給与計算 '!L31<税額基本情報!$D$14),税額基本情報!$F$13+ROUNDDOWN((' 給与計算 '!L31-税額基本情報!$D$13)*税額基本情報!$E$13,0),0) -> 0 | M28: =IF(' 給与計算 '!L31>=税額基本情報!$D$14,税額基本情報!$F$14+ROUNDDOWN((' 給与計算 '!L31-税額基本情報!$D$14)*税額基本情報!$E$14,0),0) -> 0 | N28: =IF(' 賞与計算 '!D31<源泉賞与表!$D$10*1000,0,INDEX(源泉賞与表!$B:$B,MATCH(' 賞与計算 '!D31/1000,源泉賞与表!$D:$D,1))) -> 0 | O28: =IF(' 賞与計算 '!D31<源泉賞与表!$F$10*1000,0,INDEX(源泉賞与表!$B:$B,MATCH(' 賞与計算 '!D31/1000,源泉賞与表!$F:$F,1))) -> 0 | P28: =IF(' 賞与計算 '!D31<源泉賞与表!$H$10*1000,0,INDEX(源泉賞与表!$B:$B,MATCH(' 賞与計算 '!D31/1000,源泉賞与表!$H:$H,1))) -> 0 | Q28: =IF(' 賞与計算 '!D31<源泉賞与表!$J$10*1000,0,INDEX(源泉賞与表!$B:$B,MATCH(' 賞与計算 '!D31/1000,源泉賞与表!$J:$J,1))) -> 0 | R28: =IF(' 賞与計算 '!D31<源泉賞与表!$L$10*1000,0,INDEX(源泉賞与表!$B:$B,MATCH(' 賞与計算 '!D31/1000,源泉賞与表!$L:$L,1))) -> 0 | S28: =IF(' 賞与計算 '!D31<源泉賞与表!$N$10*1000,0,INDEX(源泉賞与表!$B:$B,MATCH(' 賞与計算 '!D31/1000,源泉賞与表!$N:$N,1))) -> 0 | T28: =IF(' 賞与計算 '!D31<源泉賞与表!$P$10*1000,0,INDEX(源泉賞与表!$B:$B,MATCH(' 賞与計算 '!D31/1000,源泉賞与表!$P:$P,1))) -> 0 | U28: =IF(' 賞与計算 '!D31<源泉賞与表!$R$10*1000,0,INDEX(源泉賞与表!$B:$B,MATCH(' 賞与計算 '!D31/1000,源泉賞与表!$R:$R,1))) -> 0 | V28: =IF(' 賞与計算 '!D31="","",IF(' 賞与計算 '!D31<源泉賞与表!$T$22*1000,10.21,INDEX(源泉賞与表!$B:$B,MATCH(' 賞与計算 '!D31/1000,源泉賞与表!$T:$T,1)))) ->  | W28: 0 | X28: =IF(' 基本情報 '!G31="",0,ROUND(VLOOKUP(' 基本情報 '!G31,INDIRECT(' 基本情報 '!$D$3&"!$B$12:$I$61"),6,0)-0.1,0)) -> 0 | Y28: =IF(' 基本情報 '!G31="",0,ROUND(VLOOKUP(' 基本情報 '!G31,INDIRECT(' 基本情報 '!$D$3&"!$B$12:$I$61"),8,0)-0.1,0)) -> 0 | Z28: 0 | AA28: =IF(' 基本情報 '!G31="",0,ROUND(IF(OR(' 基本情報 '!G31<税額基本情報!$E$26,' 基本情報 '!G31>税額基本情報!$E$27),AC28,VLOOKUP(' 基本情報 '!G31,INDIRECT(' 基本情報 '!$D$3&"!$B$15:$K$45"),10,0))-0.1,0)) -> 0 | AB28: =IF(' 基本情報 '!G31="",0,ROUND(IF(OR(' 基本情報 '!G31<税額基本情報!$E$26,' 基本情報 '!G31>税額基本情報!$E$27),AD28,VLOOKUP(' 基本情報 '!G31,INDIRECT(' 基本情報 '!$D$3&"!$B$15:$M$45"),12,0))-0.1,0)) -> 0 | AC28: =IF(' 基本情報 '!G31="",0,IF(' 基本情報 '!G31<税額基本情報!$E$26,税額基本情報!$F$26,IF(' 基本情報 '!G31>税額基本情報!$E$27,税額基本情報!$F$27,0))) -> 0 | AD28: =IF(' 基本情報 '!G31="",0,IF(' 基本情報 '!G31<税額基本情報!$E$26,税額基本情報!$G$26,IF(' 基本情報 '!G31>税額基本情報!$E$27,税額基本情報!$G$27,0))) -> 0 | AE28: 0 | AF28: =ROUND(IF(' 賞与計算 '!F31>税額基本情報!$D$33,税額基本情報!$D$33,ROUNDDOWN(' 賞与計算 '!F31,-3))*INDIRECT(' 基本情報 '!$D$3&"!$F$9")*0.5-0.1,0) -> 0 | AG28: =ROUND(IF(' 賞与計算 '!F31>税額基本情報!$D$33,税額基本情報!$D$33,ROUNDDOWN(' 賞与計算 '!F31,-3))*INDIRECT(' 基本情報 '!$D$3&"!$H$9")/2-0.1,0) -> 0 | AH28: 0 | AI28: =ROUND(IF(' 賞与計算 '!F31>税額基本情報!$D$30,税額基本情報!$D$30,ROUNDDOWN(' 賞与計算 '!F31,-3))*INDIRECT(' 基本情報 '!$D$3&"!$J$9")/2-0.1,0) -> 0 | AJ28: =ROUND(IF(' 賞与計算 '!F31>税額基本情報!$D$30,税額基本情報!$D$30,ROUNDDOWN(' 賞与計算 '!F31,-3))*INDIRECT(' 基本情報 '!$D$3&"!$L$9")/2-0.1,0) -> 0
C29: 25 | D29: =' 給与計算 '!C32 ->  | E29: =MAX(IF(' 給与計算 '!L32>=税額基本情報!$D$6,MAX(計算シート!H29:K29),IF(' 給与計算 '!L32<源泉月額表!$B$8,0,VLOOKUP(' 給与計算 '!L32,源泉月額表!$B:$K,IF(' 基本情報 '!E32>=8,10,' 基本情報 '!E32+3),1)))-IF(' 基本情報 '!E32>=8,(' 基本情報 '!E32-7)*税額基本情報!$D$17,0),0) -> 0 | F29: =IF(' 給与計算 '!L32<源泉月額表!$B$8,ROUNDDOWN(' 給与計算 '!L32*税額基本情報!$D$23,0),IF(' 給与計算 '!L32=0,0,IF(' 給与計算 '!L32>=税額基本情報!$D$13,MAX(L29:M29),VLOOKUP(' 給与計算 '!L32,源泉月額表!$B:$L,11,1)))) -> 0 | G29: =MAX(IF(' 給与計算 '!L32<源泉月額表!$B$8,ROUNDDOWN(' 給与計算 '!L32*3.063%,0),IF(' 給与計算 '!L32=0,0,IF(' 給与計算 '!L32>=税額基本情報!$D$13,MAX(L29:M29),VLOOKUP(' 給与計算 '!L32,源泉月額表!$B:$L,11,1))))-' 基本情報 '!E32*税額基本情報!$D$20,0) -> 0 | H29: =IF(AND(' 給与計算 '!L32>=税額基本情報!$D$6,' 給与計算 '!L32<税額基本情報!$D$7),VLOOKUP(' 給与計算 '!L32,税額基本情報!$D$6:$M$9,IF(' 基本情報 '!E32>=8,10,' 基本情報 '!E32+3),1)+ROUNDDOWN((' 給与計算 '!L32-税額基本情報!$D$6)*税額基本情報!$E$6,0),0) -> 0 | I29: =IF(AND(' 給与計算 '!L32>=税額基本情報!$D$7,' 給与計算 '!L32<税額基本情報!$D$8),VLOOKUP(' 給与計算 '!L32,税額基本情報!$D$6:$M$9,IF(' 基本情報 '!E32>=8,10,' 基本情報 '!E32+3),1)+ROUNDDOWN((' 給与計算 '!L32-税額基本情報!$D$7)*税額基本情報!$E$7,0),0) -> 0 | J29: =IF(' 給与計算 '!L32>=税額基本情報!$D$8,VLOOKUP(' 給与計算 '!L32,税額基本情報!$D$6:$M$9,IF(' 基本情報 '!E32>=8,10,' 基本情報 '!E32+3),1)+ROUNDDOWN((' 給与計算 '!L32-税額基本情報!$D$8)*税額基本情報!$E$8,0),0) -> 0 | K29: =IF(' 給与計算 '!L32>=税額基本情報!$D$9,VLOOKUP(' 給与計算 '!L32,税額基本情報!$D$6:$M$9,IF(' 基本情報 '!E32>=8,10,' 基本情報 '!E32+3),1)+ROUNDDOWN((' 給与計算 '!L32-税額基本情報!$D$9)*税額基本情報!$E$9,0),0) -> 0 | L29: =IF(AND(' 給与計算 '!L32>=税額基本情報!$D$13,' 給与計算 '!L32<税額基本情報!$D$14),税額基本情報!$F$13+ROUNDDOWN((' 給与計算 '!L32-税額基本情報!$D$13)*税額基本情報!$E$13,0),0) -> 0 | M29: =IF(' 給与計算 '!L32>=税額基本情報!$D$14,税額基本情報!$F$14+ROUNDDOWN((' 給与計算 '!L32-税額基本情報!$D$14)*税額基本情報!$E$14,0),0) -> 0 | N29: =IF(' 賞与計算 '!D32<源泉賞与表!$D$10*1000,0,INDEX(源泉賞与表!$B:$B,MATCH(' 賞与計算 '!D32/1000,源泉賞与表!$D:$D,1))) -> 0 | O29: =IF(' 賞与計算 '!D32<源泉賞与表!$F$10*1000,0,INDEX(源泉賞与表!$B:$B,MATCH(' 賞与計算 '!D32/1000,源泉賞与表!$F:$F,1))) -> 0 | P29: =IF(' 賞与計算 '!D32<源泉賞与表!$H$10*1000,0,INDEX(源泉賞与表!$B:$B,MATCH(' 賞与計算 '!D32/1000,源泉賞与表!$H:$H,1))) -> 0 | Q29: =IF(' 賞与計算 '!D32<源泉賞与表!$J$10*1000,0,INDEX(源泉賞与表!$B:$B,MATCH(' 賞与計算 '!D32/1000,源泉賞与表!$J:$J,1))) -> 0 | R29: =IF(' 賞与計算 '!D32<源泉賞与表!$L$10*1000,0,INDEX(源泉賞与表!$B:$B,MATCH(' 賞与計算 '!D32/1000,源泉賞与表!$L:$L,1))) -> 0 | S29: =IF(' 賞与計算 '!D32<源泉賞与表!$N$10*1000,0,INDEX(源泉賞与表!$B:$B,MATCH(' 賞与計算 '!D32/1000,源泉賞与表!$N:$N,1))) -> 0 | T29: =IF(' 賞与計算 '!D32<源泉賞与表!$P$10*1000,0,INDEX(源泉賞与表!$B:$B,MATCH(' 賞与計算 '!D32/1000,源泉賞与表!$P:$P,1))) -> 0 | U29: =IF(' 賞与計算 '!D32<源泉賞与表!$R$10*1000,0,INDEX(源泉賞与表!$B:$B,MATCH(' 賞与計算 '!D32/1000,源泉賞与表!$R:$R,1))) -> 0 | V29: =IF(' 賞与計算 '!D32="","",IF(' 賞与計算 '!D32<源泉賞与表!$T$22*1000,10.21,INDEX(源泉賞与表!$B:$B,MATCH(' 賞与計算 '!D32/1000,源泉賞与表!$T:$T,1)))) ->  | W29: 0 | X29: =IF(' 基本情報 '!G32="",0,ROUND(VLOOKUP(' 基本情報 '!G32,INDIRECT(' 基本情報 '!$D$3&"!$B$12:$I$61"),6,0)-0.1,0)) -> 0 | Y29: =IF(' 基本情報 '!G32="",0,ROUND(VLOOKUP(' 基本情報 '!G32,INDIRECT(' 基本情報 '!$D$3&"!$B$12:$I$61"),8,0)-0.1,0)) -> 0 | Z29: 0 | AA29: =IF(' 基本情報 '!G32="",0,ROUND(IF(OR(' 基本情報 '!G32<税額基本情報!$E$26,' 基本情報 '!G32>税額基本情報!$E$27),AC29,VLOOKUP(' 基本情報 '!G32,INDIRECT(' 基本情報 '!$D$3&"!$B$15:$K$45"),10,0))-0.1,0)) -> 0 | AB29: =IF(' 基本情報 '!G32="",0,ROUND(IF(OR(' 基本情報 '!G32<税額基本情報!$E$26,' 基本情報 '!G32>税額基本情報!$E$27),AD29,VLOOKUP(' 基本情報 '!G32,INDIRECT(' 基本情報 '!$D$3&"!$B$15:$M$45"),12,0))-0.1,0)) -> 0 | AC29: =IF(' 基本情報 '!G32="",0,IF(' 基本情報 '!G32<税額基本情報!$E$26,税額基本情報!$F$26,IF(' 基本情報 '!G32>税額基本情報!$E$27,税額基本情報!$F$27,0))) -> 0 | AD29: =IF(' 基本情報 '!G32="",0,IF(' 基本情報 '!G32<税額基本情報!$E$26,税額基本情報!$G$26,IF(' 基本情報 '!G32>税額基本情報!$E$27,税額基本情報!$G$27,0))) -> 0 | AE29: 0 | AF29: =ROUND(IF(' 賞与計算 '!F32>税額基本情報!$D$33,税額基本情報!$D$33,ROUNDDOWN(' 賞与計算 '!F32,-3))*INDIRECT(' 基本情報 '!$D$3&"!$F$9")*0.5-0.1,0) -> 0 | AG29: =ROUND(IF(' 賞与計算 '!F32>税額基本情報!$D$33,税額基本情報!$D$33,ROUNDDOWN(' 賞与計算 '!F32,-3))*INDIRECT(' 基本情報 '!$D$3&"!$H$9")/2-0.1,0) -> 0 | AH29: 0 | AI29: =ROUND(IF(' 賞与計算 '!F32>税額基本情報!$D$30,税額基本情報!$D$30,ROUNDDOWN(' 賞与計算 '!F32,-3))*INDIRECT(' 基本情報 '!$D$3&"!$J$9")/2-0.1,0) -> 0 | AJ29: =ROUND(IF(' 賞与計算 '!F32>税額基本情報!$D$30,税額基本情報!$D$30,ROUNDDOWN(' 賞与計算 '!F32,-3))*INDIRECT(' 基本情報 '!$D$3&"!$L$9")/2-0.1,0) -> 0
C30: 26 | D30: =' 給与計算 '!C33 ->  | E30: =MAX(IF(' 給与計算 '!L33>=税額基本情報!$D$6,MAX(計算シート!H30:K30),IF(' 給与計算 '!L33<源泉月額表!$B$8,0,VLOOKUP(' 給与計算 '!L33,源泉月額表!$B:$K,IF(' 基本情報 '!E33>=8,10,' 基本情報 '!E33+3),1)))-IF(' 基本情報 '!E33>=8,(' 基本情報 '!E33-7)*税額基本情報!$D$17,0),0) -> 0 | F30: =IF(' 給与計算 '!L33<源泉月額表!$B$8,ROUNDDOWN(' 給与計算 '!L33*税額基本情報!$D$23,0),IF(' 給与計算 '!L33=0,0,IF(' 給与計算 '!L33>=税額基本情報!$D$13,MAX(L30:M30),VLOOKUP(' 給与計算 '!L33,源泉月額表!$B:$L,11,1)))) -> 0 | G30: =MAX(IF(' 給与計算 '!L33<源泉月額表!$B$8,ROUNDDOWN(' 給与計算 '!L33*3.063%,0),IF(' 給与計算 '!L33=0,0,IF(' 給与計算 '!L33>=税額基本情報!$D$13,MAX(L30:M30),VLOOKUP(' 給与計算 '!L33,源泉月額表!$B:$L,11,1))))-' 基本情報 '!E33*税額基本情報!$D$20,0) -> 0 | H30: =IF(AND(' 給与計算 '!L33>=税額基本情報!$D$6,' 給与計算 '!L33<税額基本情報!$D$7),VLOOKUP(' 給与計算 '!L33,税額基本情報!$D$6:$M$9,IF(' 基本情報 '!E33>=8,10,' 基本情報 '!E33+3),1)+ROUNDDOWN((' 給与計算 '!L33-税額基本情報!$D$6)*税額基本情報!$E$6,0),0) -> 0 | I30: =IF(AND(' 給与計算 '!L33>=税額基本情報!$D$7,' 給与計算 '!L33<税額基本情報!$D$8),VLOOKUP(' 給与計算 '!L33,税額基本情報!$D$6:$M$9,IF(' 基本情報 '!E33>=8,10,' 基本情報 '!E33+3),1)+ROUNDDOWN((' 給与計算 '!L33-税額基本情報!$D$7)*税額基本情報!$E$7,0),0) -> 0 | J30: =IF(' 給与計算 '!L33>=税額基本情報!$D$8,VLOOKUP(' 給与計算 '!L33,税額基本情報!$D$6:$M$9,IF(' 基本情報 '!E33>=8,10,' 基本情報 '!E33+3),1)+ROUNDDOWN((' 給与計算 '!L33-税額基本情報!$D$8)*税額基本情報!$E$8,0),0) -> 0 | K30: =IF(' 給与計算 '!L33>=税額基本情報!$D$9,VLOOKUP(' 給与計算 '!L33,税額基本情報!$D$6:$M$9,IF(' 基本情報 '!E33>=8,10,' 基本情報 '!E33+3),1)+ROUNDDOWN((' 給与計算 '!L33-税額基本情報!$D$9)*税額基本情報!$E$9,0),0) -> 0 | L30: =IF(AND(' 給与計算 '!L33>=税額基本情報!$D$13,' 給与計算 '!L33<税額基本情報!$D$14),税額基本情報!$F$13+ROUNDDOWN((' 給与計算 '!L33-税額基本情報!$D$13)*税額基本情報!$E$13,0),0) -> 0 | M30: =IF(' 給与計算 '!L33>=税額基本情報!$D$14,税額基本情報!$F$14+ROUNDDOWN((' 給与計算 '!L33-税額基本情報!$D$14)*税額基本情報!$E$14,0),0) -> 0 | N30: =IF(' 賞与計算 '!D33<源泉賞与表!$D$10*1000,0,INDEX(源泉賞与表!$B:$B,MATCH(' 賞与計算 '!D33/1000,源泉賞与表!$D:$D,1))) -> 0 | O30: =IF(' 賞与計算 '!D33<源泉賞与表!$F$10*1000,0,INDEX(源泉賞与表!$B:$B,MATCH(' 賞与計算 '!D33/1000,源泉賞与表!$F:$F,1))) -> 0 | P30: =IF(' 賞与計算 '!D33<源泉賞与表!$H$10*1000,0,INDEX(源泉賞与表!$B:$B,MATCH(' 賞与計算 '!D33/1000,源泉賞与表!$H:$H,1))) -> 0 | Q30: =IF(' 賞与計算 '!D33<源泉賞与表!$J$10*1000,0,INDEX(源泉賞与表!$B:$B,MATCH(' 賞与計算 '!D33/1000,源泉賞与表!$J:$J,1))) -> 0 | R30: =IF(' 賞与計算 '!D33<源泉賞与表!$L$10*1000,0,INDEX(源泉賞与表!$B:$B,MATCH(' 賞与計算 '!D33/1000,源泉賞与表!$L:$L,1))) -> 0 | S30: =IF(' 賞与計算 '!D33<源泉賞与表!$N$10*1000,0,INDEX(源泉賞与表!$B:$B,MATCH(' 賞与計算 '!D33/1000,源泉賞与表!$N:$N,1))) -> 0 | T30: =IF(' 賞与計算 '!D33<源泉賞与表!$P$10*1000,0,INDEX(源泉賞与表!$B:$B,MATCH(' 賞与計算 '!D33/1000,源泉賞与表!$P:$P,1))) -> 0 | U30: =IF(' 賞与計算 '!D33<源泉賞与表!$R$10*1000,0,INDEX(源泉賞与表!$B:$B,MATCH(' 賞与計算 '!D33/1000,源泉賞与表!$R:$R,1))) -> 0 | V30: =IF(' 賞与計算 '!D33="","",IF(' 賞与計算 '!D33<源泉賞与表!$T$22*1000,10.21,INDEX(源泉賞与表!$B:$B,MATCH(' 賞与計算 '!D33/1000,源泉賞与表!$T:$T,1)))) ->  | W30: 0 | X30: =IF(' 基本情報 '!G33="",0,ROUND(VLOOKUP(' 基本情報 '!G33,INDIRECT(' 基本情報 '!$D$3&"!$B$12:$I$61"),6,0)-0.1,0)) -> 0 | Y30: =IF(' 基本情報 '!G33="",0,ROUND(VLOOKUP(' 基本情報 '!G33,INDIRECT(' 基本情報 '!$D$3&"!$B$12:$I$61"),8,0)-0.1,0)) -> 0 | Z30: 0 | AA30: =IF(' 基本情報 '!G33="",0,ROUND(IF(OR(' 基本情報 '!G33<税額基本情報!$E$26,' 基本情報 '!G33>税額基本情報!$E$27),AC30,VLOOKUP(' 基本情報 '!G33,INDIRECT(' 基本情報 '!$D$3&"!$B$15:$K$45"),10,0))-0.1,0)) -> 0 | AB30: =IF(' 基本情報 '!G33="",0,ROUND(IF(OR(' 基本情報 '!G33<税額基本情報!$E$26,' 基本情報 '!G33>税額基本情報!$E$27),AD30,VLOOKUP(' 基本情報 '!G33,INDIRECT(' 基本情報 '!$D$3&"!$B$15:$M$45"),12,0))-0.1,0)) -> 0 | AC30: =IF(' 基本情報 '!G33="",0,IF(' 基本情報 '!G33<税額基本情報!$E$26,税額基本情報!$F$26,IF(' 基本情報 '!G33>税額基本情報!$E$27,税額基本情報!$F$27,0))) -> 0 | AD30: =IF(' 基本情報 '!G33="",0,IF(' 基本情報 '!G33<税額基本情報!$E$26,税額基本情報!$G$26,IF(' 基本情報 '!G33>税額基本情報!$E$27,税額基本情報!$G$27,0))) -> 0 | AE30: 0 | AF30: =ROUND(IF(' 賞与計算 '!F33>税額基本情報!$D$33,税額基本情報!$D$33,ROUNDDOWN(' 賞与計算 '!F33,-3))*INDIRECT(' 基本情報 '!$D$3&"!$F$9")*0.5-0.1,0) -> 0 | AG30: =ROUND(IF(' 賞与計算 '!F33>税額基本情報!$D$33,税額基本情報!$D$33,ROUNDDOWN(' 賞与計算 '!F33,-3))*INDIRECT(' 基本情報 '!$D$3&"!$H$9")/2-0.1,0) -> 0 | AH30: 0 | AI30: =ROUND(IF(' 賞与計算 '!F33>税額基本情報!$D$30,税額基本情報!$D$30,ROUNDDOWN(' 賞与計算 '!F33,-3))*INDIRECT(' 基本情報 '!$D$3&"!$J$9")/2-0.1,0) -> 0 | AJ30: =ROUND(IF(' 賞与計算 '!F33>税額基本情報!$D$30,税額基本情報!$D$30,ROUNDDOWN(' 賞与計算 '!F33,-3))*INDIRECT(' 基本情報 '!$D$3&"!$L$9")/2-0.1,0) -> 0
C31: 27 | D31: =' 給与計算 '!C34 ->  | E31: =MAX(IF(' 給与計算 '!L34>=税額基本情報!$D$6,MAX(計算シート!H31:K31),IF(' 給与計算 '!L34<源泉月額表!$B$8,0,VLOOKUP(' 給与計算 '!L34,源泉月額表!$B:$K,IF(' 基本情報 '!E34>=8,10,' 基本情報 '!E34+3),1)))-IF(' 基本情報 '!E34>=8,(' 基本情報 '!E34-7)*税額基本情報!$D$17,0),0) -> 0 | F31: =IF(' 給与計算 '!L34<源泉月額表!$B$8,ROUNDDOWN(' 給与計算 '!L34*税額基本情報!$D$23,0),IF(' 給与計算 '!L34=0,0,IF(' 給与計算 '!L34>=税額基本情報!$D$13,MAX(L31:M31),VLOOKUP(' 給与計算 '!L34,源泉月額表!$B:$L,11,1)))) -> 0 | G31: =MAX(IF(' 給与計算 '!L34<源泉月額表!$B$8,ROUNDDOWN(' 給与計算 '!L34*3.063%,0),IF(' 給与計算 '!L34=0,0,IF(' 給与計算 '!L34>=税額基本情報!$D$13,MAX(L31:M31),VLOOKUP(' 給与計算 '!L34,源泉月額表!$B:$L,11,1))))-' 基本情報 '!E34*税額基本情報!$D$20,0) -> 0 | H31: =IF(AND(' 給与計算 '!L34>=税額基本情報!$D$6,' 給与計算 '!L34<税額基本情報!$D$7),VLOOKUP(' 給与計算 '!L34,税額基本情報!$D$6:$M$9,IF(' 基本情報 '!E34>=8,10,' 基本情報 '!E34+3),1)+ROUNDDOWN((' 給与計算 '!L34-税額基本情報!$D$6)*税額基本情報!$E$6,0),0) -> 0 | I31: =IF(AND(' 給与計算 '!L34>=税額基本情報!$D$7,' 給与計算 '!L34<税額基本情報!$D$8),VLOOKUP(' 給与計算 '!L34,税額基本情報!$D$6:$M$9,IF(' 基本情報 '!E34>=8,10,' 基本情報 '!E34+3),1)+ROUNDDOWN((' 給与計算 '!L34-税額基本情報!$D$7)*税額基本情報!$E$7,0),0) -> 0 | J31: =IF(' 給与計算 '!L34>=税額基本情報!$D$8,VLOOKUP(' 給与計算 '!L34,税額基本情報!$D$6:$M$9,IF(' 基本情報 '!E34>=8,10,' 基本情報 '!E34+3),1)+ROUNDDOWN((' 給与計算 '!L34-税額基本情報!$D$8)*税額基本情報!$E$8,0),0) -> 0 | K31: =IF(' 給与計算 '!L34>=税額基本情報!$D$9,VLOOKUP(' 給与計算 '!L34,税額基本情報!$D$6:$M$9,IF(' 基本情報 '!E34>=8,10,' 基本情報 '!E34+3),1)+ROUNDDOWN((' 給与計算 '!L34-税額基本情報!$D$9)*税額基本情報!$E$9,0),0) -> 0 | L31: =IF(AND(' 給与計算 '!L34>=税額基本情報!$D$13,' 給与計算 '!L34<税額基本情報!$D$14),税額基本情報!$F$13+ROUNDDOWN((' 給与計算 '!L34-税額基本情報!$D$13)*税額基本情報!$E$13,0),0) -> 0 | M31: =IF(' 給与計算 '!L34>=税額基本情報!$D$14,税額基本情報!$F$14+ROUNDDOWN((' 給与計算 '!L34-税額基本情報!$D$14)*税額基本情報!$E$14,0),0) -> 0 | N31: =IF(' 賞与計算 '!D34<源泉賞与表!$D$10*1000,0,INDEX(源泉賞与表!$B:$B,MATCH(' 賞与計算 '!D34/1000,源泉賞与表!$D:$D,1))) -> 0 | O31: =IF(' 賞与計算 '!D34<源泉賞与表!$F$10*1000,0,INDEX(源泉賞与表!$B:$B,MATCH(' 賞与計算 '!D34/1000,源泉賞与表!$F:$F,1))) -> 0 | P31: =IF(' 賞与計算 '!D34<源泉賞与表!$H$10*1000,0,INDEX(源泉賞与表!$B:$B,MATCH(' 賞与計算 '!D34/1000,源泉賞与表!$H:$H,1))) -> 0 | Q31: =IF(' 賞与計算 '!D34<源泉賞与表!$J$10*1000,0,INDEX(源泉賞与表!$B:$B,MATCH(' 賞与計算 '!D34/1000,源泉賞与表!$J:$J,1))) -> 0 | R31: =IF(' 賞与計算 '!D34<源泉賞与表!$L$10*1000,0,INDEX(源泉賞与表!$B:$B,MATCH(' 賞与計算 '!D34/1000,源泉賞与表!$L:$L,1))) -> 0 | S31: =IF(' 賞与計算 '!D34<源泉賞与表!$N$10*1000,0,INDEX(源泉賞与表!$B:$B,MATCH(' 賞与計算 '!D34/1000,源泉賞与表!$N:$N,1))) -> 0 | T31: =IF(' 賞与計算 '!D34<源泉賞与表!$P$10*1000,0,INDEX(源泉賞与表!$B:$B,MATCH(' 賞与計算 '!D34/1000,源泉賞与表!$P:$P,1))) -> 0 | U31: =IF(' 賞与計算 '!D34<源泉賞与表!$R$10*1000,0,INDEX(源泉賞与表!$B:$B,MATCH(' 賞与計算 '!D34/1000,源泉賞与表!$R:$R,1))) -> 0 | V31: =IF(' 賞与計算 '!D34="","",IF(' 賞与計算 '!D34<源泉賞与表!$T$22*1000,10.21,INDEX(源泉賞与表!$B:$B,MATCH(' 賞与計算 '!D34/1000,源泉賞与表!$T:$T,1)))) ->  | W31: 0 | X31: =IF(' 基本情報 '!G34="",0,ROUND(VLOOKUP(' 基本情報 '!G34,INDIRECT(' 基本情報 '!$D$3&"!$B$12:$I$61"),6,0)-0.1,0)) -> 0 | Y31: =IF(' 基本情報 '!G34="",0,ROUND(VLOOKUP(' 基本情報 '!G34,INDIRECT(' 基本情報 '!$D$3&"!$B$12:$I$61"),8,0)-0.1,0)) -> 0 | Z31: 0 | AA31: =IF(' 基本情報 '!G34="",0,ROUND(IF(OR(' 基本情報 '!G34<税額基本情報!$E$26,' 基本情報 '!G34>税額基本情報!$E$27),AC31,VLOOKUP(' 基本情報 '!G34,INDIRECT(' 基本情報 '!$D$3&"!$B$15:$K$45"),10,0))-0.1,0)) -> 0 | AB31: =IF(' 基本情報 '!G34="",0,ROUND(IF(OR(' 基本情報 '!G34<税額基本情報!$E$26,' 基本情報 '!G34>税額基本情報!$E$27),AD31,VLOOKUP(' 基本情報 '!G34,INDIRECT(' 基本情報 '!$D$3&"!$B$15:$M$45"),12,0))-0.1,0)) -> 0 | AC31: =IF(' 基本情報 '!G34="",0,IF(' 基本情報 '!G34<税額基本情報!$E$26,税額基本情報!$F$26,IF(' 基本情報 '!G34>税額基本情報!$E$27,税額基本情報!$F$27,0))) -> 0 | AD31: =IF(' 基本情報 '!G34="",0,IF(' 基本情報 '!G34<税額基本情報!$E$26,税額基本情報!$G$26,IF(' 基本情報 '!G34>税額基本情報!$E$27,税額基本情報!$G$27,0))) -> 0 | AE31: 0 | AF31: =ROUND(IF(' 賞与計算 '!F34>税額基本情報!$D$33,税額基本情報!$D$33,ROUNDDOWN(' 賞与計算 '!F34,-3))*INDIRECT(' 基本情報 '!$D$3&"!$F$9")*0.5-0.1,0) -> 0 | AG31: =ROUND(IF(' 賞与計算 '!F34>税額基本情報!$D$33,税額基本情報!$D$33,ROUNDDOWN(' 賞与計算 '!F34,-3))*INDIRECT(' 基本情報 '!$D$3&"!$H$9")/2-0.1,0) -> 0 | AH31: 0 | AI31: =ROUND(IF(' 賞与計算 '!F34>税額基本情報!$D$30,税額基本情報!$D$30,ROUNDDOWN(' 賞与計算 '!F34,-3))*INDIRECT(' 基本情報 '!$D$3&"!$J$9")/2-0.1,0) -> 0 | AJ31: =ROUND(IF(' 賞与計算 '!F34>税額基本情報!$D$30,税額基本情報!$D$30,ROUNDDOWN(' 賞与計算 '!F34,-3))*INDIRECT(' 基本情報 '!$D$3&"!$L$9")/2-0.1,0) -> 0
C32: 28 | D32: =' 給与計算 '!C35 ->  | E32: =MAX(IF(' 給与計算 '!L35>=税額基本情報!$D$6,MAX(計算シート!H32:K32),IF(' 給与計算 '!L35<源泉月額表!$B$8,0,VLOOKUP(' 給与計算 '!L35,源泉月額表!$B:$K,IF(' 基本情報 '!E35>=8,10,' 基本情報 '!E35+3),1)))-IF(' 基本情報 '!E35>=8,(' 基本情報 '!E35-7)*税額基本情報!$D$17,0),0) -> 0 | F32: =IF(' 給与計算 '!L35<源泉月額表!$B$8,ROUNDDOWN(' 給与計算 '!L35*税額基本情報!$D$23,0),IF(' 給与計算 '!L35=0,0,IF(' 給与計算 '!L35>=税額基本情報!$D$13,MAX(L32:M32),VLOOKUP(' 給与計算 '!L35,源泉月額表!$B:$L,11,1)))) -> 0 | G32: =MAX(IF(' 給与計算 '!L35<源泉月額表!$B$8,ROUNDDOWN(' 給与計算 '!L35*3.063%,0),IF(' 給与計算 '!L35=0,0,IF(' 給与計算 '!L35>=税額基本情報!$D$13,MAX(L32:M32),VLOOKUP(' 給与計算 '!L35,源泉月額表!$B:$L,11,1))))-' 基本情報 '!E35*税額基本情報!$D$20,0) -> 0 | H32: =IF(AND(' 給与計算 '!L35>=税額基本情報!$D$6,' 給与計算 '!L35<税額基本情報!$D$7),VLOOKUP(' 給与計算 '!L35,税額基本情報!$D$6:$M$9,IF(' 基本情報 '!E35>=8,10,' 基本情報 '!E35+3),1)+ROUNDDOWN((' 給与計算 '!L35-税額基本情報!$D$6)*税額基本情報!$E$6,0),0) -> 0 | I32: =IF(AND(' 給与計算 '!L35>=税額基本情報!$D$7,' 給与計算 '!L35<税額基本情報!$D$8),VLOOKUP(' 給与計算 '!L35,税額基本情報!$D$6:$M$9,IF(' 基本情報 '!E35>=8,10,' 基本情報 '!E35+3),1)+ROUNDDOWN((' 給与計算 '!L35-税額基本情報!$D$7)*税額基本情報!$E$7,0),0) -> 0 | J32: =IF(' 給与計算 '!L35>=税額基本情報!$D$8,VLOOKUP(' 給与計算 '!L35,税額基本情報!$D$6:$M$9,IF(' 基本情報 '!E35>=8,10,' 基本情報 '!E35+3),1)+ROUNDDOWN((' 給与計算 '!L35-税額基本情報!$D$8)*税額基本情報!$E$8,0),0) -> 0 | K32: =IF(' 給与計算 '!L35>=税額基本情報!$D$9,VLOOKUP(' 給与計算 '!L35,税額基本情報!$D$6:$M$9,IF(' 基本情報 '!E35>=8,10,' 基本情報 '!E35+3),1)+ROUNDDOWN((' 給与計算 '!L35-税額基本情報!$D$9)*税額基本情報!$E$9,0),0) -> 0 | L32: =IF(AND(' 給与計算 '!L35>=税額基本情報!$D$13,' 給与計算 '!L35<税額基本情報!$D$14),税額基本情報!$F$13+ROUNDDOWN((' 給与計算 '!L35-税額基本情報!$D$13)*税額基本情報!$E$13,0),0) -> 0 | M32: =IF(' 給与計算 '!L35>=税額基本情報!$D$14,税額基本情報!$F$14+ROUNDDOWN((' 給与計算 '!L35-税額基本情報!$D$14)*税額基本情報!$E$14,0),0) -> 0 | N32: =IF(' 賞与計算 '!D35<源泉賞与表!$D$10*1000,0,INDEX(源泉賞与表!$B:$B,MATCH(' 賞与計算 '!D35/1000,源泉賞与表!$D:$D,1))) -> 0 | O32: =IF(' 賞与計算 '!D35<源泉賞与表!$F$10*1000,0,INDEX(源泉賞与表!$B:$B,MATCH(' 賞与計算 '!D35/1000,源泉賞与表!$F:$F,1))) -> 0 | P32: =IF(' 賞与計算 '!D35<源泉賞与表!$H$10*1000,0,INDEX(源泉賞与表!$B:$B,MATCH(' 賞与計算 '!D35/1000,源泉賞与表!$H:$H,1))) -> 0 | Q32: =IF(' 賞与計算 '!D35<源泉賞与表!$J$10*1000,0,INDEX(源泉賞与表!$B:$B,MATCH(' 賞与計算 '!D35/1000,源泉賞与表!$J:$J,1))) -> 0 | R32: =IF(' 賞与計算 '!D35<源泉賞与表!$L$10*1000,0,INDEX(源泉賞与表!$B:$B,MATCH(' 賞与計算 '!D35/1000,源泉賞与表!$L:$L,1))) -> 0 | S32: =IF(' 賞与計算 '!D35<源泉賞与表!$N$10*1000,0,INDEX(源泉賞与表!$B:$B,MATCH(' 賞与計算 '!D35/1000,源泉賞与表!$N:$N,1))) -> 0 | T32: =IF(' 賞与計算 '!D35<源泉賞与表!$P$10*1000,0,INDEX(源泉賞与表!$B:$B,MATCH(' 賞与計算 '!D35/1000,源泉賞与表!$P:$P,1))) -> 0 | U32: =IF(' 賞与計算 '!D35<源泉賞与表!$R$10*1000,0,INDEX(源泉賞与表!$B:$B,MATCH(' 賞与計算 '!D35/1000,源泉賞与表!$R:$R,1))) -> 0 | V32: =IF(' 賞与計算 '!D35="","",IF(' 賞与計算 '!D35<源泉賞与表!$T$22*1000,10.21,INDEX(源泉賞与表!$B:$B,MATCH(' 賞与計算 '!D35/1000,源泉賞与表!$T:$T,1)))) ->  | W32: 0 | X32: =IF(' 基本情報 '!G35="",0,ROUND(VLOOKUP(' 基本情報 '!G35,INDIRECT(' 基本情報 '!$D$3&"!$B$12:$I$61"),6,0)-0.1,0)) -> 0 | Y32: =IF(' 基本情報 '!G35="",0,ROUND(VLOOKUP(' 基本情報 '!G35,INDIRECT(' 基本情報 '!$D$3&"!$B$12:$I$61"),8,0)-0.1,0)) -> 0 | Z32: 0 | AA32: =IF(' 基本情報 '!G35="",0,ROUND(IF(OR(' 基本情報 '!G35<税額基本情報!$E$26,' 基本情報 '!G35>税額基本情報!$E$27),AC32,VLOOKUP(' 基本情報 '!G35,INDIRECT(' 基本情報 '!$D$3&"!$B$15:$K$45"),10,0))-0.1,0)) -> 0 | AB32: =IF(' 基本情報 '!G35="",0,ROUND(IF(OR(' 基本情報 '!G35<税額基本情報!$E$26,' 基本情報 '!G35>税額基本情報!$E$27),AD32,VLOOKUP(' 基本情報 '!G35,INDIRECT(' 基本情報 '!$D$3&"!$B$15:$M$45"),12,0))-0.1,0)) -> 0 | AC32: =IF(' 基本情報 '!G35="",0,IF(' 基本情報 '!G35<税額基本情報!$E$26,税額基本情報!$F$26,IF(' 基本情報 '!G35>税額基本情報!$E$27,税額基本情報!$F$27,0))) -> 0 | AD32: =IF(' 基本情報 '!G35="",0,IF(' 基本情報 '!G35<税額基本情報!$E$26,税額基本情報!$G$26,IF(' 基本情報 '!G35>税額基本情報!$E$27,税額基本情報!$G$27,0))) -> 0 | AE32: 0 | AF32: =ROUND(IF(' 賞与計算 '!F35>税額基本情報!$D$33,税額基本情報!$D$33,ROUNDDOWN(' 賞与計算 '!F35,-3))*INDIRECT(' 基本情報 '!$D$3&"!$F$9")*0.5-0.1,0) -> 0 | AG32: =ROUND(IF(' 賞与計算 '!F35>税額基本情報!$D$33,税額基本情報!$D$33,ROUNDDOWN(' 賞与計算 '!F35,-3))*INDIRECT(' 基本情報 '!$D$3&"!$H$9")/2-0.1,0) -> 0 | AH32: 0 | AI32: =ROUND(IF(' 賞与計算 '!F35>税額基本情報!$D$30,税額基本情報!$D$30,ROUNDDOWN(' 賞与計算 '!F35,-3))*INDIRECT(' 基本情報 '!$D$3&"!$J$9")/2-0.1,0) -> 0 | AJ32: =ROUND(IF(' 賞与計算 '!F35>税額基本情報!$D$30,税額基本情報!$D$30,ROUNDDOWN(' 賞与計算 '!F35,-3))*INDIRECT(' 基本情報 '!$D$3&"!$L$9")/2-0.1,0) -> 0
C33: 29 | D33: =' 給与計算 '!C36 ->  | E33: =MAX(IF(' 給与計算 '!L36>=税額基本情報!$D$6,MAX(計算シート!H33:K33),IF(' 給与計算 '!L36<源泉月額表!$B$8,0,VLOOKUP(' 給与計算 '!L36,源泉月額表!$B:$K,IF(' 基本情報 '!E36>=8,10,' 基本情報 '!E36+3),1)))-IF(' 基本情報 '!E36>=8,(' 基本情報 '!E36-7)*税額基本情報!$D$17,0),0) -> 0 | F33: =IF(' 給与計算 '!L36<源泉月額表!$B$8,ROUNDDOWN(' 給与計算 '!L36*税額基本情報!$D$23,0),IF(' 給与計算 '!L36=0,0,IF(' 給与計算 '!L36>=税額基本情報!$D$13,MAX(L33:M33),VLOOKUP(' 給与計算 '!L36,源泉月額表!$B:$L,11,1)))) -> 0 | G33: =MAX(IF(' 給与計算 '!L36<源泉月額表!$B$8,ROUNDDOWN(' 給与計算 '!L36*3.063%,0),IF(' 給与計算 '!L36=0,0,IF(' 給与計算 '!L36>=税額基本情報!$D$13,MAX(L33:M33),VLOOKUP(' 給与計算 '!L36,源泉月額表!$B:$L,11,1))))-' 基本情報 '!E36*税額基本情報!$D$20,0) -> 0 | H33: =IF(AND(' 給与計算 '!L36>=税額基本情報!$D$6,' 給与計算 '!L36<税額基本情報!$D$7),VLOOKUP(' 給与計算 '!L36,税額基本情報!$D$6:$M$9,IF(' 基本情報 '!E36>=8,10,' 基本情報 '!E36+3),1)+ROUNDDOWN((' 給与計算 '!L36-税額基本情報!$D$6)*税額基本情報!$E$6,0),0) -> 0 | I33: =IF(AND(' 給与計算 '!L36>=税額基本情報!$D$7,' 給与計算 '!L36<税額基本情報!$D$8),VLOOKUP(' 給与計算 '!L36,税額基本情報!$D$6:$M$9,IF(' 基本情報 '!E36>=8,10,' 基本情報 '!E36+3),1)+ROUNDDOWN((' 給与計算 '!L36-税額基本情報!$D$7)*税額基本情報!$E$7,0),0) -> 0 | J33: =IF(' 給与計算 '!L36>=税額基本情報!$D$8,VLOOKUP(' 給与計算 '!L36,税額基本情報!$D$6:$M$9,IF(' 基本情報 '!E36>=8,10,' 基本情報 '!E36+3),1)+ROUNDDOWN((' 給与計算 '!L36-税額基本情報!$D$8)*税額基本情報!$E$8,0),0) -> 0 | K33: =IF(' 給与計算 '!L36>=税額基本情報!$D$9,VLOOKUP(' 給与計算 '!L36,税額基本情報!$D$6:$M$9,IF(' 基本情報 '!E36>=8,10,' 基本情報 '!E36+3),1)+ROUNDDOWN((' 給与計算 '!L36-税額基本情報!$D$9)*税額基本情報!$E$9,0),0) -> 0 | L33: =IF(AND(' 給与計算 '!L36>=税額基本情報!$D$13,' 給与計算 '!L36<税額基本情報!$D$14),税額基本情報!$F$13+ROUNDDOWN((' 給与計算 '!L36-税額基本情報!$D$13)*税額基本情報!$E$13,0),0) -> 0 | M33: =IF(' 給与計算 '!L36>=税額基本情報!$D$14,税額基本情報!$F$14+ROUNDDOWN((' 給与計算 '!L36-税額基本情報!$D$14)*税額基本情報!$E$14,0),0) -> 0 | N33: =IF(' 賞与計算 '!D36<源泉賞与表!$D$10*1000,0,INDEX(源泉賞与表!$B:$B,MATCH(' 賞与計算 '!D36/1000,源泉賞与表!$D:$D,1))) -> 0 | O33: =IF(' 賞与計算 '!D36<源泉賞与表!$F$10*1000,0,INDEX(源泉賞与表!$B:$B,MATCH(' 賞与計算 '!D36/1000,源泉賞与表!$F:$F,1))) -> 0 | P33: =IF(' 賞与計算 '!D36<源泉賞与表!$H$10*1000,0,INDEX(源泉賞与表!$B:$B,MATCH(' 賞与計算 '!D36/1000,源泉賞与表!$H:$H,1))) -> 0 | Q33: =IF(' 賞与計算 '!D36<源泉賞与表!$J$10*1000,0,INDEX(源泉賞与表!$B:$B,MATCH(' 賞与計算 '!D36/1000,源泉賞与表!$J:$J,1))) -> 0 | R33: =IF(' 賞与計算 '!D36<源泉賞与表!$L$10*1000,0,INDEX(源泉賞与表!$B:$B,MATCH(' 賞与計算 '!D36/1000,源泉賞与表!$L:$L,1))) -> 0 | S33: =IF(' 賞与計算 '!D36<源泉賞与表!$N$10*1000,0,INDEX(源泉賞与表!$B:$B,MATCH(' 賞与計算 '!D36/1000,源泉賞与表!$N:$N,1))) -> 0 | T33: =IF(' 賞与計算 '!D36<源泉賞与表!$P$10*1000,0,INDEX(源泉賞与表!$B:$B,MATCH(' 賞与計算 '!D36/1000,源泉賞与表!$P:$P,1))) -> 0 | U33: =IF(' 賞与計算 '!D36<源泉賞与表!$R$10*1000,0,INDEX(源泉賞与表!$B:$B,MATCH(' 賞与計算 '!D36/1000,源泉賞与表!$R:$R,1))) -> 0 | V33: =IF(' 賞与計算 '!D36="","",IF(' 賞与計算 '!D36<源泉賞与表!$T$22*1000,10.21,INDEX(源泉賞与表!$B:$B,MATCH(' 賞与計算 '!D36/1000,源泉賞与表!$T:$T,1)))) ->  | W33: 0 | X33: =IF(' 基本情報 '!G36="",0,ROUND(VLOOKUP(' 基本情報 '!G36,INDIRECT(' 基本情報 '!$D$3&"!$B$12:$I$61"),6,0)-0.1,0)) -> 0 | Y33: =IF(' 基本情報 '!G36="",0,ROUND(VLOOKUP(' 基本情報 '!G36,INDIRECT(' 基本情報 '!$D$3&"!$B$12:$I$61"),8,0)-0.1,0)) -> 0 | Z33: 0 | AA33: =IF(' 基本情報 '!G36="",0,ROUND(IF(OR(' 基本情報 '!G36<税額基本情報!$E$26,' 基本情報 '!G36>税額基本情報!$E$27),AC33,VLOOKUP(' 基本情報 '!G36,INDIRECT(' 基本情報 '!$D$3&"!$B$15:$K$45"),10,0))-0.1,0)) -> 0 | AB33: =IF(' 基本情報 '!G36="",0,ROUND(IF(OR(' 基本情報 '!G36<税額基本情報!$E$26,' 基本情報 '!G36>税額基本情報!$E$27),AD33,VLOOKUP(' 基本情報 '!G36,INDIRECT(' 基本情報 '!$D$3&"!$B$15:$M$45"),12,0))-0.1,0)) -> 0 | AC33: =IF(' 基本情報 '!G36="",0,IF(' 基本情報 '!G36<税額基本情報!$E$26,税額基本情報!$F$26,IF(' 基本情報 '!G36>税額基本情報!$E$27,税額基本情報!$F$27,0))) -> 0 | AD33: =IF(' 基本情報 '!G36="",0,IF(' 基本情報 '!G36<税額基本情報!$E$26,税額基本情報!$G$26,IF(' 基本情報 '!G36>税額基本情報!$E$27,税額基本情報!$G$27,0))) -> 0 | AE33: 0 | AF33: =ROUND(IF(' 賞与計算 '!F36>税額基本情報!$D$33,税額基本情報!$D$33,ROUNDDOWN(' 賞与計算 '!F36,-3))*INDIRECT(' 基本情報 '!$D$3&"!$F$9")*0.5-0.1,0) -> 0 | AG33: =ROUND(IF(' 賞与計算 '!F36>税額基本情報!$D$33,税額基本情報!$D$33,ROUNDDOWN(' 賞与計算 '!F36,-3))*INDIRECT(' 基本情報 '!$D$3&"!$H$9")/2-0.1,0) -> 0 | AH33: 0 | AI33: =ROUND(IF(' 賞与計算 '!F36>税額基本情報!$D$30,税額基本情報!$D$30,ROUNDDOWN(' 賞与計算 '!F36,-3))*INDIRECT(' 基本情報 '!$D$3&"!$J$9")/2-0.1,0) -> 0 | AJ33: =ROUND(IF(' 賞与計算 '!F36>税額基本情報!$D$30,税額基本情報!$D$30,ROUNDDOWN(' 賞与計算 '!F36,-3))*INDIRECT(' 基本情報 '!$D$3&"!$L$9")/2-0.1,0) -> 0
C34: 30 | D34: =' 給与計算 '!C37 ->  | E34: =MAX(IF(' 給与計算 '!L37>=税額基本情報!$D$6,MAX(計算シート!H34:K34),IF(' 給与計算 '!L37<源泉月額表!$B$8,0,VLOOKUP(' 給与計算 '!L37,源泉月額表!$B:$K,IF(' 基本情報 '!E37>=8,10,' 基本情報 '!E37+3),1)))-IF(' 基本情報 '!E37>=8,(' 基本情報 '!E37-7)*税額基本情報!$D$17,0),0) -> 0 | F34: =IF(' 給与計算 '!L37<源泉月額表!$B$8,ROUNDDOWN(' 給与計算 '!L37*税額基本情報!$D$23,0),IF(' 給与計算 '!L37=0,0,IF(' 給与計算 '!L37>=税額基本情報!$D$13,MAX(L34:M34),VLOOKUP(' 給与計算 '!L37,源泉月額表!$B:$L,11,1)))) -> 0 | G34: =MAX(IF(' 給与計算 '!L37<源泉月額表!$B$8,ROUNDDOWN(' 給与計算 '!L37*3.063%,0),IF(' 給与計算 '!L37=0,0,IF(' 給与計算 '!L37>=税額基本情報!$D$13,MAX(L34:M34),VLOOKUP(' 給与計算 '!L37,源泉月額表!$B:$L,11,1))))-' 基本情報 '!E37*税額基本情報!$D$20,0) -> 0 | H34: =IF(AND(' 給与計算 '!L37>=税額基本情報!$D$6,' 給与計算 '!L37<税額基本情報!$D$7),VLOOKUP(' 給与計算 '!L37,税額基本情報!$D$6:$M$9,IF(' 基本情報 '!E37>=8,10,' 基本情報 '!E37+3),1)+ROUNDDOWN((' 給与計算 '!L37-税額基本情報!$D$6)*税額基本情報!$E$6,0),0) -> 0 | I34: =IF(AND(' 給与計算 '!L37>=税額基本情報!$D$7,' 給与計算 '!L37<税額基本情報!$D$8),VLOOKUP(' 給与計算 '!L37,税額基本情報!$D$6:$M$9,IF(' 基本情報 '!E37>=8,10,' 基本情報 '!E37+3),1)+ROUNDDOWN((' 給与計算 '!L37-税額基本情報!$D$7)*税額基本情報!$E$7,0),0) -> 0 | J34: =IF(' 給与計算 '!L37>=税額基本情報!$D$8,VLOOKUP(' 給与計算 '!L37,税額基本情報!$D$6:$M$9,IF(' 基本情報 '!E37>=8,10,' 基本情報 '!E37+3),1)+ROUNDDOWN((' 給与計算 '!L37-税額基本情報!$D$8)*税額基本情報!$E$8,0),0) -> 0 | K34: =IF(' 給与計算 '!L37>=税額基本情報!$D$9,VLOOKUP(' 給与計算 '!L37,税額基本情報!$D$6:$M$9,IF(' 基本情報 '!E37>=8,10,' 基本情報 '!E37+3),1)+ROUNDDOWN((' 給与計算 '!L37-税額基本情報!$D$9)*税額基本情報!$E$9,0),0) -> 0 | L34: =IF(AND(' 給与計算 '!L37>=税額基本情報!$D$13,' 給与計算 '!L37<税額基本情報!$D$14),税額基本情報!$F$13+ROUNDDOWN((' 給与計算 '!L37-税額基本情報!$D$13)*税額基本情報!$E$13,0),0) -> 0 | M34: =IF(' 給与計算 '!L37>=税額基本情報!$D$14,税額基本情報!$F$14+ROUNDDOWN((' 給与計算 '!L37-税額基本情報!$D$14)*税額基本情報!$E$14,0),0) -> 0 | N34: =IF(' 賞与計算 '!D37<源泉賞与表!$D$10*1000,0,INDEX(源泉賞与表!$B:$B,MATCH(' 賞与計算 '!D37/1000,源泉賞与表!$D:$D,1))) -> 0 | O34: =IF(' 賞与計算 '!D37<源泉賞与表!$F$10*1000,0,INDEX(源泉賞与表!$B:$B,MATCH(' 賞与計算 '!D37/1000,源泉賞与表!$F:$F,1))) -> 0 | P34: =IF(' 賞与計算 '!D37<源泉賞与表!$H$10*1000,0,INDEX(源泉賞与表!$B:$B,MATCH(' 賞与計算 '!D37/1000,源泉賞与表!$H:$H,1))) -> 0 | Q34: =IF(' 賞与計算 '!D37<源泉賞与表!$J$10*1000,0,INDEX(源泉賞与表!$B:$B,MATCH(' 賞与計算 '!D37/1000,源泉賞与表!$J:$J,1))) -> 0 | R34: =IF(' 賞与計算 '!D37<源泉賞与表!$L$10*1000,0,INDEX(源泉賞与表!$B:$B,MATCH(' 賞与計算 '!D37/1000,源泉賞与表!$L:$L,1))) -> 0 | S34: =IF(' 賞与計算 '!D37<源泉賞与表!$N$10*1000,0,INDEX(源泉賞与表!$B:$B,MATCH(' 賞与計算 '!D37/1000,源泉賞与表!$N:$N,1))) -> 0 | T34: =IF(' 賞与計算 '!D37<源泉賞与表!$P$10*1000,0,INDEX(源泉賞与表!$B:$B,MATCH(' 賞与計算 '!D37/1000,源泉賞与表!$P:$P,1))) -> 0 | U34: =IF(' 賞与計算 '!D37<源泉賞与表!$R$10*1000,0,INDEX(源泉賞与表!$B:$B,MATCH(' 賞与計算 '!D37/1000,源泉賞与表!$R:$R,1))) -> 0 | V34: =IF(' 賞与計算 '!D37="","",IF(' 賞与計算 '!D37<源泉賞与表!$T$22*1000,10.21,INDEX(源泉賞与表!$B:$B,MATCH(' 賞与計算 '!D37/1000,源泉賞与表!$T:$T,1)))) ->  | W34: 0 | X34: =IF(' 基本情報 '!G37="",0,ROUND(VLOOKUP(' 基本情報 '!G37,INDIRECT(' 基本情報 '!$D$3&"!$B$12:$I$61"),6,0)-0.1,0)) -> 0 | Y34: =IF(' 基本情報 '!G37="",0,ROUND(VLOOKUP(' 基本情報 '!G37,INDIRECT(' 基本情報 '!$D$3&"!$B$12:$I$61"),8,0)-0.1,0)) -> 0 | Z34: 0 | AA34: =IF(' 基本情報 '!G37="",0,ROUND(IF(OR(' 基本情報 '!G37<税額基本情報!$E$26,' 基本情報 '!G37>税額基本情報!$E$27),AC34,VLOOKUP(' 基本情報 '!G37,INDIRECT(' 基本情報 '!$D$3&"!$B$15:$K$45"),10,0))-0.1,0)) -> 0 | AB34: =IF(' 基本情報 '!G37="",0,ROUND(IF(OR(' 基本情報 '!G37<税額基本情報!$E$26,' 基本情報 '!G37>税額基本情報!$E$27),AD34,VLOOKUP(' 基本情報 '!G37,INDIRECT(' 基本情報 '!$D$3&"!$B$15:$M$45"),12,0))-0.1,0)) -> 0 | AC34: =IF(' 基本情報 '!G37="",0,IF(' 基本情報 '!G37<税額基本情報!$E$26,税額基本情報!$F$26,IF(' 基本情報 '!G37>税額基本情報!$E$27,税額基本情報!$F$27,0))) -> 0 | AD34: =IF(' 基本情報 '!G37="",0,IF(' 基本情報 '!G37<税額基本情報!$E$26,税額基本情報!$G$26,IF(' 基本情報 '!G37>税額基本情報!$E$27,税額基本情報!$G$27,0))) -> 0 | AE34: 0 | AF34: =ROUND(IF(' 賞与計算 '!F37>税額基本情報!$D$33,税額基本情報!$D$33,ROUNDDOWN(' 賞与計算 '!F37,-3))*INDIRECT(' 基本情報 '!$D$3&"!$F$9")*0.5-0.1,0) -> 0 | AG34: =ROUND(IF(' 賞与計算 '!F37>税額基本情報!$D$33,税額基本情報!$D$33,ROUNDDOWN(' 賞与計算 '!F37,-3))*INDIRECT(' 基本情報 '!$D$3&"!$H$9")/2-0.1,0) -> 0 | AH34: 0 | AI34: =ROUND(IF(' 賞与計算 '!F37>税額基本情報!$D$30,税額基本情報!$D$30,ROUNDDOWN(' 賞与計算 '!F37,-3))*INDIRECT(' 基本情報 '!$D$3&"!$J$9")/2-0.1,0) -> 0 | AJ34: =ROUND(IF(' 賞与計算 '!F37>税額基本情報!$D$30,税額基本情報!$D$30,ROUNDDOWN(' 賞与計算 '!F37,-3))*INDIRECT(' 基本情報 '!$D$3&"!$L$9")/2-0.1,0) -> 0

Sheet リスト表 (hidden)
B2: 甲・乙区分 | C2: 雇用保険区分 | E2: 社会保険料 | G2: 場所
E3: 健康保険 | F3: 厚生年金
B4: 甲欄 | C4: 無し | D4: =INDIRECT(' 基本情報 '!$D$3&"!B12") -> 58000 | E4: 無し | F4: 無し | G4: 北海道
B5: 乙欄 | C5: 一般の事業 | D5: =INDIRECT(' 基本情報 '!$D$3&"!B13") -> 68000 | E5: 介護保険なし | F5: 一般、坑内員・船員 | G5: 青森
B6: 乙欄（従たる給与についての扶養控除等申告書提出あり） | C6: 農林水産・清酒製造事業 | D6: =INDIRECT(' 基本情報 '!$D$3&"!B14") -> 78000 | E6: 介護保険あり | F6: なし | G6: 岩手
C7: 建設の事業 | D7: =INDIRECT(' 基本情報 '!$D$3&"!B15") -> 88000 | G7: 宮城
D8: =INDIRECT(' 基本情報 '!$D$3&"!B16") -> 98000 | G8: 秋田
C9: ○ | D9: =INDIRECT(' 基本情報 '!$D$3&"!B17") -> 104000 | G9: 山形
C10: × | D10: =INDIRECT(' 基本情報 '!$D$3&"!B18") -> 110000 | G10: 福島
D11: =INDIRECT(' 基本情報 '!$D$3&"!B19") -> 118000 | G11: 茨城
D12: =INDIRECT(' 基本情報 '!$D$3&"!B20") -> 126000 | G12: 栃木
D13: =INDIRECT(' 基本情報 '!$D$3&"!B21") -> 134000 | G13: 群馬
D14: =INDIRECT(' 基本情報 '!$D$3&"!B22") -> 142000 | G14: 埼玉
D15: =INDIRECT(' 基本情報 '!$D$3&"!B23") -> 150000 | G15: 千葉
D16: =INDIRECT(' 基本情報 '!$D$3&"!B24") -> 160000 | G16: 東京
D17: =INDIRECT(' 基本情報 '!$D$3&"!B25") -> 170000 | G17: 神奈川
D18: =INDIRECT(' 基本情報 '!$D$3&"!B26") -> 180000 | G18: 新潟
D19: =INDIRECT(' 基本情報 '!$D$3&"!B27") -> 190000 | G19: 富山
D20: =INDIRECT(' 基本情報 '!$D$3&"!B28") -> 200000 | G20: 石川
D21: =INDIRECT(' 基本情報 '!$D$3&"!B29") -> 220000 | G21: 福井
D22: =INDIRECT(' 基本情報 '!$D$3&"!B30") -> 240000 | G22: 山梨
D23: =INDIRECT(' 基本情報 '!$D$3&"!B31") -> 260000 | G23: 長野
D24: =INDIRECT(' 基本情報 '!$D$3&"!B32") -> 280000 | G24: 岐阜
D25: =INDIRECT(' 基本情報 '!$D$3&"!B33") -> 300000 | G25: 静岡
D26: =INDIRECT(' 基本情報 '!$D$3&"!B34") -> 320000 | G26: 愛知
D27: =INDIRECT(' 基本情報 '!$D$3&"!B35") -> 340000 | G27: 三重
D28: =INDIRECT(' 基本情報 '!$D$3&"!B36") -> 360000 | G28: 滋賀
D29: =INDIRECT(' 基本情報 '!$D$3&"!B37") -> 380000 | G29: 京都
D30: =INDIRECT(' 基本情報 '!$D$3&"!B38") -> 410000 | G30: 大阪
D31: =INDIRECT(' 基本情報 '!$D$3&"!B39") -> 440000 | G31: 兵庫
D32: =INDIRECT(' 基本情報 '!$D$3&"!B40") -> 470000 | G32: 奈良
D33: =INDIRECT(' 基本情報 '!$D$3&"!B41") -> 500000 | G33: 和歌山
D34: =INDIRECT(' 基本情報 '!$D$3&"!B42") -> 530000 | G34: 鳥取
D35: =INDIRECT(' 基本情報 '!$D$3&"!B43") -> 560000 | G35: 島根
D36: =INDIRECT(' 基本情報 '!$D$3&"!B44") -> 590000 | G36: 岡山
D37: =INDIRECT(' 基本情報 '!$D$3&"!B45") -> 620000 | G37: 広島
D38: =INDIRECT(' 基本情報 '!$D$3&"!B46") -> 650000 | G38: 山口
D39: =INDIRECT(' 基本情報 '!$D$3&"!B47") -> 680000 | G39: 徳島
D40: =INDIRECT(' 基本情報 '!$D$3&"!B48") -> 710000 | G40: 香川
D41: =INDIRECT(' 基本情報 '!$D$3&"!B49") -> 750000 | G41: 愛媛
D42: =INDIRECT(' 基本情報 '!$D$3&"!B50") -> 790000 | G42: 高知
D43: =INDIRECT(' 基本情報 '!$D$3&"!B51") -> 830000 | G43: 福岡
D44: =INDIRECT(' 基本情報 '!$D$3&"!B52") -> 880000 | G44: 佐賀
D45: =INDIRECT(' 基本情報 '!$D$3&"!B53") -> 930000 | G45: 長崎
D46: =INDIRECT(' 基本情報 '!$D$3&"!B54") -> 980000 | G46: 熊本
D47: =INDIRECT(' 基本情報 '!$D$3&"!B55") -> 1030000 | G47: 大分
D48: =INDIRECT(' 基本情報 '!$D$3&"!B56") -> 1090000 | G48: 宮崎
D49: =INDIRECT(' 基本情報 '!$D$3&"!B57") -> 1150000 | G49: 鹿児島
D50: =INDIRECT(' 基本情報 '!$D$3&"!B58") -> 1210000 | G50: 沖縄
D51: =INDIRECT(' 基本情報 '!$D$3&"!B59") -> 1270000
D52: =INDIRECT(' 基本情報 '!$D$3&"!B60") -> 1330000
D53: =INDIRECT(' 基本情報 '!$D$3&"!B61") -> 1390000

Sheet 税額基本情報 (hidden)
C3: 甲欄（月額給与101万円超の場合の税額基本情報）
C4: 社会保険料控除後の支給額 | D4: 超えた部分に乗じる税率 | F4: 加算する源泉徴収税額
F5: 0 | G5: 1 | H5: 2 | I5: 3 | J5: 4 | K5: 5 | L5: 6 | M5: 7 | N5: ←扶養人数
C6: 860,000円超 970,000円未満 | D6: 860000 | E6: 0.23483 | F6: =源泉月額表!D353 -> 97350 | G6: =源泉月額表!E353 -> 89920 | H6: =源泉月額表!F353 -> 82480 | I6: =源泉月額表!G353 -> 75930 | J6: =源泉月額表!H353 -> 69470 | K6: =源泉月額表!I353 -> 63010 | L6: =源泉月額表!J353 -> 56530 | M6: =源泉月額表!K353 -> 50070
C7: 970,000円超 1,720,000円未満 | D7: 970000 | E7: 0.33693 | F7: =源泉月額表!D366 -> 123190 | G7: =源泉月額表!E366 -> 115760 | H7: =源泉月額表!F366 -> 108320 | I7: =源泉月額表!G366 -> 101770 | J7: =源泉月額表!H366 -> 95310 | K7: =源泉月額表!I366 -> 88850 | L7: =源泉月額表!J366 -> 82370 | M7: =源泉月額表!K366 -> 75910
C8: 1,720,000円以上 3,550,000円未満 | D8: 1720000 | E8: 0.4084 | F8: =源泉月額表!D375 -> 375890 | G8: =源泉月額表!E375 -> 368460 | H8: =源泉月額表!F375 -> 361020 | I8: =源泉月額表!G375 -> 354470 | J8: =源泉月額表!H375 -> 348010 | K8: =源泉月額表!I375 -> 341550 | L8: =源泉月額表!J375 -> 335070 | M8: =源泉月額表!K375 -> 328610
C9: 3,550,000円超 | D9: 3550000 | E9: 0.45945 | F9: =源泉月額表!D384 -> 1123270 | G9: =源泉月額表!E384 -> 1115840 | H9: =源泉月額表!F384 -> 1108400 | I9: =源泉月額表!G384 -> 1101850 | J9: =源泉月額表!H384 -> 1095390 | K9: =源泉月額表!I384 -> 1088930 | L9: =源泉月額表!J384 -> 1082450 | M9: =源泉月額表!K384 -> 1075990
C11: 乙欄（月額給与101万円超の場合の税額基本情報）
C12: 社会保険料控除後の支給額 | D12: 超えた部分に乗じる税率 | F12: 加算する源泉税額
C13: 860,000円超 1,720,000円未満 | D13: 860000 | E13: 0.4084 | F13: 320900
C14: 1,720,000円超 | D14: 1720000 | E14: 0.45945 | F14: 672200
C16: 甲欄（扶養人数7人超の場合控除する税額）
C17: 扶養人数一人増えるごとに控除される源泉徴収税額 | D17: 1610
C19: 乙欄（従たる給与についての扶養控除等申告書提出ありの場合、控除する税額）
C20: 扶養人数一人増えるごとに控除される源泉徴収税額 | D20: 1610
C22: 乙欄（月額給与88,000円未満だった場合に乗じる税率）
C23: 月額給与88,000円未満の場合乗じる税率 | D23: 0.03063
C25: 厚生年金（最低額と最高額） | F25: 一般、坑内員・船員
C26: 標準報酬月額 | D26: 最低額 | E26: =INDIRECT(' 基本情報 '!$D$3&"!B15") -> 88000 | F26: =ROUND(INDIRECT(' 基本情報 '!$D$3&"!K15")-0.1,0) -> 8052
D27: 最高額 | E27: =INDIRECT(' 基本情報 '!$D$3&"!B45") -> 620000 | F27: =ROUND(INDIRECT(' 基本情報 '!$D$3&"!K45")-0.1,0) -> 56730
C29: 厚生年金の計算における賞与支給額の上限
C30: 厚生年金の計算における賞与支給額の上限 | D30: 1500000
C32: 健康保険の計算における賞与支給額の上限
C33: 健康保険の計算における賞与支給額の上限 | D33: 5400000

Sheet 源泉月額表 (hidden)
B1: 給与所得の源泉徴収税額表（平成30年分）
B2: 月 額 表（平成24年３月31日財務省告示第115号別表第一（平成29年３月31日財務省告示第95号改正））
B3: その月の社会保 | D3: 甲
B4: 険料等控除後の | D4: 扶 養 親 族 等 の 数 | L4: 乙
B5: 給与等の金額 | D5: 0 人 | E5: 1 人 | F5: 2 人 | G5: 3 人 | H5: 4 人 | I5: 5 人 | J5: 6 人 | K5: 7 人
B6: 以 上 | C6: 未 満 | D6: 税 額 | L6: 税 額
B7: 円 | C7: 円 | D7: 円 | E7: 円 | F7: 円 | G7: 円 | H7: 円 | I7: 円 | J7: 円 | K7: 円 | L7: 円
B8: 88000 | C8: 円未満 | D8: 0 | E8: 0 | F8: 0 | G8: 0 | H8: 0 | I8: 0 | J8: 0 | K8: 0 | L8: その月の社会保険料等控除後の給与等の金額の3.063％に相当する金額
A10: 1 | B10: 88000 | C10: 89000 | D10: 130 | E10: 0 | F10: 0 | G10: 0 | H10: 0 | I10: 0 | J10: 0 | K10: 0 | L10: 3200
A11: 2 | B11: 89000 | C11: 90000 | D11: 180 | E11: 0 | F11: 0 | G11: 0 | H11: 0 | I11: 0 | J11: 0 | K11: 0 | L11: 3200
A12: 3 | B12: 90000 | C12: 91000 | D12: 230 | E12: 0 | F12: 0 | G12: 0 | H12: 0 | I12: 0 | J12: 0 | K12: 0 | L12: 3200
A13: 4 | B13: 91000 | C13: 92000 | D13: 290 | E13: 0 | F13: 0 | G13: 0 | H13: 0 | I13: 0 | J13: 0 | K13: 0 | L13: 3200
A14: 5 | B14: 92000 | C14: 93000 | D14: 340 | E14: 0 | F14: 0 | G14: 0 | H14: 0 | I14: 0 | J14: 0 | K14: 0 | L14: 3300
A16: 6 | B16: 93000 | C16: 94000 | D16: 390 | E16: 0 | F16: 0 | G16: 0 | H16: 0 | I16: 0 | J16: 0 | K16: 0 | L16: 3300
A17: 7 | B17: 94000 | C17: 95000 | D17: 440 | E17: 0 | F17: 0 | G17: 0 | H17: 0 | I17: 0 | J17: 0 | K17: 0 | L17: 3300
A18: 8 | B18: 95000 | C18: 96000 | D18: 490 | E18: 0 | F18: 0 | G18: 0 | H18: 0 | I18: 0 | J18: 0 | K18: 0 | L18: 3400
A19: 9 | B19: 96000 | C19: 97000 | D19: 540 | E19: 0 | F19: 0 | G19: 0 | H19: 0 | I19: 0 | J19: 0 | K19: 0 | L19: 3400
A20: 10 | B20: 97000 | C20: 98000 | D20: 590 | E20: 0 | F20: 0 | G20: 0 | H20: 0 | I20: 0 | J20: 0 | K20: 0 | L20: 3500
A22: 11 | B22: 98000 | C22: 99000 | D22: 640 | E22: 0 | F22: 0 | G22: 0 | H22: 0 | I22: 0 | J22: 0 | K22: 0 | L22: 3500
A23: 12 | B23: 99000 | C23: 101000 | D23: 720 | E23: 0 | F23: 0 | G23: 0 | H23: 0 | I23: 0 | J23: 0 | K23: 0 | L23: 3600
A24: 13 | B24: 101000 | C24: 103000 | D24: 830 | E24: 0 | F24: 0 | G24: 0 | H24: 0 | I24: 0 | J24: 0 | K24: 0 | L24: 3600
A25: 14 | B25: 103000 | C25: 105000 | D25: 930 | E25: 0 | F25: 0 | G25: 0 | H25: 0 | I25: 0 | J25: 0 | K25: 0 | L25: 3700
A26: 15 | B26: 105000 | C26: 107000 | D26: 1030 | E26: 0 | F26: 0 | G26: 0 | H26: 0 | I26: 0 | J26: 0 | K26: 0 | L26: 3800
A28: 16 | B28: 107000 | C28: 109000 | D28: 1130 | E28: 0 | F28: 0 | G28: 0 | H28: 0 | I28: 0 | J28: 0 | K28: 0 | L28: 3800
A29: 17 | B29: 109000 | C29: 111000 | D29: 1240 | E29: 0 | F29: 0 | G29: 0 | H29: 0 | I29: 0 | J29: 0 | K29: 0 | L29: 3900
A30: 18 | B30: 111000 | C30: 113000 | D30: 1340 | E30: 0 | F30: 0 | G30: 0 | H30: 0 | I30: 0 | J30: 0 | K30: 0 | L30: 4000
A31: 19 | B31: 113000 | C31: 115000 | D31: 1440 | E31: 0 | F31: 0 | G31: 0 | H31: 0 | I31: 0 | J31: 0 | K31: 0 | L31: 4100
A32: 20 | B32: 115000 | C32: 117000 | D32: 1540 | E32: 0 | F32: 0 | G32: 0 | H32: 0 | I32: 0 | J32: 0 | K32: 0 | L32: 4100
A34: 21 | B34: 117000 | C34: 119000 | D34: 1640 | E34: 0 | F34: 0 | G34: 0 | H34: 0 | I34: 0 | J34: 0 | K34: 0 | L34: 4200
A35: 22 | B35: 119000 | C35: 121000 | D35: 1750 | E35: 120 | F35: 0 | G35: 0 | H35: 0 | I35: 0 | J35: 0 | K35: 0 | L35: 4300
A36: 23 | B36: 121000 | C36: 123000 | D36: 1850 | E36: 220 | F36: 0 | G36: 0 | H36: 0 | I36: 0 | J36: 0 | K36: 0 | L36: 4500
A37: 24 | B37: 123000 | C37: 125000 | D37: 1950 | E37: 330 | F37: 0 | G37: 0 | H37: 0 | I37: 0 | J37: 0 | K37: 0 | L37: 4800
A38: 25 | B38: 125000 | C38: 127000 | D38: 2050 | E38: 430 | F38: 0 | G38: 0 | H38: 0 | I38: 0 | J38: 0 | K38: 0 | L38: 5100
A40: 26 | B40: 127000 | C40: 129000 | D40: 2150 | E40: 530 | F40: 0 | G40: 0 | H40: 0 | I40: 0 | J40: 0 | K40: 0 | L40: 5400
A41: 27 | B41: 129000 | C41: 131000 | D41: 2260 | E41: 630 | F41: 0 | G41: 0 | H41: 0 | I41: 0 | J41: 0 | K41: 0 | L41: 5700
A42: 28 | B42: 131000 | C42: 133000 | D42: 2360 | E42: 740 | F42: 0 | G42: 0 | H42: 0 | I42: 0 | J42: 0 | K42: 0 | L42: 6000
A43: 29 | B43: 133000 | C43: 135000 | D43: 2460 | E43: 840 | F43: 0 | G43: 0 | H43: 0 | I43: 0 | J43: 0 | K43: 0 | L43: 6300
A44: 30 | B44: 135000 | C44: 137000 | D44: 2550 | E44: 930 | F44: 0 | G44: 0 | H44: 0 | I44: 0 | J44: 0 | K44: 0 | L44: 6600
A46: 31 | B46: 137000 | C46: 139000 | D46: 2610 | E46: 990 | F46: 0 | G46: 0 | H46: 0 | I46: 0 | J46: 0 | K46: 0 | L46: 6800
A47: 32 | B47: 139000 | C47: 141000 | D47: 2680 | E47: 1050 | F47: 0 | G47: 0 | H47: 0 | I47: 0 | J47: 0 | K47: 0 | L47: 7100
A48: 33 | B48: 141000 | C48: 143000 | D48: 2740 | E48: 1110 | F48: 0 | G48: 0 | H48: 0 | I48: 0 | J48: 0 | K48: 0 | L48: 7500
A49: 34 | B49: 143000 | C49: 145000 | D49: 2800 | E49: 1170 | F49: 0 | G49: 0 | H49: 0 | I49: 0 | J49: 0 | K49: 0 | L49: 7800
A50: 35 | B50: 145000 | C50: 147000 | D50: 2860 | E50: 1240 | F50: 0 | G50: 0 | H50: 0 | I50: 0 | J50: 0 | K50: 0 | L50: 8100
A52: 36 | B52: 147000 | C52: 149000 | D52: 2920 | E52: 1300 | F52: 0 | G52: 0 | H52: 0 | I52: 0 | J52: 0 | K52: 0 | L52: 8400
A53: 37 | B53: 149000 | C53: 151000 | D53: 2980 | E53: 1360 | F53: 0 | G53: 0 | H53: 0 | I53: 0 | J53: 0 | K53: 0 | L53: 8700
A54: 38 | B54: 151000 | C54: 153000 | D54: 3050 | E54: 1430 | F54: 0 | G54: 0 | H54: 0 | I54: 0 | J54: 0 | K54: 0 | L54: 9000
A55: 39 | B55: 153000 | C55: 155000 | D55: 3120 | E55: 1500 | F55: 0 | G55: 0 | H55: 0 | I55: 0 | J55: 0 | K55: 0 | L55: 9300
A56: 40 | B56: 155000 | C56: 157000 | D56: 3200 | E56: 1570 | F56: 0 | G56: 0 | H56: 0 | I56: 0 | J56: 0 | K56: 0 | L56: 9600
A58: 41 | B58: 157000 | C58: 159000 | D58: 3270 | E58: 1640 | F58: 0 | G58: 0 | H58: 0 | I58: 0 | J58: 0 | K58: 0 | L58: 9900
A59: 42 | B59: 159000 | C59: 161000 | D59: 3340 | E59: 1720 | F59: 100 | G59: 0 | H59: 0 | I59: 0 | J59: 0 | K59: 0 | L59: 10200
A60: 43 | B60: 161000 | C60: 163000 | D60: 3410 | E60: 1790 | F60: 170 | G60: 0 | H60: 0 | I60: 0 | J60: 0 | K60: 0 | L60: 10500
A61: 44 | B61: 163000 | C61: 165000 | D61: 3480 | E61: 1860 | F61: 250 | G61: 0 | H61: 0 | I61: 0 | J61: 0 | K61: 0 | L61: 10800
A62: 45 | B62: 165000 | C62: 167000 | D62: 3550 | E62: 1930 | F62: 320 | G62: 0 | H62: 0 | I62: 0 | J62: 0 | K62: 0 | L62: 11100
A64: 46 | B64: 167000 | C64: 169000 | D64: 3620 | E64: 2000 | F64: 390 | G64: 0 | H64: 0 | I64: 0 | J64: 0 | K64: 0 | L64: 11400
A65: 47 | B65: 169000 | C65: 171000 | D65: 3700 | E65: 2070 | F65: 460 | G65: 0 | H65: 0 | I65: 0 | J65: 0 | K65: 0 | L65: 11700
A66: 48 | B66: 171000 | C66: 173000 | D66: 3770 | E66: 2140 | F66: 530 | G66: 0 | H66: 0 | I66: 0 | J66: 0 | K66: 0 | L66: 12000
A67: 49 | B67: 173000 | C67: 175000 | D67: 3840 | E67: 2220 | F67: 600 | G67: 0 | H67: 0 | I67: 0 | J67: 0 | K67: 0 | L67: 12400
A68: 50 | B68: 175000 | C68: 177000 | D68: 3910 | E68: 2290 | F68: 670 | G68: 0 | H68: 0 | I68: 0 | J68: 0 | K68: 0 | L68: 12700
A70: 51 | B70: 177000 | C70: 179000 | D70: 3980 | E70: 2360 | F70: 750 | G70: 0 | H70: 0 | I70: 0 | J70: 0 | K70: 0 | L70: 13200
A71: 52 | B71: 179000 | C71: 181000 | D71: 4050 | E71: 2430 | F71: 820 | G71: 0 | H71: 0 | I71: 0 | J71: 0 | K71: 0 | L71: 13900
A72: 53 | B72: 181000 | C72: 183000 | D72: 4120 | E72: 2500 | F72: 890 | G72: 0 | H72: 0 | I72: 0 | J72: 0 | K72: 0 | L72: 14600
A73: 54 | B73: 183000 | C73: 185000 | D73: 4200 | E73: 2570 | F73: 960 | G73: 0 | H73: 0 | I73: 0 | J73: 0 | K73: 0 | L73: 15300
A74: 55 | B74: 185000 | C74: 187000 | D74: 4270 | E74: 2640 | F74: 1030 | G74: 0 | H74: 0 | I74: 0 | J74: 0 | K74: 0 | L74: 16000
A76: 56 | B76: 187000 | C76: 189000 | D76: 4340 | E76: 2720 | F76: 1100 | G76: 0 | H76: 0 | I76: 0 | J76: 0 | K76: 0 | L76: 16700
A77: 57 | B77: 189000 | C77: 191000 | D77: 4410 | E77: 2790 | F77: 1170 | G77: 0 | H77: 0 | I77: 0 | J77: 0 | K77: 0 | L77: 17500
A78: 58 | B78: 191000 | C78: 193000 | D78: 4480 | E78: 2860 | F78: 1250 | G78: 0 | H78: 0 | I78: 0 | J78: 0 | K78: 0 | L78: 18100
A79: 59 | B79: 193000 | C79: 195000 | D79: 4550 | E79: 2930 | F79: 1320 | G79: 0 | H79: 0 | I79: 0 | J79: 0 | K79: 0 | L79: 18800
A80: 60 | B80: 195000 | C80: 197000 | D80: 4630 | E80: 3000 | F80: 1390 | G80: 0 | H80: 0 | I80: 0 | J80: 0 | K80: 0 | L80: 19500
A82: 61 | B82: 197000 | C82: 199000 | D82: 4700 | E82: 3070 | F82: 1460 | G82: 0 | H82: 0 | I82: 0 | J82: 0 | K82: 0 | L82: 20200
A83: 62 | B83: 199000 | C83: 201000 | D83: 4770 | E83: 3140 | F83: 1530 | G83: 0 | H83: 0 | I83: 0 | J83: 0 | K83: 0 | L83: 20900
A84: 63 | B84: 201000 | C84: 203000 | D84: 4840 | E84: 3220 | F84: 1600 | G84: 0 | H84: 0 | I84: 0 | J84: 0 | K84: 0 | L84: 21500
A85: 64 | B85: 203000 | C85: 205000 | D85: 4910 | E85: 3290 | F85: 1670 | G85: 0 | H85: 0 | I85: 0 | J85: 0 | K85: 0 | L85: 22200
A86: 65 | B86: 205000 | C86: 207000 | D86: 4980 | E86: 3360 | F86: 1750 | G86: 130 | H86: 0 | I86: 0 | J86: 0 | K86: 0 | L86: 22700
A88: 66 | B88: 207000 | C88: 209000 | D88: 5050 | E88: 3430 | F88: 1820 | G88: 200 | H88: 0 | I88: 0 | J88: 0 | K88: 0 | L88: 23300
A89: 67 | B89: 209000 | C89: 211000 | D89: 5130 | E89: 3500 | F89: 1890 | G89: 280 | H89: 0 | I89: 0 | J89: 0 | K89: 0 | L89: 23900
A90: 68 | B90: 211000 | C90: 213000 | D90: 5200 | E90: 3570 | F90: 1960 | G90: 350 | H90: 0 | I90: 0 | J90: 0 | K90: 0 | L90: 24400
A91: 69 | B91: 213000 | C91: 215000 | D91: 5270 | E91: 3640 | F91: 2030 | G91: 420 | H91: 0 | I91: 0 | J91: 0 | K91: 0 | L91: 25000
A92: 70 | B92: 215000 | C92: 217000 | D92: 5340 | E92: 3720 | F92: 2100 | G92: 490 | H92: 0 | I92: 0 | J92: 0 | K92: 0 | L92: 25500
A94: 71 | B94: 217000 | C94: 219000 | D94: 5410 | E94: 3790 | F94: 2170 | G94: 560 | H94: 0 | I94: 0 | J94: 0 | K94: 0 | L94: 26100
A95: 72 | B95: 219000 | C95: 221000 | D95: 5480 | E95: 3860 | F95: 2250 | G95: 630 | H95: 0 | I95: 0 | J95: 0 | K95: 0 | L95: 26800
A96: 73 | B96: 221000 | C96: 224000 | D96: 5560 | E96: 3950 | F96: 2340 | G96: 710 | H96: 0 | I96: 0 | J96: 0 | K96: 0 | L96: 27400
A97: 74 | B97: 224000 | C97: 227000 | D97: 5680 | E97: 4060 | F97: 2440 | G97: 830 | H97: 0 | I97: 0 | J97: 0 | K97: 0 | L97: 28400
A98: 75 | B98: 227000 | C98: 230000 | D98: 5780 | E98: 4170 | F98: 2550 | G98: 930 | H98: 0 | I98: 0 | J98: 0 | K98: 0 | L98: 29300
A100: 76 | B100: 230000 | C100: 233000 | D100: 5890 | E100: 4280 | F100: 2650 | G100: 1040 | H100: 0 | I100: 0 | J100: 0 | K100: 0 | L100: 30300
A101: 77 | B101: 233000 | C101: 236000 | D101: 5990 | E101: 4380 | F101: 2770 | G101: 1140 | H101: 0 | I101: 0 | J101: 0 | K101: 0 | L101: 31300
A102: 78 | B102: 236000 | C102: 239000 | D102: 6110 | E102: 4490 | F102: 2870 | G102: 1260 | H102: 0 | I102: 0 | J102: 0 | K102: 0 | L102: 32400
A103: 79 | B103: 239000 | C103: 242000 | D103: 6210 | E103: 4590 | F103: 2980 | G103: 1360 | H103: 0 | I103: 0 | J103: 0 | K103: 0 | L103: 33400
A104: 80 | B104: 242000 | C104: 245000 | D104: 6320 | E104: 4710 | F104: 3080 | G104: 1470 | H104: 0 | I104: 0 | J104: 0 | K104: 0 | L104: 34400
A106: 81 | B106: 245000 | C106: 248000 | D106: 6420 | E106: 4810 | F106: 3200 | G106: 1570 | H106: 0 | I106: 0 | J106: 0 | K106: 0 | L106: 35400
A107: 82 | B107: 248000 | C107: 251000 | D107: 6530 | E107: 4920 | F107: 3300 | G107: 1680 | H107: 0 | I107: 0 | J107: 0 | K107: 0 | L107: 36400
A108: 83 | B108: 251000 | C108: 254000 | D108: 6640 | E108: 5020 | F108: 3410 | G108: 1790 | H108: 170 | I108: 0 | J108: 0 | K108: 0 | L108: 37500
A109: 84 | B109: 254000 | C109: 257000 | D109: 6750 | E109: 5140 | F109: 3510 | G109: 1900 | H109: 290 | I109: 0 | J109: 0 | K109: 0 | L109: 38500
A110: 85 | B110: 257000 | C110: 260000 | D110: 6850 | E110: 5240 | F110: 3620 | G110: 2000 | H110: 390 | I110: 0 | J110: 0 | K110: 0 | L110: 39400
A112: 86 | B112: 260000 | C112: 263000 | D112: 6960 | E112: 5350 | F112: 3730 | G112: 2110 | H112: 500 | I112: 0 | J112: 0 | K112: 0 | L112: 40400
A113: 87 | B113: 263000 | C113: 266000 | D113: 7070 | E113: 5450 | F113: 3840 | G113: 2220 | H113: 600 | I113: 0 | J113: 0 | K113: 0 | L113: 41500
A114: 88 | B114: 266000 | C114: 269000 | D114: 7180 | E114: 5560 | F114: 3940 | G114: 2330 | H114: 710 | I114: 0 | J114: 0 | K114: 0 | L114: 42500
A115: 89 | B115: 269000 | C115: 272000 | D115: 7280 | E115: 5670 | F115: 4050 | G115: 2430 | H115: 820 | I115: 0 | J115: 0 | K115: 0 | L115: 43500
A116: 90 | B116: 272000 | C116: 275000 | D116: 7390 | E116: 5780 | F116: 4160 | G116: 2540 | H116: 930 | I116: 0 | J116: 0 | K116: 0 | L116: 44500
A118: 91 | B118: 275000 | C118: 278000 | D118: 7490 | E118: 5880 | F118: 4270 | G118: 2640 | H118: 1030 | I118: 0 | J118: 0 | K118: 0 | L118: 45500
A119: 92 | B119: 278000 | C119: 281000 | D119: 7610 | E119: 5990 | F119: 4370 | G119: 2760 | H119: 1140 | I119: 0 | J119: 0 | K119: 0 | L119: 46600
A120: 93 | B120: 281000 | C120: 284000 | D120: 7710 | E120: 6100 | F120: 4480 | G120: 2860 | H120: 1250 | I120: 0 | J120: 0 | K120: 0 | L120: 47600
A121: 94 | B121: 284000 | C121: 287000 | D121: 7820 | E121: 6210 | F121: 4580 | G121: 2970 | H121: 1360 | I121: 0 | J121: 0 | K121: 0 | L121: 48600
A122: 95 | B122: 287000 | C122: 290000 | D122: 7920 | E122: 6310 | F122: 4700 | G122: 3070 | H122: 1460 | I122: 0 | J122: 0 | K122: 0 | L122: 49500
A124: 96 | B124: 290000 | C124: 293000 | D124: 8040 | E124: 6420 | F124: 4800 | G124: 3190 | H124: 1570 | I124: 0 | J124: 0 | K124: 0 | L124: 50500
A125: 97 | B125: 293000 | C125: 296000 | D125: 8140 | E125: 6520 | F125: 4910 | G125: 3290 | H125: 1670 | I125: 0 | J125: 0 | K125: 0 | L125: 51600
A126: 98 | B126: 296000 | C126: 299000 | D126: 8250 | E126: 6640 | F126: 5010 | G126: 3400 | H126: 1790 | I126: 160 | J126: 0 | K126: 0 | L126: 52300
A127: 99 | B127: 299000 | C127: 302000 | D127: 8420 | E127: 6740 | F127: 5130 | G127: 3510 | H127: 1890 | I127: 280 | J127: 0 | K127: 0 | L127: 52900
A128: 100 | B128: 302000 | C128: 305000 | D128: 8670 | E128: 6860 | F128: 5250 | G128: 3630 | H128: 2010 | I128: 400 | J128: 0 | K128: 0 | L128: 53500
A130: 101 | B130: 305000 | C130: 308000 | D130: 8910 | E130: 6980 | F130: 5370 | G130: 3760 | H130: 2130 | I130: 520 | J130: 0 | K130: 0 | L130: 54200
A131: 102 | B131: 308000 | C131: 311000 | D131: 9160 | E131: 7110 | F131: 5490 | G131: 3880 | H131: 2260 | I131: 640 | J131: 0 | K131: 0 | L131: 54800
A132: 103 | B132: 311000 | C132: 314000 | D132: 9400 | E132: 7230 | F132: 5620 | G132: 4000 | H132: 2380 | I132: 770 | J132: 0 | K132: 0 | L132: 55400
A133: 104 | B133: 314000 | C133: 317000 | D133: 9650 | E133: 7350 | F133: 5740 | G133: 4120 | H133: 2500 | I133: 890 | J133: 0 | K133: 0 | L133: 56100
A134: 105 | B134: 317000 | C134: 320000 | D134: 9890 | E134: 7470 | F134: 5860 | G134: 4250 | H134: 2620 | I134: 1010 | J134: 0 | K134: 0 | L134: 56800
A136: 106 | B136: 320000 | C136: 323000 | D136: 10140 | E136: 7600 | F136: 5980 | G136: 4370 | H136: 2750 | I136: 1130 | J136: 0 | K136: 0 | L136: 57700
A137: 107 | B137: 323000 | C137: 326000 | D137: 10380 | E137: 7720 | F137: 6110 | G137: 4490 | H137: 2870 | I137: 1260 | J137: 0 | K137: 0 | L137: 58500
A138: 108 | B138: 326000 | C138: 329000 | D138: 10630 | E138: 7840 | F138: 6230 | G138: 4610 | H138: 2990 | I138: 1380 | J138: 0 | K138: 0 | L138: 59300
A139: 109 | B139: 329000 | C139: 332000 | D139: 10870 | E139: 7960 | F139: 6350 | G139: 4740 | H139: 3110 | I139: 1500 | J139: 0 | K139: 0 | L139: 60200
A140: 110 | B140: 332000 | C140: 335000 | D140: 11120 | E140: 8090 | F140: 6470 | G140: 4860 | H140: 3240 | I140: 1620 | J140: 0 | K140: 0 | L140: 61100
A142: 111 | B142: 335000 | C142: 338000 | D142: 11360 | E142: 8210 | F142: 6600 | G142: 4980 | H142: 3360 | I142: 1750 | J142: 130 | K142: 0 | L142: 62000
A143: 112 | B143: 338000 | C143: 341000 | D143: 11610 | E143: 8370 | F143: 6720 | G143: 5110 | H143: 3480 | I143: 1870 | J143: 260 | K143: 0 | L143: 63000
A144: 113 | B144: 341000 | C144: 344000 | D144: 11850 | E144: 8620 | F144: 6840 | G144: 5230 | H144: 3600 | I144: 1990 | J144: 380 | K144: 0 | L144: 64000
A145: 114 | B145: 344000 | C145: 347000 | D145: 12100 | E145: 8860 | F145: 6960 | G145: 5350 | H145: 3730 | I145: 2110 | J145: 500 | K145: 0 | L145: 65000
A146: 115 | B146: 347000 | C146: 350000 | D146: 12340 | E146: 9110 | F146: 7090 | G146: 5470 | H146: 3850 | I146: 2240 | J146: 620 | K146: 0 | L146: 66200
A148: 116 | B148: 350000 | C148: 353000 | D148: 12590 | E148: 9350 | F148: 7210 | G148: 5600 | H148: 3970 | I148: 2360 | J148: 750 | K148: 0 | L148: 67200
A149: 117 | B149: 353000 | C149: 356000 | D149: 12830 | E149: 9600 | F149: 7330 | G149: 5720 | H149: 4090 | I149: 2480 | J149: 870 | K149: 0 | L149: 68200
A150: 118 | B150: 356000 | C150: 359000 | D150: 13080 | E150: 9840 | F150: 7450 | G150: 5840 | H150: 4220 | I150: 2600 | J150: 990 | K150: 0 | L150: 69200
A151: 119 | B151: 359000 | C151: 362000 | D151: 13320 | E151: 10090 | F151: 7580 | G151: 5960 | H151: 4340 | I151: 2730 | J151: 1110 | K151: 0 | L151: 70200
A152: 120 | B152: 362000 | C152: 365000 | D152: 13570 | E152: 10330 | F152: 7700 | G152: 6090 | H152: 4460 | I152: 2850 | J152: 1240 | K152: 0 | L152: 71300
A154: 121 | B154: 365000 | C154: 368000 | D154: 13810 | E154: 10580 | F154: 7820 | G154: 6210 | H154: 4580 | I154: 2970 | J154: 1360 | K154: 0 | L154: 72300
A155: 122 | B155: 368000 | C155: 371000 | D155: 14060 | E155: 10820 | F155: 7940 | G155: 6330 | H155: 4710 | I155: 3090 | J155: 1480 | K155: 0 | L155: 73200
A156: 123 | B156: 371000 | C156: 374000 | D156: 14300 | E156: 11070 | F156: 8070 | G156: 6450 | H156: 4830 | I156: 3220 | J156: 1600 | K156: 0 | L156: 74200
A157: 124 | B157: 374000 | C157: 377000 | D157: 14550 | E157: 11310 | F157: 8190 | G157: 6580 | H157: 4950 | I157: 3340 | J157: 1730 | K157: 100 | L157: 75100
A158: 125 | B158: 377000 | C158: 380000 | D158: 14790 | E158: 11560 | F158: 8320 | G158: 6700 | H158: 5070 | I158: 3460 | J158: 1850 | K158: 220 | L158: 76100
A160: 126 | B160: 380000 | C160: 383000 | D160: 15040 | E160: 11800 | F160: 8570 | G160: 6820 | H160: 5200 | I160: 3580 | J160: 1970 | K160: 350 | L160: 77000
A161: 127 | B161: 383000 | C161: 386000 | D161: 15280 | E161: 12050 | F161: 8810 | G161: 6940 | H161: 5320 | I161: 3710 | J161: 2090 | K161: 470 | L161: 77900
A162: 128 | B162: 386000 | C162: 389000 | D162: 15530 | E162: 12290 | F162: 9060 | G162: 7070 | H162: 5440 | I162: 3830 | J162: 2220 | K162: 590 | L162: 78800
A163: 129 | B163: 389000 | C163: 392000 | D163: 15770 | E163: 12540 | F163: 9300 | G163: 7190 | H163: 5560 | I163: 3950 | J163: 2340 | K163: 710 | L163: 80600
A164: 130 | B164: 392000 | C164: 395000 | D164: 16020 | E164: 12780 | F164: 9550 | G164: 7310 | H164: 5690 | I164: 4070 | J164: 2460 | K164: 840 | L164: 82300
A166: 131 | B166: 395000 | C166: 398000 | D166: 16260 | E166: 13030 | F166: 9790 | G166: 7430 | H166: 5810 | I166: 4200 | J166: 2580 | K166: 960 | L166: 83900
A167: 132 | B167: 398000 | C167: 401000 | D167: 16510 | E167: 13270 | F167: 10040 | G167: 7560 | H167: 5930 | I167: 4320 | J167: 2710 | K167: 1080 | L167: 85700
A168: 133 | B168: 401000 | C168: 404000 | D168: 16750 | E168: 13520 | F168: 10280 | G168: 7680 | H168: 6050 | I168: 4440 | J168: 2830 | K168: 1200 | L168: 87400
A169: 134 | B169: 404000 | C169: 407000 | D169: 17000 | E169: 13760 | F169: 10530 | G169: 7800 | H169: 6180 | I169: 4560 | J169: 2950 | K169: 1330 | L169: 89000
A170: 135 | B170: 407000 | C170: 410000 | D170: 17240 | E170: 14010 | F170: 10770 | G170: 7920 | H170: 6300 | I170: 4690 | J170: 3070 | K170: 1450 | L170: 90800
A172: 136 | B172: 410000 | C172: 413000 | D172: 17490 | E172: 14250 | F172: 11020 | G172: 8050 | H172: 6420 | I172: 4810 | J172: 3200 | K172: 1570 | L172: 92500
A173: 137 | B173: 413000 | C173: 416000 | D173: 17730 | E173: 14500 | F173: 11260 | G173: 8170 | H173: 6540 | I173: 4930 | J173: 3320 | K173: 1690 | L173: 94100
A174: 138 | B174: 416000 | C174: 419000 | D174: 17980 | E174: 14740 | F174: 11510 | G174: 8290 | H174: 6670 | I174: 5050 | J174: 3440 | K174: 1820 | L174: 95900
A175: 139 | B175: 419000 | C175: 422000 | D175: 18220 | E175: 14990 | F175: 11750 | G175: 8530 | H175: 6790 | I175: 5180 | J175: 3560 | K175: 1940 | L175: 97600
A176: 140 | B176: 422000 | C176: 425000 | D176: 18470 | E176: 15230 | F176: 12000 | G176: 8770 | H176: 6910 | I176: 5300 | J176: 3690 | K176: 2060 | L176: 99200
A178: 141 | B178: 425000 | C178: 428000 | D178: 18710 | E178: 15480 | F178: 12240 | G178: 9020 | H178: 7030 | I178: 5420 | J178: 3810 | K178: 2180 | L178: 101000
A179: 142 | B179: 428000 | C179: 431000 | D179: 18960 | E179: 15720 | F179: 12490 | G179: 9260 | H179: 7160 | I179: 5540 | J179: 3930 | K179: 2310 | L179: 102600
A180: 143 | B180: 431000 | C180: 434000 | D180: 19210 | E180: 15970 | F180: 12730 | G180: 9510 | H180: 7280 | I180: 5670 | J180: 4050 | K180: 2430 | L180: 104300
A181: 144 | B181: 434000 | C181: 437000 | D181: 19450 | E181: 16210 | F181: 12980 | G181: 9750 | H181: 7400 | I181: 5790 | J181: 4180 | K181: 2550 | L181: 106100
A182: 145 | B182: 437000 | C182: 440000 | D182: 19700 | E182: 16460 | F182: 13220 | G182: 10000 | H182: 7520 | I182: 5910 | J182: 4300 | K182: 2680 | L182: 107700
A184: 146 | B184: 440000 | C184: 443000 | D184: 20090 | E184: 16700 | F184: 13470 | G184: 10240 | H184: 7650 | I184: 6030 | J184: 4420 | K184: 2800 | L184: 109500
A185: 147 | B185: 443000 | C185: 446000 | D185: 20580 | E185: 16950 | F185: 13710 | G185: 10490 | H185: 7770 | I185: 6160 | J185: 4540 | K185: 2920 | L185: 111200
A186: 148 | B186: 446000 | C186: 449000 | D186: 21070 | E186: 17190 | F186: 13960 | G186: 10730 | H186: 7890 | I186: 6280 | J186: 4670 | K186: 3040 | L186: 112800
A187: 149 | B187: 449000 | C187: 452000 | D187: 21560 | E187: 17440 | F187: 14200 | G187: 10980 | H187: 8010 | I187: 6400 | J187: 4790 | K187: 3170 | L187: 114600
A188: 150 | B188: 452000 | C188: 455000 | D188: 22050 | E188: 17680 | F188: 14450 | G188: 11220 | H188: 8140 | I188: 6520 | J188: 4910 | K188: 3290 | L188: 116300
A190: 151 | B190: 455000 | C190: 458000 | D190: 22540 | E190: 17930 | F190: 14690 | G190: 11470 | H190: 8260 | I190: 6650 | J190: 5030 | K190: 3410 | L190: 117900
A191: 152 | B191: 458000 | C191: 461000 | D191: 23030 | E191: 18170 | F191: 14940 | G191: 11710 | H191: 8470 | I191: 6770 | J191: 5160 | K191: 3530 | L191: 119700
A192: 153 | B192: 461000 | C192: 464000 | D192: 23520 | E192: 18420 | F192: 15180 | G192: 11960 | H192: 8720 | I192: 6890 | J192: 5280 | K192: 3660 | L192: 121400
A193: 154 | B193: 464000 | C193: 467000 | D193: 24010 | E193: 18660 | F193: 15430 | G193: 12200 | H193: 8960 | I193: 7010 | J193: 5400 | K193: 3780 | L193: 123000
A194: 155 | B194: 467000 | C194: 470000 | D194: 24500 | E194: 18910 | F194: 15670 | G194: 12450 | H194: 9210 | I194: 7140 | J194: 5520 | K194: 3900 | L194: 124800
A196: 156 | B196: 470000 | C196: 473000 | D196: 24990 | E196: 19150 | F196: 15920 | G196: 12690 | H196: 9450 | I196: 7260 | J196: 5650 | K196: 4020 | L196: 126500
A197: 157 | B197: 473000 | C197: 476000 | D197: 25480 | E197: 19400 | F197: 16160 | G197: 12940 | H197: 9700 | I197: 7380 | J197: 5770 | K197: 4150 | L197: 128100
A198: 158 | B198: 476000 | C198: 479000 | D198: 25970 | E198: 19640 | F198: 16410 | G198: 13180 | H198: 9940 | I198: 7500 | J198: 5890 | K198: 4270 | L198: 129900
A199: 159 | B199: 479000 | C199: 482000 | D199: 26460 | E199: 20000 | F199: 16650 | G199: 13430 | H199: 10190 | I199: 7630 | J199: 6010 | K199: 4390 | L199: 131600
A200: 160 | B200: 482000 | C200: 485000 | D200: 26950 | E200: 20490 | F200: 16900 | G200: 13670 | H200: 10430 | I200: 7750 | J200: 6140 | K200: 4510 | L200: 133200
A202: 161 | B202: 485000 | C202: 488000 | D202: 27440 | E202: 20980 | F202: 17140 | G202: 13920 | H202: 10680 | I202: 7870 | J202: 6260 | K202: 4640 | L202: 135000
A203: 162 | B203: 488000 | C203: 491000 | D203: 27930 | E203: 21470 | F203: 17390 | G203: 14160 | H203: 10920 | I203: 7990 | J203: 6380 | K203: 4760 | L203: 136600
A204: 163 | B204: 491000 | C204: 494000 | D204: 28420 | E204: 21960 | F204: 17630 | G204: 14410 | H204: 11170 | I204: 8120 | J204: 6500 | K204: 4880 | L204: 138300
A205: 164 | B205: 494000 | C205: 497000 | D205: 28910 | E205: 22450 | F205: 17880 | G205: 14650 | H205: 11410 | I205: 8240 | J205: 6630 | K205: 5000 | L205: 140100
A206: 165 | B206: 497000 | C206: 500000 | D206: 29400 | E206: 22940 | F206: 18120 | G206: 14900 | H206: 11660 | I206: 8420 | J206: 6750 | K206: 5130 | L206: 141700
A208: 166 | B208: 500000 | C208: 503000 | D208: 29890 | E208: 23430 | F208: 18370 | G208: 15140 | H208: 11900 | I208: 8670 | J208: 6870 | K208: 5250 | L208: 143500
A209: 167 | B209: 503000 | C209: 506000 | D209: 30380 | E209: 23920 | F209: 18610 | G209: 15390 | H209: 12150 | I209: 8910 | J209: 6990 | K209: 5370 | L209: 145200
A210: 168 | B210: 506000 | C210: 509000 | D210: 30880 | E210: 24410 | F210: 18860 | G210: 15630 | H210: 12390 | I210: 9160 | J210: 7120 | K210: 5490 | L210: 146800
A211: 169 | B211: 509000 | C211: 512000 | D211: 31370 | E211: 24900 | F211: 19100 | G211: 15880 | H211: 12640 | I211: 9400 | J211: 7240 | K211: 5620 | L211: 148600
A212: 170 | B212: 512000 | C212: 515000 | D212: 31860 | E212: 25390 | F212: 19350 | G212: 16120 | H212: 12890 | I212: 9650 | J212: 7360 | K212: 5740 | L212: 150300
A214: 171 | B214: 515000 | C214: 518000 | D214: 32350 | E214: 25880 | F214: 19590 | G214: 16370 | H214: 13130 | I214: 9890 | J214: 7480 | K214: 5860 | L214: 151900
A215: 172 | B215: 518000 | C215: 521000 | D215: 32840 | E215: 26370 | F215: 19900 | G215: 16610 | H215: 13380 | I215: 10140 | J215: 7610 | K215: 5980 | L215: 153700
A216: 173 | B216: 521000 | C216: 524000 | D216: 33330 | E216: 26860 | F216: 20390 | G216: 16860 | H216: 13620 | I216: 10380 | J216: 7730 | K216: 6110 | L216: 155400
A217: 174 | B217: 524000 | C217: 527000 | D217: 33820 | E217: 27350 | F217: 20880 | G217: 17100 | H217: 13870 | I217: 10630 | J217: 7850 | K217: 6230 | L217: 157000
A218: 175 | B218: 527000 | C218: 530000 | D218: 34310 | E218: 27840 | F218: 21370 | G218: 17350 | H218: 14110 | I218: 10870 | J218: 7970 | K218: 6350 | L218: 158800
A220: 176 | B220: 530000 | C220: 533000 | D220: 34800 | E220: 28330 | F220: 21860 | G220: 17590 | H220: 14360 | I220: 11120 | J220: 8100 | K220: 6470 | L220: 160300
A221: 177 | B221: 533000 | C221: 536000 | D221: 35290 | E221: 28820 | F221: 22350 | G221: 17840 | H221: 14600 | I221: 11360 | J221: 8220 | K221: 6600 | L221: 161900
A222: 178 | B222: 536000 | C222: 539000 | D222: 35780 | E222: 29310 | F222: 22840 | G222: 18080 | H222: 14850 | I222: 11610 | J222: 8380 | K222: 6720 | L222: 163500
A223: 179 | B223: 539000 | C223: 542000 | D223: 36270 | E223: 29800 | F223: 23330 | G223: 18330 | H223: 15090 | I223: 11850 | J223: 8630 | K223: 6840 | L223: 165000
A224: 180 | B224: 542000 | C224: 545000 | D224: 36760 | E224: 30290 | F224: 23820 | G224: 18570 | H224: 15340 | I224: 12100 | J224: 8870 | K224: 6960 | L224: 166600
A226: 181 | B226: 545000 | C226: 548000 | D226: 37250 | E226: 30780 | F226: 24310 | G226: 18820 | H226: 15580 | I226: 12340 | J226: 9120 | K226: 7090 | L226: 168200
A227: 182 | B227: 548000 | C227: 551000 | D227: 37740 | E227: 31270 | F227: 24800 | G227: 19060 | H227: 15830 | I227: 12590 | J227: 9360 | K227: 7210 | L227: 169800
A228: 183 | B228: 551000 | C228: 554000 | D228: 38280 | E228: 31810 | F228: 25340 | G228: 19330 | H228: 16100 | I228: 12860 | J228: 9630 | K228: 7350 | L228: 171300
A229: 184 | B229: 554000 | C229: 557000 | D229: 38830 | E229: 32370 | F229: 25890 | G229: 19600 | H229: 16380 | I229: 13140 | J229: 9900 | K229: 7480 | L229: 173000
A230: 185 | B230: 557000 | C230: 560000 | D230: 39380 | E230: 32920 | F230: 26440 | G230: 19980 | H230: 16650 | I230: 13420 | J230: 10180 | K230: 7630 | L230: 174500
A232: 186 | B232: 560000 | C232: 563000 | D232: 39930 | E232: 33470 | F232: 27000 | G232: 20530 | H232: 16930 | I232: 13690 | J232: 10460 | K232: 7760 | L232: 175900
A233: 187 | B233: 563000 | C233: 566000 | D233: 40480 | E233: 34020 | F233: 27550 | G233: 21080 | H233: 17200 | I233: 13970 | J233: 10730 | K233: 7900 | L233: 177300
A234: 188 | B234: 566000 | C234: 569000 | D234: 41030 | E234: 34570 | F234: 28100 | G234: 21630 | H234: 17480 | I234: 14240 | J234: 11010 | K234: 8040 | L234: 178900
A235: 189 | B235: 569000 | C235: 572000 | D235: 41590 | E235: 35120 | F235: 28650 | G235: 22190 | H235: 17760 | I235: 14520 | J235: 11280 | K235: 8180 | L235: 180300
A236: 190 | B236: 572000 | C236: 575000 | D236: 42140 | E236: 35670 | F236: 29200 | G236: 22740 | H236: 18030 | I236: 14790 | J236: 11560 | K236: 8330 | L236: 181800
A238: 191 | B238: 575000 | C238: 578000 | D238: 42690 | E238: 36230 | F238: 29750 | G238: 23290 | H238: 18310 | I238: 15070 | J238: 11830 | K238: 8610 | L238: 183300
A239: 192 | B239: 578000 | C239: 581000 | D239: 43240 | E239: 36780 | F239: 30300 | G239: 23840 | H239: 18580 | I239: 15350 | J239: 12110 | K239: 8880 | L239: 184700
... 140 more rows

Sheet 源泉賞与表 (hidden)
B1: 賞与に対する源泉徴収税額の算出率の表（平成30年分）
B2: （平成24年３月31日財務省告示第115号別表第三（平成29年３月31日財務省告示第95号改正））
B3: 賞与の金額に乗ずべき率 | D3: 甲 | T3: 乙
D4: 扶 養 親 族 等 の 数
D5: 0 人 | F5: 1 人 | H5: 2 人 | J5: 3 人 | L5: 4 人 | N5: 5 人 | P5: 6 人 | R5: 7 人 以 上
D6: 前 月 の 社 会 保 険 料 等 控 除 後 の 給 与 等 の 金 額 | T6: 前月の社会保険料等控除後の給与等の金額
D7: 以上 | E7: 未満 | F7: 以上 | G7: 未満 | H7: 以上 | I7: 未満 | J7: 以上 | K7: 未満 | L7: 以上 | M7: 未満 | N7: 以上 | O7: 未満 | P7: 以上 | Q7: 未満 | R7: 以上 | S7: 未満 | T7: 以上 | U7: 未満
B8: % | D8: 千円 | E8: 千円 | F8: 千円 | G8: 千円 | H8: 千円 | I8: 千円 | J8: 千円 | K8: 千円 | L8: 千円 | M8: 千円 | N8: 千円 | O8: 千円 | P8: 千円 | Q8: 千円 | R8: 千円 | S8: 千円 | T8: 千円 | U8: 千円
B9: 0 | D9: 68千円未満 | F9: 94千円未満 | H9: 133千円未満 | J9: 171千円未満 | L9: 210千円未満 | N9: 243千円未満 | P9: 275千円未満 | R9: 308千円未満
B10: 2.042 | D10: 68 | E10: 79 | F10: 94 | G10: 243 | H10: 133 | I10: 269 | J10: 171 | K10: 295 | L10: 210 | M10: 300 | N10: 243 | O10: 300 | P10: 275 | Q10: 333 | R10: 308 | S10: 372
B11: 4.084 | D11: 79 | E11: 252 | F11: 243 | G11: 282 | H11: 269 | I11: 312 | J11: 295 | K11: 345 | L11: 300 | M11: 378 | N11: 300 | O11: 406 | P11: 333 | Q11: 431 | R11: 372 | S11: 456
B12: 6.126 | D12: 252 | E12: 300 | F12: 282 | G12: 338 | H12: 312 | I12: 369 | J12: 345 | K12: 398 | L12: 378 | M12: 424 | N12: 406 | O12: 450 | P12: 431 | Q12: 476 | R12: 456 | S12: 502
B14: 8.168 | D14: 300 | E14: 334 | F14: 338 | G14: 365 | H14: 369 | I14: 393 | J14: 398 | K14: 417 | L14: 424 | M14: 444 | N14: 450 | O14: 472 | P14: 476 | Q14: 499 | R14: 502 | S14: 527
B15: 10.21 | D15: 334 | E15: 363 | F15: 365 | G15: 394 | H15: 393 | I15: 420 | J15: 417 | K15: 445 | L15: 444 | M15: 470 | N15: 472 | O15: 496 | P15: 499 | Q15: 525 | R15: 527 | S15: 553 | U15: 239
B16: 12.252 | D16: 363 | E16: 395 | F16: 394 | G16: 422 | H16: 420 | I16: 450 | J16: 445 | K16: 477 | L16: 470 | M16: 504 | N16: 496 | O16: 531 | P16: 525 | Q16: 559 | R16: 553 | S16: 588
B18: 14.294 | D18: 395 | E18: 426 | F18: 422 | G18: 455 | H18: 450 | I18: 484 | J18: 477 | K18: 513 | L18: 504 | M18: 543 | N18: 531 | O18: 574 | P18: 559 | Q18: 602 | R18: 588 | S18: 627
B19: 16.336 | D19: 426 | E19: 550 | F19: 455 | G19: 550 | H19: 484 | I19: 550 | J19: 513 | K19: 557 | L19: 543 | M19: 591 | N19: 574 | O19: 618 | P19: 602 | Q19: 645 | R19: 627 | S19: 671
B20: 18.378 | D20: 550 | E20: 647 | F20: 550 | G20: 663 | H20: 550 | I20: 678 | J20: 557 | K20: 693 | L20: 591 | M20: 708 | N20: 618 | O20: 723 | P20: 645 | Q20: 739 | R20: 671 | S20: 754
B22: 20.42 | D22: 647 | E22: 699 | F22: 663 | G22: 720 | H22: 678 | I22: 741 | J22: 693 | K22: 762 | L22: 708 | M22: 783 | N22: 723 | O22: 804 | P22: 739 | Q22: 825 | R22: 754 | S22: 848 | T22: 239 | U22: 296
B23: 22.462 | D23: 699 | E23: 730 | F23: 720 | G23: 752 | H23: 741 | I23: 774 | J23: 762 | K23: 796 | L23: 783 | M23: 818 | N23: 804 | O23: 841 | P23: 825 | Q23: 865 | R23: 848 | S23: 890
B24: 24.504 | D24: 730 | E24: 764 | F24: 752 | G24: 787 | H24: 774 | I24: 810 | J24: 796 | K24: 833 | L24: 818 | M24: 859 | N24: 841 | O24: 885 | P24: 865 | Q24: 911 | R24: 890 | S24: 937
B26: 26.546 | D26: 764 | E26: 804 | F26: 787 | G26: 826 | H26: 810 | I26: 852 | J26: 833 | K26: 879 | L26: 859 | M26: 906 | N26: 885 | O26: 934 | P26: 911 | Q26: 961 | R26: 937 | S26: 988
B27: 28.588 | D27: 804 | E27: 857 | F27: 826 | G27: 885 | H27: 852 | I27: 914 | J27: 879 | K27: 942 | L27: 906 | M27: 970 | N27: 934 | O27: 998 | P27: 961 | Q27: 1026 | R27: 988 | S27: 1054
B28: 30.63 | D28: 857 | E28: 926 | F28: 885 | G28: 956 | H28: 914 | I28: 987 | J28: 942 | K28: 1017 | L28: 970 | M28: 1048 | N28: 998 | O28: 1078 | P28: 1026 | Q28: 1108 | R28: 1054 | S28: 1139 | T28: 296 | U28: 528
B30: 32.672 | D30: 926 | E30: 1321 | F30: 956 | G30: 1346 | H30: 987 | I30: 1370 | J30: 1017 | K30: 1394 | L30: 1048 | M30: 1419 | N30: 1078 | O30: 1443 | P30: 1108 | Q30: 1468 | R30: 1139 | S30: 1492
B31: 35.735 | D31: 1321 | E31: 1532 | F31: 1346 | G31: 1560 | H31: 1370 | I31: 1589 | J31: 1394 | K31: 1617 | L31: 1419 | M31: 1645 | N31: 1443 | O31: 1674 | P31: 1468 | Q31: 1702 | R31: 1492 | S31: 1730
B32: 38.798 | D32: 1532 | E32: 2661 | F32: 1560 | G32: 2685 | H32: 1589 | I32: 2708 | J32: 1617 | K32: 2732 | L32: 1645 | M32: 2756 | N32: 1674 | O32: 2780 | P32: 1702 | Q32: 2803 | R32: 1730 | S32: 2827 | T32: 528 | U32: 1135
B34: 41.861 | D34: 2661 | E34: 3548 | F34: 2685 | G34: 3580 | H34: 2708 | I34: 3611 | J34: 2732 | K34: 3643 | L34: 2756 | M34: 3675 | N34: 2780 | O34: 3706 | P34: 2803 | Q34: 3738 | R34: 2827 | S34: 3770
B36: 45.945 | D36: 3548 | E36: 千円以上 | F36: 3580 | G36: 千円以上 | H36: 3611 | I36: 千円以上 | J36: 3643 | K36: 千円以上 | L36: 3675 | M36: 千円以上 | N36: 3706 | O36: 千円以上 | P36: 3738 | Q36: 千円以上 | R36: 3770 | S36: 千円以上 | T36: 1135 | U36: 千円以上
B37: (注) この表において「扶養親族等」とは、源泉控除対象配偶者及び控除対象扶養親族をいいます。
B38: また、「賞与の金額に乗ずべき率」の賞与の金額とは、賞与の金額から控除される社会保険料等の金額がある場合には、その社会保険料等控除後の金額をいいます。
B39: (備考） 賞与の金額に乗ずべき率の求め方は、次のとおりです。
B40: 1 「給与所得者の扶養控除等申告書」(以下この表において「扶養控除等申告書」といいます。)の提出があった人(４に該当する場合を除きます。）
B41: (1) まず、その人の前月中の給与等（賞与を除きます。以下この表において同じ。)の金額から、その給与等の金額から控除される社会保険料等の金額（以下この表において「前月中の社会保険料等の金額」といいます。)を控除した金額を求めます。
B42: (2) 次に、扶養控除等申告書により申告された扶養親族等（扶養親族等が国外居住親族である場合には、親族に該当する旨を証する書類が扶養控除等申告書等に添付され、又は扶養控除等申告書の提出の際に提示された扶養親族等に限ります。）の数と
B43: (1)により求めた金額とに応じて甲欄の「前月の社会保険料等控除後の給与等の金額」欄の該当する行を求めます。
B44: (3) (2)により求めた行と「賞与の金額に乗ずべき率」欄との交わるところに記載されている率を求めます。これが求める率です。
B45: 2 １の場合において、扶養控除等申告書にその人が障害者(特別障害者を含みます。)、寡婦(特別の寡婦を含みます。)、寡夫又は勤労学生に該当する旨の記載があるときは、扶養親族等の数にこれらの一に該当するごとに１人を加算した数を、扶養控除
B46: 等申告書にその人の同一生計配偶者又は扶養親族のうちに障害者(特別障害者を含みます。)又は同居特別障害者（障害者(特別障害者を含みます。)又は同居特別障害者が国外居住親族である場合には、親族に該当する旨を証する書類が扶養控除等申告書
B47: に添付され、又は扶養控除等申告書の提出の際に提示された扶養親族等に限ります。）に該当する人がいる旨の記載があるときは、扶養親族等の数にこれらの一に該当するごとに１人を加算した数を、それぞれ扶養親族等の数とします。
B48: 3 扶養控除等申告書の提出がない人(「従たる給与についての扶養控除等申告書」の提出があった人を含み、４に該当する場合を除きます。）
B49: (1) その人の前月中の給与等の金額から前月中の社会保険料等の金額を控除した金額を求めます。
B50: (2) (1)により求めた金額に応じて乙欄の「前月の社会保険料等控除後の給与等の金額」欄の該当する行を求めます。
B51: (3) (2)により求めた行と「賞与の金額に乗ずべき率」欄との交わるところに記載されている率を求めます。これが求める率です。
B52: 4 前月中の給与等の金額がない場合や前月中の給与等の金額が前月中の社会保険料等の金額以下である場合又はその賞与の金額（その金額から控除される社会保険料等の金額がある場合には、その控除後の金額)が前月中の給与等の金額から前月中の社
B53: 会保険料等の金額を控除した金額の10倍に相当する金額を超える場合には、この表によらず、平成24年３月31日財務省告示第115号（平成29年３月31日財務省告示第95号改正）第３項第１号イ(2)若しくはロ（2）又は第２号の規定により、月額表を使っ
B54: て税額を計算します。
B55: 5 １から４までの場合において、その人の受ける給与等の支給期が月の整数倍の期間ごとと定められているときは、その賞与の支払の直前に支払を受けた若しくは支払を受けるべき給与等の金額又はその給与等の金額から控除される社会保険料等の金額
B56: をその倍数で除して計算した金額を、それぞれ前月中の給与等の金額又はその金額から控除される社会保険料等の金額とみなします。

Sheet 雇用保険料率 (hidden)
C3: 雇用保険料率 | D3: 労働者負担分
D4: 0
C5: =リスト表!C5 -> 一般の事業 | D5: 0.003
C6: =リスト表!C6 -> 農林水産・清酒製造事業 | D6: 0.004
C7: =リスト表!C7 -> 建設の事業 | D7: 0.004
C9: 雇用保険料の対象となる賃金は、総支給額に交通費を加算した額です。

Sheet 北海道 (hidden)
A1: 平成30年3月分（4月納付分）からの健康保険・厚生年金保険の保険料額表
B3: ・健康保険料率：平成30年3月分～ 適用 ・厚生年金保険料率：平成29年9月分～ 適用
B4: ・介護保険料率：平成30年3月分～ 適用 ・子ども・子育て拠出金率：平成29年4月分～ 適用
A6: （北海道） | K6: （単位：円）
A7: 標 準 報 酬 | C7: 報 酬 月 額 | F7: 全国健康保険協会管掌健康保険料 | J7: 厚生年金保険料（厚生年金基金加入員を除く）
F8: 介護保険第２号被保険者 に該当しない場合 | H8: 介護保険第２号被保険者 に該当する場合 | J8: 一般、坑内員・船員
A9: 等級 | B9: 月 額 | F9: 0.1025 | H9: 0.1182 | J9: 0.183
F10: 全 額 | G10: 折半額 | H10: 全 額 | I10: 折半額 | J10: 全 額 | K10: 折半額
C11: 円以上 | E11: 円未満
A12: 1 | B12: 58000 | D12: ～ | E12: 63000 | F12: 5945 | G12: 2972.5 | H12: 6855.6 | I12: 3427.8
A13: 2 | B13: 68000 | C13: 63000 | D13: ～ | E13: 73000 | F13: 6970 | G13: 3485 | H13: 8037.6 | I13: 4018.8
A14: 3 | B14: 78000 | C14: 73000 | D14: ～ | E14: 83000 | F14: 7995 | G14: 3997.5 | H14: 9219.6 | I14: 4609.8
A15: 4（1） | B15: 88000 | C15: 83000 | D15: ～ | E15: 93000 | F15: 9020 | G15: 4510 | H15: 10401.6 | I15: 5200.8 | J15: 16104 | K15: 8052
A16: 5（2） | B16: 98000 | C16: 93000 | D16: ～ | E16: 101000 | F16: 10045 | G16: 5022.5 | H16: 11583.6 | I16: 5791.8 | J16: 17934 | K16: 8967
A17: 6（3） | B17: 104000 | C17: 101000 | D17: ～ | E17: 107000 | F17: 10660 | G17: 5330 | H17: 12292.8 | I17: 6146.4 | J17: 19032 | K17: 9516
A18: 7（4） | B18: 110000 | C18: 107000 | D18: ～ | E18: 114000 | F18: 11275 | G18: 5637.5 | H18: 13002 | I18: 6501 | J18: 20130 | K18: 10065
A19: 8（5） | B19: 118000 | C19: 114000 | D19: ～ | E19: 122000 | F19: 12095 | G19: 6047.5 | H19: 13947.6 | I19: 6973.8 | J19: 21594 | K19: 10797
A20: 9（6） | B20: 126000 | C20: 122000 | D20: ～ | E20: 130000 | F20: 12915 | G20: 6457.5 | H20: 14893.2 | I20: 7446.6 | J20: 23058 | K20: 11529
A21: 10（7） | B21: 134000 | C21: 130000 | D21: ～ | E21: 138000 | F21: 13735 | G21: 6867.5 | H21: 15838.8 | I21: 7919.4 | J21: 24522 | K21: 12261
A22: 11（8） | B22: 142000 | C22: 138000 | D22: ～ | E22: 146000 | F22: 14555 | G22: 7277.5 | H22: 16784.4 | I22: 8392.2 | J22: 25986 | K22: 12993
A23: 12（9） | B23: 150000 | C23: 146000 | D23: ～ | E23: 155000 | F23: 15375 | G23: 7687.5 | H23: 17730 | I23: 8865 | J23: 27450 | K23: 13725
A24: 13（10） | B24: 160000 | C24: 155000 | D24: ～ | E24: 165000 | F24: 16400 | G24: 8200 | H24: 18912 | I24: 9456 | J24: 29280 | K24: 14640
A25: 14（11） | B25: 170000 | C25: 165000 | D25: ～ | E25: 175000 | F25: 17425 | G25: 8712.5 | H25: 20094 | I25: 10047 | J25: 31110 | K25: 15555
A26: 15（12） | B26: 180000 | C26: 175000 | D26: ～ | E26: 185000 | F26: 18450 | G26: 9225 | H26: 21276 | I26: 10638 | J26: 32940 | K26: 16470
A27: 16（13） | B27: 190000 | C27: 185000 | D27: ～ | E27: 195000 | F27: 19475 | G27: 9737.5 | H27: 22458 | I27: 11229 | J27: 34770 | K27: 17385
A28: 17（14） | B28: 200000 | C28: 195000 | D28: ～ | E28: 210000 | F28: 20500 | G28: 10250 | H28: 23640 | I28: 11820 | J28: 36600 | K28: 18300
A29: 18（15） | B29: 220000 | C29: 210000 | D29: ～ | E29: 230000 | F29: 22550 | G29: 11275 | H29: 26004 | I29: 13002 | J29: 40260 | K29: 20130
A30: 19（16） | B30: 240000 | C30: 230000 | D30: ～ | E30: 250000 | F30: 24600 | G30: 12300 | H30: 28368 | I30: 14184 | J30: 43920 | K30: 21960
A31: 20（17） | B31: 260000 | C31: 250000 | D31: ～ | E31: 270000 | F31: 26650 | G31: 13325 | H31: 30732 | I31: 15366 | J31: 47580 | K31: 23790
A32: 21（18） | B32: 280000 | C32: 270000 | D32: ～ | E32: 290000 | F32: 28700 | G32: 14350 | H32: 33096 | I32: 16548 | J32: 51240 | K32: 25620
A33: 22（19） | B33: 300000 | C33: 290000 | D33: ～ | E33: 310000 | F33: 30750 | G33: 15375 | H33: 35460 | I33: 17730 | J33: 54900 | K33: 27450
A34: 23（20） | B34: 320000 | C34: 310000 | D34: ～ | E34: 330000 | F34: 32800 | G34: 16400 | H34: 37824 | I34: 18912 | J34: 58560 | K34: 29280
A35: 24（21） | B35: 340000 | C35: 330000 | D35: ～ | E35: 350000 | F35: 34850 | G35: 17425 | H35: 40188 | I35: 20094 | J35: 62220 | K35: 31110
A36: 25（22） | B36: 360000 | C36: 350000 | D36: ～ | E36: 370000 | F36: 36900 | G36: 18450 | H36: 42552 | I36: 21276 | J36: 65880 | K36: 32940
A37: 26（23） | B37: 380000 | C37: 370000 | D37: ～ | E37: 395000 | F37: 38950 | G37: 19475 | H37: 44916 | I37: 22458 | J37: 69540 | K37: 34770
A38: 27（24） | B38: 410000 | C38: 395000 | D38: ～ | E38: 425000 | F38: 42025 | G38: 21012.5 | H38: 48462 | I38: 24231 | J38: 75030 | K38: 37515
A39: 28（25） | B39: 440000 | C39: 425000 | D39: ～ | E39: 455000 | F39: 45100 | G39: 22550 | H39: 52008 | I39: 26004 | J39: 80520 | K39: 40260
A40: 29（26） | B40: 470000 | C40: 455000 | D40: ～ | E40: 485000 | F40: 48175 | G40: 24087.5 | H40: 55554 | I40: 27777 | J40: 86010 | K40: 43005
A41: 30（27） | B41: 500000 | C41: 485000 | D41: ～ | E41: 515000 | F41: 51250 | G41: 25625 | H41: 59100 | I41: 29550 | J41: 91500 | K41: 45750
A42: 31（28） | B42: 530000 | C42: 515000 | D42: ～ | E42: 545000 | F42: 54325 | G42: 27162.5 | H42: 62646 | I42: 31323 | J42: 96990 | K42: 48495
A43: 32（29） | B43: 560000 | C43: 545000 | D43: ～ | E43: 575000 | F43: 57400 | G43: 28700 | H43: 66192 | I43: 33096 | J43: 102480 | K43: 51240
A44: 33（30） | B44: 590000 | C44: 575000 | D44: ～ | E44: 605000 | F44: 60475 | G44: 30237.5 | H44: 69738 | I44: 34869 | J44: 107970 | K44: 53985
A45: 34（31） | B45: 620000 | C45: 605000 | D45: ～ | E45: 635000 | F45: 63550 | G45: 31775 | H45: 73284 | I45: 36642 | J45: 113460 | K45: 56730
A46: 35 | B46: 650000 | C46: 635000 | D46: ～ | E46: 665000 | F46: 66625 | G46: 33312.5 | H46: 76830 | I46: 38415
A47: 36 | B47: 680000 | C47: 665000 | D47: ～ | E47: 695000 | F47: 69700 | G47: 34850 | H47: 80376 | I47: 40188 | J47: ※厚生年金基金に加入している方の
A48: 37 | B48: 710000 | C48: 695000 | D48: ～ | E48: 730000 | F48: 72775 | G48: 36387.5 | H48: 83922 | I48: 41961 | J48: 厚生年金保険料率は、基金ごとに
A49: 38 | B49: 750000 | C49: 730000 | D49: ～ | E49: 770000 | F49: 76875 | G49: 38437.5 | H49: 88650 | I49: 44325 | J49: 定められている免除保険料率
A50: 39 | B50: 790000 | C50: 770000 | D50: ～ | E50: 810000 | F50: 80975 | G50: 40487.5 | H50: 93378 | I50: 46689 | J50: （2.4％～5.0％）を控除した率となり
A51: 40 | B51: 830000 | C51: 810000 | D51: ～ | E51: 855000 | F51: 85075 | G51: 42537.5 | H51: 98106 | I51: 49053 | J51: ます。
A52: 41 | B52: 880000 | C52: 855000 | D52: ～ | E52: 905000 | F52: 90200 | G52: 45100 | H52: 104016 | I52: 52008
A53: 42 | B53: 930000 | C53: 905000 | D53: ～ | E53: 955000 | F53: 95325 | G53: 47662.5 | H53: 109926 | I53: 54963 | J53: 加入する基金ごとに異なりますの
A54: 43 | B54: 980000 | C54: 955000 | D54: ～ | E54: 1005000 | F54: 100450 | G54: 50225 | H54: 115836 | I54: 57918 | J54: で、免除保険料率および厚生年金
A55: 44 | B55: 1030000 | C55: 1005000 | D55: ～ | E55: 1055000 | F55: 105575 | G55: 52787.5 | H55: 121746 | I55: 60873 | J55: 基金の掛金については、加入する
A56: 45 | B56: 1090000 | C56: 1055000 | D56: ～ | E56: 1115000 | F56: 111725 | G56: 55862.5 | H56: 128838 | I56: 64419 | J56: 厚生年金基金にお問い合わせ
A57: 46 | B57: 1150000 | C57: 1115000 | D57: ～ | E57: 1175000 | F57: 117875 | G57: 58937.5 | H57: 135930 | I57: 67965 | J57: ください。
A58: 47 | B58: 1210000 | C58: 1175000 | D58: ～ | E58: 1235000 | F58: 124025 | G58: 62012.5 | H58: 143022 | I58: 71511
A59: 48 | B59: 1270000 | C59: 1235000 | D59: ～ | E59: 1295000 | F59: 130175 | G59: 65087.5 | H59: 150114 | I59: 75057
A60: 49 | B60: 1330000 | C60: 1295000 | D60: ～ | E60: 1355000 | F60: 136325 | G60: 68162.5 | H60: 157206 | I60: 78603
A61: 50 | B61: 1390000 | C61: 1355000 | D61: ～ | F61: 142475 | G61: 71237.5 | H61: 164298 | I61: 82149
A63: 0.1024891474
A64: ◆等級欄の（ ）内の数字は、厚生年金保険の標準報酬月額等級です。
A65: 4（1）等級の「報酬月額」欄は、厚生年金保険の場合「93,000円未満」と読み替えてください。
A66: 34（31）等級の「報酬月額」欄は、厚生年金保険の場合「605,000円以上」と読み替えてください。
A67: ◆平成30年度における全国健康保険協会の任意継続被保険者について、標準報酬月額の上限は、280,000円です。
A70: ○被保険者負担分（表の折半額の欄）に円未満の端数がある場合
A71: ①事業主が、給与から被保険者負担分を控除する場合、被保険者負担分の端数が50銭以下の場合は切り捨て、50銭を超える場合は切り上げて1円となります。
A72: ②被保険者が、被保険者負担分を事業主へ現金で支払う場合、被保険者負担分の端数が50銭未満の場合は切り捨て、50銭以上の場合は切り上げて1円となります。
A73: （注）①、②にかかわらず、事業主と被保険者間で特約がある場合には、特約に基づき端数処理をすることができます。
A75: ○納入告知書の保険料額
A76: 納入告知書の保険料額は、被保険者個々の保険料額を合算した金額になります。ただし、合算した金額に円未満の端数がある場合は、その端数を切り捨てた額となります。
A78: ○賞与にかかる保険料額
A79: 賞与に係る保険料額は、賞与額から1,000円未満の端数を切り捨てた額（標準賞与額)に、保険料率を乗じた額となります。
A80: また、標準賞与額の上限は、健康保険は年間573万円（毎年4月1日から翌年3月31日までの累計額。）となり、厚生年金保険と子ども・子育て拠出金の場合は
A81: 月間150万円となります。
A83: ○子ども・子育て拠出金
A84: 事業主の方は、児童手当の支給に要する費用等の一部として、子ども・子育て拠出金を負担いただくことになります。（被保険者の負担はありません。）
A85: この子ども・子育て拠出金の額は、被保険者個々の厚生年金保険の標準報酬月額および標準賞与額に、拠出金率（0.23％）を乗じて得た額の総額となります。

Sheet 青森 (hidden)
A1: 平成30年3月分（4月納付分）からの健康保険・厚生年金保険の保険料額表
B3: ・健康保険料率：平成29年3月分～ 適用 ・厚生年金保険料率：平成29年9月分～ 適用
B4: ・介護保険料率：平成30年3月分～ 適用 ・子ども・子育て拠出金率：平成29年4月分～ 適用
A6: （青森県） | K6: （単位：円）
A7: 標 準 報 酬 | C7: 報 酬 月 額 | F7: 全国健康保険協会管掌健康保険料 | J7: 厚生年金保険料（厚生年金基金加入員を除く）
F8: 介護保険第２号被保険者 に該当しない場合 | H8: 介護保険第２号被保険者 に該当する場合 | J8: 一般、坑内員・船員
A9: 等級 | B9: 月 額 | F9: 0.0996 | H9: 0.1153 | J9: 0.183
F10: 全 額 | G10: 折半額 | H10: 全 額 | I10: 折半額 | J10: 全 額 | K10: 折半額
C11: 円以上 | E11: 円未満
A12: 1 | B12: 58000 | D12: ～ | E12: 63000 | F12: 5776.8 | G12: 2888.4 | H12: 6687.4 | I12: 3343.7
A13: 2 | B13: 68000 | C13: 63000 | D13: ～ | E13: 73000 | F13: 6772.8 | G13: 3386.4 | H13: 7840.4 | I13: 3920.2
A14: 3 | B14: 78000 | C14: 73000 | D14: ～ | E14: 83000 | F14: 7768.8 | G14: 3884.4 | H14: 8993.4 | I14: 4496.7
A15: 4（1） | B15: 88000 | C15: 83000 | D15: ～ | E15: 93000 | F15: 8764.8 | G15: 4382.4 | H15: 10146.4 | I15: 5073.2 | J15: 16104 | K15: 8052
A16: 5（2） | B16: 98000 | C16: 93000 | D16: ～ | E16: 101000 | F16: 9760.8 | G16: 4880.4 | H16: 11299.4 | I16: 5649.7 | J16: 17934 | K16: 8967
A17: 6（3） | B17: 104000 | C17: 101000 | D17: ～ | E17: 107000 | F17: 10358.4 | G17: 5179.2 | H17: 11991.2 | I17: 5995.6 | J17: 19032 | K17: 9516
A18: 7（4） | B18: 110000 | C18: 107000 | D18: ～ | E18: 114000 | F18: 10956 | G18: 5478 | H18: 12683 | I18: 6341.5 | J18: 20130 | K18: 10065
A19: 8（5） | B19: 118000 | C19: 114000 | D19: ～ | E19: 122000 | F19: 11752.8 | G19: 5876.4 | H19: 13605.4 | I19: 6802.7 | J19: 21594 | K19: 10797
A20: 9（6） | B20: 126000 | C20: 122000 | D20: ～ | E20: 130000 | F20: 12549.6 | G20: 6274.8 | H20: 14527.8 | I20: 7263.9 | J20: 23058 | K20: 11529
A21: 10（7） | B21: 134000 | C21: 130000 | D21: ～ | E21: 138000 | F21: 13346.4 | G21: 6673.2 | H21: 15450.2 | I21: 7725.1 | J21: 24522 | K21: 12261
A22: 11（8） | B22: 142000 | C22: 138000 | D22: ～ | E22: 146000 | F22: 14143.2 | G22: 7071.6 | H22: 16372.6 | I22: 8186.3 | J22: 25986 | K22: 12993
A23: 12（9） | B23: 150000 | C23: 146000 | D23: ～ | E23: 155000 | F23: 14940 | G23: 7470 | H23: 17295 | I23: 8647.5 | J23: 27450 | K23: 13725
A24: 13（10） | B24: 160000 | C24: 155000 | D24: ～ | E24: 165000 | F24: 15936 | G24: 7968 | H24: 18448 | I24: 9224 | J24: 29280 | K24: 14640
A25: 14（11） | B25: 170000 | C25: 165000 | D25: ～ | E25: 175000 | F25: 16932 | G25: 8466 | H25: 19601 | I25: 9800.5 | J25: 31110 | K25: 15555
A26: 15（12） | B26: 180000 | C26: 175000 | D26: ～ | E26: 185000 | F26: 17928 | G26: 8964 | H26: 20754 | I26: 10377 | J26: 32940 | K26: 16470
A27: 16（13） | B27: 190000 | C27: 185000 | D27: ～ | E27: 195000 | F27: 18924 | G27: 9462 | H27: 21907 | I27: 10953.5 | J27: 34770 | K27: 17385
A28: 17（14） | B28: 200000 | C28: 195000 | D28: ～ | E28: 210000 | F28: 19920 | G28: 9960 | H28: 23060 | I28: 11530 | J28: 36600 | K28: 18300
A29: 18（15） | B29: 220000 | C29: 210000 | D29: ～ | E29: 230000 | F29: 21912 | G29: 10956 | H29: 25366 | I29: 12683 | J29: 40260 | K29: 20130
A30: 19（16） | B30: 240000 | C30: 230000 | D30: ～ | E30: 250000 | F30: 23904 | G30: 11952 | H30: 27672 | I30: 13836 | J30: 43920 | K30: 21960
A31: 20（17） | B31: 260000 | C31: 250000 | D31: ～ | E31: 270000 | F31: 25896 | G31: 12948 | H31: 29978 | I31: 14989 | J31: 47580 | K31: 23790
A32: 21（18） | B32: 280000 | C32: 270000 | D32: ～ | E32: 290000 | F32: 27888 | G32: 13944 | H32: 32284 | I32: 16142 | J32: 51240 | K32: 25620
A33: 22（19） | B33: 300000 | C33: 290000 | D33: ～ | E33: 310000 | F33: 29880 | G33: 14940 | H33: 34590 | I33: 17295 | J33: 54900 | K33: 27450
A34: 23（20） | B34: 320000 | C34: 310000 | D34: ～ | E34: 330000 | F34: 31872 | G34: 15936 | H34: 36896 | I34: 18448 | J34: 58560 | K34: 29280
A35: 24（21） | B35: 340000 | C35: 330000 | D35: ～ | E35: 350000 | F35: 33864 | G35: 16932 | H35: 39202 | I35: 19601 | J35: 62220 | K35: 31110
A36: 25（22） | B36: 360000 | C36: 350000 | D36: ～ | E36: 370000 | F36: 35856 | G36: 17928 | H36: 41508 | I36: 20754 | J36: 65880 | K36: 32940
A37: 26（23） | B37: 380000 | C37: 370000 | D37: ～ | E37: 395000 | F37: 37848 | G37: 18924 | H37: 43814 | I37: 21907 | J37: 69540 | K37: 34770
A38: 27（24） | B38: 410000 | C38: 395000 | D38: ～ | E38: 425000 | F38: 40836 | G38: 20418 | H38: 47273 | I38: 23636.5 | J38: 75030 | K38: 37515
A39: 28（25） | B39: 440000 | C39: 425000 | D39: ～ | E39: 455000 | F39: 43824 | G39: 21912 | H39: 50732 | I39: 25366 | J39: 80520 | K39: 40260
A40: 29（26） | B40: 470000 | C40: 455000 | D40: ～ | E40: 485000 | F40: 46812 | G40: 23406 | H40: 54191 | I40: 27095.5 | J40: 86010 | K40: 43005
A41: 30（27） | B41: 500000 | C41: 485000 | D41: ～ | E41: 515000 | F41: 49800 | G41: 24900 | H41: 57650 | I41: 28825 | J41: 91500 | K41: 45750
A42: 31（28） | B42: 530000 | C42: 515000 | D42: ～ | E42: 545000 | F42: 52788 | G42: 26394 | H42: 61109 | I42: 30554.5 | J42: 96990 | K42: 48495
A43: 32（29） | B43: 560000 | C43: 545000 | D43: ～ | E43: 575000 | F43: 55776 | G43: 27888 | H43: 64568 | I43: 32284 | J43: 102480 | K43: 51240
A44: 33（30） | B44: 590000 | C44: 575000 | D44: ～ | E44: 605000 | F44: 58764 | G44: 29382 | H44: 68027 | I44: 34013.5 | J44: 107970 | K44: 53985
A45: 34（31） | B45: 620000 | C45: 605000 | D45: ～ | E45: 635000 | F45: 61752 | G45: 30876 | H45: 71486 | I45: 35743 | J45: 113460 | K45: 56730
A46: 35 | B46: 650000 | C46: 635000 | D46: ～ | E46: 665000 | F46: 64740 | G46: 32370 | H46: 74945 | I46: 37472.5
A47: 36 | B47: 680000 | C47: 665000 | D47: ～ | E47: 695000 | F47: 67728 | G47: 33864 | H47: 78404 | I47: 39202 | J47: ※厚生年金基金に加入している方の
A48: 37 | B48: 710000 | C48: 695000 | D48: ～ | E48: 730000 | F48: 70716 | G48: 35358 | H48: 81863 | I48: 40931.5 | J48: 厚生年金保険料率は、基金ごとに
A49: 38 | B49: 750000 | C49: 730000 | D49: ～ | E49: 770000 | F49: 74700 | G49: 37350 | H49: 86475 | I49: 43237.5 | J49: 定められている免除保険料率
A50: 39 | B50: 790000 | C50: 770000 | D50: ～ | E50: 810000 | F50: 78684 | G50: 39342 | H50: 91087 | I50: 45543.5 | J50: （2.4％～5.0％）を控除した率となり
A51: 40 | B51: 830000 | C51: 810000 | D51: ～ | E51: 855000 | F51: 82668 | G51: 41334 | H51: 95699 | I51: 47849.5 | J51: ます。
A52: 41 | B52: 880000 | C52: 855000 | D52: ～ | E52: 905000 | F52: 87648 | G52: 43824 | H52: 101464 | I52: 50732
A53: 42 | B53: 930000 | C53: 905000 | D53: ～ | E53: 955000 | F53: 92628 | G53: 46314 | H53: 107229 | I53: 53614.5 | J53: 加入する基金ごとに異なりますの
A54: 43 | B54: 980000 | C54: 955000 | D54: ～ | E54: 1005000 | F54: 97608 | G54: 48804 | H54: 112994 | I54: 56497 | J54: で、免除保険料率および厚生年金
A55: 44 | B55: 1030000 | C55: 1005000 | D55: ～ | E55: 1055000 | F55: 102588 | G55: 51294 | H55: 118759 | I55: 59379.5 | J55: 基金の掛金については、加入する
A56: 45 | B56: 1090000 | C56: 1055000 | D56: ～ | E56: 1115000 | F56: 108564 | G56: 54282 | H56: 125677 | I56: 62838.5 | J56: 厚生年金基金にお問い合わせ
A57: 46 | B57: 1150000 | C57: 1115000 | D57: ～ | E57: 1175000 | F57: 114540 | G57: 57270 | H57: 132595 | I57: 66297.5 | J57: ください。
A58: 47 | B58: 1210000 | C58: 1175000 | D58: ～ | E58: 1235000 | F58: 120516 | G58: 60258 | H58: 139513 | I58: 69756.5
A59: 48 | B59: 1270000 | C59: 1235000 | D59: ～ | E59: 1295000 | F59: 126492 | G59: 63246 | H59: 146431 | I59: 73215.5
A60: 49 | B60: 1330000 | C60: 1295000 | D60: ～ | E60: 1355000 | F60: 132468 | G60: 66234 | H60: 153349 | I60: 76674.5
A61: 50 | B61: 1390000 | C61: 1355000 | D61: ～ | F61: 138444 | G61: 69222 | H61: 160267 | I61: 80133.5
A63: 0.09957537216
A64: ◆等級欄の（ ）内の数字は、厚生年金保険の標準報酬月額等級です。
A65: 4（1）等級の「報酬月額」欄は、厚生年金保険の場合「93,000円未満」と読み替えてください。
A66: 34（31）等級の「報酬月額」欄は、厚生年金保険の場合「605,000円以上」と読み替えてください。
A67: ◆平成30年度における全国健康保険協会の任意継続被保険者について、標準報酬月額の上限は、280,000円です。
A70: ○被保険者負担分（表の折半額の欄）に円未満の端数がある場合
A71: ①事業主が、給与から被保険者負担分を控除する場合、被保険者負担分の端数が50銭以下の場合は切り捨て、50銭を超える場合は切り上げて1円となります。
A72: ②被保険者が、被保険者負担分を事業主へ現金で支払う場合、被保険者負担分の端数が50銭未満の場合は切り捨て、50銭以上の場合は切り上げて1円となります。
A73: （注）①、②にかかわらず、事業主と被保険者間で特約がある場合には、特約に基づき端数処理をすることができます。
A75: ○納入告知書の保険料額
A76: 納入告知書の保険料額は、被保険者個々の保険料額を合算した金額になります。ただし、合算した金額に円未満の端数がある場合は、その端数を切り捨てた額となります。
A78: ○賞与にかかる保険料額
A79: 賞与に係る保険料額は、賞与額から1,000円未満の端数を切り捨てた額（標準賞与額)に、保険料率を乗じた額となります。
A80: また、標準賞与額の上限は、健康保険は年間573万円（毎年4月1日から翌年3月31日までの累計額。）となり、厚生年金保険と子ども・子育て拠出金の場合は
A81: 月間150万円となります。
A83: ○子ども・子育て拠出金
A84: 事業主の方は、児童手当の支給に要する費用等の一部として、子ども・子育て拠出金を負担いただくことになります。（被保険者の負担はありません。）
A85: この子ども・子育て拠出金の額は、被保険者個々の厚生年金保険の標準報酬月額および標準賞与額に、拠出金率（0.23％）を乗じて得た額の総額となります。

Sheet 岩手 (hidden)
A1: 平成30年3月分（4月納付分）からの健康保険・厚生年金保険の保険料額表
B3: ・健康保険料率：平成30年3月分～ 適用 ・厚生年金保険料率：平成29年9月分～ 適用
B4: ・介護保険料率：平成30年3月分～ 適用 ・子ども・子育て拠出金率：平成29年4月分～ 適用
A6: （岩手県） | K6: （単位：円）
A7: 標 準 報 酬 | C7: 報 酬 月 額 | F7: 全国健康保険協会管掌健康保険料 | J7: 厚生年金保険料（厚生年金基金加入員を除く）
F8: 介護保険第２号被保険者 に該当しない場合 | H8: 介護保険第２号被保険者 に該当する場合 | J8: 一般、坑内員・船員
A9: 等級 | B9: 月 額 | F9: 0.0984 | H9: 0.1141 | J9: 0.183
F10: 全 額 | G10: 折半額 | H10: 全 額 | I10: 折半額 | J10: 全 額 | K10: 折半額
C11: 円以上 | E11: 円未満
A12: 1 | B12: 58000 | D12: ～ | E12: 63000 | F12: 5707.2 | G12: 2853.6 | H12: 6617.8 | I12: 3308.9
A13: 2 | B13: 68000 | C13: 63000 | D13: ～ | E13: 73000 | F13: 6691.2 | G13: 3345.6 | H13: 7758.8 | I13: 3879.4
A14: 3 | B14: 78000 | C14: 73000 | D14: ～ | E14: 83000 | F14: 7675.2 | G14: 3837.6 | H14: 8899.8 | I14: 4449.9
A15: 4（1） | B15: 88000 | C15: 83000 | D15: ～ | E15: 93000 | F15: 8659.2 | G15: 4329.6 | H15: 10040.8 | I15: 5020.4 | J15: 16104 | K15: 8052
A16: 5（2） | B16: 98000 | C16: 93000 | D16: ～ | E16: 101000 | F16: 9643.2 | G16: 4821.6 | H16: 11181.8 | I16: 5590.9 | J16: 17934 | K16: 8967
A17: 6（3） | B17: 104000 | C17: 101000 | D17: ～ | E17: 107000 | F17: 10233.6 | G17: 5116.8 | H17: 11866.4 | I17: 5933.2 | J17: 19032 | K17: 9516
A18: 7（4） | B18: 110000 | C18: 107000 | D18: ～ | E18: 114000 | F18: 10824 | G18: 5412 | H18: 12551 | I18: 6275.5 | J18: 20130 | K18: 10065
A19: 8（5） | B19: 118000 | C19: 114000 | D19: ～ | E19: 122000 | F19: 11611.2 | G19: 5805.6 | H19: 13463.8 | I19: 6731.9 | J19: 21594 | K19: 10797
A20: 9（6） | B20: 126000 | C20: 122000 | D20: ～ | E20: 130000 | F20: 12398.4 | G20: 6199.2 | H20: 14376.6 | I20: 7188.3 | J20: 23058 | K20: 11529
A21: 10（7） | B21: 134000 | C21: 130000 | D21: ～ | E21: 138000 | F21: 13185.6 | G21: 6592.8 | H21: 15289.4 | I21: 7644.7 | J21: 24522 | K21: 12261
A22: 11（8） | B22: 142000 | C22: 138000 | D22: ～ | E22: 146000 | F22: 13972.8 | G22: 6986.4 | H22: 16202.2 | I22: 8101.1 | J22: 25986 | K22: 12993
A23: 12（9） | B23: 150000 | C23: 146000 | D23: ～ | E23: 155000 | F23: 14760 | G23: 7380 | H23: 17115 | I23: 8557.5 | J23: 27450 | K23: 13725
A24: 13（10） | B24: 160000 | C24: 155000 | D24: ～ | E24: 165000 | F24: 15744 | G24: 7872 | H24: 18256 | I24: 9128 | J24: 29280 | K24: 14640
A25: 14（11） | B25: 170000 | C25: 165000 | D25: ～ | E25: 175000 | F25: 16728 | G25: 8364 | H25: 19397 | I25: 9698.5 | J25: 31110 | K25: 15555
A26: 15（12） | B26: 180000 | C26: 175000 | D26: ～ | E26: 185000 | F26: 17712 | G26: 8856 | H26: 20538 | I26: 10269 | J26: 32940 | K26: 16470
A27: 16（13） | B27: 190000 | C27: 185000 | D27: ～ | E27: 195000 | F27: 18696 | G27: 9348 | H27: 21679 | I27: 10839.5 | J27: 34770 | K27: 17385
A28: 17（14） | B28: 200000 | C28: 195000 | D28: ～ | E28: 210000 | F28: 19680 | G28: 9840 | H28: 22820 | I28: 11410 | J28: 36600 | K28: 18300
A29: 18（15） | B29: 220000 | C29: 210000 | D29: ～ | E29: 230000 | F29: 21648 | G29: 10824 | H29: 25102 | I29: 12551 | J29: 40260 | K29: 20130
A30: 19（16） | B30: 240000 | C30: 230000 | D30: ～ | E30: 250000 | F30: 23616 | G30: 11808 | H30: 27384 | I30: 13692 | J30: 43920 | K30: 21960
A31: 20（17） | B31: 260000 | C31: 250000 | D31: ～ | E31: 270000 | F31: 25584 | G31: 12792 | H31: 29666 | I31: 14833 | J31: 47580 | K31: 23790
A32: 21（18） | B32: 280000 | C32: 270000 | D32: ～ | E32: 290000 | F32: 27552 | G32: 13776 | H32: 31948 | I32: 15974 | J32: 51240 | K32: 25620
A33: 22（19） | B33: 300000 | C33: 290000 | D33: ～ | E33: 310000 | F33: 29520 | G33: 14760 | H33: 34230 | I33: 17115 | J33: 54900 | K33: 27450
A34: 23（20） | B34: 320000 | C34: 310000 | D34: ～ | E34: 330000 | F34: 31488 | G34: 15744 | H34: 36512 | I34: 18256 | J34: 58560 | K34: 29280
A35: 24（21） | B35: 340000 | C35: 330000 | D35: ～ | E35: 350000 | F35: 33456 | G35: 16728 | H35: 38794 | I35: 19397 | J35: 62220 | K35: 31110
A36: 25（22） | B36: 360000 | C36: 350000 | D36: ～ | E36: 370000 | F36: 35424 | G36: 17712 | H36: 41076 | I36: 20538 | J36: 65880 | K36: 32940
A37: 26（23） | B37: 380000 | C37: 370000 | D37: ～ | E37: 395000 | F37: 37392 | G37: 18696 | H37: 43358 | I37: 21679 | J37: 69540 | K37: 34770
A38: 27（24） | B38: 410000 | C38: 395000 | D38: ～ | E38: 425000 | F38: 40344 | G38: 20172 | H38: 46781 | I38: 23390.5 | J38: 75030 | K38: 37515
A39: 28（25） | B39: 440000 | C39: 425000 | D39: ～ | E39: 455000 | F39: 43296 | G39: 21648 | H39: 50204 | I39: 25102 | J39: 80520 | K39: 40260
A40: 29（26） | B40: 470000 | C40: 455000 | D40: ～ | E40: 485000 | F40: 46248 | G40: 23124 | H40: 53627 | I40: 26813.5 | J40: 86010 | K40: 43005
A41: 30（27） | B41: 500000 | C41: 485000 | D41: ～ | E41: 515000 | F41: 49200 | G41: 24600 | H41: 57050 | I41: 28525 | J41: 91500 | K41: 45750
A42: 31（28） | B42: 530000 | C42: 515000 | D42: ～ | E42: 545000 | F42: 52152 | G42: 26076 | H42: 60473 | I42: 30236.5 | J42: 96990 | K42: 48495
A43: 32（29） | B43: 560000 | C43: 545000 | D43: ～ | E43: 575000 | F43: 55104 | G43: 27552 | H43: 63896 | I43: 31948 | J43: 102480 | K43: 51240
A44: 33（30） | B44: 590000 | C44: 575000 | D44: ～ | E44: 605000 | F44: 58056 | G44: 29028 | H44: 67319 | I44: 33659.5 | J44: 107970 | K44: 53985
A45: 34（31） | B45: 620000 | C45: 605000 | D45: ～ | E45: 635000 | F45: 61008 | G45: 30504 | H45: 70742 | I45: 35371 | J45: 113460 | K45: 56730
A46: 35 | B46: 650000 | C46: 635000 | D46: ～ | E46: 665000 | F46: 63960 | G46: 31980 | H46: 74165 | I46: 37082.5
A47: 36 | B47: 680000 | C47: 665000 | D47: ～ | E47: 695000 | F47: 66912 | G47: 33456 | H47: 77588 | I47: 38794 | J47: ※厚生年金基金に加入している方の
A48: 37 | B48: 710000 | C48: 695000 | D48: ～ | E48: 730000 | F48: 69864 | G48: 34932 | H48: 81011 | I48: 40505.5 | J48: 厚生年金保険料率は、基金ごとに
A49: 38 | B49: 750000 | C49: 730000 | D49: ～ | E49: 770000 | F49: 73800 | G49: 36900 | H49: 85575 | I49: 42787.5 | J49: 定められている免除保険料率
A50: 39 | B50: 790000 | C50: 770000 | D50: ～ | E50: 810000 | F50: 77736 | G50: 38868 | H50: 90139 | I50: 45069.5 | J50: （2.4％～5.0％）を控除した率となり
A51: 40 | B51: 830000 | C51: 810000 | D51: ～ | E51: 855000 | F51: 81672 | G51: 40836 | H51: 94703 | I51: 47351.5 | J51: ます。
A52: 41 | B52: 880000 | C52: 855000 | D52: ～ | E52: 905000 | F52: 86592 | G52: 43296 | H52: 100408 | I52: 50204
A53: 42 | B53: 930000 | C53: 905000 | D53: ～ | E53: 955000 | F53: 91512 | G53: 45756 | H53: 106113 | I53: 53056.5 | J53: 加入する基金ごとに異なりますの
A54: 43 | B54: 980000 | C54: 955000 | D54: ～ | E54: 1005000 | F54: 96432 | G54: 48216 | H54: 111818 | I54: 55909 | J54: で、免除保険料率および厚生年金
A55: 44 | B55: 1030000 | C55: 1005000 | D55: ～ | E55: 1055000 | F55: 101352 | G55: 50676 | H55: 117523 | I55: 58761.5 | J55: 基金の掛金については、加入する
A56: 45 | B56: 1090000 | C56: 1055000 | D56: ～ | E56: 1115000 | F56: 107256 | G56: 53628 | H56: 124369 | I56: 62184.5 | J56: 厚生年金基金にお問い合わせ
A57: 46 | B57: 1150000 | C57: 1115000 | D57: ～ | E57: 1175000 | F57: 113160 | G57: 56580 | H57: 131215 | I57: 65607.5 | J57: ください。
A58: 47 | B58: 1210000 | C58: 1175000 | D58: ～ | E58: 1235000 | F58: 119064 | G58: 59532 | H58: 138061 | I58: 69030.5
A59: 48 | B59: 1270000 | C59: 1235000 | D59: ～ | E59: 1295000 | F59: 124968 | G59: 62484 | H59: 144907 | I59: 72453.5
A60: 49 | B60: 1330000 | C60: 1295000 | D60: ～ | E60: 1355000 | F60: 130872 | G60: 65436 | H60: 151753 | I60: 75876.5
A61: 50 | B61: 1390000 | C61: 1355000 | D61: ～ | F61: 136776 | G61: 68388 | H61: 158599 | I61: 79299.5
A63: 0.09838074029
A64: ◆等級欄の（ ）内の数字は、厚生年金保険の標準報酬月額等級です。
A65: 4（1）等級の「報酬月額」欄は、厚生年金保険の場合「93,000円未満」と読み替えてください。
A66: 34（31）等級の「報酬月額」欄は、厚生年金保険の場合「605,000円以上」と読み替えてください。
A67: ◆平成30年度における全国健康保険協会の任意継続被保険者について、標準報酬月額の上限は、280,000円です。
A70: ○被保険者負担分（表の折半額の欄）に円未満の端数がある場合
A71: ①事業主が、給与から被保険者負担分を控除する場合、被保険者負担分の端数が50銭以下の場合は切り捨て、50銭を超える場合は切り上げて1円となります。
A72: ②被保険者が、被保険者負担分を事業主へ現金で支払う場合、被保険者負担分の端数が50銭未満の場合は切り捨て、50銭以上の場合は切り上げて1円となります。
A73: （注）①、②にかかわらず、事業主と被保険者間で特約がある場合には、特約に基づき端数処理をすることができます。
A75: ○納入告知書の保険料額
A76: 納入告知書の保険料額は、被保険者個々の保険料額を合算した金額になります。ただし、合算した金額に円未満の端数がある場合は、その端数を切り捨てた額となります。
A78: ○賞与にかかる保険料額
A79: 賞与に係る保険料額は、賞与額から1,000円未満の端数を切り捨てた額（標準賞与額)に、保険料率を乗じた額となります。
A80: また、標準賞与額の上限は、健康保険は年間573万円（毎年4月1日から翌年3月31日までの累計額。）となり、厚生年金保険と子ども・子育て拠出金の場合は
A81: 月間150万円となります。
A83: ○子ども・子育て拠出金
A84: 事業主の方は、児童手当の支給に要する費用等の一部として、子ども・子育て拠出金を負担いただくことになります。（被保険者の負担はありません。）
A85: この子ども・子育て拠出金の額は、被保険者個々の厚生年金保険の標準報酬月額および標準賞与額に、拠出金率（0.23％）を乗じて得た額の総額となります。

Sheet 宮城 (hidden)
A1: 平成30年3月分（4月納付分）からの健康保険・厚生年金保険の保険料額表
B3: ・健康保険料率：平成30年3月分～ 適用 ・厚生年金保険料率：平成29年9月分～ 適用
B4: ・介護保険料率：平成30年3月分～ 適用 ・子ども・子育て拠出金率：平成29年4月分～ 適用
A6: （宮城県） | K6: （単位：円）
A7: 標 準 報 酬 | C7: 報 酬 月 額 | F7: 全国健康保険協会管掌健康保険料 | J7: 厚生年金保険料（厚生年金基金加入員を除く）
F8: 介護保険第２号被保険者 に該当しない場合 | H8: 介護保険第２号被保険者 に該当する場合 | J8: 一般、坑内員・船員
A9: 等級 | B9: 月 額 | F9: 0.1005 | H9: 0.1162 | J9: 0.183
F10: 全 額 | G10: 折半額 | H10: 全 額 | I10: 折半額 | J10: 全 額 | K10: 折半額
C11: 円以上 | E11: 円未満
A12: 1 | B12: 58000 | D12: ～ | E12: 63000 | F12: 5829 | G12: 2914.5 | H12: 6739.6 | I12: 3369.8
A13: 2 | B13: 68000 | C13: 63000 | D13: ～ | E13: 73000 | F13: 6834 | G13: 3417 | H13: 7901.6 | I13: 3950.8
A14: 3 | B14: 78000 | C14: 73000 | D14: ～ | E14: 83000 | F14: 7839 | G14: 3919.5 | H14: 9063.6 | I14: 4531.8
A15: 4（1） | B15: 88000 | C15: 83000 | D15: ～ | E15: 93000 | F15: 8844 | G15: 4422 | H15: 10225.6 | I15: 5112.8 | J15: 16104 | K15: 8052
A16: 5（2） | B16: 98000 | C16: 93000 | D16: ～ | E16: 101000 | F16: 9849 | G16: 4924.5 | H16: 11387.6 | I16: 5693.8 | J16: 17934 | K16: 8967
A17: 6（3） | B17: 104000 | C17: 101000 | D17: ～ | E17: 107000 | F17: 10452 | G17: 5226 | H17: 12084.8 | I17: 6042.4 | J17: 19032 | K17: 9516
A18: 7（4） | B18: 110000 | C18: 107000 | D18: ～ | E18: 114000 | F18: 11055 | G18: 5527.5 | H18: 12782 | I18: 6391 | J18: 20130 | K18: 10065
A19: 8（5） | B19: 118000 | C19: 114000 | D19: ～ | E19: 122000 | F19: 11859 | G19: 5929.5 | H19: 13711.6 | I19: 6855.8 | J19: 21594 | K19: 10797
A20: 9（6） | B20: 126000 | C20: 122000 | D20: ～ | E20: 130000 | F20: 12663 | G20: 6331.5 | H20: 14641.2 | I20: 7320.6 | J20: 23058 | K20: 11529
A21: 10（7） | B21: 134000 | C21: 130000 | D21: ～ | E21: 138000 | F21: 13467 | G21: 6733.5 | H21: 15570.8 | I21: 7785.4 | J21: 24522 | K21: 12261
A22: 11（8） | B22: 142000 | C22: 138000 | D22: ～ | E22: 146000 | F22: 14271 | G22: 7135.5 | H22: 16500.4 | I22: 8250.2 | J22: 25986 | K22: 12993
A23: 12（9） | B23: 150000 | C23: 146000 | D23: ～ | E23: 155000 | F23: 15075 | G23: 7537.5 | H23: 17430 | I23: 8715 | J23: 27450 | K23: 13725
A24: 13（10） | B24: 160000 | C24: 155000 | D24: ～ | E24: 165000 | F24: 16080 | G24: 8040 | H24: 18592 | I24: 9296 | J24: 29280 | K24: 14640
A25: 14（11） | B25: 170000 | C25: 165000 | D25: ～ | E25: 175000 | F25: 17085 | G25: 8542.5 | H25: 19754 | I25: 9877 | J25: 31110 | K25: 15555
A26: 15（12） | B26: 180000 | C26: 175000 | D26: ～ | E26: 185000 | F26: 18090 | G26: 9045 | H26: 20916 | I26: 10458 | J26: 32940 | K26: 16470
A27: 16（13） | B27: 190000 | C27: 185000 | D27: ～ | E27: 195000 | F27: 19095 | G27: 9547.5 | H27: 22078 | I27: 11039 | J27: 34770 | K27: 17385
A28: 17（14） | B28: 200000 | C28: 195000 | D28: ～ | E28: 210000 | F28: 20100 | G28: 10050 | H28: 23240 | I28: 11620 | J28: 36600 | K28: 18300
A29: 18（15） | B29: 220000 | C29: 210000 | D29: ～ | E29: 230000 | F29: 22110 | G29: 11055 | H29: 25564 | I29: 12782 | J29: 40260 | K29: 20130
A30: 19（16） | B30: 240000 | C30: 230000 | D30: ～ | E30: 250000 | F30: 24120 | G30: 12060 | H30: 27888 | I30: 13944 | J30: 43920 | K30: 21960
A31: 20（17） | B31: 260000 | C31: 250000 | D31: ～ | E31: 270000 | F31: 26130 | G31: 13065 | H31: 30212 | I31: 15106 | J31: 47580 | K31: 23790
A32: 21（18） | B32: 280000 | C32: 270000 | D32: ～ | E32: 290000 | F32: 28140 | G32: 14070 | H32: 32536 | I32: 16268 | J32: 51240 | K32: 25620
A33: 22（19） | B33: 300000 | C33: 290000 | D33: ～ | E33: 310000 | F33: 30150 | G33: 15075 | H33: 34860 | I33: 17430 | J33: 54900 | K33: 27450
A34: 23（20） | B34: 320000 | C34: 310000 | D34: ～ | E34: 330000 | F34: 32160 | G34: 16080 | H34: 37184 | I34: 18592 | J34: 58560 | K34: 29280
A35: 24（21） | B35: 340000 | C35: 330000 | D35: ～ | E35: 350000 | F35: 34170 | G35: 17085 | H35: 39508 | I35: 19754 | J35: 62220 | K35: 31110
A36: 25（22） | B36: 360000 | C36: 350000 | D36: ～ | E36: 370000 | F36: 36180 | G36: 18090 | H36: 41832 | I36: 20916 | J36: 65880 | K36: 32940
A37: 26（23） | B37: 380000 | C37: 370000 | D37: ～ | E37: 395000 | F37: 38190 | G37: 19095 | H37: 44156 | I37: 22078 | J37: 69540 | K37: 34770
A38: 27（24） | B38: 410000 | C38: 395000 | D38: ～ | E38: 425000 | F38: 41205 | G38: 20602.5 | H38: 47642 | I38: 23821 | J38: 75030 | K38: 37515
A39: 28（25） | B39: 440000 | C39: 425000 | D39: ～ | E39: 455000 | F39: 44220 | G39: 22110 | H39: 51128 | I39: 25564 | J39: 80520 | K39: 40260
A40: 29（26） | B40: 470000 | C40: 455000 | D40: ～ | E40: 485000 | F40: 47235 | G40: 23617.5 | H40: 54614 | I40: 27307 | J40: 86010 | K40: 43005
A41: 30（27） | B41: 500000 | C41: 485000 | D41: ～ | E41: 515000 | F41: 50250 | G41: 25125 | H41: 58100 | I41: 29050 | J41: 91500 | K41: 45750
A42: 31（28） | B42: 530000 | C42: 515000 | D42: ～ | E42: 545000 | F42: 53265 | G42: 26632.5 | H42: 61586 | I42: 30793 | J42: 96990 | K42: 48495
A43: 32（29） | B43: 560000 | C43: 545000 | D43: ～ | E43: 575000 | F43: 56280 | G43: 28140 | H43: 65072 | I43: 32536 | J43: 102480 | K43: 51240
A44: 33（30） | B44: 590000 | C44: 575000 | D44: ～ | E44: 605000 | F44: 59295 | G44: 29647.5 | H44: 68558 | I44: 34279 | J44: 107970 | K44: 53985
A45: 34（31） | B45: 620000 | C45: 605000 | D45: ～ | E45: 635000 | F45: 62310 | G45: 31155 | H45: 72044 | I45: 36022 | J45: 113460 | K45: 56730
A46: 35 | B46: 650000 | C46: 635000 | D46: ～ | E46: 665000 | F46: 65325 | G46: 32662.5 | H46: 75530 | I46: 37765
A47: 36 | B47: 680000 | C47: 665000 | D47: ～ | E47: 695000 | F47: 68340 | G47: 34170 | H47: 79016 | I47: 39508 | J47: ※厚生年金基金に加入している方の
A48: 37 | B48: 710000 | C48: 695000 | D48: ～ | E48: 730000 | F48: 71355 | G48: 35677.5 | H48: 82502 | I48: 41251 | J48: 厚生年金保険料率は、基金ごとに
A49: 38 | B49: 750000 | C49: 730000 | D49: ～ | E49: 770000 | F49: 75375 | G49: 37687.5 | H49: 87150 | I49: 43575 | J49: 定められている免除保険料率
A50: 39 | B50: 790000 | C50: 770000 | D50: ～ | E50: 810000 | F50: 79395 | G50: 39697.5 | H50: 91798 | I50: 45899 | J50: （2.4％～5.0％）を控除した率となり
A51: 40 | B51: 830000 | C51: 810000 | D51: ～ | E51: 855000 | F51: 83415 | G51: 41707.5 | H51: 96446 | I51: 48223 | J51: ます。
A52: 41 | B52: 880000 | C52: 855000 | D52: ～ | E52: 905000 | F52: 88440 | G52: 44220 | H52: 102256 | I52: 51128
A53: 42 | B53: 930000 | C53: 905000 | D53: ～ | E53: 955000 | F53: 93465 | G53: 46732.5 | H53: 108066 | I53: 54033 | J53: 加入する基金ごとに異なりますの
A54: 43 | B54: 980000 | C54: 955000 | D54: ～ | E54: 1005000 | F54: 98490 | G54: 49245 | H54: 113876 | I54: 56938 | J54: で、免除保険料率および厚生年金
A55: 44 | B55: 1030000 | C55: 1005000 | D55: ～ | E55: 1055000 | F55: 103515 | G55: 51757.5 | H55: 119686 | I55: 59843 | J55: 基金の掛金については、加入する
A56: 45 | B56: 1090000 | C56: 1055000 | D56: ～ | E56: 1115000 | F56: 109545 | G56: 54772.5 | H56: 126658 | I56: 63329 | J56: 厚生年金基金にお問い合わせ
A57: 46 | B57: 1150000 | C57: 1115000 | D57: ～ | E57: 1175000 | F57: 115575 | G57: 57787.5 | H57: 133630 | I57: 66815 | J57: ください。
A58: 47 | B58: 1210000 | C58: 1175000 | D58: ～ | E58: 1235000 | F58: 121605 | G58: 60802.5 | H58: 140602 | I58: 70301
A59: 48 | B59: 1270000 | C59: 1235000 | D59: ～ | E59: 1295000 | F59: 127635 | G59: 63817.5 | H59: 147574 | I59: 73787
A60: 49 | B60: 1330000 | C60: 1295000 | D60: ～ | E60: 1355000 | F60: 133665 | G60: 66832.5 | H60: 154546 | I60: 77273
A61: 50 | B61: 1390000 | C61: 1355000 | D61: ～ | F61: 139695 | G61: 69847.5 | H61: 161518 | I61: 80759
A63: 0.1005249197
A64: ◆等級欄の（ ）内の数字は、厚生年金保険の標準報酬月額等級です。
A65: 4（1）等級の「報酬月額」欄は、厚生年金保険の場合「93,000円未満」と読み替えてください。
A66: 34（31）等級の「報酬月額」欄は、厚生年金保険の場合「605,000円以上」と読み替えてください。
A67: ◆平成30年度における全国健康保険協会の任意継続被保険者について、標準報酬月額の上限は、280,000円です。
A70: ○被保険者負担分（表の折半額の欄）に円未満の端数がある場合
A71: ①事業主が、給与から被保険者負担分を控除する場合、被保険者負担分の端数が50銭以下の場合は切り捨て、50銭を超える場合は切り上げて1円となります。
A72: ②被保険者が、被保険者負担分を事業主へ現金で支払う場合、被保険者負担分の端数が50銭未満の場合は切り捨て、50銭以上の場合は切り上げて1円となります。
A73: （注）①、②にかかわらず、事業主と被保険者間で特約がある場合には、特約に基づき端数処理をすることができます。
A75: ○納入告知書の保険料額
A76: 納入告知書の保険料額は、被保険者個々の保険料額を合算した金額になります。ただし、合算した金額に円未満の端数がある場合は、その端数を切り捨てた額となります。
A78: ○賞与にかかる保険料額
A79: 賞与に係る保険料額は、賞与額から1,000円未満の端数を切り捨てた額（標準賞与額)に、保険料率を乗じた額となります。
A80: また、標準賞与額の上限は、健康保険は年間573万円（毎年4月1日から翌年3月31日までの累計額。）となり、厚生年金保険と子ども・子育て拠出金の場合は
A81: 月間150万円となります。
A83: ○子ども・子育て拠出金
A84: 事業主の方は、児童手当の支給に要する費用等の一部として、子ども・子育て拠出金を負担いただくことになります。（被保険者の負担はありません。）
A85: この子ども・子育て拠出金の額は、被保険者個々の厚生年金保険の標準報酬月額および標準賞与額に、拠出金率（0.23％）を乗じて得た額の総額となります。

Sheet 秋田 (hidden)
A1: 平成30年3月分（4月納付分）からの健康保険・厚生年金保険の保険料額表
B3: ・健康保険料率：平成30年3月分～ 適用 ・厚生年金保険料率：平成29年9月分～ 適用
B4: ・介護保険料率：平成30年3月分～ 適用 ・子ども・子育て拠出金率：平成29年4月分～ 適用
A6: （秋田県） | K6: （単位：円）
A7: 標 準 報 酬 | C7: 報 酬 月 額 | F7: 全国健康保険協会管掌健康保険料 | J7: 厚生年金保険料（厚生年金基金加入員を除く）
F8: 介護保険第２号被保険者 に該当しない場合 | H8: 介護保険第２号被保険者 に該当する場合 | J8: 一般、坑内員・船員
A9: 等級 | B9: 月 額 | F9: 0.1013 | H9: 0.117 | J9: 0.183
F10: 全 額 | G10: 折半額 | H10: 全 額 | I10: 折半額 | J10: 全 額 | K10: 折半額
C11: 円以上 | E11: 円未満
A12: 1 | B12: 58000 | D12: ～ | E12: 63000 | F12: 5875.4 | G12: 2937.7 | H12: 6786 | I12: 3393
A13: 2 | B13: 68000 | C13: 63000 | D13: ～ | E13: 73000 | F13: 6888.4 | G13: 3444.2 | H13: 7956 | I13: 3978
A14: 3 | B14: 78000 | C14: 73000 | D14: ～ | E14: 83000 | F14: 7901.4 | G14: 3950.7 | H14: 9126 | I14: 4563
A15: 4（1） | B15: 88000 | C15: 83000 | D15: ～ | E15: 93000 | F15: 8914.4 | G15: 4457.2 | H15: 10296 | I15: 5148 | J15: 16104 | K15: 8052
A16: 5（2） | B16: 98000 | C16: 93000 | D16: ～ | E16: 101000 | F16: 9927.4 | G16: 4963.7 | H16: 11466 | I16: 5733 | J16: 17934 | K16: 8967
A17: 6（3） | B17: 104000 | C17: 101000 | D17: ～ | E17: 107000 | F17: 10535.2 | G17: 5267.6 | H17: 12168 | I17: 6084 | J17: 19032 | K17: 9516
A18: 7（4） | B18: 110000 | C18: 107000 | D18: ～ | E18: 114000 | F18: 11143 | G18: 5571.5 | H18: 12870 | I18: 6435 | J18: 20130 | K18: 10065
A19: 8（5） | B19: 118000 | C19: 114000 | D19: ～ | E19: 122000 | F19: 11953.4 | G19: 5976.7 | H19: 13806 | I19: 6903 | J19: 21594 | K19: 10797
A20: 9（6） | B20: 126000 | C20: 122000 | D20: ～ | E20: 130000 | F20: 12763.8 | G20: 6381.9 | H20: 14742 | I20: 7371 | J20: 23058 | K20: 11529
A21: 10（7） | B21: 134000 | C21: 130000 | D21: ～ | E21: 138000 | F21: 13574.2 | G21: 6787.1 | H21: 15678 | I21: 7839 | J21: 24522 | K21: 12261
A22: 11（8） | B22: 142000 | C22: 138000 | D22: ～ | E22: 146000 | F22: 14384.6 | G22: 7192.3 | H22: 16614 | I22: 8307 | J22: 25986 | K22: 12993
A23: 12（9） | B23: 150000 | C23: 146000 | D23: ～ | E23: 155000 | F23: 15195 | G23: 7597.5 | H23: 17550 | I23: 8775 | J23: 27450 | K23: 13725
A24: 13（10） | B24: 160000 | C24: 155000 | D24: ～ | E24: 165000 | F24: 16208 | G24: 8104 | H24: 18720 | I24: 9360 | J24: 29280 | K24: 14640
A25: 14（11） | B25: 170000 | C25: 165000 | D25: ～ | E25: 175000 | F25: 17221 | G25: 8610.5 | H25: 19890 | I25: 9945 | J25: 31110 | K25: 15555
A26: 15（12） | B26: 180000 | C26: 175000 | D26: ～ | E26: 185000 | F26: 18234 | G26: 9117 | H26: 21060 | I26: 10530 | J26: 32940 | K26: 16470
A27: 16（13） | B27: 190000 | C27: 185000 | D27: ～ | E27: 195000 | F27: 19247 | G27: 9623.5 | H27: 22230 | I27: 11115 | J27: 34770 | K27: 17385
A28: 17（14） | B28: 200000 | C28: 195000 | D28: ～ | E28: 210000 | F28: 20260 | G28: 10130 | H28: 23400 | I28: 11700 | J28: 36600 | K28: 18300
A29: 18（15） | B29: 220000 | C29: 210000 | D29: ～ | E29: 230000 | F29: 22286 | G29: 11143 | H29: 25740 | I29: 12870 | J29: 40260 | K29: 20130
A30: 19（16） | B30: 240000 | C30: 230000 | D30: ～ | E30: 250000 | F30: 24312 | G30: 12156 | H30: 28080 | I30: 14040 | J30: 43920 | K30: 21960
A31: 20（17） | B31: 260000 | C31: 250000 | D31: ～ | E31: 270000 | F31: 26338 | G31: 13169 | H31: 30420 | I31: 15210 | J31: 47580 | K31: 23790
A32: 21（18） | B32: 280000 | C32: 270000 | D32: ～ | E32: 290000 | F32: 28364 | G32: 14182 | H32: 32760 | I32: 16380 | J32: 51240 | K32: 25620
A33: 22（19） | B33: 300000 | C33: 290000 | D33: ～ | E33: 310000 | F33: 30390 | G33: 15195 | H33: 35100 | I33: 17550 | J33: 54900 | K33: 27450
A34: 23（20） | B34: 320000 | C34: 310000 | D34: ～ | E34: 330000 | F34: 32416 | G34: 16208 | H34: 37440 | I34: 18720 | J34: 58560 | K34: 29280
A35: 24（21） | B35: 340000 | C35: 330000 | D35: ～ | E35: 350000 | F35: 34442 | G35: 17221 | H35: 39780 | I35: 19890 | J35: 62220 | K35: 31110
A36: 25（22） | B36: 360000 | C36: 350000 | D36: ～ | E36: 370000 | F36: 36468 | G36: 18234 | H36: 42120 | I36: 21060 | J36: 65880 | K36: 32940
A37: 26（23） | B37: 380000 | C37: 370000 | D37: ～ | E37: 395000 | F37: 38494 | G37: 19247 | H37: 44460 | I37: 22230 | J37: 69540 | K37: 34770
A38: 27（24） | B38: 410000 | C38: 395000 | D38: ～ | E38: 425000 | F38: 41533 | G38: 20766.5 | H38: 47970 | I38: 23985 | J38: 75030 | K38: 37515
A39: 28（25） | B39: 440000 | C39: 425000 | D39: ～ | E39: 455000 | F39: 44572 | G39: 22286 | H39: 51480 | I39: 25740 | J39: 80520 | K39: 40260
A40: 29（26） | B40: 470000 | C40: 455000 | D40: ～ | E40: 485000 | F40: 47611 | G40: 23805.5 | H40: 54990 | I40: 27495 | J40: 86010 | K40: 43005
A41: 30（27） | B41: 500000 | C41: 485000 | D41: ～ | E41: 515000 | F41: 50650 | G41: 25325 | H41: 58500 | I41: 29250 | J41: 91500 | K41: 45750
A42: 31（28） | B42: 530000 | C42: 515000 | D42: ～ | E42: 545000 | F42: 53689 | G42: 26844.5 | H42: 62010 | I42: 31005 | J42: 96990 | K42: 48495
A43: 32（29） | B43: 560000 | C43: 545000 | D43: ～ | E43: 575000 | F43: 56728 | G43: 28364 | H43: 65520 | I43: 32760 | J43: 102480 | K43: 51240
A44: 33（30） | B44: 590000 | C44: 575000 | D44: ～ | E44: 605000 | F44: 59767 | G44: 29883.5 | H44: 69030 | I44: 34515 | J44: 107970 | K44: 53985
A45: 34（31） | B45: 620000 | C45: 605000 | D45: ～ | E45: 635000 | F45: 62806 | G45: 31403 | H45: 72540 | I45: 36270 | J45: 113460 | K45: 56730
A46: 35 | B46: 650000 | C46: 635000 | D46: ～ | E46: 665000 | F46: 65845 | G46: 32922.5 | H46: 76050 | I46: 38025
A47: 36 | B47: 680000 | C47: 665000 | D47: ～ | E47: 695000 | F47: 68884 | G47: 34442 | H47: 79560 | I47: 39780 | J47: ※厚生年金基金に加入している方の
A48: 37 | B48: 710000 | C48: 695000 | D48: ～ | E48: 730000 | F48: 71923 | G48: 35961.5 | H48: 83070 | I48: 41535 | J48: 厚生年金保険料率は、基金ごとに
A49: 38 | B49: 750000 | C49: 730000 | D49: ～ | E49: 770000 | F49: 75975 | G49: 37987.5 | H49: 87750 | I49: 43875 | J49: 定められている免除保険料率
A50: 39 | B50: 790000 | C50: 770000 | D50: ～ | E50: 810000 | F50: 80027 | G50: 40013.5 | H50: 92430 | I50: 46215 | J50: （2.4％～5.0％）を控除した率となり
A51: 40 | B51: 830000 | C51: 810000 | D51: ～ | E51: 855000 | F51: 84079 | G51: 42039.5 | H51: 97110 | I51: 48555 | J51: ます。
A52: 41 | B52: 880000 | C52: 855000 | D52: ～ | E52: 905000 | F52: 89144 | G52: 44572 | H52: 102960 | I52: 51480
A53: 42 | B53: 930000 | C53: 905000 | D53: ～ | E53: 955000 | F53: 94209 | G53: 47104.5 | H53: 108810 | I53: 54405 | J53: 加入する基金ごとに異なりますの
A54: 43 | B54: 980000 | C54: 955000 | D54: ～ | E54: 1005000 | F54: 99274 | G54: 49637 | H54: 114660 | I54: 57330 | J54: で、免除保険料率および厚生年金
A55: 44 | B55: 1030000 | C55: 1005000 | D55: ～ | E55: 1055000 | F55: 104339 | G55: 52169.5 | H55: 120510 | I55: 60255 | J55: 基金の掛金については、加入する
A56: 45 | B56: 1090000 | C56: 1055000 | D56: ～ | E56: 1115000 | F56: 110417 | G56: 55208.5 | H56: 127530 | I56: 63765 | J56: 厚生年金基金にお問い合わせ
A57: 46 | B57: 1150000 | C57: 1115000 | D57: ～ | E57: 1175000 | F57: 116495 | G57: 58247.5 | H57: 134550 | I57: 67275 | J57: ください。
A58: 47 | B58: 1210000 | C58: 1175000 | D58: ～ | E58: 1235000 | F58: 122573 | G58: 61286.5 | H58: 141570 | I58: 70785
A59: 48 | B59: 1270000 | C59: 1235000 | D59: ～ | E59: 1295000 | F59: 128651 | G59: 64325.5 | H59: 148590 | I59: 74295
A60: 49 | B60: 1330000 | C60: 1295000 | D60: ～ | E60: 1355000 | F60: 134729 | G60: 67364.5 | H60: 155610 | I60: 77805
A61: 50 | B61: 1390000 | C61: 1355000 | D61: ～ | F61: 140807 | G61: 70403.5 | H61: 162630 | I61: 81315
A63: 0.1012679275
A64: ◆等級欄の（ ）内の数字は、厚生年金保険の標準報酬月額等級です。
A65: 4（1）等級の「報酬月額」欄は、厚生年金保険の場合「93,000円未満」と読み替えてください。
A66: 34（31）等級の「報酬月額」欄は、厚生年金保険の場合「605,000円以上」と読み替えてください。
A67: ◆平成30年度における全国健康保険協会の任意継続被保険者について、標準報酬月額の上限は、280,000円です。
A70: ○被保険者負担分（表の折半額の欄）に円未満の端数がある場合
A71: ①事業主が、給与から被保険者負担分を控除する場合、被保険者負担分の端数が50銭以下の場合は切り捨て、50銭を超える場合は切り上げて1円となります。
A72: ②被保険者が、被保険者負担分を事業主へ現金で支払う場合、被保険者負担分の端数が50銭未満の場合は切り捨て、50銭以上の場合は切り上げて1円となります。
A73: （注）①、②にかかわらず、事業主と被保険者間で特約がある場合には、特約に基づき端数処理をすることができます。
A75: ○納入告知書の保険料額
A76: 納入告知書の保険料額は、被保険者個々の保険料額を合算した金額になります。ただし、合算した金額に円未満の端数がある場合は、その端数を切り捨てた額となります。
A78: ○賞与にかかる保険料額
A79: 賞与に係る保険料額は、賞与額から1,000円未満の端数を切り捨てた額（標準賞与額)に、保険料率を乗じた額となります。
A80: また、標準賞与額の上限は、健康保険は年間573万円（毎年4月1日から翌年3月31日までの累計額。）となり、厚生年金保険と子ども・子育て拠出金の場合は
A81: 月間150万円となります。
A83: ○子ども・子育て拠出金
A84: 事業主の方は、児童手当の支給に要する費用等の一部として、子ども・子育て拠出金を負担いただくことになります。（被保険者の負担はありません。）
A85: この子ども・子育て拠出金の額は、被保険者個々の厚生年金保険の標準報酬月額および標準賞与額に、拠出金率（0.23％）を乗じて得た額の総額となります。

Sheet 山形 (hidden)
A1: 平成30年3月分（4月納付分）からの健康保険・厚生年金保険の保険料額表
B3: ・健康保険料率：平成30年3月分～ 適用 ・厚生年金保険料率：平成29年9月分～ 適用
B4: ・介護保険料率：平成30年3月分～ 適用 ・子ども・子育て拠出金率：平成29年4月分～ 適用
A6: （山形県） | K6: （単位：円）
A7: 標 準 報 酬 | C7: 報 酬 月 額 | F7: 全国健康保険協会管掌健康保険料 | J7: 厚生年金保険料（厚生年金基金加入員を除く）
F8: 介護保険第２号被保険者 に該当しない場合 | H8: 介護保険第２号被保険者 に該当する場合 | J8: 一般、坑内員・船員
A9: 等級 | B9: 月 額 | F9: 0.1004 | H9: 0.1161 | J9: 0.183
F10: 全 額 | G10: 折半額 | H10: 全 額 | I10: 折半額 | J10: 全 額 | K10: 折半額
C11: 円以上 | E11: 円未満
A12: 1 | B12: 58000 | D12: ～ | E12: 63000 | F12: 5823.2 | G12: 2911.6 | H12: 6733.8 | I12: 3366.9
A13: 2 | B13: 68000 | C13: 63000 | D13: ～ | E13: 73000 | F13: 6827.2 | G13: 3413.6 | H13: 7894.8 | I13: 3947.4
A14: 3 | B14: 78000 | C14: 73000 | D14: ～ | E14: 83000 | F14: 7831.2 | G14: 3915.6 | H14: 9055.8 | I14: 4527.9
A15: 4（1） | B15: 88000 | C15: 83000 | D15: ～ | E15: 93000 | F15: 8835.2 | G15: 4417.6 | H15: 10216.8 | I15: 5108.4 | J15: 16104 | K15: 8052
A16: 5（2） | B16: 98000 | C16: 93000 | D16: ～ | E16: 101000 | F16: 9839.2 | G16: 4919.6 | H16: 11377.8 | I16: 5688.9 | J16: 17934 | K16: 8967
A17: 6（3） | B17: 104000 | C17: 101000 | D17: ～ | E17: 107000 | F17: 10441.6 | G17: 5220.8 | H17: 12074.4 | I17: 6037.2 | J17: 19032 | K17: 9516
A18: 7（4） | B18: 110000 | C18: 107000 | D18: ～ | E18: 114000 | F18: 11044 | G18: 5522 | H18: 12771 | I18: 6385.5 | J18: 20130 | K18: 10065
A19: 8（5） | B19: 118000 | C19: 114000 | D19: ～ | E19: 122000 | F19: 11847.2 | G19: 5923.6 | H19: 13699.8 | I19: 6849.9 | J19: 21594 | K19: 10797
A20: 9（6） | B20: 126000 | C20: 122000 | D20: ～ | E20: 130000 | F20: 12650.4 | G20: 6325.2 | H20: 14628.6 | I20: 7314.3 | J20: 23058 | K20: 11529
A21: 10（7） | B21: 134000 | C21: 130000 | D21: ～ | E21: 138000 | F21: 13453.6 | G21: 6726.8 | H21: 15557.4 | I21: 7778.7 | J21: 24522 | K21: 12261
A22: 11（8） | B22: 142000 | C22: 138000 | D22: ～ | E22: 146000 | F22: 14256.8 | G22: 7128.4 | H22: 16486.2 | I22: 8243.1 | J22: 25986 | K22: 12993
A23: 12（9） | B23: 150000 | C23: 146000 | D23: ～ | E23: 155000 | F23: 15060 | G23: 7530 | H23: 17415 | I23: 8707.5 | J23: 27450 | K23: 13725
A24: 13（10） | B24: 160000 | C24: 155000 | D24: ～ | E24: 165000 | F24: 16064 | G24: 8032 | H24: 18576 | I24: 9288 | J24: 29280 | K24: 14640
A25: 14（11） | B25: 170000 | C25: 165000 | D25: ～ | E25: 175000 | F25: 17068 | G25: 8534 | H25: 19737 | I25: 9868.5 | J25: 31110 | K25: 15555
A26: 15（12） | B26: 180000 | C26: 175000 | D26: ～ | E26: 185000 | F26: 18072 | G26: 9036 | H26: 20898 | I26: 10449 | J26: 32940 | K26: 16470
A27: 16（13） | B27: 190000 | C27: 185000 | D27: ～ | E27: 195000 | F27: 19076 | G27: 9538 | H27: 22059 | I27: 11029.5 | J27: 34770 | K27: 17385
A28: 17（14） | B28: 200000 | C28: 195000 | D28: ～ | E28: 210000 | F28: 20080 | G28: 10040 | H28: 23220 | I28: 11610 | J28: 36600 | K28: 18300
A29: 18（15） | B29: 220000 | C29: 210000 | D29: ～ | E29: 230000 | F29: 22088 | G29: 11044 | H29: 25542 | I29: 12771 | J29: 40260 | K29: 20130
A30: 19（16） | B30: 240000 | C30: 230000 | D30: ～ | E30: 250000 | F30: 24096 | G30: 12048 | H30: 27864 | I30: 13932 | J30: 43920 | K30: 21960
A31: 20（17） | B31: 260000 | C31: 250000 | D31: ～ | E31: 270000 | F31: 26104 | G31: 13052 | H31: 30186 | I31: 15093 | J31: 47580 | K31: 23790
A32: 21（18） | B32: 280000 | C32: 270000 | D32: ～ | E32: 290000 | F32: 28112 | G32: 14056 | H32: 32508 | I32: 16254 | J32: 51240 | K32: 25620
A33: 22（19） | B33: 300000 | C33: 290000 | D33: ～ | E33: 310000 | F33: 30120 | G33: 15060 | H33: 34830 | I33: 17415 | J33: 54900 | K33: 27450
A34: 23（20） | B34: 320000 | C34: 310000 | D34: ～ | E34: 330000 | F34: 32128 | G34: 16064 | H34: 37152 | I34: 18576 | J34: 58560 | K34: 29280
A35: 24（21） | B35: 340000 | C35: 330000 | D35: ～ | E35: 350000 | F35: 34136 | G35: 17068 | H35: 39474 | I35: 19737 | J35: 62220 | K35: 31110
A36: 25（22） | B36: 360000 | C36: 350000 | D36: ～ | E36: 370000 | F36: 36144 | G36: 18072 | H36: 41796 | I36: 20898 | J36: 65880 | K36: 32940
A37: 26（23） | B37: 380000 | C37: 370000 | D37: ～ | E37: 395000 | F37: 38152 | G37: 19076 | H37: 44118 | I37: 22059 | J37: 69540 | K37: 34770
A38: 27（24） | B38: 410000 | C38: 395000 | D38: ～ | E38: 425000 | F38: 41164 | G38: 20582 | H38: 47601 | I38: 23800.5 | J38: 75030 | K38: 37515
A39: 28（25） | B39: 440000 | C39: 425000 | D39: ～ | E39: 455000 | F39: 44176 | G39: 22088 | H39: 51084 | I39: 25542 | J39: 80520 | K39: 40260
A40: 29（26） | B40: 470000 | C40: 455000 | D40: ～ | E40: 485000 | F40: 47188 | G40: 23594 | H40: 54567 | I40: 27283.5 | J40: 86010 | K40: 43005
A41: 30（27） | B41: 500000 | C41: 485000 | D41: ～ | E41: 515000 | F41: 50200 | G41: 25100 | H41: 58050 | I41: 29025 | J41: 91500 | K41: 45750
A42: 31（28） | B42: 530000 | C42: 515000 | D42: ～ | E42: 545000 | F42: 53212 | G42: 26606 | H42: 61533 | I42: 30766.5 | J42: 96990 | K42: 48495
A43: 32（29） | B43: 560000 | C43: 545000 | D43: ～ | E43: 575000 | F43: 56224 | G43: 28112 | H43: 65016 | I43: 32508 | J43: 102480 | K43: 51240
A44: 33（30） | B44: 590000 | C44: 575000 | D44: ～ | E44: 605000 | F44: 59236 | G44: 29618 | H44: 68499 | I44: 34249.5 | J44: 107970 | K44: 53985
A45: 34（31） | B45: 620000 | C45: 605000 | D45: ～ | E45: 635000 | F45: 62248 | G45: 31124 | H45: 71982 | I45: 35991 | J45: 113460 | K45: 56730
A46: 35 | B46: 650000 | C46: 635000 | D46: ～ | E46: 665000 | F46: 65260 | G46: 32630 | H46: 75465 | I46: 37732.5
A47: 36 | B47: 680000 | C47: 665000 | D47: ～ | E47: 695000 | F47: 68272 | G47: 34136 | H47: 78948 | I47: 39474 | J47: ※厚生年金基金に加入している方の
A48: 37 | B48: 710000 | C48: 695000 | D48: ～ | E48: 730000 | F48: 71284 | G48: 35642 | H48: 82431 | I48: 41215.5 | J48: 厚生年金保険料率は、基金ごとに
A49: 38 | B49: 750000 | C49: 730000 | D49: ～ | E49: 770000 | F49: 75300 | G49: 37650 | H49: 87075 | I49: 43537.5 | J49: 定められている免除保険料率
A50: 39 | B50: 790000 | C50: 770000 | D50: ～ | E50: 810000 | F50: 79316 | G50: 39658 | H50: 91719 | I50: 45859.5 | J50: （2.4％～5.0％）を控除した率となり
A51: 40 | B51: 830000 | C51: 810000 | D51: ～ | E51: 855000 | F51: 83332 | G51: 41666 | H51: 96363 | I51: 48181.5 | J51: ます。
A52: 41 | B52: 880000 | C52: 855000 | D52: ～ | E52: 905000 | F52: 88352 | G52: 44176 | H52: 102168 | I52: 51084
A53: 42 | B53: 930000 | C53: 905000 | D53: ～ | E53: 955000 | F53: 93372 | G53: 46686 | H53: 107973 | I53: 53986.5 | J53: 加入する基金ごとに異なりますの
A54: 43 | B54: 980000 | C54: 955000 | D54: ～ | E54: 1005000 | F54: 98392 | G54: 49196 | H54: 113778 | I54: 56889 | J54: で、免除保険料率および厚生年金
A55: 44 | B55: 1030000 | C55: 1005000 | D55: ～ | E55: 1055000 | F55: 103412 | G55: 51706 | H55: 119583 | I55: 59791.5 | J55: 基金の掛金については、加入する
A56: 45 | B56: 1090000 | C56: 1055000 | D56: ～ | E56: 1115000 | F56: 109436 | G56: 54718 | H56: 126549 | I56: 63274.5 | J56: 厚生年金基金にお問い合わせ
A57: 46 | B57: 1150000 | C57: 1115000 | D57: ～ | E57: 1175000 | F57: 115460 | G57: 57730 | H57: 133515 | I57: 66757.5 | J57: ください。
A58: 47 | B58: 1210000 | C58: 1175000 | D58: ～ | E58: 1235000 | F58: 121484 | G58: 60742 | H58: 140481 | I58: 70240.5
A59: 48 | B59: 1270000 | C59: 1235000 | D59: ～ | E59: 1295000 | F59: 127508 | G59: 63754 | H59: 147447 | I59: 73723.5
A60: 49 | B60: 1330000 | C60: 1295000 | D60: ～ | E60: 1355000 | F60: 133532 | G60: 66766 | H60: 154413 | I60: 77206.5
A61: 50 | B61: 1390000 | C61: 1355000 | D61: ～ | F61: 139556 | G61: 69778 | H61: 161379 | I61: 80689.5
A63: 0.1004012063
A64: ◆等級欄の（ ）内の数字は、厚生年金保険の標準報酬月額等級です。
A65: 4（1）等級の「報酬月額」欄は、厚生年金保険の場合「93,000円未満」と読み替えてください。
A66: 34（31）等級の「報酬月額」欄は、厚生年金保険の場合「605,000円以上」と読み替えてください。
A67: ◆平成30年度における全国健康保険協会の任意継続被保険者について、標準報酬月額の上限は、280,000円です。
A70: ○被保険者負担分（表の折半額の欄）に円未満の端数がある場合
A71: ①事業主が、給与から被保険者負担分を控除する場合、被保険者負担分の端数が50銭以下の場合は切り捨て、50銭を超える場合は切り上げて1円となります。
A72: ②被保険者が、被保険者負担分を事業主へ現金で支払う場合、被保険者負担分の端数が50銭未満の場合は切り捨て、50銭以上の場合は切り上げて1円となります。
A73: （注）①、②にかかわらず、事業主と被保険者間で特約がある場合には、特約に基づき端数処理をすることができます。
A75: ○納入告知書の保険料額
A76: 納入告知書の保険料額は、被保険者個々の保険料額を合算した金額になります。ただし、合算した金額に円未満の端数がある場合は、その端数を切り捨てた額となります。
A78: ○賞与にかかる保険料額
A79: 賞与に係る保険料額は、賞与額から1,000円未満の端数を切り捨てた額（標準賞与額)に、保険料率を乗じた額となります。
A80: また、標準賞与額の上限は、健康保険は年間573万円（毎年4月1日から翌年3月31日までの累計額。）となり、厚生年金保険と子ども・子育て拠出金の場合は
A81: 月間150万円となります。
A83: ○子ども・子育て拠出金
A84: 事業主の方は、児童手当の支給に要する費用等の一部として、子ども・子育て拠出金を負担いただくことになります。（被保険者の負担はありません。）
A85: この子ども・子育て拠出金の額は、被保険者個々の厚生年金保険の標準報酬月額および標準賞与額に、拠出金率（0.23％）を乗じて得た額の総額となります。

Sheet 福島 (hidden)
A1: 平成30年3月分（4月納付分）からの健康保険・厚生年金保険の保険料額表
B3: ・健康保険料率：平成30年3月分～ 適用 ・厚生年金保険料率：平成29年9月分～ 適用
B4: ・介護保険料率：平成30年3月分～ 適用 ・子ども・子育て拠出金率：平成29年4月分～ 適用
A6: （福島県） | K6: （単位：円）
A7: 標 準 報 酬 | C7: 報 酬 月 額 | F7: 全国健康保険協会管掌健康保険料 | J7: 厚生年金保険料（厚生年金基金加入員を除く）
F8: 介護保険第２号被保険者 に該当しない場合 | H8: 介護保険第２号被保険者 に該当する場合 | J8: 一般、坑内員・船員
A9: 等級 | B9: 月 額 | F9: 0.0979 | H9: 0.1136 | J9: 0.183
F10: 全 額 | G10: 折半額 | H10: 全 額 | I10: 折半額 | J10: 全 額 | K10: 折半額
C11: 円以上 | E11: 円未満
A12: 1 | B12: 58000 | D12: ～ | E12: 63000 | F12: 5678.2 | G12: 2839.1 | H12: 6588.8 | I12: 3294.4
A13: 2 | B13: 68000 | C13: 63000 | D13: ～ | E13: 73000 | F13: 6657.2 | G13: 3328.6 | H13: 7724.8 | I13: 3862.4
A14: 3 | B14: 78000 | C14: 73000 | D14: ～ | E14: 83000 | F14: 7636.2 | G14: 3818.1 | H14: 8860.8 | I14: 4430.4
A15: 4（1） | B15: 88000 | C15: 83000 | D15: ～ | E15: 93000 | F15: 8615.2 | G15: 4307.6 | H15: 9996.8 | I15: 4998.4 | J15: 16104 | K15: 8052
A16: 5（2） | B16: 98000 | C16: 93000 | D16: ～ | E16: 101000 | F16: 9594.2 | G16: 4797.1 | H16: 11132.8 | I16: 5566.4 | J16: 17934 | K16: 8967
A17: 6（3） | B17: 104000 | C17: 101000 | D17: ～ | E17: 107000 | F17: 10181.6 | G17: 5090.8 | H17: 11814.4 | I17: 5907.2 | J17: 19032 | K17: 9516
A18: 7（4） | B18: 110000 | C18: 107000 | D18: ～ | E18: 114000 | F18: 10769 | G18: 5384.5 | H18: 12496 | I18: 6248 | J18: 20130 | K18: 10065
A19: 8（5） | B19: 118000 | C19: 114000 | D19: ～ | E19: 122000 | F19: 11552.2 | G19: 5776.1 | H19: 13404.8 | I19: 6702.4 | J19: 21594 | K19: 10797
A20: 9（6） | B20: 126000 | C20: 122000 | D20: ～ | E20: 130000 | F20: 12335.4 | G20: 6167.7 | H20: 14313.6 | I20: 7156.8 | J20: 23058 | K20: 11529
A21: 10（7） | B21: 134000 | C21: 130000 | D21: ～ | E21: 138000 | F21: 13118.6 | G21: 6559.3 | H21: 15222.4 | I21: 7611.2 | J21: 24522 | K21: 12261
A22: 11（8） | B22: 142000 | C22: 138000 | D22: ～ | E22: 146000 | F22: 13901.8 | G22: 6950.9 | H22: 16131.2 | I22: 8065.6 | J22: 25986 | K22: 12993
A23: 12（9） | B23: 150000 | C23: 146000 | D23: ～ | E23: 155000 | F23: 14685 | G23: 7342.5 | H23: 17040 | I23: 8520 | J23: 27450 | K23: 13725
A24: 13（10） | B24: 160000 | C24: 155000 | D24: ～ | E24: 165000 | F24: 15664 | G24: 7832 | H24: 18176 | I24: 9088 | J24: 29280 | K24: 14640
A25: 14（11） | B25: 170000 | C25: 165000 | D25: ～ | E25: 175000 | F25: 16643 | G25: 8321.5 | H25: 19312 | I25: 9656 | J25: 31110 | K25: 15555
A26: 15（12） | B26: 180000 | C26: 175000 | D26: ～ | E26: 185000 | F26: 17622 | G26: 8811 | H26: 20448 | I26: 10224 | J26: 32940 | K26: 16470
A27: 16（13） | B27: 190000 | C27: 185000 | D27: ～ | E27: 195000 | F27: 18601 | G27: 9300.5 | H27: 21584 | I27: 10792 | J27: 34770 | K27: 17385
A28: 17（14） | B28: 200000 | C28: 195000 | D28: ～ | E28: 210000 | F28: 19580 | G28: 9790 | H28: 22720 | I28: 11360 | J28: 36600 | K28: 18300
A29: 18（15） | B29: 220000 | C29: 210000 | D29: ～ | E29: 230000 | F29: 21538 | G29: 10769 | H29: 24992 | I29: 12496 | J29: 40260 | K29: 20130
A30: 19（16） | B30: 240000 | C30: 230000 | D30: ～ | E30: 250000 | F30: 23496 | G30: 11748 | H30: 27264 | I30: 13632 | J30: 43920 | K30: 21960
A31: 20（17） | B31: 260000 | C31: 250000 | D31: ～ | E31: 270000 | F31: 25454 | G31: 12727 | H31: 29536 | I31: 14768 | J31: 47580 | K31: 23790
A32: 21（18） | B32: 280000 | C32: 270000 | D32: ～ | E32: 290000 | F32: 27412 | G32: 13706 | H32: 31808 | I32: 15904 | J32: 51240 | K32: 25620
A33: 22（19） | B33: 300000 | C33: 290000 | D33: ～ | E33: 310000 | F33: 29370 | G33: 14685 | H33: 34080 | I33: 17040 | J33: 54900 | K33: 27450
A34: 23（20） | B34: 320000 | C34: 310000 | D34: ～ | E34: 330000 | F34: 31328 | G34: 15664 | H34: 36352 | I34: 18176 | J34: 58560 | K34: 29280
A35: 24（21） | B35: 340000 | C35: 330000 | D35: ～ | E35: 350000 | F35: 33286 | G35: 16643 | H35: 38624 | I35: 19312 | J35: 62220 | K35: 31110
A36: 25（22） | B36: 360000 | C36: 350000 | D36: ～ | E36: 370000 | F36: 35244 | G36: 17622 | H36: 40896 | I36: 20448 | J36: 65880 | K36: 32940
A37: 26（23） | B37: 380000 | C37: 370000 | D37: ～ | E37: 395000 | F37: 37202 | G37: 18601 | H37: 43168 | I37: 21584 | J37: 69540 | K37: 34770
A38: 27（24） | B38: 410000 | C38: 395000 | D38: ～ | E38: 425000 | F38: 40139 | G38: 20069.5 | H38: 46576 | I38: 23288 | J38: 75030 | K38: 37515
A39: 28（25） | B39: 440000 | C39: 425000 | D39: ～ | E39: 455000 | F39: 43076 | G39: 21538 | H39: 49984 | I39: 24992 | J39: 80520 | K39: 40260
A40: 29（26） | B40: 470000 | C40: 455000 | D40: ～ | E40: 485000 | F40: 46013 | G40: 23006.5 | H40: 53392 | I40: 26696 | J40: 86010 | K40: 43005
A41: 30（27） | B41: 500000 | C41: 485000 | D41: ～ | E41: 515000 | F41: 48950 | G41: 24475 | H41: 56800 | I41: 28400 | J41: 91500 | K41: 45750
A42: 31（28） | B42: 530000 | C42: 515000 | D42: ～ | E42: 545000 | F42: 51887 | G42: 25943.5 | H42: 60208 | I42: 30104 | J42: 96990 | K42: 48495
A43: 32（29） | B43: 560000 | C43: 545000 | D43: ～ | E43: 575000 | F43: 54824 | G43: 27412 | H43: 63616 | I43: 31808 | J43: 102480 | K43: 51240
A44: 33（30） | B44: 590000 | C44: 575000 | D44: ～ | E44: 605000 | F44: 57761 | G44: 28880.5 | H44: 67024 | I44: 33512 | J44: 107970 | K44: 53985
A45: 34（31） | B45: 620000 | C45: 605000 | D45: ～ | E45: 635000 | F45: 60698 | G45: 30349 | H45: 70432 | I45: 35216 | J45: 113460 | K45: 56730
A46: 35 | B46: 650000 | C46: 635000 | D46: ～ | E46: 665000 | F46: 63635 | G46: 31817.5 | H46: 73840 | I46: 36920
A47: 36 | B47: 680000 | C47: 665000 | D47: ～ | E47: 695000 | F47: 66572 | G47: 33286 | H47: 77248 | I47: 38624 | J47: ※厚生年金基金に加入している方の
A48: 37 | B48: 710000 | C48: 695000 | D48: ～ | E48: 730000 | F48: 69509 | G48: 34754.5 | H48: 80656 | I48: 40328 | J48: 厚生年金保険料率は、基金ごとに
A49: 38 | B49: 750000 | C49: 730000 | D49: ～ | E49: 770000 | F49: 73425 | G49: 36712.5 | H49: 85200 | I49: 42600 | J49: 定められている免除保険料率
A50: 39 | B50: 790000 | C50: 770000 | D50: ～ | E50: 810000 | F50: 77341 | G50: 38670.5 | H50: 89744 | I50: 44872 | J50: （2.4％～5.0％）を控除した率となり
A51: 40 | B51: 830000 | C51: 810000 | D51: ～ | E51: 855000 | F51: 81257 | G51: 40628.5 | H51: 94288 | I51: 47144 | J51: ます。
A52: 41 | B52: 880000 | C52: 855000 | D52: ～ | E52: 905000 | F52: 86152 | G52: 43076 | H52: 99968 | I52: 49984
A53: 42 | B53: 930000 | C53: 905000 | D53: ～ | E53: 955000 | F53: 91047 | G53: 45523.5 | H53: 105648 | I53: 52824 | J53: 加入する基金ごとに異なりますの
A54: 43 | B54: 980000 | C54: 955000 | D54: ～ | E54: 1005000 | F54: 95942 | G54: 47971 | H54: 111328 | I54: 55664 | J54: で、免除保険料率および厚生年金
A55: 44 | B55: 1030000 | C55: 1005000 | D55: ～ | E55: 1055000 | F55: 100837 | G55: 50418.5 | H55: 117008 | I55: 58504 | J55: 基金の掛金については、加入する
A56: 45 | B56: 1090000 | C56: 1055000 | D56: ～ | E56: 1115000 | F56: 106711 | G56: 53355.5 | H56: 123824 | I56: 61912 | J56: 厚生年金基金にお問い合わせ
A57: 46 | B57: 1150000 | C57: 1115000 | D57: ～ | E57: 1175000 | F57: 112585 | G57: 56292.5 | H57: 130640 | I57: 65320 | J57: ください。
A58: 47 | B58: 1210000 | C58: 1175000 | D58: ～ | E58: 1235000 | F58: 118459 | G58: 59229.5 | H58: 137456 | I58: 68728
A59: 48 | B59: 1270000 | C59: 1235000 | D59: ～ | E59: 1295000 | F59: 124333 | G59: 62166.5 | H59: 144272 | I59: 72136
A60: 49 | B60: 1330000 | C60: 1295000 | D60: ～ | E60: 1355000 | F60: 130207 | G60: 65103.5 | H60: 151088 | I60: 75544
A61: 50 | B61: 1390000 | C61: 1355000 | D61: ～ | F61: 136081 | G61: 68040.5 | H61: 157904 | I61: 78952
A63: 0.09793458442
A64: ◆等級欄の（ ）内の数字は、厚生年金保険の標準報酬月額等級です。
A65: 4（1）等級の「報酬月額」欄は、厚生年金保険の場合「93,000円未満」と読み替えてください。
A66: 34（31）等級の「報酬月額」欄は、厚生年金保険の場合「605,000円以上」と読み替えてください。
A67: ◆平成30年度における全国健康保険協会の任意継続被保険者について、標準報酬月額の上限は、280,000円です。
A70: ○被保険者負担分（表の折半額の欄）に円未満の端数がある場合
A71: ①事業主が、給与から被保険者負担分を控除する場合、被保険者負担分の端数が50銭以下の場合は切り捨て、50銭を超える場合は切り上げて1円となります。
A72: ②被保険者が、被保険者負担分を事業主へ現金で支払う場合、被保険者負担分の端数が50銭未満の場合は切り捨て、50銭以上の場合は切り上げて1円となります。
A73: （注）①、②にかかわらず、事業主と被保険者間で特約がある場合には、特約に基づき端数処理をすることができます。
A75: ○納入告知書の保険料額
A76: 納入告知書の保険料額は、被保険者個々の保険料額を合算した金額になります。ただし、合算した金額に円未満の端数がある場合は、その端数を切り捨てた額となります。
A78: ○賞与にかかる保険料額
A79: 賞与に係る保険料額は、賞与額から1,000円未満の端数を切り捨てた額（標準賞与額)に、保険料率を乗じた額となります。
A80: また、標準賞与額の上限は、健康保険は年間573万円（毎年4月1日から翌年3月31日までの累計額。）となり、厚生年金保険と子ども・子育て拠出金の場合は
A81: 月間150万円となります。
A83: ○子ども・子育て拠出金
A84: 事業主の方は、児童手当の支給に要する費用等の一部として、子ども・子育て拠出金を負担いただくことになります。（被保険者の負担はありません。）
A85: この子ども・子育て拠出金の額は、被保険者個々の厚生年金保険の標準報酬月額および標準賞与額に、拠出金率（0.23％）を乗じて得た額の総額となります。

Sheet 茨城 (hidden)
A1: 平成30年3月分（4月納付分）からの健康保険・厚生年金保険の保険料額表
B3: ・健康保険料率：平成30年3月分～ 適用 ・厚生年金保険料率：平成29年9月分～ 適用
B4: ・介護保険料率：平成30年3月分～ 適用 ・子ども・子育て拠出金率：平成29年4月分～ 適用
A6: （茨城県） | K6: （単位：円）
A7: 標 準 報 酬 | C7: 報 酬 月 額 | F7: 全国健康保険協会管掌健康保険料 | J7: 厚生年金保険料（厚生年金基金加入員を除く）
F8: 介護保険第２号被保険者 に該当しない場合 | H8: 介護保険第２号被保険者 に該当する場合 | J8: 一般、坑内員・船員
A9: 等級 | B9: 月 額 | F9: 0.099 | H9: 0.1147 | J9: 0.183
F10: 全 額 | G10: 折半額 | H10: 全 額 | I10: 折半額 | J10: 全 額 | K10: 折半額
C11: 円以上 | E11: 円未満
A12: 1 | B12: 58000 | D12: ～ | E12: 63000 | F12: 5742 | G12: 2871 | H12: 6652.6 | I12: 3326.3
A13: 2 | B13: 68000 | C13: 63000 | D13: ～ | E13: 73000 | F13: 6732 | G13: 3366 | H13: 7799.6 | I13: 3899.8
A14: 3 | B14: 78000 | C14: 73000 | D14: ～ | E14: 83000 | F14: 7722 | G14: 3861 | H14: 8946.6 | I14: 4473.3
A15: 4（1） | B15: 88000 | C15: 83000 | D15: ～ | E15: 93000 | F15: 8712 | G15: 4356 | H15: 10093.6 | I15: 5046.8 | J15: 16104 | K15: 8052
A16: 5（2） | B16: 98000 | C16: 93000 | D16: ～ | E16: 101000 | F16: 9702 | G16: 4851 | H16: 11240.6 | I16: 5620.3 | J16: 17934 | K16: 8967
A17: 6（3） | B17: 104000 | C17: 101000 | D17: ～ | E17: 107000 | F17: 10296 | G17: 5148 | H17: 11928.8 | I17: 5964.4 | J17: 19032 | K17: 9516
A18: 7（4） | B18: 110000 | C18: 107000 | D18: ～ | E18: 114000 | F18: 10890 | G18: 5445 | H18: 12617 | I18: 6308.5 | J18: 20130 | K18: 10065
A19: 8（5） | B19: 118000 | C19: 114000 | D19: ～ | E19: 122000 | F19: 11682 | G19: 5841 | H19: 13534.6 | I19: 6767.3 | J19: 21594 | K19: 10797
A20: 9（6） | B20: 126000 | C20: 122000 | D20: ～ | E20: 130000 | F20: 12474 | G20: 6237 | H20: 14452.2 | I20: 7226.1 | J20: 23058 | K20: 11529
A21: 10（7） | B21: 134000 | C21: 130000 | D21: ～ | E21: 138000 | F21: 13266 | G21: 6633 | H21: 15369.8 | I21: 7684.9 | J21: 24522 | K21: 12261
A22: 11（8） | B22: 142000 | C22: 138000 | D22: ～ | E22: 146000 | F22: 14058 | G22: 7029 | H22: 16287.4 | I22: 8143.7 | J22: 25986 | K22: 12993
A23: 12（9） | B23: 150000 | C23: 146000 | D23: ～ | E23: 155000 | F23: 14850 | G23: 7425 | H23: 17205 | I23: 8602.5 | J23: 27450 | K23: 13725
A24: 13（10） | B24: 160000 | C24: 155000 | D24: ～ | E24: 165000 | F24: 15840 | G24: 7920 | H24: 18352 | I24: 9176 | J24: 29280 | K24: 14640
A25: 14（11） | B25: 170000 | C25: 165000 | D25: ～ | E25: 175000 | F25: 16830 | G25: 8415 | H25: 19499 | I25: 9749.5 | J25: 31110 | K25: 15555
A26: 15（12） | B26: 180000 | C26: 175000 | D26: ～ | E26: 185000 | F26: 17820 | G26: 8910 | H26: 20646 | I26: 10323 | J26: 32940 | K26: 16470
A27: 16（13） | B27: 190000 | C27: 185000 | D27: ～ | E27: 195000 | F27: 18810 | G27: 9405 | H27: 21793 | I27: 10896.5 | J27: 34770 | K27: 17385
A28: 17（14） | B28: 200000 | C28: 195000 | D28: ～ | E28: 210000 | F28: 19800 | G28: 9900 | H28: 22940 | I28: 11470 | J28: 36600 | K28: 18300
A29: 18（15） | B29: 220000 | C29: 210000 | D29: ～ | E29: 230000 | F29: 21780 | G29: 10890 | H29: 25234 | I29: 12617 | J29: 40260 | K29: 20130
A30: 19（16） | B30: 240000 | C30: 230000 | D30: ～ | E30: 250000 | F30: 23760 | G30: 11880 | H30: 27528 | I30: 13764 | J30: 43920 | K30: 21960
A31: 20（17） | B31: 260000 | C31: 250000 | D31: ～ | E31: 270000 | F31: 25740 | G31: 12870 | H31: 29822 | I31: 14911 | J31: 47580 | K31: 23790
A32: 21（18） | B32: 280000 | C32: 270000 | D32: ～ | E32: 290000 | F32: 27720 | G32: 13860 | H32: 32116 | I32: 16058 | J32: 51240 | K32: 25620
A33: 22（19） | B33: 300000 | C33: 290000 | D33: ～ | E33: 310000 | F33: 29700 | G33: 14850 | H33: 34410 | I33: 17205 | J33: 54900 | K33: 27450
A34: 23（20） | B34: 320000 | C34: 310000 | D34: ～ | E34: 330000 | F34: 31680 | G34: 15840 | H34: 36704 | I34: 18352 | J34: 58560 | K34: 29280
A35: 24（21） | B35: 340000 | C35: 330000 | D35: ～ | E35: 350000 | F35: 33660 | G35: 16830 | H35: 38998 | I35: 19499 | J35: 62220 | K35: 31110
A36: 25（22） | B36: 360000 | C36: 350000 | D36: ～ | E36: 370000 | F36: 35640 | G36: 17820 | H36: 41292 | I36: 20646 | J36: 65880 | K36: 32940
A37: 26（23） | B37: 380000 | C37: 370000 | D37: ～ | E37: 395000 | F37: 37620 | G37: 18810 | H37: 43586 | I37: 21793 | J37: 69540 | K37: 34770
A38: 27（24） | B38: 410000 | C38: 395000 | D38: ～ | E38: 425000 | F38: 40590 | G38: 20295 | H38: 47027 | I38: 23513.5 | J38: 75030 | K38: 37515
A39: 28（25） | B39: 440000 | C39: 425000 | D39: ～ | E39: 455000 | F39: 43560 | G39: 21780 | H39: 50468 | I39: 25234 | J39: 80520 | K39: 40260
A40: 29（26） | B40: 470000 | C40: 455000 | D40: ～ | E40: 485000 | F40: 46530 | G40: 23265 | H40: 53909 | I40: 26954.5 | J40: 86010 | K40: 43005
A41: 30（27） | B41: 500000 | C41: 485000 | D41: ～ | E41: 515000 | F41: 49500 | G41: 24750 | H41: 57350 | I41: 28675 | J41: 91500 | K41: 45750
A42: 31（28） | B42: 530000 | C42: 515000 | D42: ～ | E42: 545000 | F42: 52470 | G42: 26235 | H42: 60791 | I42: 30395.5 | J42: 96990 | K42: 48495
A43: 32（29） | B43: 560000 | C43: 545000 | D43: ～ | E43: 575000 | F43: 55440 | G43: 27720 | H43: 64232 | I43: 32116 | J43: 102480 | K43: 51240
A44: 33（30） | B44: 590000 | C44: 575000 | D44: ～ | E44: 605000 | F44: 58410 | G44: 29205 | H44: 67673 | I44: 33836.5 | J44: 107970 | K44: 53985
A45: 34（31） | B45: 620000 | C45: 605000 | D45: ～ | E45: 635000 | F45: 61380 | G45: 30690 | H45: 71114 | I45: 35557 | J45: 113460 | K45: 56730
A46: 35 | B46: 650000 | C46: 635000 | D46: ～ | E46: 665000 | F46: 64350 | G46: 32175 | H46: 74555 | I46: 37277.5
A47: 36 | B47: 680000 | C47: 665000 | D47: ～ | E47: 695000 | F47: 67320 | G47: 33660 | H47: 77996 | I47: 38998 | J47: ※厚生年金基金に加入している方の
A48: 37 | B48: 710000 | C48: 695000 | D48: ～ | E48: 730000 | F48: 70290 | G48: 35145 | H48: 81437 | I48: 40718.5 | J48: 厚生年金保険料率は、基金ごとに
A49: 38 | B49: 750000 | C49: 730000 | D49: ～ | E49: 770000 | F49: 74250 | G49: 37125 | H49: 86025 | I49: 43012.5 | J49: 定められている免除保険料率
A50: 39 | B50: 790000 | C50: 770000 | D50: ～ | E50: 810000 | F50: 78210 | G50: 39105 | H50: 90613 | I50: 45306.5 | J50: （2.4％～5.0％）を控除した率となり
A51: 40 | B51: 830000 | C51: 810000 | D51: ～ | E51: 855000 | F51: 82170 | G51: 41085 | H51: 95201 | I51: 47600.5 | J51: ます。
A52: 41 | B52: 880000 | C52: 855000 | D52: ～ | E52: 905000 | F52: 87120 | G52: 43560 | H52: 100936 | I52: 50468
A53: 42 | B53: 930000 | C53: 905000 | D53: ～ | E53: 955000 | F53: 92070 | G53: 46035 | H53: 106671 | I53: 53335.5 | J53: 加入する基金ごとに異なりますの
A54: 43 | B54: 980000 | C54: 955000 | D54: ～ | E54: 1005000 | F54: 97020 | G54: 48510 | H54: 112406 | I54: 56203 | J54: で、免除保険料率および厚生年金
A55: 44 | B55: 1030000 | C55: 1005000 | D55: ～ | E55: 1055000 | F55: 101970 | G55: 50985 | H55: 118141 | I55: 59070.5 | J55: 基金の掛金については、加入する
A56: 45 | B56: 1090000 | C56: 1055000 | D56: ～ | E56: 1115000 | F56: 107910 | G56: 53955 | H56: 125023 | I56: 62511.5 | J56: 厚生年金基金にお問い合わせ
A57: 46 | B57: 1150000 | C57: 1115000 | D57: ～ | E57: 1175000 | F57: 113850 | G57: 56925 | H57: 131905 | I57: 65952.5 | J57: ください。
A58: 47 | B58: 1210000 | C58: 1175000 | D58: ～ | E58: 1235000 | F58: 119790 | G58: 59895 | H58: 138787 | I58: 69393.5
A59: 48 | B59: 1270000 | C59: 1235000 | D59: ～ | E59: 1295000 | F59: 125730 | G59: 62865 | H59: 145669 | I59: 72834.5
A60: 49 | B60: 1330000 | C60: 1295000 | D60: ～ | E60: 1355000 | F60: 131670 | G60: 65835 | H60: 152551 | I60: 76275.5
A61: 50 | B61: 1390000 | C61: 1355000 | D61: ～ | F61: 137610 | G61: 68805 | H61: 159433 | I61: 79716.5
A63: 0.0989943009
A64: ◆等級欄の（ ）内の数字は、厚生年金保険の標準報酬月額等級です。
A65: 4（1）等級の「報酬月額」欄は、厚生年金保険の場合「93,000円未満」と読み替えてください。
A66: 34（31）等級の「報酬月額」欄は、厚生年金保険の場合「605,000円以上」と読み替えてください。
A67: ◆平成30年度における全国健康保険協会の任意継続被保険者について、標準報酬月額の上限は、280,000円です。
A70: ○被保険者負担分（表の折半額の欄）に円未満の端数がある場合
A71: ①事業主が、給与から被保険者負担分を控除する場合、被保険者負担分の端数が50銭以下の場合は切り捨て、50銭を超える場合は切り上げて1円となります。
A72: ②被保険者が、被保険者負担分を事業主へ現金で支払う場合、被保険者負担分の端数が50銭未満の場合は切り捨て、50銭以上の場合は切り上げて1円となります。
A73: （注）①、②にかかわらず、事業主と被保険者間で特約がある場合には、特約に基づき端数処理をすることができます。
A75: ○納入告知書の保険料額
A76: 納入告知書の保険料額は、被保険者個々の保険料額を合算した金額になります。ただし、合算した金額に円未満の端数がある場合は、その端数を切り捨てた額となります。
A78: ○賞与にかかる保険料額
A79: 賞与に係る保険料額は、賞与額から1,000円未満の端数を切り捨てた額（標準賞与額)に、保険料率を乗じた額となります。
A80: また、標準賞与額の上限は、健康保険は年間573万円（毎年4月1日から翌年3月31日までの累計額。）となり、厚生年金保険と子ども・子育て拠出金の場合は
A81: 月間150万円となります。
A83: ○子ども・子育て拠出金
A84: 事業主の方は、児童手当の支給に要する費用等の一部として、子ども・子育て拠出金を負担いただくことになります。（被保険者の負担はありません。）
A85: この子ども・子育て拠出金の額は、被保険者個々の厚生年金保険の標準報酬月額および標準賞与額に、拠出金率（0.23％）を乗じて得た額の総額となります。

Sheet 栃木 (hidden)
A1: 平成30年3月分（4月納付分）からの健康保険・厚生年金保険の保険料額表
B3: ・健康保険料率：平成30年3月分～ 適用 ・厚生年金保険料率：平成29年9月分～ 適用
B4: ・介護保険料率：平成30年3月分～ 適用 ・子ども・子育て拠出金率：平成29年4月分～ 適用
A6: （栃木県） | K6: （単位：円）
A7: 標 準 報 酬 | C7: 報 酬 月 額 | F7: 全国健康保険協会管掌健康保険料 | J7: 厚生年金保険料（厚生年金基金加入員を除く）
F8: 介護保険第２号被保険者 に該当しない場合 | H8: 介護保険第２号被保険者 に該当する場合 | J8: 一般、坑内員・船員
A9: 等級 | B9: 月 額 | F9: 0.0992 | H9: 0.1149 | J9: 0.183
F10: 全 額 | G10: 折半額 | H10: 全 額 | I10: 折半額 | J10: 全 額 | K10: 折半額
C11: 円以上 | E11: 円未満
A12: 1 | B12: 58000 | D12: ～ | E12: 63000 | F12: 5753.6 | G12: 2876.8 | H12: 6664.2 | I12: 3332.1
A13: 2 | B13: 68000 | C13: 63000 | D13: ～ | E13: 73000 | F13: 6745.6 | G13: 3372.8 | H13: 7813.2 | I13: 3906.6
A14: 3 | B14: 78000 | C14: 73000 | D14: ～ | E14: 83000 | F14: 7737.6 | G14: 3868.8 | H14: 8962.2 | I14: 4481.1
A15: 4（1） | B15: 88000 | C15: 83000 | D15: ～ | E15: 93000 | F15: 8729.6 | G15: 4364.8 | H15: 10111.2 | I15: 5055.6 | J15: 16104 | K15: 8052
A16: 5（2） | B16: 98000 | C16: 93000 | D16: ～ | E16: 101000 | F16: 9721.6 | G16: 4860.8 | H16: 11260.2 | I16: 5630.1 | J16: 17934 | K16: 8967
A17: 6（3） | B17: 104000 | C17: 101000 | D17: ～ | E17: 107000 | F17: 10316.8 | G17: 5158.4 | H17: 11949.6 | I17: 5974.8 | J17: 19032 | K17: 9516
A18: 7（4） | B18: 110000 | C18: 107000 | D18: ～ | E18: 114000 | F18: 10912 | G18: 5456 | H18: 12639 | I18: 6319.5 | J18: 20130 | K18: 10065
A19: 8（5） | B19: 118000 | C19: 114000 | D19: ～ | E19: 122000 | F19: 11705.6 | G19: 5852.8 | H19: 13558.2 | I19: 6779.1 | J19: 21594 | K19: 10797
A20: 9（6） | B20: 126000 | C20: 122000 | D20: ～ | E20: 130000 | F20: 12499.2 | G20: 6249.6 | H20: 14477.4 | I20: 7238.7 | J20: 23058 | K20: 11529
A21: 10（7） | B21: 134000 | C21: 130000 | D21: ～ | E21: 138000 | F21: 13292.8 | G21: 6646.4 | H21: 15396.6 | I21: 7698.3 | J21: 24522 | K21: 12261
A22: 11（8） | B22: 142000 | C22: 138000 | D22: ～ | E22: 146000 | F22: 14086.4 | G22: 7043.2 | H22: 16315.8 | I22: 8157.9 | J22: 25986 | K22: 12993
A23: 12（9） | B23: 150000 | C23: 146000 | D23: ～ | E23: 155000 | F23: 14880 | G23: 7440 | H23: 17235 | I23: 8617.5 | J23: 27450 | K23: 13725
A24: 13（10） | B24: 160000 | C24: 155000 | D24: ～ | E24: 165000 | F24: 15872 | G24: 7936 | H24: 18384 | I24: 9192 | J24: 29280 | K24: 14640
A25: 14（11） | B25: 170000 | C25: 165000 | D25: ～ | E25: 175000 | F25: 16864 | G25: 8432 | H25: 19533 | I25: 9766.5 | J25: 31110 | K25: 15555
A26: 15（12） | B26: 180000 | C26: 175000 | D26: ～ | E26: 185000 | F26: 17856 | G26: 8928 | H26: 20682 | I26: 10341 | J26: 32940 | K26: 16470
A27: 16（13） | B27: 190000 | C27: 185000 | D27: ～ | E27: 195000 | F27: 18848 | G27: 9424 | H27: 21831 | I27: 10915.5 | J27: 34770 | K27: 17385
A28: 17（14） | B28: 200000 | C28: 195000 | D28: ～ | E28: 210000 | F28: 19840 | G28: 9920 | H28: 22980 | I28: 11490 | J28: 36600 | K28: 18300
A29: 18（15） | B29: 220000 | C29: 210000 | D29: ～ | E29: 230000 | F29: 21824 | G29: 10912 | H29: 25278 | I29: 12639 | J29: 40260 | K29: 20130
A30: 19（16） | B30: 240000 | C30: 230000 | D30: ～ | E30: 250000 | F30: 23808 | G30: 11904 | H30: 27576 | I30: 13788 | J30: 43920 | K30: 21960
A31: 20（17） | B31: 260000 | C31: 250000 | D31: ～ | E31: 270000 | F31: 25792 | G31: 12896 | H31: 29874 | I31: 14937 | J31: 47580 | K31: 23790
A32: 21（18） | B32: 280000 | C32: 270000 | D32: ～ | E32: 290000 | F32: 27776 | G32: 13888 | H32: 32172 | I32: 16086 | J32: 51240 | K32: 25620
A33: 22（19） | B33: 300000 | C33: 290000 | D33: ～ | E33: 310000 | F33: 29760 | G33: 14880 | H33: 34470 | I33: 17235 | J33: 54900 | K33: 27450
A34: 23（20） | B34: 320000 | C34: 310000 | D34: ～ | E34: 330000 | F34: 31744 | G34: 15872 | H34: 36768 | I34: 18384 | J34: 58560 | K34: 29280
A35: 24（21） | B35: 340000 | C35: 330000 | D35: ～ | E35: 350000 | F35: 33728 | G35: 16864 | H35: 39066 | I35: 19533 | J35: 62220 | K35: 31110
A36: 25（22） | B36: 360000 | C36: 350000 | D36: ～ | E36: 370000 | F36: 35712 | G36: 17856 | H36: 41364 | I36: 20682 | J36: 65880 | K36: 32940
A37: 26（23） | B37: 380000 | C37: 370000 | D37: ～ | E37: 395000 | F37: 37696 | G37: 18848 | H37: 43662 | I37: 21831 | J37: 69540 | K37: 34770
A38: 27（24） | B38: 410000 | C38: 395000 | D38: ～ | E38: 425000 | F38: 40672 | G38: 20336 | H38: 47109 | I38: 23554.5 | J38: 75030 | K38: 37515
A39: 28（25） | B39: 440000 | C39: 425000 | D39: ～ | E39: 455000 | F39: 43648 | G39: 21824 | H39: 50556 | I39: 25278 | J39: 80520 | K39: 40260
A40: 29（26） | B40: 470000 | C40: 455000 | D40: ～ | E40: 485000 | F40: 46624 | G40: 23312 | H40: 54003 | I40: 27001.5 | J40: 86010 | K40: 43005
A41: 30（27） | B41: 500000 | C41: 485000 | D41: ～ | E41: 515000 | F41: 49600 | G41: 24800 | H41: 57450 | I41: 28725 | J41: 91500 | K41: 45750
A42: 31（28） | B42: 530000 | C42: 515000 | D42: ～ | E42: 545000 | F42: 52576 | G42: 26288 | H42: 60897 | I42: 30448.5 | J42: 96990 | K42: 48495
A43: 32（29） | B43: 560000 | C43: 545000 | D43: ～ | E43: 575000 | F43: 55552 | G43: 27776 | H43: 64344 | I43: 32172 | J43: 102480 | K43: 51240
A44: 33（30） | B44: 590000 | C44: 575000 | D44: ～ | E44: 605000 | F44: 58528 | G44: 29264 | H44: 67791 | I44: 33895.5 | J44: 107970 | K44: 53985
A45: 34（31） | B45: 620000 | C45: 605000 | D45: ～ | E45: 635000 | F45: 61504 | G45: 30752 | H45: 71238 | I45: 35619 | J45: 113460 | K45: 56730
A46: 35 | B46: 650000 | C46: 635000 | D46: ～ | E46: 665000 | F46: 64480 | G46: 32240 | H46: 74685 | I46: 37342.5
A47: 36 | B47: 680000 | C47: 665000 | D47: ～ | E47: 695000 | F47: 67456 | G47: 33728 | H47: 78132 | I47: 39066 | J47: ※厚生年金基金に加入している方の
A48: 37 | B48: 710000 | C48: 695000 | D48: ～ | E48: 730000 | F48: 70432 | G48: 35216 | H48: 81579 | I48: 40789.5 | J48: 厚生年金保険料率は、基金ごとに
A49: 38 | B49: 750000 | C49: 730000 | D49: ～ | E49: 770000 | F49: 74400 | G49: 37200 | H49: 86175 | I49: 43087.5 | J49: 定められている免除保険料率
A50: 39 | B50: 790000 | C50: 770000 | D50: ～ | E50: 810000 | F50: 78368 | G50: 39184 | H50: 90771 | I50: 45385.5 | J50: （2.4％～5.0％）を控除した率となり
A51: 40 | B51: 830000 | C51: 810000 | D51: ～ | E51: 855000 | F51: 82336 | G51: 41168 | H51: 95367 | I51: 47683.5 | J51: ます。
A52: 41 | B52: 880000 | C52: 855000 | D52: ～ | E52: 905000 | F52: 87296 | G52: 43648 | H52: 101112 | I52: 50556
A53: 42 | B53: 930000 | C53: 905000 | D53: ～ | E53: 955000 | F53: 92256 | G53: 46128 | H53: 106857 | I53: 53428.5 | J53: 加入する基金ごとに異なりますの
A54: 43 | B54: 980000 | C54: 955000 | D54: ～ | E54: 1005000 | F54: 97216 | G54: 48608 | H54: 112602 | I54: 56301 | J54: で、免除保険料率および厚生年金
A55: 44 | B55: 1030000 | C55: 1005000 | D55: ～ | E55: 1055000 | F55: 102176 | G55: 51088 | H55: 118347 | I55: 59173.5 | J55: 基金の掛金については、加入する
A56: 45 | B56: 1090000 | C56: 1055000 | D56: ～ | E56: 1115000 | F56: 108128 | G56: 54064 | H56: 125241 | I56: 62620.5 | J56: 厚生年金基金にお問い合わせ
A57: 46 | B57: 1150000 | C57: 1115000 | D57: ～ | E57: 1175000 | F57: 114080 | G57: 57040 | H57: 132135 | I57: 66067.5 | J57: ください。
A58: 47 | B58: 1210000 | C58: 1175000 | D58: ～ | E58: 1235000 | F58: 120032 | G58: 60016 | H58: 139029 | I58: 69514.5
A59: 48 | B59: 1270000 | C59: 1235000 | D59: ～ | E59: 1295000 | F59: 125984 | G59: 62992 | H59: 145923 | I59: 72961.5
A60: 49 | B60: 1330000 | C60: 1295000 | D60: ～ | E60: 1355000 | F60: 131936 | G60: 65968 | H60: 152817 | I60: 76408.5
A61: 50 | B61: 1390000 | C61: 1355000 | D61: ～ | F61: 137888 | G61: 68944 | H61: 159711 | I61: 79855.5
A63: 0.09917271405
A64: ◆等級欄の（ ）内の数字は、厚生年金保険の標準報酬月額等級です。
A65: 4（1）等級の「報酬月額」欄は、厚生年金保険の場合「93,000円未満」と読み替えてください。
A66: 34（31）等級の「報酬月額」欄は、厚生年金保険の場合「605,000円以上」と読み替えてください。
A67: ◆平成30年度における全国健康保険協会の任意継続被保険者について、標準報酬月額の上限は、280,000円です。
A70: ○被保険者負担分（表の折半額の欄）に円未満の端数がある場合
A71: ①事業主が、給与から被保険者負担分を控除する場合、被保険者負担分の端数が50銭以下の場合は切り捨て、50銭を超える場合は切り上げて1円となります。
A72: ②被保険者が、被保険者負担分を事業主へ現金で支払う場合、被保険者負担分の端数が50銭未満の場合は切り捨て、50銭以上の場合は切り上げて1円となります。
A73: （注）①、②にかかわらず、事業主と被保険者間で特約がある場合には、特約に基づき端数処理をすることができます。
A75: ○納入告知書の保険料額
A76: 納入告知書の保険料額は、被保険者個々の保険料額を合算した金額になります。ただし、合算した金額に円未満の端数がある場合は、その端数を切り捨てた額となります。
A78: ○賞与にかかる保険料額
A79: 賞与に係る保険料額は、賞与額から1,000円未満の端数を切り捨てた額（標準賞与額)に、保険料率を乗じた額となります。
A80: また、標準賞与額の上限は、健康保険は年間573万円（毎年4月1日から翌年3月31日までの累計額。）となり、厚生年金保険と子ども・子育て拠出金の場合は
A81: 月間150万円となります。
A83: ○子ども・子育て拠出金
A84: 事業主の方は、児童手当の支給に要する費用等の一部として、子ども・子育て拠出金を負担いただくことになります。（被保険者の負担はありません。）
A85: この子ども・子育て拠出金の額は、被保険者個々の厚生年金保険の標準報酬月額および標準賞与額に、拠出金率（0.23％）を乗じて得た額の総額となります。

Sheet 群馬 (hidden)
A1: 平成30年3月分（4月納付分）からの健康保険・厚生年金保険の保険料額表
B3: ・健康保険料率：平成30年3月分～ 適用 ・厚生年金保険料率：平成29年9月分～ 適用
B4: ・介護保険料率：平成30年3月分～ 適用 ・子ども・子育て拠出金率：平成29年4月分～ 適用
A6: （群馬県） | K6: （単位：円）
A7: 標 準 報 酬 | C7: 報 酬 月 額 | F7: 全国健康保険協会管掌健康保険料 | J7: 厚生年金保険料（厚生年金基金加入員を除く）
F8: 介護保険第２号被保険者 に該当しない場合 | H8: 介護保険第２号被保険者 に該当する場合 | J8: 一般、坑内員・船員
A9: 等級 | B9: 月 額 | F9: 0.0991 | H9: 0.1148 | J9: 0.183
F10: 全 額 | G10: 折半額 | H10: 全 額 | I10: 折半額 | J10: 全 額 | K10: 折半額
C11: 円以上 | E11: 円未満
A12: 1 | B12: 58000 | D12: ～ | E12: 63000 | F12: 5747.8 | G12: 2873.9 | H12: 6658.4 | I12: 3329.2
A13: 2 | B13: 68000 | C13: 63000 | D13: ～ | E13: 73000 | F13: 6738.8 | G13: 3369.4 | H13: 7806.4 | I13: 3903.2
A14: 3 | B14: 78000 | C14: 73000 | D14: ～ | E14: 83000 | F14: 7729.8 | G14: 3864.9 | H14: 8954.4 | I14: 4477.2
A15: 4（1） | B15: 88000 | C15: 83000 | D15: ～ | E15: 93000 | F15: 8720.8 | G15: 4360.4 | H15: 10102.4 | I15: 5051.2 | J15: 16104 | K15: 8052
A16: 5（2） | B16: 98000 | C16: 93000 | D16: ～ | E16: 101000 | F16: 9711.8 | G16: 4855.9 | H16: 11250.4 | I16: 5625.2 | J16: 17934 | K16: 8967
A17: 6（3） | B17: 104000 | C17: 101000 | D17: ～ | E17: 107000 | F17: 10306.4 | G17: 5153.2 | H17: 11939.2 | I17: 5969.6 | J17: 19032 | K17: 9516
A18: 7（4） | B18: 110000 | C18: 107000 | D18: ～ | E18: 114000 | F18: 10901 | G18: 5450.5 | H18: 12628 | I18: 6314 | J18: 20130 | K18: 10065
A19: 8（5） | B19: 118000 | C19: 114000 | D19: ～ | E19: 122000 | F19: 11693.8 | G19: 5846.9 | H19: 13546.4 | I19: 6773.2 | J19: 21594 | K19: 10797
A20: 9（6） | B20: 126000 | C20: 122000 | D20: ～ | E20: 130000 | F20: 12486.6 | G20: 6243.3 | H20: 14464.8 | I20: 7232.4 | J20: 23058 | K20: 11529
A21: 10（7） | B21: 134000 | C21: 130000 | D21: ～ | E21: 138000 | F21: 13279.4 | G21: 6639.7 | H21: 15383.2 | I21: 7691.6 | J21: 24522 | K21: 12261
A22: 11（8） | B22: 142000 | C22: 138000 | D22: ～ | E22: 146000 | F22: 14072.2 | G22: 7036.1 | H22: 16301.6 | I22: 8150.8 | J22: 25986 | K22: 12993
A23: 12（9） | B23: 150000 | C23: 146000 | D23: ～ | E23: 155000 | F23: 14865 | G23: 7432.5 | H23: 17220 | I23: 8610 | J23: 27450 | K23: 13725
A24: 13（10） | B24: 160000 | C24: 155000 | D24: ～ | E24: 165000 | F24: 15856 | G24: 7928 | H24: 18368 | I24: 9184 | J24: 29280 | K24: 14640
A25: 14（11） | B25: 170000 | C25: 165000 | D25: ～ | E25: 175000 | F25: 16847 | G25: 8423.5 | H25: 19516 | I25: 9758 | J25: 31110 | K25: 15555
A26: 15（12） | B26: 180000 | C26: 175000 | D26: ～ | E26: 185000 | F26: 17838 | G26: 8919 | H26: 20664 | I26: 10332 | J26: 32940 | K26: 16470
A27: 16（13） | B27: 190000 | C27: 185000 | D27: ～ | E27: 195000 | F27: 18829 | G27: 9414.5 | H27: 21812 | I27: 10906 | J27: 34770 | K27: 17385
A28: 17（14） | B28: 200000 | C28: 195000 | D28: ～ | E28: 210000 | F28: 19820 | G28: 9910 | H28: 22960 | I28: 11480 | J28: 36600 | K28: 18300
A29: 18（15） | B29: 220000 | C29: 210000 | D29: ～ | E29: 230000 | F29: 21802 | G29: 10901 | H29: 25256 | I29: 12628 | J29: 40260 | K29: 20130
A30: 19（16） | B30: 240000 | C30: 230000 | D30: ～ | E30: 250000 | F30: 23784 | G30: 11892 | H30: 27552 | I30: 13776 | J30: 43920 | K30: 21960
A31: 20（17） | B31: 260000 | C31: 250000 | D31: ～ | E31: 270000 | F31: 25766 | G31: 12883 | H31: 29848 | I31: 14924 | J31: 47580 | K31: 23790
A32: 21（18） | B32: 280000 | C32: 270000 | D32: ～ | E32: 290000 | F32: 27748 | G32: 13874 | H32: 32144 | I32: 16072 | J32: 51240 | K32: 25620
A33: 22（19） | B33: 300000 | C33: 290000 | D33: ～ | E33: 310000 | F33: 29730 | G33: 14865 | H33: 34440 | I33: 17220 | J33: 54900 | K33: 27450
A34: 23（20） | B34: 320000 | C34: 310000 | D34: ～ | E34: 330000 | F34: 31712 | G34: 15856 | H34: 36736 | I34: 18368 | J34: 58560 | K34: 29280
A35: 24（21） | B35: 340000 | C35: 330000 | D35: ～ | E35: 350000 | F35: 33694 | G35: 16847 | H35: 39032 | I35: 19516 | J35: 62220 | K35: 31110
A36: 25（22） | B36: 360000 | C36: 350000 | D36: ～ | E36: 370000 | F36: 35676 | G36: 17838 | H36: 41328 | I36: 20664 | J36: 65880 | K36: 32940
A37: 26（23） | B37: 380000 | C37: 370000 | D37: ～ | E37: 395000 | F37: 37658 | G37: 18829 | H37: 43624 | I37: 21812 | J37: 69540 | K37: 34770
A38: 27（24） | B38: 410000 | C38: 395000 | D38: ～ | E38: 425000 | F38: 40631 | G38: 20315.5 | H38: 47068 | I38: 23534 | J38: 75030 | K38: 37515
A39: 28（25） | B39: 440000 | C39: 425000 | D39: ～ | E39: 455000 | F39: 43604 | G39: 21802 | H39: 50512 | I39: 25256 | J39: 80520 | K39: 40260
A40: 29（26） | B40: 470000 | C40: 455000 | D40: ～ | E40: 485000 | F40: 46577 | G40: 23288.5 | H40: 53956 | I40: 26978 | J40: 86010 | K40: 43005
A41: 30（27） | B41: 500000 | C41: 485000 | D41: ～ | E41: 515000 | F41: 49550 | G41: 24775 | H41: 57400 | I41: 28700 | J41: 91500 | K41: 45750
A42: 31（28） | B42: 530000 | C42: 515000 | D42: ～ | E42: 545000 | F42: 52523 | G42: 26261.5 | H42: 60844 | I42: 30422 | J42: 96990 | K42: 48495
A43: 32（29） | B43: 560000 | C43: 545000 | D43: ～ | E43: 575000 | F43: 55496 | G43: 27748 | H43: 64288 | I43: 32144 | J43: 102480 | K43: 51240
A44: 33（30） | B44: 590000 | C44: 575000 | D44: ～ | E44: 605000 | F44: 58469 | G44: 29234.5 | H44: 67732 | I44: 33866 | J44: 107970 | K44: 53985
A45: 34（31） | B45: 620000 | C45: 605000 | D45: ～ | E45: 635000 | F45: 61442 | G45: 30721 | H45: 71176 | I45: 35588 | J45: 113460 | K45: 56730
A46: 35 | B46: 650000 | C46: 635000 | D46: ～ | E46: 665000 | F46: 64415 | G46: 32207.5 | H46: 74620 | I46: 37310
A47: 36 | B47: 680000 | C47: 665000 | D47: ～ | E47: 695000 | F47: 67388 | G47: 33694 | H47: 78064 | I47: 39032 | J47: ※厚生年金基金に加入している方の
A48: 37 | B48: 710000 | C48: 695000 | D48: ～ | E48: 730000 | F48: 70361 | G48: 35180.5 | H48: 81508 | I48: 40754 | J48: 厚生年金保険料率は、基金ごとに
A49: 38 | B49: 750000 | C49: 730000 | D49: ～ | E49: 770000 | F49: 74325 | G49: 37162.5 | H49: 86100 | I49: 43050 | J49: 定められている免除保険料率
A50: 39 | B50: 790000 | C50: 770000 | D50: ～ | E50: 810000 | F50: 78289 | G50: 39144.5 | H50: 90692 | I50: 45346 | J50: （2.4％～5.0％）を控除した率となり
A51: 40 | B51: 830000 | C51: 810000 | D51: ～ | E51: 855000 | F51: 82253 | G51: 41126.5 | H51: 95284 | I51: 47642 | J51: ます。
A52: 41 | B52: 880000 | C52: 855000 | D52: ～ | E52: 905000 | F52: 87208 | G52: 43604 | H52: 101024 | I52: 50512
A53: 42 | B53: 930000 | C53: 905000 | D53: ～ | E53: 955000 | F53: 92163 | G53: 46081.5 | H53: 106764 | I53: 53382 | J53: 加入する基金ごとに異なりますの
A54: 43 | B54: 980000 | C54: 955000 | D54: ～ | E54: 1005000 | F54: 97118 | G54: 48559 | H54: 112504 | I54: 56252 | J54: で、免除保険料率および厚生年金
A55: 44 | B55: 1030000 | C55: 1005000 | D55: ～ | E55: 1055000 | F55: 102073 | G55: 51036.5 | H55: 118244 | I55: 59122 | J55: 基金の掛金については、加入する
A56: 45 | B56: 1090000 | C56: 1055000 | D56: ～ | E56: 1115000 | F56: 108019 | G56: 54009.5 | H56: 125132 | I56: 62566 | J56: 厚生年金基金にお問い合わせ
A57: 46 | B57: 1150000 | C57: 1115000 | D57: ～ | E57: 1175000 | F57: 113965 | G57: 56982.5 | H57: 132020 | I57: 66010 | J57: ください。
A58: 47 | B58: 1210000 | C58: 1175000 | D58: ～ | E58: 1235000 | F58: 119911 | G58: 59955.5 | H58: 138908 | I58: 69454
A59: 48 | B59: 1270000 | C59: 1235000 | D59: ～ | E59: 1295000 | F59: 125857 | G59: 62928.5 | H59: 145796 | I59: 72898
A60: 49 | B60: 1330000 | C60: 1295000 | D60: ～ | E60: 1355000 | F60: 131803 | G60: 65901.5 | H60: 152684 | I60: 76342
A61: 50 | B61: 1390000 | C61: 1355000 | D61: ～ | F61: 137749 | G61: 68874.5 | H61: 159572 | I61: 79786
A63: 0.09905885755
A64: ◆等級欄の（ ）内の数字は、厚生年金保険の標準報酬月額等級です。
A65: 4（1）等級の「報酬月額」欄は、厚生年金保険の場合「93,000円未満」と読み替えてください。
A66: 34（31）等級の「報酬月額」欄は、厚生年金保険の場合「605,000円以上」と読み替えてください。
A67: ◆平成30年度における全国健康保険協会の任意継続被保険者について、標準報酬月額の上限は、280,000円です。
A70: ○被保険者負担分（表の折半額の欄）に円未満の端数がある場合
A71: ①事業主が、給与から被保険者負担分を控除する場合、被保険者負担分の端数が50銭以下の場合は切り捨て、50銭を超える場合は切り上げて1円となります。
A72: ②被保険者が、被保険者負担分を事業主へ現金で支払う場合、被保険者負担分の端数が50銭未満の場合は切り捨て、50銭以上の場合は切り上げて1円となります。
A73: （注）①、②にかかわらず、事業主と被保険者間で特約がある場合には、特約に基づき端数処理をすることができます。
A75: ○納入告知書の保険料額
A76: 納入告知書の保険料額は、被保険者個々の保険料額を合算した金額になります。ただし、合算した金額に円未満の端数がある場合は、その端数を切り捨てた額となります。
A78: ○賞与にかかる保険料額
A79: 賞与に係る保険料額は、賞与額から1,000円未満の端数を切り捨てた額（標準賞与額)に、保険料率を乗じた額となります。
A80: また、標準賞与額の上限は、健康保険は年間573万円（毎年4月1日から翌年3月31日までの累計額。）となり、厚生年金保険と子ども・子育て拠出金の場合は
A81: 月間150万円となります。
A83: ○子ども・子育て拠出金
A84: 事業主の方は、児童手当の支給に要する費用等の一部として、子ども・子育て拠出金を負担いただくことになります。（被保険者の負担はありません。）
A85: この子ども・子育て拠出金の額は、被保険者個々の厚生年金保険の標準報酬月額および標準賞与額に、拠出金率（0.23％）を乗じて得た額の総額となります。

Sheet 埼玉 (hidden)
A1: 平成30年3月分（4月納付分）からの健康保険・厚生年金保険の保険料額表
B3: ・健康保険料率：平成30年3月分～ 適用 ・厚生年金保険料率：平成29年9月分～ 適用
B4: ・介護保険料率：平成30年3月分～ 適用 ・子ども・子育て拠出金率：平成29年4月分～ 適用
A6: （埼玉県） | K6: （単位：円）
A7: 標 準 報 酬 | C7: 報 酬 月 額 | F7: 全国健康保険協会管掌健康保険料 | J7: 厚生年金保険料（厚生年金基金加入員を除く）
F8: 介護保険第２号被保険者 に該当しない場合 | H8: 介護保険第２号被保険者 に該当する場合 | J8: 一般、坑内員・船員
A9: 等級 | B9: 月 額 | F9: 0.0985 | H9: 0.1142 | J9: 0.183
F10: 全 額 | G10: 折半額 | H10: 全 額 | I10: 折半額 | J10: 全 額 | K10: 折半額
C11: 円以上 | E11: 円未満
A12: 1 | B12: 58000 | D12: ～ | E12: 63000 | F12: 5713 | G12: 2856.5 | H12: 6623.6 | I12: 3311.8
A13: 2 | B13: 68000 | C13: 63000 | D13: ～ | E13: 73000 | F13: 6698 | G13: 3349 | H13: 7765.6 | I13: 3882.8
A14: 3 | B14: 78000 | C14: 73000 | D14: ～ | E14: 83000 | F14: 7683 | G14: 3841.5 | H14: 8907.6 | I14: 4453.8
A15: 4（1） | B15: 88000 | C15: 83000 | D15: ～ | E15: 93000 | F15: 8668 | G15: 4334 | H15: 10049.6 | I15: 5024.8 | J15: 16104 | K15: 8052
A16: 5（2） | B16: 98000 | C16: 93000 | D16: ～ | E16: 101000 | F16: 9653 | G16: 4826.5 | H16: 11191.6 | I16: 5595.8 | J16: 17934 | K16: 8967
A17: 6（3） | B17: 104000 | C17: 101000 | D17: ～ | E17: 107000 | F17: 10244 | G17: 5122 | H17: 11876.8 | I17: 5938.4 | J17: 19032 | K17: 9516
A18: 7（4） | B18: 110000 | C18: 107000 | D18: ～ | E18: 114000 | F18: 10835 | G18: 5417.5 | H18: 12562 | I18: 6281 | J18: 20130 | K18: 10065
A19: 8（5） | B19: 118000 | C19: 114000 | D19: ～ | E19: 122000 | F19: 11623 | G19: 5811.5 | H19: 13475.6 | I19: 6737.8 | J19: 21594 | K19: 10797
A20: 9（6） | B20: 126000 | C20: 122000 | D20: ～ | E20: 130000 | F20: 12411 | G20: 6205.5 | H20: 14389.2 | I20: 7194.6 | J20: 23058 | K20: 11529
A21: 10（7） | B21: 134000 | C21: 130000 | D21: ～ | E21: 138000 | F21: 13199 | G21: 6599.5 | H21: 15302.8 | I21: 7651.4 | J21: 24522 | K21: 12261
A22: 11（8） | B22: 142000 | C22: 138000 | D22: ～ | E22: 146000 | F22: 13987 | G22: 6993.5 | H22: 16216.4 | I22: 8108.2 | J22: 25986 | K22: 12993
A23: 12（9） | B23: 150000 | C23: 146000 | D23: ～ | E23: 155000 | F23: 14775 | G23: 7387.5 | H23: 17130 | I23: 8565 | J23: 27450 | K23: 13725
A24: 13（10） | B24: 160000 | C24: 155000 | D24: ～ | E24: 165000 | F24: 15760 | G24: 7880 | H24: 18272 | I24: 9136 | J24: 29280 | K24: 14640
A25: 14（11） | B25: 170000 | C25: 165000 | D25: ～ | E25: 175000 | F25: 16745 | G25: 8372.5 | H25: 19414 | I25: 9707 | J25: 31110 | K25: 15555
A26: 15（12） | B26: 180000 | C26: 175000 | D26: ～ | E26: 185000 | F26: 17730 | G26: 8865 | H26: 20556 | I26: 10278 | J26: 32940 | K26: 16470
A27: 16（13） | B27: 190000 | C27: 185000 | D27: ～ | E27: 195000 | F27: 18715 | G27: 9357.5 | H27: 21698 | I27: 10849 | J27: 34770 | K27: 17385
A28: 17（14） | B28: 200000 | C28: 195000 | D28: ～ | E28: 210000 | F28: 19700 | G28: 9850 | H28: 22840 | I28: 11420 | J28: 36600 | K28: 18300
A29: 18（15） | B29: 220000 | C29: 210000 | D29: ～ | E29: 230000 | F29: 21670 | G29: 10835 | H29: 25124 | I29: 12562 | J29: 40260 | K29: 20130
A30: 19（16） | B30: 240000 | C30: 230000 | D30: ～ | E30: 250000 | F30: 23640 | G30: 11820 | H30: 27408 | I30: 13704 | J30: 43920 | K30: 21960
A31: 20（17） | B31: 260000 | C31: 250000 | D31: ～ | E31: 270000 | F31: 25610 | G31: 12805 | H31: 29692 | I31: 14846 | J31: 47580 | K31: 23790
A32: 21（18） | B32: 280000 | C32: 270000 | D32: ～ | E32: 290000 | F32: 27580 | G32: 13790 | H32: 31976 | I32: 15988 | J32: 51240 | K32: 25620
A33: 22（19） | B33: 300000 | C33: 290000 | D33: ～ | E33: 310000 | F33: 29550 | G33: 14775 | H33: 34260 | I33: 17130 | J33: 54900 | K33: 27450
A34: 23（20） | B34: 320000 | C34: 310000 | D34: ～ | E34: 330000 | F34: 31520 | G34: 15760 | H34: 36544 | I34: 18272 | J34: 58560 | K34: 29280
A35: 24（21） | B35: 340000 | C35: 330000 | D35: ～ | E35: 350000 | F35: 33490 | G35: 16745 | H35: 38828 | I35: 19414 | J35: 62220 | K35: 31110
A36: 25（22） | B36: 360000 | C36: 350000 | D36: ～ | E36: 370000 | F36: 35460 | G36: 17730 | H36: 41112 | I36: 20556 | J36: 65880 | K36: 32940
A37: 26（23） | B37: 380000 | C37: 370000 | D37: ～ | E37: 395000 | F37: 37430 | G37: 18715 | H37: 43396 | I37: 21698 | J37: 69540 | K37: 34770
A38: 27（24） | B38: 410000 | C38: 395000 | D38: ～ | E38: 425000 | F38: 40385 | G38: 20192.5 | H38: 46822 | I38: 23411 | J38: 75030 | K38: 37515
A39: 28（25） | B39: 440000 | C39: 425000 | D39: ～ | E39: 455000 | F39: 43340 | G39: 21670 | H39: 50248 | I39: 25124 | J39: 80520 | K39: 40260
A40: 29（26） | B40: 470000 | C40: 455000 | D40: ～ | E40: 485000 | F40: 46295 | G40: 23147.5 | H40: 53674 | I40: 26837 | J40: 86010 | K40: 43005
A41: 30（27） | B41: 500000 | C41: 485000 | D41: ～ | E41: 515000 | F41: 49250 | G41: 24625 | H41: 57100 | I41: 28550 | J41: 91500 | K41: 45750
A42: 31（28） | B42: 530000 | C42: 515000 | D42: ～ | E42: 545000 | F42: 52205 | G42: 26102.5 | H42: 60526 | I42: 30263 | J42: 96990 | K42: 48495
A43: 32（29） | B43: 560000 | C43: 545000 | D43: ～ | E43: 575000 | F43: 55160 | G43: 27580 | H43: 63952 | I43: 31976 | J43: 102480 | K43: 51240
A44: 33（30） | B44: 590000 | C44: 575000 | D44: ～ | E44: 605000 | F44: 58115 | G44: 29057.5 | H44: 67378 | I44: 33689 | J44: 107970 | K44: 53985
A45: 34（31） | B45: 620000 | C45: 605000 | D45: ～ | E45: 635000 | F45: 61070 | G45: 30535 | H45: 70804 | I45: 35402 | J45: 113460 | K45: 56730
A46: 35 | B46: 650000 | C46: 635000 | D46: ～ | E46: 665000 | F46: 64025 | G46: 32012.5 | H46: 74230 | I46: 37115
A47: 36 | B47: 680000 | C47: 665000 | D47: ～ | E47: 695000 | F47: 66980 | G47: 33490 | H47: 77656 | I47: 38828 | J47: ※厚生年金基金に加入している方の
A48: 37 | B48: 710000 | C48: 695000 | D48: ～ | E48: 730000 | F48: 69935 | G48: 34967.5 | H48: 81082 | I48: 40541 | J48: 厚生年金保険料率は、基金ごとに
A49: 38 | B49: 750000 | C49: 730000 | D49: ～ | E49: 770000 | F49: 73875 | G49: 36937.5 | H49: 85650 | I49: 42825 | J49: 定められている免除保険料率
A50: 39 | B50: 790000 | C50: 770000 | D50: ～ | E50: 810000 | F50: 77815 | G50: 38907.5 | H50: 90218 | I50: 45109 | J50: （2.4％～5.0％）を控除した率となり
A51: 40 | B51: 830000 | C51: 810000 | D51: ～ | E51: 855000 | F51: 81755 | G51: 40877.5 | H51: 94786 | I51: 47393 | J51: ます。
A52: 41 | B52: 880000 | C52: 855000 | D52: ～ | E52: 905000 | F52: 86680 | G52: 43340 | H52: 100496 | I52: 50248
A53: 42 | B53: 930000 | C53: 905000 | D53: ～ | E53: 955000 | F53: 91605 | G53: 45802.5 | H53: 106206 | I53: 53103 | J53: 加入する基金ごとに異なりますの
A54: 43 | B54: 980000 | C54: 955000 | D54: ～ | E54: 1005000 | F54: 96530 | G54: 48265 | H54: 111916 | I54: 55958 | J54: で、免除保険料率および厚生年金
A55: 44 | B55: 1030000 | C55: 1005000 | D55: ～ | E55: 1055000 | F55: 101455 | G55: 50727.5 | H55: 117626 | I55: 58813 | J55: 基金の掛金については、加入する
A56: 45 | B56: 1090000 | C56: 1055000 | D56: ～ | E56: 1115000 | F56: 107365 | G56: 53682.5 | H56: 124478 | I56: 62239 | J56: 厚生年金基金にお問い合わせ
A57: 46 | B57: 1150000 | C57: 1115000 | D57: ～ | E57: 1175000 | F57: 113275 | G57: 56637.5 | H57: 131330 | I57: 65665 | J57: ください。
A58: 47 | B58: 1210000 | C58: 1175000 | D58: ～ | E58: 1235000 | F58: 119185 | G58: 59592.5 | H58: 138182 | I58: 69091
A59: 48 | B59: 1270000 | C59: 1235000 | D59: ～ | E59: 1295000 | F59: 125095 | G59: 62547.5 | H59: 145034 | I59: 72517
A60: 49 | B60: 1330000 | C60: 1295000 | D60: ～ | E60: 1355000 | F60: 131005 | G60: 65502.5 | H60: 151886 | I60: 75943
A61: 50 | B61: 1390000 | C61: 1355000 | D61: ～ | F61: 136915 | G61: 68457.5 | H61: 158738 | I61: 79369
A63: 0.09850119406
A64: ◆等級欄の（ ）内の数字は、厚生年金保険の標準報酬月額等級です。
A65: 4（1）等級の「報酬月額」欄は、厚生年金保険の場合「93,000円未満」と読み替えてください。
A66: 34（31）等級の「報酬月額」欄は、厚生年金保険の場合「605,000円以上」と読み替えてください。
A67: ◆平成30年度における全国健康保険協会の任意継続被保険者について、標準報酬月額の上限は、280,000円です。
A70: ○被保険者負担分（表の折半額の欄）に円未満の端数がある場合
A71: ①事業主が、給与から被保険者負担分を控除する場合、被保険者負担分の端数が50銭以下の場合は切り捨て、50銭を超える場合は切り上げて1円となります。
A72: ②被保険者が、被保険者負担分を事業主へ現金で支払う場合、被保険者負担分の端数が50銭未満の場合は切り捨て、50銭以上の場合は切り上げて1円となります。
A73: （注）①、②にかかわらず、事業主と被保険者間で特約がある場合には、特約に基づき端数処理をすることができます。
A75: ○納入告知書の保険料額
A76: 納入告知書の保険料額は、被保険者個々の保険料額を合算した金額になります。ただし、合算した金額に円未満の端数がある場合は、その端数を切り捨てた額となります。
A78: ○賞与にかかる保険料額
A79: 賞与に係る保険料額は、賞与額から1,000円未満の端数を切り捨てた額（標準賞与額)に、保険料率を乗じた額となります。
A80: また、標準賞与額の上限は、健康保険は年間573万円（毎年4月1日から翌年3月31日までの累計額。）となり、厚生年金保険と子ども・子育て拠出金の場合は
A81: 月間150万円となります。
A83: ○子ども・子育て拠出金
A84: 事業主の方は、児童手当の支給に要する費用等の一部として、子ども・子育て拠出金を負担いただくことになります。（被保険者の負担はありません。）
A85: この子ども・子育て拠出金の額は、被保険者個々の厚生年金保険の標準報酬月額および標準賞与額に、拠出金率（0.23％）を乗じて得た額の総額となります。

Sheet 千葉 (hidden)
A1: 平成30年3月分（4月納付分）からの健康保険・厚生年金保険の保険料額表
B3: ・健康保険料率：平成29年3月分～ 適用 ・厚生年金保険料率：平成29年9月分～ 適用
B4: ・介護保険料率：平成30年3月分～ 適用 ・子ども・子育て拠出金率：平成29年4月分～ 適用
A6: （千葉県） | K6: （単位：円）
A7: 標 準 報 酬 | C7: 報 酬 月 額 | F7: 全国健康保険協会管掌健康保険料 | J7: 厚生年金保険料（厚生年金基金加入員を除く）
F8: 介護保険第２号被保険者 に該当しない場合 | H8: 介護保険第２号被保険者 に該当する場合 | J8: 一般、坑内員・船員
A9: 等級 | B9: 月 額 | F9: 0.0989 | H9: 0.1146 | J9: 0.183
F10: 全 額 | G10: 折半額 | H10: 全 額 | I10: 折半額 | J10: 全 額 | K10: 折半額
C11: 円以上 | E11: 円未満
A12: 1 | B12: 58000 | D12: ～ | E12: 63000 | F12: 5736.2 | G12: 2868.1 | H12: 6646.8 | I12: 3323.4
A13: 2 | B13: 68000 | C13: 63000 | D13: ～ | E13: 73000 | F13: 6725.2 | G13: 3362.6 | H13: 7792.8 | I13: 3896.4
A14: 3 | B14: 78000 | C14: 73000 | D14: ～ | E14: 83000 | F14: 7714.2 | G14: 3857.1 | H14: 8938.8 | I14: 4469.4
A15: 4（1） | B15: 88000 | C15: 83000 | D15: ～ | E15: 93000 | F15: 8703.2 | G15: 4351.6 | H15: 10084.8 | I15: 5042.4 | J15: 16104 | K15: 8052
A16: 5（2） | B16: 98000 | C16: 93000 | D16: ～ | E16: 101000 | F16: 9692.2 | G16: 4846.1 | H16: 11230.8 | I16: 5615.4 | J16: 17934 | K16: 8967
A17: 6（3） | B17: 104000 | C17: 101000 | D17: ～ | E17: 107000 | F17: 10285.6 | G17: 5142.8 | H17: 11918.4 | I17: 5959.2 | J17: 19032 | K17: 9516
A18: 7（4） | B18: 110000 | C18: 107000 | D18: ～ | E18: 114000 | F18: 10879 | G18: 5439.5 | H18: 12606 | I18: 6303 | J18: 20130 | K18: 10065
